Workbook

Sheet Contents
B7: A level and other 16-18 results (revised): 2015/16
B8: Coverage: England
B10: The full statistical first release is available at GOV.UK
B12: Local Authority and regional level tables: state-funded schools and colleges
B14: List of LAs by selective institution status
B16: Table Number | C16: Title
B17: 9a (state-funded schools and colleges) | C17: Attainment of level 3 state-funded students aged 16 to 18 by gender, local authority and region
B18: 9b (state-funded schools only) | C18: Attainment of level 3 state-funded school students aged 16 to 18 by gender, local authority and region
B20: List of A level subjects included in table 10
B22: Table Number | C22: Title
B23: 10 | C23: Number of A level examination entries, A*-A grades and A*-E grades by state-funded students by subject, local authority and region
B26: Enquiries
B27: Media | C27: Press Office News Desk, Department for Education, Sanctuary Buildings, 20 Great Smith St, London, SW1P 3BT. Telephone: 020 7783 8300
B28: Non-media | C28: School Performance Data Unit, Education Data Division, Department for Education, Sanctuary Buildings, 20 Great Smith St, London, SW1P 3BT.
C29: Attainment.STATISTICS@education.gov.uk

Sheet List of LAs
A1: Pupils in selective state-funded mainstream secondary schools in LAs with at least one selective school
A2: January 2016 School Census
A4: LA code | B4: LA name
A7: Widely Selective LAs (12)
A8: 303 | B8: Bexley
A9: 319 | B9: Sutton
A10: 344 | B10: Wirral
A11: 358 | B11: Trafford
A12: 825 | B12: Buckinghamshire
A13: 836 | B13: Poole
A14: 871 | B14: Slough
A15: 880 | B15: Torbay
A16: 882 | B16: Southend-on-Sea
A17: 886 | B17: Kent
A18: 887 | B18: Medway
A19: 925 | B19: Lincolnshire
A21: LAs with some selection (24)
A22: 302 | B22: Barnet
A23: 305 | B23: Bromley
A24: 308 | B24: Enfield
A25: 314 | B25: Kingston upon Thames
A26: 317 | B26: Redbridge
A27: 330 | B27: Birmingham
A28: 335 | B28: Walsall
A29: 336 | B29: Wolverhampton
A30: 341 | B30: Liverpool
A31: 381 | B31: Calderdale
A32: 382 | B32: Kirklees
A33: 815 | B33: North Yorkshire
A34: 837 | B34: Bournemouth
A35: 861 | B35: Stoke-on-Trent
A36: 865 | B36: Wiltshire
A37: 870 | B37: Reading
A38: 878 | B38: Devon
A39: 879 | B39: Plymouth
A40: 881 | B40: Essex
A41: 888 | B41: Lancashire
A42: 894 | B42: Telford and Wrekin
A43: 909 | B43: Cumbria
A44: 916 | B44: Gloucestershire
A45: 937 | B45: Warwickshire
A47: 'widely selective' where more than 25% of pupils attending schools in those LAs are in a grammar school; or
A48: areas with some selection' where the level of selection is less than 25%
A49: LAs not included in this list have no selective schools

Sheet SUPP_9a (hidden)
A1: Paste SQL output into cell A2 | B1: 0 | C1: 0 | D1: 0 | E1: 0 | F1: 0 | G1: 0 | H1: 0 | I1: 0 | J1: 0 | K1: 0 | L1: 0 | M1: 0 | N1: 0 | O1: 0 | P1: 0 | Q1: 0 | R1: 0 | S1: 0 | T1: 0 | U1: 0 | V1: 0 | W1: 0 | X1: 0 | Y1: 0 | Z1: 0 | AA1: 0 | AB1: 0
A2: gender | B2: rectype | C2: REGION | D2: LEA_London | E2: LEA | F2: LEALAB | G2: TALLPUP_LEV3_SFR | H2: TALLPPE_LEV3_SFR | I2: TALLPUP_ALEV_1618 | J2: TALLPPE_ALEV_1618 | K2: TALLPPEGRD_ALEV | L2: TINCLUDE_B3 | M2: TB3PTSE | N2: TB3PTSE_GRD | O2: PTGRADE_A3_ALL | P2: PTGRADE_AAB_ALL | Q2: TINCLUDE_AAB_2FAC | R2: PTAAB_2FAC | S2: TALLPUP_ACAD_1618 | T2: TALLPPE_ACAD_1618 | U2: TALLPPEGRD_ACAD | V2: TALLPUP_TLEV | W2: TALLPPE_TLEV | X2: TALLPPEGRD_TLEV | Y2: TALLPUP_AGEN | Z2: TALLPPE_AGEN | AA2: TALLPPEGRD_AGEN | AB2: TTECH_BACC | AC2: SUPP alert
A3: NULL | B3: 4-Region | C3: Inner London | D3: NULL | E3: NULL | F3: NULL | G3: 0 | H3: 0 | I3: 0 | J3: 0 | K3: 0 | L3: 0 | M3: 0 | N3: 0 | O3: 0 | P3: 0 | Q3: 0 | R3: 0 | S3: 0 | T3: 0 | U3: 0 | V3: 0 | W3: 0 | X3: 0 | Y3: 0 | Z3: 0 | AA3: 0 | AB3: 0
A4: NULL | B4: 4-Region | C4: South West | D4: NULL | E4: NULL | F4: NULL | G4: 0 | H4: 0 | I4: 0 | J4: 0 | K4: U | L4: 0 | M4: 0 | N4: 0 | O4: 0 | P4: 0 | Q4: 0 | R4: 0 | S4: 0 | T4: 0 | U4: 0 | V4: 0 | W4: supp calcs | X4: supp calcs | Y4: 0 | Z4: supp calcs | AA4: supp calcs | AB4: 0
A5: NULL | B5: 4-London | C5: NULL | D5: LONDON | E5: NULL | F5: NULL | G5: NULL | H5: 0 | I5: NULL | J5: 0 | K5: U | L5: NULL | M5: 0 | O5: 0 | P5: 0 | Q5: NULL | R5: 0 | S5: NULL | T5: 0 | U5: U | Y5: 0 | Z5: 0 | AA5: 0 | AB5: U
A6: NULL | B6: 4 | C6: Inner London | D6: LONDON | E6: 201 | F6: City of London | G6: NULL | H6: 0 | I6: NULL | J6: 0 | K6: U | L6: NULL | M6: 0 | O6: 0 | P6: 0 | Q6: NULL | R6: 0 | S6: NULL | T6: 0 | U6: U | Y6: 0 | Z6: 0 | AA6: 0 | AB6: U
A7: NULL | B7: 4 | C7: South West | D7: NULL | E7: 420 | F7: Isles of Scilly | G7: NULL | H7: 0 | I7: NULL | J7: 0 | K7: U | L7: NULL | M7: 0 | O7: 0 | P7: 0 | Q7: NULL | R7: 0 | S7: NULL | T7: 0 | U7: U | Y7: 0 | Z7: 0 | AA7: 0 | AB7: U
A8: ALL | B8: 4-Region | C8: East Midlands | D8: NULL | E8: NULL | F8: NULL | G8: 31755 | H8: 30.02 | I8: 22997 | J8: 29.1 | K8: C | L8: 15121 | M8: 32.68 | N8: C+ | O8: 9 | P8: 16.4 | Q8: 15029 | R8: 12.5 | S8: 23107 | T8: 29.24 | U8: C | V8: 5290 | W8: 29.37 | X8: Merit+ | Y8: 9250 | Z8: 33.56 | AA8: Dist | AB8: 21 | AC8: 0
A9: ALL | B9: 4-Region | C9: East of England | D9: NULL | E9: NULL | F9: NULL | G9: 46429 | H9: 31.44 | I9: 32809 | J9: 30.78 | K9: C | L9: 22979 | M9: 34.03 | N9: C+ | O9: 10.8 | P9: 19.2 | Q9: 22819 | R9: 14.2 | S9: 33239 | T9: 31.04 | U9: C | V9: 7605 | W9: 30.42 | X9: Dist- | Y9: 13687 | Z9: 33.61 | AA9: Dist | AB9: 11 | AC9: 0
A10: ALL | B10: 4-Region | C10: Inner London | D10: NULL | E10: NULL | F10: NULL | G10: 21978 | H10: 30.39 | I10: 15184 | J10: 29.4 | K10: C | L10: 10163 | M10: 32.27 | N10: C+ | O10: 8.1 | P10: 15.4 | Q10: 10091 | R10: 12.3 | S10: 15422 | T10: 29.54 | U10: C | V10: 2476 | W10: 30.96 | X10: Dist- | Y10: 7053 | Z10: 32.51 | AA10: Dist- | AB10: x | AC10: 0
A11: ALL | B11: 4-Region | C11: North East | D11: NULL | E11: NULL | F11: NULL | G11: 19321 | H11: 31.26 | I11: 12097 | J11: 29.71 | K11: C | L11: 7459 | M11: 32.95 | N11: C+ | O11: 8.8 | P11: 16.3 | Q11: 7335 | R11: 12.2 | S11: 12167 | T11: 29.78 | U11: C | V11: 4750 | W11: 30.47 | X11: Dist- | Y11: 6351 | Z11: 36.17 | AA11: Dist | AB11: x | AC11: 0
A12: ALL | B12: 4-Region | C12: North West | D12: NULL | E12: NULL | F12: NULL | G12: 55316 | H12: 32 | I12: 37905 | J12: 30.55 | K12: C | L12: 25643 | M12: 34.45 | N12: C+ | O12: 10.8 | P12: 19 | Q12: 25474 | R12: 13 | S12: 38191 | T12: 30.64 | U12: C | V12: 10060 | W12: 32.59 | X12: Dist- | Y12: 16972 | Z12: 36.12 | AA12: Dist | AB12: 64 | AC12: 0
A13: ALL | B13: 4-Region | C13: Outer London | D13: NULL | E13: NULL | F13: NULL | G13: 42052 | H13: 31.6 | I13: 32453 | J13: 30.94 | K13: C | L13: 22061 | M13: 34.35 | N13: C+ | O13: 11.5 | P13: 19.6 | Q13: 21966 | R13: 15.6 | S13: 32660 | T13: 31.04 | U13: C | V13: 5032 | W13: 31.81 | X13: Dist- | Y13: 11664 | Z13: 33.85 | AA13: Dist | AB13: 8 | AC13: 0
A14: ALL | B14: 4-Region | C14: South East | D14: NULL | E14: NULL | F14: NULL | G14: 71247 | H14: 31.96 | I14: 52925 | J14: 31.31 | K14: C | L14: 35454 | M14: 34.47 | N14: C+ | O14: 11.8 | P14: 20.3 | Q14: 35175 | R14: 15.4 | S14: 53826 | T14: 31.67 | U14: C+ | V14: 11780 | W14: 30.22 | X14: Dist- | Y14: 20123 | Z14: 34.43 | AA14: Dist | AB14: 60 | AC14: 0
A15: ALL | B15: 4-Region | C15: South West | D15: NULL | E15: NULL | F15: NULL | G15: 39404 | H15: 31.45 | I15: 28046 | J15: 30.72 | K15: C | L15: 18712 | M15: 33.67 | N15: C+ | O15: 11 | P15: 19.2 | Q15: 18581 | R15: 14.4 | S15: 28334 | T15: 30.95 | U15: C | V15: 6878 | W15: 30.04 | X15: Dist- | Y15: 11091 | Z15: 34.39 | AA15: Dist | AB15: 10 | AC15: 0
A16: ALL | B16: 4-Region | C16: West Midlands | D16: NULL | E16: NULL | F16: NULL | G16: 44037 | H16: 30.98 | I16: 29653 | J16: 29.7 | K16: C | L16: 18960 | M16: 33.37 | N16: C+ | O16: 9.2 | P16: 16.9 | Q16: 18739 | R16: 12.6 | S16: 29878 | T16: 29.79 | U16: C | V16: 8120 | W16: 30.33 | X16: Dist- | Y16: 15470 | Z16: 34.76 | AA16: Dist | AB16: 36 | AC16: 0
A17: ALL | B17: 4-Region | C17: Yorkshire and the Humber | D17: NULL | E17: NULL | F17: NULL | G17: 38746 | H17: 31.19 | I17: 26580 | J17: 29.55 | K17: C | L17: 16397 | M17: 33.41 | N17: C+ | O17: 9.9 | P17: 17.5 | Q17: 16188 | R17: 12.9 | S17: 26751 | T17: 29.62 | U17: C | V17: 7384 | W17: 30.81 | X17: Dist- | Y17: 13655 | Z17: 36 | AA17: Dist | AB17: 23 | AC17: 0
A18: ALL | B18: 4-London | C18: NULL | D18: LONDON | E18: NULL | F18: NULL | G18: 64030 | H18: 31.2 | I18: 47637 | J18: 30.46 | K18: C | L18: 32224 | M18: 33.7 | N18: C+ | O18: 10.4 | P18: 18.3 | Q18: 32057 | R18: 14.6 | S18: 48082 | T18: 30.57 | U18: C | V18: 7508 | W18: 31.52 | X18: Dist- | Y18: 18717 | Z18: 33.31 | AA18: Dist- | AB18: x | AC18: 0
A19: ALL | B19: 4 | C19: East Midlands | D19: NULL | E19: 831 | F19: Derby | G19: 1992 | H19: 30.54 | I19: 1222 | J19: 28.59 | K19: C | L19: 795 | M19: 31.32 | N19: C | O19: 8.2 | P19: 14.6 | Q19: 782 | R19: 10.9 | S19: 1222 | T19: 28.67 | U19: C | V19: 463 | W19: 30.34 | X19: Dist- | Y19: 588 | Z19: 35.93 | AA19: Dist | AB19: 0 | AC19: 0
A20: ALL | B20: 4 | C20: East Midlands | D20: NULL | E20: 830 | F20: Derbyshire | G20: 3647 | H20: 29.46 | I20: 2880 | J20: 29.25 | K20: C | L20: 2040 | M20: 32.39 | N20: C+ | O20: 8.9 | P20: 16.6 | Q20: 2029 | R20: 13.4 | S20: 2895 | T20: 29.33 | U20: C | V20: 497 | W20: 26.87 | X20: Merit+ | Y20: 781 | Z20: 32.39 | AA20: Dist- | AB20: x | AC20: 0
A21: ALL | B21: 4 | C21: East Midlands | D21: NULL | E21: 856 | F21: Leicester | G21: 2821 | H21: 28.85 | I21: 2031 | J21: 27.45 | K21: C- | L21: 1390 | M21: 30.7 | N21: C | O21: 7.8 | P21: 13.3 | Q21: 1376 | R21: 8.9 | S21: 2055 | T21: 27.51 | U21: C- | V21: 435 | W21: 30.24 | X21: Dist- | Y21: 1112 | Z21: 32.69 | AA21: Dist- | AB21: 0 | AC21: 0
A22: ALL | B22: 4 | C22: East Midlands | D22: NULL | E22: 855 | F22: Leicestershire | G22: 4663 | H22: 29.5 | I22: 3626 | J22: 28.51 | K22: C | L22: 2449 | M22: 32.43 | N22: C+ | O22: 8.2 | P22: 15.3 | Q22: 2432 | R22: 11.3 | S22: 3634 | T22: 28.59 | U22: C | V22: 620 | W22: 31.95 | X22: Dist- | Y22: 1146 | Z22: 32.82 | AA22: Dist- | AB22: x | AC22: 0
A23: ALL | B23: 4 | C23: East Midlands | D23: NULL | E23: 925 | F23: Lincolnshire | G23: 5702 | H23: 31.73 | I23: 4027 | J23: 30.89 | K23: C | L23: 2592 | M23: 34.43 | N23: C+ | O23: 11.5 | P23: 20.3 | Q23: 2585 | R23: 16.2 | S23: 4034 | T23: 31.05 | U23: C | V23: 970 | W23: 31.18 | X23: Dist- | Y23: 1943 | Z23: 34.26 | AA23: Dist | AB23: x | AC23: 0
A24: ALL | B24: 4 | C24: East Midlands | D24: NULL | E24: 928 | F24: Northamptonshire | G24: 5311 | H24: 29.4 | I24: 3640 | J24: 28.09 | K24: C- | L24: 2300 | M24: 31.8 | N24: C+ | O24: 7.5 | P24: 14 | Q24: 2282 | R24: 10.4 | S24: 3646 | T24: 28.18 | U24: C- | V24: 977 | W24: 29.9 | X24: Merit+ | Y24: 1762 | Z24: 32.86 | AA24: Dist- | AB24: 11 | AC24: 0
A25: ALL | B25: 4 | C25: East Midlands | D25: NULL | E25: 892 | F25: Nottingham | G25: 2639 | H25: 29.39 | I25: 2009 | J25: 27.9 | K25: C- | L25: 1246 | M25: 32.62 | N25: C+ | O25: 9.5 | P25: 16.4 | Q25: 1246 | R25: 11.9 | S25: 2057 | T25: 28.42 | U25: C | V25: 344 | W25: 28.12 | X25: Merit+ | Y25: 632 | Z25: 34.67 | AA25: Dist | AB25: 0 | AC25: 0
A26: ALL | B26: 4 | C26: East Midlands | D26: NULL | E26: 891 | F26: Nottinghamshire | G26: 4857 | H26: 30.37 | I26: 3454 | J26: 30.36 | K26: C | L26: 2224 | M26: 33.94 | N26: C+ | O26: 9.6 | P26: 18.4 | Q26: 2212 | R26: 14.1 | S26: 3456 | T26: 30.47 | U26: C | V26: 984 | W26: 26.6 | X26: Merit | Y26: 1264 | Z26: 33.57 | AA26: Dist | AB26: 6 | AC26: 0
A27: ALL | B27: 4 | C27: East Midlands | D27: NULL | E27: 857 | F27: Rutland | G27: 123 | H27: 31.23 | I27: 108 | J27: 30.02 | K27: C | L27: 85 | M27: 30.71 | N27: C | O27: 4.7 | P27: 11.8 | Q27: 85 | R27: 0 | S27: 108 | T27: 30.46 | U27: C | V27: 0 | W27: 0 | X27: U | Y27: 22 | Z27: 36.07 | AA27: Dist | AB27: 0 | AC27: 0
A28: ALL | B28: 4 | C28: East of England | D28: NULL | E28: 822 | F28: Bedford | G28: 1850 | H28: 30.17 | I28: 1151 | J28: 27.79 | K28: C- | L28: 660 | M28: 31.43 | N28: C | O28: 7.6 | P28: 14.7 | Q28: 657 | R28: 12.2 | S28: 1156 | T28: 27.93 | U28: C- | V28: 582 | W28: 30.75 | X28: Dist- | Y28: 576 | Z28: 36.1 | AA28: Dist | AB28: 0 | AC28: 0
A29: ALL | B29: 4 | C29: East of England | D29: NULL | E29: 873 | F29: Cambridgeshire | G29: 4437 | H29: 32.99 | I29: 3409 | J29: 33.11 | K29: C+ | L29: 2490 | M29: 36.61 | N29: B- | O29: 15.5 | P29: 25.6 | Q29: 2478 | R29: 19 | S29: 3540 | T29: 33.35 | U29: C+ | V29: 521 | W29: 28.5 | X29: Merit+ | Y29: 997 | Z29: 33.45 | AA29: Dist | AB29: x | AC29: 0
A30: ALL | B30: 4 | C30: East of England | D30: NULL | E30: 823 | F30: Central Bedfordshire | G30: 1565 | H30: 30.16 | I30: 1341 | J30: 28.97 | K30: C | L30: 859 | M30: 32.75 | N30: C+ | O30: 7.2 | P30: 14.8 | Q30: 850 | R30: 10 | S30: 1352 | T30: 29.03 | U30: C | V30: 128 | W30: 33.39 | X30: Dist | Y30: 568 | Z30: 34.75 | AA30: Dist | AB30: 3 | AC30: 0
A31: ALL | B31: 4 | C31: East of England | D31: NULL | E31: 881 | F31: Essex | G31: 9947 | H31: 30.84 | I31: 7071 | J31: 29.73 | K31: C | L31: 5038 | M31: 33.01 | N31: C+ | O31: 10.6 | P31: 18.1 | Q31: 4989 | R31: 13 | S31: 7197 | T31: 30.08 | U31: C | V31: 1611 | W31: 31.01 | X31: Dist- | Y31: 2851 | Z31: 34.1 | AA31: Dist | AB31: 0 | AC31: 0
A32: ALL | B32: 4 | C32: East of England | D32: NULL | E32: 919 | F32: Hertfordshire | G32: 10553 | H32: 33.1 | I32: 7816 | J32: 33.23 | K32: C+ | L32: 5859 | M32: 35.87 | N32: B- | O32: 12.5 | P32: 22.7 | Q32: 5827 | R32: 17.6 | S32: 7946 | T32: 33.56 | U32: C+ | V32: 1455 | W32: 30.42 | X32: Dist- | Y32: 2785 | Z32: 32.76 | AA32: Dist- | AB32: 3 | AC32: 0
A33: ALL | B33: 4 | C33: East of England | D33: NULL | E33: 821 | F33: Luton | G33: 1684 | H33: 30.15 | I33: 1241 | J33: 27.14 | K33: C- | L33: 694 | M33: 30.9 | N33: C | O33: 5.6 | P33: 13.5 | Q33: 689 | R33: 8 | S33: 1247 | T33: 27.33 | U33: C- | V33: 319 | W33: 33.02 | X33: Dist- | Y33: 712 | Z33: 36.45 | AA33: Dist | AB33: 0 | AC33: 0
A34: ALL | B34: 4 | C34: East of England | D34: NULL | E34: 926 | F34: Norfolk | G34: 5768 | H34: 30.06 | I34: 3976 | J34: 29.24 | K34: C | L34: 2684 | M34: 32.63 | N34: C+ | O34: 8.3 | P34: 15.6 | Q34: 2673 | R34: 11.2 | S34: 3978 | T34: 29.33 | U34: C | V34: 1177 | W34: 29.89 | X34: Merit+ | Y34: 1523 | Z34: 33.11 | AA34: Dist- | AB34: 0 | AC34: 0
A35: ALL | B35: 4 | C35: East of England | D35: NULL | E35: 874 | F35: Peterborough | G35: 1624 | H35: 29.61 | I35: 1160 | J35: 29.08 | K35: C | L35: 728 | M35: 33.09 | N35: C+ | O35: 11.5 | P35: 19 | Q35: 719 | R35: 15.3 | S35: 1164 | T35: 29.16 | U35: C | V35: 280 | W35: 27.79 | X35: Merit+ | Y35: 564 | Z35: 32.2 | AA35: Dist- | AB35: x | AC35: 0
A36: ALL | B36: 4 | C36: East of England | D36: NULL | E36: 882 | F36: Southend-on-Sea | G36: 2971 | H36: 31.72 | I36: 1471 | J36: 32.64 | K36: C+ | L36: 1088 | M36: 35.95 | N36: B- | O36: 13.6 | P36: 22.2 | Q36: 1087 | R36: 16.5 | S36: 1471 | T36: 32.81 | U36: C+ | V36: 659 | W36: 29.4 | X36: Merit+ | Y36: 1123 | Z36: 30.91 | AA36: Dist- | AB36: 0 | AC36: 0
A37: ALL | B37: 4 | C37: East of England | D37: NULL | E37: 935 | F37: Suffolk | G37: 4887 | H37: 31.41 | I37: 3315 | J37: 30.35 | K37: C | L37: 2347 | M37: 33.04 | N37: C+ | O37: 8.3 | P37: 15.4 | Q37: 2326 | R37: 11.1 | S37: 3326 | T37: 30.44 | U37: C | V37: 761 | W37: 31.21 | X37: Dist- | Y37: 1553 | Z37: 34.7 | AA37: Dist | AB37: x | AC37: 0
A38: ALL | B38: 4 | C38: East of England | D38: NULL | E38: 883 | F38: Thurrock | G38: 1143 | H38: 29.27 | I38: 858 | J38: 26.52 | K38: C- | L38: 532 | M38: 29.41 | N38: C | O38: 3.6 | P38: 9 | Q38: 524 | R38: 5.2 | S38: 862 | T38: 26.63 | U38: C- | V38: 112 | W38: 31.45 | X38: Dist- | Y38: 435 | Z38: 35.02 | AA38: Dist | AB38: x | AC38: 0
A39: ALL | B39: 4 | C39: Inner London | D39: LONDON | E39: 202 | F39: Camden | G39: 1929 | H39: 29.07 | I39: 1292 | J39: 28.81 | K39: C | L39: 914 | M39: 31.03 | N39: C | O39: 6.6 | P39: 13.7 | Q39: 887 | R39: 10.9 | S39: 1295 | T39: 28.8 | U39: C | V39: 160 | W39: 28.65 | X39: Merit+ | Y39: 651 | Z39: 29.92 | AA39: Merit+ | AB39: 0 | AC39: 0
A40: ALL | B40: 4 | C40: Inner London | D40: LONDON | E40: 204 | F40: Hackney | G40: 1762 | H40: 29.91 | I40: 1181 | J40: 29.35 | K40: C | L40: 777 | M40: 32.98 | N40: C+ | O40: 7.5 | P40: 16.2 | Q40: 774 | R40: 12.7 | S40: 1200 | T40: 29.44 | U40: C | V40: 133 | W40: 31.25 | X40: Dist- | Y40: 621 | Z40: 30.82 | AA40: Dist- | AB40: x | AC40: 0
A41: ALL | B41: 4 | C41: Inner London | D41: LONDON | E41: 205 | F41: Hammersmith and Fulham | G41: 1483 | H41: 29.1 | I41: 1088 | J41: 29.29 | K41: C | L41: 684 | M41: 31.79 | N41: C+ | O41: 10.1 | P41: 18.3 | Q41: 679 | R41: 16.5 | S41: 1090 | T41: 29.43 | U41: C | V41: 160 | W41: 26.7 | X41: Merit+ | Y41: 429 | Z41: 29.09 | AA41: Merit+ | AB41: 0 | AC41: 0
A42: ALL | B42: 4 | C42: Inner London | D42: LONDON | E42: 309 | F42: Haringey | G42: 1361 | H42: 31.99 | I42: 988 | J42: 32.27 | K42: C+ | L42: 618 | M42: 36.56 | N42: B- | O42: 15 | P42: 23.1 | Q42: 609 | R42: 17.1 | S42: 988 | T42: 32.32 | U42: C+ | V42: 183 | W42: 28.13 | X42: Merit+ | Y42: 474 | Z42: 32.47 | AA42: Dist- | AB42: 0 | AC42: 0
A43: ALL | B43: 4 | C43: Inner London | D43: LONDON | E43: 206 | F43: Islington | G43: 2200 | H43: 28.4 | I43: 1245 | J43: 26.34 | K43: C- | L43: 856 | M43: 28.56 | N43: C | O43: 2.9 | P43: 6.8 | Q43: 856 | R43: 4.6 | S43: 1300 | T43: 26.91 | U43: C- | V43: 403 | W43: 31.39 | X43: Dist- | Y43: 653 | Z43: 29.93 | AA43: Merit+ | AB43: 0 | AC43: 0
A44: ALL | B44: 4 | C44: Inner London | D44: LONDON | E44: 207 | F44: Kensington and Chelsea | G44: 930 | H44: 32.87 | I44: 797 | J44: 32.26 | K44: C+ | L44: 558 | M44: 35.42 | N44: B- | O44: 14.7 | P44: 24.2 | Q44: 558 | R44: 21.3 | S44: 797 | T44: 32.33 | U44: C+ | V44: 80 | W44: 33.62 | X44: Dist | Y44: 170 | Z44: 36.07 | AA44: Dist | AB44: 0 | AC44: 0
A45: ALL | B45: 4 | C45: Inner London | D45: LONDON | E45: 208 | F45: Lambeth | G45: 1181 | H45: 31.72 | I45: 812 | J45: 31.57 | K45: C | L45: 511 | M45: 33.97 | N45: C+ | O45: 12.1 | P45: 19.4 | Q45: 511 | R45: 18.2 | S45: 815 | T45: 31.68 | U45: C+ | V45: 189 | W45: 29.61 | X45: Merit+ | Y45: 431 | Z45: 32.82 | AA45: Dist- | AB45: 0 | AC45: 0
A46: ALL | B46: 4 | C46: Inner London | D46: LONDON | E46: 209 | F46: Lewisham | G46: 2197 | H46: 26.86 | I46: 1589 | J46: 24.47 | K46: D+ | L46: 1090 | M46: 27.2 | N46: C- | O46: 2.8 | P46: 6.3 | Q46: 1083 | R46: 4.7 | S46: 1598 | T46: 24.53 | U46: D+ | V46: 131 | W46: 30.18 | X46: Dist- | Y46: 756 | Z46: 32.28 | AA46: Dist- | AB46: 0 | AC46: 0
A47: ALL | B47: 4 | C47: Inner London | D47: LONDON | E47: 316 | F47: Newham | G47: 1961 | H47: 32.23 | I47: 1296 | J47: 31.95 | K47: C+ | L47: 949 | M47: 34.9 | N47: C+ | O47: 10.6 | P47: 19.4 | Q47: 938 | R47: 15.8 | S47: 1316 | T47: 31.93 | U47: C+ | V47: 321 | W47: 33.45 | X47: Dist | Y47: 579 | Z47: 32.34 | AA47: Dist- | AB47: 0 | AC47: 0
A48: ALL | B48: 4 | C48: Inner London | D48: LONDON | E48: 210 | F48: Southwark | G48: 906 | H48: 33.27 | I48: 795 | J48: 31.93 | K48: C+ | L48: 496 | M48: 35.46 | N48: B- | O48: 8.5 | P48: 18.3 | Q48: 495 | R48: 12.5 | S48: 806 | T48: 31.86 | U48: C+ | V48: 56 | W48: 41.6 | X48: Dist+ | Y48: 256 | Z48: 37.38 | AA48: Dist+ | AB48: 0 | AC48: 0
A49: ALL | B49: 4 | C49: Inner London | D49: LONDON | E49: 211 | F49: Tower Hamlets | G49: 1856 | H49: 31.24 | I49: 1298 | J49: 28 | K49: C- | L49: 840 | M49: 30.58 | N49: C | O49: 4.4 | P49: 10.5 | Q49: 839 | R49: 7.7 | S49: 1356 | T49: 28.08 | U49: C- | V49: 155 | W49: 33.81 | X49: Dist | Y49: 661 | Z49: 37.65 | AA49: Dist+ | AB49: 0 | AC49: 0
A50: ALL | B50: 4 | C50: Inner London | D50: LONDON | E50: 212 | F50: Wandsworth | G50: 2311 | H50: 30.43 | I50: 1626 | J50: 29.33 | K50: C | L50: 1071 | M50: 32.55 | N50: C+ | O50: 8.2 | P50: 15.7 | Q50: 1069 | R50: 12.3 | S50: 1637 | T50: 29.61 | U50: C | V50: 193 | W50: 32.8 | X50: Dist- | Y50: 806 | Z50: 31.9 | AA50: Dist- | AB50: 0 | AC50: 0
A51: ALL | B51: 4 | C51: Inner London | D51: LONDON | E51: 213 | F51: Westminster | G51: 1901 | H51: 31.85 | I51: 1177 | J51: 31.36 | K51: C | L51: 799 | M51: 34.03 | N51: C+ | O51: 10.1 | P51: 19.6 | Q51: 793 | R51: 15.9 | S51: 1224 | T51: 31.86 | U51: C+ | V51: 312 | W51: 28.42 | X51: Merit+ | Y51: 566 | Z51: 34.02 | AA51: Dist | AB51: 0 | AC51: 0
A52: ALL | B52: 4 | C52: North East | D52: NULL | E52: 840 | F52: County Durham | G52: 2934 | H52: 33.01 | I52: 1864 | J52: 31.29 | K52: C | L52: 1036 | M52: 35.97 | N52: B- | O52: 12.6 | P52: 22.1 | Q52: 1017 | R52: 17 | S52: 1866 | T52: 31.41 | U52: C | V52: 804 | W52: 31.84 | X52: Dist- | Y52: 1084 | Z52: 37.83 | AA52: Dist+ | AB52: 4 | AC52: 0
A53: ALL | B53: 4 | C53: North East | D53: NULL | E53: 841 | F53: Darlington | G53: 1399 | H53: 31.79 | I53: 1085 | J53: 31.58 | K53: C | L53: 899 | M53: 32.91 | N53: C+ | O53: 9 | P53: 16 | Q53: 864 | R53: 9.7 | S53: 1087 | T53: 31.74 | U53: C+ | V53: 201 | W53: 31.3 | X53: Dist- | Y53: 243 | Z53: 32.72 | AA53: Dist- | AB53: 0 | AC53: 0
A54: ALL | B54: 4 | C54: North East | D54: NULL | E54: 390 | F54: Gateshead | G54: 1628 | H54: 33.62 | I54: 912 | J54: 31.18 | K54: C | L54: 527 | M54: 34 | N54: C+ | O54: 10.8 | P54: 17.8 | Q54: 516 | R54: 15.3 | S54: 925 | T54: 31.22 | U54: C | V54: 322 | W54: 33.5 | X54: Dist | Y54: 781 | Z54: 37.47 | AA54: Dist+ | AB54: 0 | AC54: 0
A55: ALL | B55: 4 | C55: North East | D55: NULL | E55: 805 | F55: Hartlepool | G55: 1006 | H55: 29.36 | I55: 554 | J55: 26.49 | K55: C- | L55: 313 | M55: 30.8 | N55: C | O55: 7 | P55: 14.1 | Q55: 312 | R55: 10.6 | S55: 554 | T55: 26.55 | U55: C- | V55: 310 | W55: 30.86 | X55: Dist- | Y55: 335 | Z55: 34.61 | AA55: Dist | AB55: 0 | AC55: 0
A56: ALL | B56: 4 | C56: North East | D56: NULL | E56: 806 | F56: Middlesbrough | G56: 1534 | H56: 31.41 | I56: 602 | J56: 27.4 | K56: C- | L56: 309 | M56: 30.94 | N56: C | O56: 4.2 | P56: 11 | Q56: 304 | R56: 7.9 | S56: 612 | T56: 27.44 | U56: C- | V56: 610 | W56: 30.91 | X56: Dist- | Y56: 524 | Z56: 37.07 | AA56: Dist+ | AB56: 0 | AC56: 0
A57: ALL | B57: 4 | C57: North East | D57: NULL | E57: 391 | F57: Newcastle upon Tyne | G57: 3303 | H57: 29.45 | I57: 1721 | J57: 28.12 | K57: C- | L57: 1078 | M57: 31.21 | N57: C | O57: 6.7 | P57: 13.8 | Q57: 1069 | R57: 9.8 | S57: 1756 | T57: 28.24 | U57: C- | V57: 958 | W57: 28.33 | X57: Merit+ | Y57: 1088 | Z57: 33.31 | AA57: Dist- | AB57: x | AC57: 0
A58: ALL | B58: 4 | C58: North East | D58: NULL | E58: 392 | F58: North Tyneside | G58: 1390 | H58: 31.19 | I58: 989 | J58: 30.43 | K58: C | L58: 707 | M58: 31.64 | N58: C | O58: 7.8 | P58: 13.9 | Q58: 693 | R58: 12.3 | S58: 990 | T58: 30.51 | U58: C | V58: 276 | W58: 26.96 | X58: Merit+ | Y58: 317 | Z58: 38.11 | AA58: Dist+ | AB58: 0 | AC58: 0
A59: ALL | B59: 4 | C59: North East | D59: NULL | E59: 929 | F59: Northumberland | G59: 2092 | H59: 31.91 | I59: 1645 | J59: 30.15 | K59: C | L59: 904 | M59: 35.27 | N59: B- | O59: 11.4 | P59: 19.6 | Q59: 895 | R59: 14.7 | S59: 1651 | T59: 30.16 | U59: C | V59: 423 | W59: 30.98 | X59: Dist- | Y59: 754 | Z59: 39.79 | AA59: Dist+ | AB59: 0 | AC59: 0
A60: ALL | B60: 4 | C60: North East | D60: NULL | E60: 807 | F60: Redcar and Cleveland | G60: 821 | H60: 30.81 | I60: 608 | J60: 30.78 | K60: C | L60: 353 | M60: 32.52 | N60: C+ | O60: 7.1 | P60: 15.6 | Q60: 351 | R60: 10.5 | S60: 608 | T60: 30.77 | U60: C | V60: 192 | W60: 26.43 | X60: Merit | Y60: 225 | Z60: 35.81 | AA60: Dist | AB60: 0 | AC60: 0
A61: ALL | B61: 4 | C61: North East | D61: NULL | E61: 393 | F61: South Tyneside | G61: 616 | H61: 29.46 | I61: 390 | J61: 29.15 | K61: C | L61: 273 | M61: 32.44 | N61: C+ | O61: 8.4 | P61: 12.8 | Q61: 270 | R61: 10 | S61: 391 | T61: 29.15 | U61: C | V61: 155 | W61: 28.03 | X61: Merit+ | Y61: 138 | Z61: 32.4 | AA61: Dist- | AB61: 0 | AC61: 0
A62: ALL | B62: 4 | C62: North East | D62: NULL | E62: 808 | F62: Stockton-on-Tees | G62: 1091 | H62: 30.8 | I62: 802 | J62: 29.44 | K62: C | L62: 511 | M62: 31.84 | N62: C+ | O62: 6.7 | P62: 17 | Q62: 498 | R62: 12.9 | S62: 802 | T62: 29.52 | U62: C | V62: 204 | W62: 31.07 | X62: Dist- | Y62: 314 | Z62: 36.2 | AA62: Dist | AB62: 0 | AC62: 0
A63: ALL | B63: 4 | C63: North East | D63: NULL | E63: 394 | F63: Sunderland | G63: 1507 | H63: 29.99 | I63: 925 | J63: 27.19 | K63: C- | L63: 549 | M63: 31.55 | N63: C | O63: 7.3 | P63: 12.4 | Q63: 546 | R63: 10.1 | S63: 925 | T63: 27.23 | U63: C- | V63: 295 | W63: 34.52 | X63: Dist | Y63: 548 | Z63: 34.3 | AA63: Dist | AB63: 0 | AC63: 0
A64: ALL | B64: 4 | C64: North West | D64: NULL | E64: 889 | F64: Blackburn with Darwen | G64: 1480 | H64: 29.89 | I64: 832 | J64: 26.9 | K64: C- | L64: 491 | M64: 30.41 | N64: C | O64: 4.3 | P64: 10.4 | Q64: 491 | R64: 5.1 | S64: 847 | T64: 26.95 | U64: C- | V64: 278 | W64: 31.48 | X64: Dist- | Y64: 652 | Z64: 33.75 | AA64: Dist | AB64: x | AC64: 0
A65: ALL | B65: 4 | C65: North West | D65: NULL | E65: 890 | F65: Blackpool | G65: 1756 | H65: 35.09 | I65: 1038 | J65: 29.89 | K65: C | L65: 427 | M65: 36.32 | N65: B- | O65: 8.4 | P65: 18.7 | Q65: 427 | R65: 9.8 | S65: 1062 | T65: 29.92 | U65: C | V65: 507 | W65: 37.1 | X65: Dist+ | Y65: 906 | Z65: 41.61 | AA65: Dist+ | AB65: 38 | AC65: 0
A66: ALL | B66: 4 | C66: North West | D66: NULL | E66: 350 | F66: Bolton | G66: 1731 | H66: 31.93 | I66: 1124 | J66: 29.12 | K66: C | L66: 645 | M66: 33.87 | N66: C+ | O66: 8.7 | P66: 16.1 | Q66: 642 | R66: 11.2 | S66: 1138 | T66: 29.06 | U66: C | V66: 358 | W66: 33.88 | X66: Dist | Y66: 665 | Z66: 37.51 | AA66: Dist+ | AB66: x | AC66: 0
A67: ALL | B67: 4 | C67: North West | D67: NULL | E67: 351 | F67: Bury | G67: 2374 | H67: 30.23 | I67: 1599 | J67: 27.51 | K67: C- | L67: 1197 | M67: 30.68 | N67: C | O67: 5.7 | P67: 13.1 | Q67: 1197 | R67: 7.2 | S67: 1599 | T67: 27.64 | U67: C- | V67: 368 | W67: 31.25 | X67: Dist- | Y67: 630 | Z67: 37.45 | AA67: Dist+ | AB67: 0 | AC67: 0
A68: ALL | B68: 4 | C68: North West | D68: NULL | E68: 895 | F68: Cheshire East | G68: 3358 | H68: 31.3 | I68: 2108 | J68: 30.8 | K68: C | L68: 1545 | M68: 34.28 | N68: C+ | O68: 10.7 | P68: 18.8 | Q68: 1539 | R68: 14.1 | S68: 2135 | T68: 30.92 | U68: C | V68: 919 | W68: 29.49 | X68: Merit+ | Y68: 705 | Z68: 35.34 | AA68: Dist | AB68: x | AC68: 0
A69: ALL | B69: 4 | C69: North West | D69: NULL | E69: 896 | F69: Cheshire West and Chester | G69: 3027 | H69: 31.13 | I69: 2341 | J69: 30.96 | K69: C | L69: 1744 | M69: 34.77 | N69: C+ | O69: 10.8 | P69: 19.7 | Q69: 1733 | R69: 13.3 | S69: 2345 | T69: 31.04 | U69: C | V69: 500 | W69: 29.49 | X69: Merit+ | Y69: 583 | Z69: 33.4 | AA69: Dist | AB69: 0 | AC69: 0
A70: ALL | B70: 4 | C70: North West | D70: NULL | E70: 909 | F70: Cumbria | G70: 3211 | H70: 31.27 | I70: 2489 | J70: 30.04 | K70: C | L70: 1655 | M70: 33.41 | N70: C+ | O70: 11.8 | P70: 18.7 | Q70: 1632 | R70: 14.6 | S70: 2540 | T70: 30.24 | U70: C | V70: 446 | W70: 32.02 | X70: Dist- | Y70: 929 | Z70: 35.78 | AA70: Dist | AB70: 7 | AC70: 0
A71: ALL | B71: 4 | C71: North West | D71: NULL | E71: 876 | F71: Halton | G71: 871 | H71: 34.29 | I71: 427 | J71: 28.04 | K71: C- | L71: 259 | M71: 31.79 | N71: C+ | O71: 6.2 | P71: 12 | Q71: 255 | R71: 8.6 | S71: 427 | T71: 28.05 | U71: C- | V71: 254 | W71: 39.71 | X71: Dist+ | Y71: 295 | Z71: 40.2 | AA71: Dist+ | AB71: 0 | AC71: 0
A72: ALL | B72: 4 | C72: North West | D72: NULL | E72: 340 | F72: Knowsley | G72: 431 | H72: 28.35 | I72: 93 | J72: 16.44 | K72: D- | L72: 19 | M72: 22.11 | N72: D+ | O72: 0 | P72: 0 | Q72: 19 | R72: 0 | S72: 96 | T72: 16.44 | U72: D- | V72: 105 | W72: 28.7 | X72: Merit+ | Y72: 268 | Z72: 31.49 | AA72: Dist- | AB72: 0 | AC72: 0
A73: ALL | B73: 4 | C73: North West | D73: NULL | E73: 888 | F73: Lancashire | G73: 8360 | H73: 33.9 | I73: 5552 | J73: 32.49 | K73: C+ | L73: 3992 | M73: 36.32 | N73: B- | O73: 14.4 | P73: 23.8 | Q73: 3985 | R73: 16.2 | S73: 5586 | T73: 32.6 | U73: C+ | V73: 1509 | W73: 35.61 | X73: Dist | Y73: 2371 | Z73: 36.93 | AA73: Dist+ | AB73: x | AC73: 0
A74: ALL | B74: 4 | C74: North West | D74: NULL | E74: 341 | F74: Liverpool | G74: 3862 | H74: 29.46 | I74: 2613 | J74: 28.13 | K74: C- | L74: 1480 | M74: 32.34 | N74: C+ | O74: 9.2 | P74: 15.7 | Q74: 1451 | R74: 13.4 | S74: 2658 | T74: 28.2 | U74: C- | V74: 701 | W74: 28.01 | X74: Merit+ | Y74: 1484 | Z74: 33.59 | AA74: Dist | AB74: 4 | AC74: 0
A75: ALL | B75: 4 | C75: North West | D75: NULL | E75: 352 | F75: Manchester | G75: 4309 | H75: 31.42 | I75: 3171 | J75: 31.21 | K75: C | L75: 2452 | M75: 34.95 | N75: C+ | O75: 9.1 | P75: 17.7 | Q75: 2445 | R75: 11.5 | S75: 3181 | T75: 31.21 | U75: C | V75: 354 | W75: 30.66 | X75: Dist- | Y75: 1193 | Z75: 32.65 | AA75: Dist- | AB75: 0 | AC75: 0
A76: ALL | B76: 4 | C76: North West | D76: NULL | E76: 353 | F76: Oldham | G76: 1829 | H76: 31.34 | I76: 1289 | J76: 29.8 | K76: C | L76: 931 | M76: 34.31 | N76: C+ | O76: 9 | P76: 16.1 | Q76: 927 | R76: 10.6 | S76: 1290 | T76: 29.85 | U76: C | V76: 249 | W76: 33.07 | X76: Dist- | Y76: 600 | Z76: 35.28 | AA76: Dist | AB76: 0 | AC76: 0
A77: ALL | B77: 4 | C77: North West | D77: NULL | E77: 354 | F77: Rochdale | G77: 1367 | H77: 31.9 | I77: 852 | J77: 30.76 | K77: C | L77: 680 | M77: 34.2 | N77: C+ | O77: 6.5 | P77: 15.7 | Q77: 658 | R77: 7.8 | S77: 852 | T77: 30.85 | U77: C | V77: 321 | W77: 31.66 | X77: Dist- | Y77: 312 | Z77: 36.95 | AA77: Dist+ | AB77: 0 | AC77: 0
A78: ALL | B78: 4 | C78: North West | D78: NULL | E78: 355 | F78: Salford | G78: 1813 | H78: 31.77 | I78: 640 | J78: 26.99 | K78: C- | L78: 399 | M78: 31.01 | N78: C | O78: 3.3 | P78: 7.5 | Q78: 397 | R78: 3 | S78: 640 | T78: 26.99 | U78: C- | V78: 558 | W78: 31.41 | X78: Dist- | Y78: 810 | Z78: 36.23 | AA78: Dist | AB78: 0 | AC78: 0
A79: ALL | B79: 4 | C79: North West | D79: NULL | E79: 343 | F79: Sefton | G79: 2041 | H79: 30.94 | I79: 1489 | J79: 28 | K79: C- | L79: 787 | M79: 32.99 | N79: C+ | O79: 7.9 | P79: 14.2 | Q79: 772 | R79: 10.2 | S79: 1497 | T79: 28.09 | U79: C- | V79: 403 | W79: 31.4 | X79: Dist- | Y79: 780 | Z79: 38.72 | AA79: Dist+ | AB79: 0 | AC79: 0
A80: ALL | B80: 4 | C80: North West | D80: NULL | E80: 342 | F80: St. Helens | G80: 1599 | H80: 32.73 | I80: 1241 | J80: 30.32 | K80: C | L80: 801 | M80: 33.96 | N80: C+ | O80: 8.4 | P80: 16 | Q80: 798 | R80: 10.2 | S80: 1248 | T80: 30.43 | U80: C | V80: 228 | W80: 35.25 | X80: Dist | Y80: 490 | Z80: 39.69 | AA80: Dist+ | AB80: x | AC80: 0
A81: ALL | B81: 4 | C81: North West | D81: NULL | E81: 356 | F81: Stockport | G81: 1999 | H81: 32.41 | I81: 1512 | J81: 30.42 | K81: C | L81: 872 | M81: 34.22 | N81: C+ | O81: 10.2 | P81: 19.6 | Q81: 865 | R81: 11.3 | S81: 1512 | T81: 30.55 | U81: C | V81: 387 | W81: 37.27 | X81: Dist+ | Y81: 722 | Z81: 35.93 | AA81: Dist | AB81: x | AC81: 0
A82: ALL | B82: 4 | C82: North West | D82: NULL | E82: 357 | F82: Tameside | G82: 1410 | H82: 29.57 | I82: 919 | J82: 27.13 | K82: C- | L82: 628 | M82: 31.4 | N82: C | O82: 5.6 | P82: 10.7 | Q82: 627 | R82: 7.5 | S82: 919 | T82: 27.16 | U82: C- | V82: 297 | W82: 32.03 | X82: Dist- | Y82: 384 | Z82: 36.61 | AA82: Dist | AB82: x | AC82: 0
A83: ALL | B83: 4 | C83: North West | D83: NULL | E83: 358 | F83: Trafford | G83: 1967 | H83: 34.77 | I83: 1413 | J83: 35.92 | K83: B- | L83: 1205 | M83: 39.51 | N83: B | O83: 25 | P83: 36.1 | Q83: 1205 | R83: 28.5 | S83: 1420 | T83: 36.05 | U83: B- | V83: 352 | W83: 28.57 | X83: Merit+ | Y83: 333 | Z83: 31.96 | AA83: Dist- | AB83: x | AC83: 0
A84: ALL | B84: 4 | C84: North West | D84: NULL | E84: 877 | F84: Warrington | G84: 1672 | H84: 30.4 | I84: 1233 | J84: 28.08 | K84: C- | L84: 704 | M84: 31.36 | N84: C | O84: 6.5 | P84: 13.5 | Q84: 694 | R84: 9.7 | S84: 1252 | T84: 28.19 | U84: C- | V84: 353 | W84: 34.12 | X84: Dist | Y84: 537 | Z84: 34.54 | AA84: Dist | AB84: 0 | AC84: 0
A85: ALL | B85: 4 | C85: North West | D85: NULL | E85: 359 | F85: Wigan | G85: 2384 | H85: 34.19 | I85: 1762 | J85: 33.39 | K85: C+ | L85: 1318 | M85: 36.63 | N85: B- | O85: 12.8 | P85: 21.9 | Q85: 1318 | R85: 13.4 | S85: 1771 | T85: 33.49 | U85: C+ | V85: 437 | W85: 34.13 | X85: Dist | Y85: 525 | Z85: 37.69 | AA85: Dist+ | AB85: 4 | AC85: 0
A86: ALL | B86: 4 | C86: North West | D86: NULL | E86: 344 | F86: Wirral | G86: 2465 | H86: 32.35 | I86: 2168 | J86: 31.41 | K86: C | L86: 1412 | M86: 35.46 | N86: B- | O86: 12.7 | P86: 21 | Q86: 1397 | R86: 15.1 | S86: 2176 | T86: 31.55 | U86: C | V86: 176 | W86: 29.69 | X86: Merit+ | Y86: 798 | Z86: 37.06 | AA86: Dist+ | AB86: 0 | AC86: 0
A87: ALL | B87: 4 | C87: Outer London | D87: LONDON | E87: 301 | F87: Barking and Dagenham | G87: 1638 | H87: 29.82 | I87: 952 | J87: 28.81 | K87: C | L87: 539 | M87: 31.97 | N87: C+ | O87: 3.7 | P87: 10.8 | Q87: 537 | R87: 7.3 | S87: 963 | T87: 28.9 | U87: C | V87: 346 | W87: 28.36 | X87: Merit+ | Y87: 631 | Z87: 32.72 | AA87: Dist- | AB87: x | AC87: 0
A88: ALL | B88: 4 | C88: Outer London | D88: LONDON | E88: 302 | F88: Barnet | G88: 3497 | H88: 33.72 | I88: 3065 | J88: 34.04 | K88: C+ | L88: 2474 | M88: 36.48 | N88: B- | O88: 16.4 | P88: 25.7 | Q88: 2469 | R88: 22.1 | S88: 3067 | T88: 34.1 | U88: C+ | V88: 188 | W88: 29.44 | X88: Merit+ | Y88: 499 | Z88: 30.94 | AA88: Dist- | AB88: 0 | AC88: 0
A89: ALL | B89: 4 | C89: Outer London | D89: LONDON | E89: 303 | F89: Bexley | G89: 1764 | H89: 32.31 | I89: 1498 | J89: 31.03 | K89: C | L89: 1014 | M89: 34.55 | N89: C+ | O89: 10.2 | P89: 19.2 | Q89: 1013 | R89: 13.2 | S89: 1559 | T89: 31.49 | U89: C | V89: 139 | W89: 33.58 | X89: Dist | Y89: 480 | Z89: 36.53 | AA89: Dist | AB89: 0 | AC89: 0
A90: ALL | B90: 4 | C90: Outer London | D90: LONDON | E90: 304 | F90: Brent | G90: 1793 | H90: 31.29 | I90: 1544 | J90: 30.73 | K90: C | L90: 1014 | M90: 34.92 | N90: C+ | O90: 12 | P90: 22.6 | Q90: 1006 | R90: 17.1 | S90: 1545 | T90: 30.82 | U90: C | V90: 99 | W90: 34.25 | X90: Dist | Y90: 391 | Z90: 33.32 | AA90: Dist- | AB90: 0 | AC90: 0
A91: ALL | B91: 4 | C91: Outer London | D91: LONDON | E91: 305 | F91: Bromley | G91: 3356 | H91: 32.84 | I91: 2670 | J91: 32.69 | K91: C+ | L91: 1787 | M91: 36.35 | N91: B- | O91: 15.2 | P91: 24.5 | Q91: 1782 | R91: 19.3 | S91: 2683 | T91: 32.74 | U91: C+ | V91: 392 | W91: 30.02 | X91: Dist- | Y91: 982 | Z91: 34.58 | AA91: Dist | AB91: x | AC91: 0
A92: ALL | B92: 4 | C92: Outer London | D92: LONDON | E92: 306 | F92: Croydon | G92: 2787 | H92: 32.4 | I92: 1770 | J92: 27.75 | K92: C- | L92: 884 | M92: 31.17 | N92: C | O92: 4.5 | P92: 11.7 | Q92: 881 | R92: 8.5 | S92: 1792 | T92: 27.79 | U92: C- | V92: 511 | W92: 37.51 | X92: Dist+ | Y92: 1319 | Z92: 37.01 | AA92: Dist+ | AB92: 0 | AC92: 0
A93: ALL | B93: 4 | C93: Outer London | D93: LONDON | E93: 307 | F93: Ealing | G93: 1926 | H93: 32.74 | I93: 1692 | J93: 31.71 | K93: C+ | L93: 1242 | M93: 34.6 | N93: C+ | O93: 10.2 | P93: 18.2 | Q93: 1228 | R93: 14.1 | S93: 1695 | T93: 31.78 | U93: C+ | V93: 80 | W93: 33.32 | X93: Dist- | Y93: 378 | Z93: 38.25 | AA93: Dist+ | AB93: 0 | AC93: 0
A94: ALL | B94: 4 | C94: Outer London | D94: LONDON | E94: 308 | F94: Enfield | G94: 2074 | H94: 31.78 | I94: 1793 | J94: 30.35 | K94: C | L94: 1165 | M94: 33.8 | N94: C+ | O94: 11.7 | P94: 18.4 | Q94: 1157 | R94: 15.5 | S94: 1796 | T94: 30.36 | U94: C | V94: 220 | W94: 34.97 | X94: Dist | Y94: 519 | Z94: 37.77 | AA94: Dist+ | AB94: x | AC94: 0
A95: ALL | B95: 4 | C95: Outer London | D95: LONDON | E95: 203 | F95: Greenwich | G95: 1406 | H95: 29.63 | I95: 1109 | J95: 26.9 | K95: C- | L95: 572 | M95: 30.4 | N95: C | O95: 3.7 | P95: 8.6 | Q95: 568 | R95: 5.5 | S95: 1141 | T95: 26.97 | U95: C- | V95: 170 | W95: 35.6 | X95: Dist | Y95: 548 | Z95: 34.77 | AA95: Dist | AB95: 0 | AC95: 0
A96: ALL | B96: 4 | C96: Outer London | D96: LONDON | E96: 310 | F96: Harrow | G96: 2566 | H96: 31.56 | I96: 1840 | J96: 30.67 | K96: C | L96: 1356 | M96: 35.28 | N96: B- | O96: 11.5 | P96: 20.4 | Q96: 1356 | R96: 15 | S96: 1846 | T96: 30.76 | U96: C | V96: 218 | W96: 35.78 | X96: Dist | Y96: 792 | Z96: 32.8 | AA96: Dist- | AB96: 0 | AC96: 0
A97: ALL | B97: 4 | C97: Outer London | D97: LONDON | E97: 311 | F97: Havering | G97: 2388 | H97: 27.75 | I97: 1767 | J97: 27.48 | K97: C- | L97: 1216 | M97: 29.15 | N97: C | O97: 6 | P97: 10.9 | Q97: 1207 | R97: 7 | S97: 1767 | T97: 27.55 | U97: C- | V97: 397 | W97: 28.42 | X97: Merit+ | Y97: 658 | Z97: 28.14 | AA97: Merit+ | AB97: 0 | AC97: 0
A98: ALL | B98: 4 | C98: Outer London | D98: LONDON | E98: 312 | F98: Hillingdon | G98: 2890 | H98: 29.62 | I98: 1932 | J98: 28.11 | K98: C- | L98: 1194 | M98: 32.15 | N98: C+ | O98: 6.5 | P98: 12.7 | Q98: 1181 | R98: 9.8 | S98: 1934 | T98: 28.23 | U98: C- | V98: 651 | W98: 31.12 | X98: Dist- | Y98: 862 | Z98: 32.4 | AA98: Dist- | AB98: 0 | AC98: 0
A99: ALL | B99: 4 | C99: Outer London | D99: LONDON | E99: 313 | F99: Hounslow | G99: 2068 | H99: 30.89 | I99: 1645 | J99: 30.19 | K99: C | L99: 1091 | M99: 33.94 | N99: C+ | O99: 7.7 | P99: 15.1 | Q99: 1082 | R99: 12 | S99: 1646 | T99: 30.24 | U99: C | V99: 146 | W99: 32.29 | X99: Dist- | Y99: 628 | Z99: 33.04 | AA99: Dist- | AB99: 0 | AC99: 0
A100: ALL | B100: 4 | C100: Outer London | D100: LONDON | E100: 314 | F100: Kingston upon Thames | G100: 1851 | H100: 33.3 | I100: 1230 | J100: 34.76 | K100: C+ | L100: 924 | M100: 37.27 | N100: B- | O100: 22 | P100: 30.8 | Q100: 922 | R100: 28.7 | S100: 1230 | T100: 34.9 | U100: C+ | V100: 363 | W100: 29.43 | X100: Merit+ | Y100: 399 | Z100: 29.7 | AA100: Merit+ | AB100: 0 | AC100: 0
A101: ALL | B101: 4 | C101: Outer London | D101: LONDON | E101: 315 | F101: Merton | G101: 696 | H101: 32.19 | I101: 641 | J101: 30.22 | K101: C | L101: 376 | M101: 33.87 | N101: C+ | O101: 6.6 | P101: 14.9 | Q101: 374 | R101: 12.8 | S101: 641 | T101: 30.29 | U101: C | V101: 41 | W101: 36.5 | X101: Dist | Y101: 218 | Z101: 40 | AA101: Dist+ | AB101: 0 | AC101: 0
A102: ALL | B102: 4 | C102: Outer London | D102: LONDON | E102: 317 | F102: Redbridge | G102: 3019 | H102: 31.36 | I102: 2681 | J102: 30.81 | K102: C | L102: 2040 | M102: 34.01 | N102: C+ | O102: 10.5 | P102: 17.8 | Q102: 2032 | R102: 14.9 | S102: 2683 | T102: 30.84 | U102: C | V102: 182 | W102: 28.59 | X102: Merit+ | Y102: 503 | Z102: 36.78 | AA102: Dist+ | AB102: 0 | AC102: 0
A103: ALL | B103: 4 | C103: Outer London | D103: LONDON | E103: 318 | F103: Richmond upon Thames | G103: 1351 | H103: 28.24 | I103: 961 | J103: 27.46 | K103: C- | L103: 629 | M103: 31.01 | N103: C | O103: 8.6 | P103: 13.2 | Q103: 629 | R103: 11 | S103: 994 | T103: 27.83 | U103: C- | V103: 190 | W103: 30.92 | X103: Dist- | Y103: 322 | Z103: 28.09 | AA103: Merit+ | AB103: 0 | AC103: 0
A104: ALL | B104: 4 | C104: Outer London | D104: LONDON | E104: 319 | F104: Sutton | G104: 2290 | H104: 37.46 | I104: 2029 | J104: 37.6 | K104: B- | L104: 1545 | M104: 40.63 | N104: B | O104: 23.1 | P104: 36.6 | Q104: 1544 | R104: 30.6 | S104: 2030 | T104: 37.75 | U104: B- | V104: 215 | W104: 33.56 | X104: Dist | Y104: 484 | Z104: 36.74 | AA104: Dist+ | AB104: x | AC104: 0
A105: ALL | B105: 4 | C105: Outer London | D105: LONDON | E105: 320 | F105: Waltham Forest | G105: 2692 | H105: 28.26 | I105: 1634 | J105: 26.05 | K105: C- | L105: 999 | M105: 30.19 | N105: C | O105: 4.3 | P105: 8.7 | Q105: 998 | R105: 5.2 | S105: 1648 | T105: 26.08 | U105: C- | V105: 484 | W105: 30.34 | X105: Dist- | Y105: 1051 | Z105: 31.57 | AA105: Dist- | AB105: x | AC105: 0
A106: ALL | B106: 4 | C106: South East | D106: NULL | E106: 867 | F106: Bracknell Forest | G106: 809 | H106: 31.07 | I106: 630 | J106: 29.16 | K106: C | L106: 366 | M106: 32.24 | N106: C+ | O106: 7.4 | P106: 16.7 | Q106: 363 | R106: 11.3 | S106: 631 | T106: 29.15 | U106: C | V106: 139 | W106: 32.78 | X106: Dist- | Y106: 238 | Z106: 37.43 | AA106: Dist+ | AB106: 0 | AC106: 0
A107: ALL | B107: 4 | C107: South East | D107: NULL | E107: 846 | F107: Brighton and Hove | G107: 2811 | H107: 33.95 | I107: 2167 | J107: 33.54 | K107: C+ | L107: 1521 | M107: 35.89 | N107: B- | O107: 15.1 | P107: 24.5 | Q107: 1518 | R107: 16.2 | S107: 2224 | T107: 34.05 | U107: C+ | V107: 276 | W107: 29.97 | X107: Merit+ | Y107: 786 | Z107: 34.79 | AA107: Dist | AB107: 0 | AC107: 0
A108: ALL | B108: 4 | C108: South East | D108: NULL | E108: 825 | F108: Buckinghamshire | G108: 4516 | H108: 35.83 | I108: 3774 | J108: 36.29 | K108: B- | L108: 2877 | M108: 39.1 | N108: B | O108: 21.2 | P108: 33.1 | Q108: 2853 | R108: 28.3 | S108: 3797 | T108: 36.45 | U108: B- | V108: 399 | W108: 32.68 | X108: Dist- | Y108: 943 | Z108: 33.4 | AA108: Dist | AB108: 0 | AC108: 0
A109: ALL | B109: 4 | C109: South East | D109: NULL | E109: 845 | F109: East Sussex | G109: 3520 | H109: 30.35 | I109: 2471 | J109: 28.55 | K109: C | L109: 1384 | M109: 30.19 | N109: C | O109: 6.7 | P109: 13.2 | Q109: 1355 | R109: 8.9 | S109: 2475 | T109: 28.63 | U109: C | V109: 781 | W109: 31.65 | X109: Dist- | Y109: 1093 | Z109: 35.16 | AA109: Dist | AB109: x | AC109: 0
A110: ALL | B110: 4 | C110: South East | D110: NULL | E110: 850 | F110: Hampshire | G110: 13354 | H110: 32.17 | I110: 9924 | J110: 31.76 | K110: C+ | L110: 7165 | M110: 34.59 | N110: C+ | O110: 11 | P110: 19.7 | Q110: 7145 | R110: 13.8 | S110: 9962 | T110: 31.88 | U110: C+ | V110: 2501 | W110: 30.55 | X110: Dist- | Y110: 3016 | Z110: 35.34 | AA110: Dist | AB110: 29 | AC110: 0
A111: ALL | B111: 4 | C111: South East | D111: NULL | E111: 921 | F111: Isle of Wight | G111: 856 | H111: 28.64 | I111: 648 | J111: 26.4 | K111: C- | L111: 370 | M111: 30.17 | N111: C | O111: 6.2 | P111: 11.9 | Q111: 368 | R111: 8.2 | S111: 648 | T111: 26.48 | U111: C- | V111: 121 | W111: 32.37 | X111: Dist- | Y111: 268 | Z111: 33.68 | AA111: Dist | AB111: 0 | AC111: 0
A112: ALL | B112: 4 | C112: South East | D112: NULL | E112: 886 | F112: Kent | G112: 12314 | H112: 32.32 | I112: 8344 | J112: 30.79 | K112: C | L112: 5215 | M112: 34.89 | N112: C+ | O112: 12.4 | P112: 21.5 | Q112: 5150 | R112: 16.7 | S112: 9007 | T112: 32.06 | U112: C+ | V112: 2358 | W112: 29.73 | X112: Merit+ | Y112: 3854 | Z112: 35.11 | AA112: Dist | AB112: 20 | AC112: 0
A113: ALL | B113: 4 | C113: South East | D113: NULL | E113: 887 | F113: Medway | G113: 2476 | H113: 31.12 | I113: 1625 | J113: 29.2 | K113: C | L113: 944 | M113: 33.31 | N113: C+ | O113: 11 | P113: 17.6 | Q113: 933 | R113: 12.8 | S113: 1666 | T113: 30.1 | U113: C | V113: 555 | W113: 30.4 | X113: Dist- | Y113: 1093 | Z113: 34.31 | AA113: Dist | AB113: 0 | AC113: 0
A114: ALL | B114: 4 | C114: South East | D114: NULL | E114: 826 | F114: Milton Keynes | G114: 2025 | H114: 29.92 | I114: 1515 | J114: 28.77 | K114: C | L114: 889 | M114: 31.64 | N114: C | O114: 6.3 | P114: 12.5 | Q114: 873 | R114: 9.2 | S114: 1534 | T114: 29.04 | U114: C | V114: 244 | W114: 27.76 | X114: Merit+ | Y114: 878 | Z114: 32.97 | AA114: Dist- | AB114: x | AC114: 0
A115: ALL | B115: 4 | C115: South East | D115: NULL | E115: 931 | F115: Oxfordshire | G115: 5597 | H115: 30.52 | I115: 3714 | J115: 30.21 | K115: C | L115: 2723 | M115: 33.24 | N115: C+ | O115: 10.1 | P115: 17.3 | Q115: 2711 | R115: 13.8 | S115: 3725 | T115: 30.32 | U115: C | V115: 851 | W115: 28.29 | X115: Merit+ | Y115: 1565 | Z115: 32.54 | AA115: Dist- | AB115: x | AC115: 0
A116: ALL | B116: 4 | C116: South East | D116: NULL | E116: 851 | F116: Portsmouth | G116: 598 | H116: 29.03 | I116: 343 | J116: 26.69 | K116: C- | L116: 200 | M116: 29.05 | N116: C | O116: 2 | P116: 4.5 | Q116: 199 | R116: 2.5 | S116: 347 | T116: 26.72 | U116: C- | V116: 161 | W116: 29.09 | X116: Merit+ | Y116: 224 | Z116: 33.98 | AA116: Dist | AB116: 0 | AC116: 0
A117: ALL | B117: 4 | C117: South East | D117: NULL | E117: 870 | F117: Reading | G117: 679 | H117: 38.59 | I117: 587 | J117: 38.73 | K117: B | L117: 400 | M117: 42.78 | N117: B+ | O117: 43.5 | P117: 49.8 | Q117: 400 | R117: 48 | S117: 596 | T117: 38.73 | U117: B | V117: 85 | W117: 39.97 | X117: Dist+ | Y117: 130 | Z117: 36.46 | AA117: Dist | AB117: 0 | AC117: 0
A118: ALL | B118: 4 | C118: South East | D118: NULL | E118: 871 | F118: Slough | G118: 1685 | H118: 29.92 | I118: 1298 | J118: 29.91 | K118: C | L118: 850 | M118: 34.04 | N118: C+ | O118: 11.1 | P118: 19.2 | Q118: 849 | R118: 17.7 | S118: 1303 | T118: 30.01 | U118: C | V118: 260 | W118: 27.1 | X118: Merit+ | Y118: 436 | Z118: 31.19 | AA118: Dist- | AB118: 0 | AC118: 0
A119: ALL | B119: 4 | C119: South East | D119: NULL | E119: 852 | F119: Southampton | G119: 1346 | H119: 27.87 | I119: 1025 | J119: 25.86 | K119: C- | L119: 513 | M119: 28.43 | N119: C | O119: 3.9 | P119: 7.6 | Q119: 493 | R119: 5.5 | S119: 1025 | T119: 26.01 | U119: C- | V119: 280 | W119: 30.44 | X119: Dist- | Y119: 520 | Z119: 32.24 | AA119: Dist- | AB119: 0 | AC119: 0
A120: ALL | B120: 4 | C120: South East | D120: NULL | E120: 936 | F120: Surrey | G120: 9553 | H120: 32.21 | I120: 7560 | J120: 31.86 | K120: C+ | L120: 5171 | M120: 35.23 | N120: B- | O120: 11.3 | P120: 20.6 | Q120: 5155 | R120: 14.4 | S120: 7566 | T120: 32.02 | U120: C+ | V120: 1574 | W120: 29.77 | X120: Merit+ | Y120: 2566 | Z120: 34.94 | AA120: Dist | AB120: 6 | AC120: 0
A121: ALL | B121: 4 | C121: South East | D121: NULL | E121: 869 | F121: West Berkshire | G121: 1241 | H121: 30.87 | I121: 1129 | J121: 30.37 | K121: C | L121: 785 | M121: 33.72 | N121: C+ | O121: 8.9 | P121: 17.8 | Q121: 766 | R121: 13.1 | S121: 1130 | T121: 30.45 | U121: C | V121: 105 | W121: 29.36 | X121: Merit+ | Y121: 256 | Z121: 35.43 | AA121: Dist | AB121: 0 | AC121: 0
A122: ALL | B122: 4 | C122: South East | D122: NULL | E122: 938 | F122: West Sussex | G122: 5614 | H122: 31.37 | I122: 4289 | J122: 30.5 | K122: C | L122: 2742 | M122: 32.63 | N122: C+ | O122: 9.8 | P122: 16.6 | Q122: 2713 | R122: 12.3 | S122: 4304 | T122: 30.62 | U122: C | V122: 784 | W122: 31.03 | X122: Dist- | Y122: 1785 | Z122: 34.39 | AA122: Dist | AB122: x | AC122: 0
A123: ALL | B123: 4 | C123: South East | D123: NULL | E123: 868 | F123: Windsor and Maidenhead | G123: 1222 | H123: 30.61 | I123: 896 | J123: 30.2 | K123: C | L123: 587 | M123: 33.75 | N123: C+ | O123: 9.7 | P123: 18.9 | Q123: 580 | R123: 15.5 | S123: 900 | T123: 30.27 | U123: C | V123: 249 | W123: 29.55 | X123: Merit+ | Y123: 319 | Z123: 33.07 | AA123: Dist- | AB123: 0 | AC123: 0
A124: ALL | B124: 4 | C124: South East | D124: NULL | E124: 872 | F124: Wokingham | G124: 1031 | H124: 32.06 | I124: 986 | J124: 31.54 | K124: C | L124: 752 | M124: 34.58 | N124: C+ | O124: 9.7 | P124: 18.5 | Q124: 751 | R124: 14.5 | S124: 986 | T124: 31.66 | U124: C | V124: 57 | W124: 32.94 | X124: Dist- | Y124: 153 | Z124: 36.69 | AA124: Dist+ | AB124: 0 | AC124: 0
A125: ALL | B125: 4 | C125: South West | D125: NULL | E125: 800 | F125: Bath and North East Somerset | G125: 1445 | H125: 31.32 | I125: 1042 | J125: 30.92 | K125: C | L125: 726 | M125: 34.26 | N125: C+ | O125: 11.3 | P125: 20 | Q125: 723 | R125: 16.7 | S125: 1052 | T125: 31.08 | U125: C | V125: 268 | W125: 29.05 | X125: Merit+ | Y125: 426 | Z125: 33.89 | AA125: Dist | AB125: 0 | AC125: 0
A126: ALL | B126: 4 | C126: South West | D126: NULL | E126: 837 | F126: Bournemouth | G126: 865 | H126: 32.36 | I126: 710 | J126: 32.47 | K126: C+ | L126: 523 | M126: 35.53 | N126: B- | O126: 14.7 | P126: 25 | Q126: 520 | R126: 20 | S126: 711 | T126: 32.59 | U126: C+ | V126: 71 | W126: 30.45 | X126: Dist- | Y126: 201 | Z126: 31.87 | AA126: Dist- | AB126: 0 | AC126: 0
A127: ALL | B127: 4 | C127: South West | D127: NULL | E127: 801 | F127: Bristol, City of | G127: 2561 | H127: 30.31 | I127: 2020 | J127: 30.18 | K127: C | L127: 1345 | M127: 32.48 | N127: C+ | O127: 9 | P127: 16.3 | Q127: 1342 | R127: 12.1 | S127: 2020 | T127: 30.38 | U127: C | V127: 385 | W127: 26.8 | X127: Merit+ | Y127: 557 | Z127: 33.35 | AA127: Dist | AB127: 0 | AC127: 0
A128: ALL | B128: 4 | C128: South West | D128: NULL | E128: 908 | F128: Cornwall | G128: 4034 | H128: 33.35 | I128: 2486 | J128: 31.51 | K128: C | L128: 1599 | M128: 35.03 | N128: B- | O128: 11.1 | P128: 20.1 | Q128: 1580 | R128: 13.5 | S128: 2540 | T128: 32.03 | U128: C+ | V128: 843 | W128: 31.24 | X128: Dist- | Y128: 1423 | Z128: 37.55 | AA128: Dist+ | AB128: x | AC128: 0
A129: ALL | B129: 4 | C129: South West | D129: NULL | E129: 878 | F129: Devon | G129: 5008 | H129: 31.59 | I129: 3633 | J129: 30.54 | K129: C | L129: 2268 | M129: 33.34 | N129: C+ | O129: 11.2 | P129: 18.9 | Q129: 2256 | R129: 15.2 | S129: 3667 | T129: 30.81 | U129: C | V129: 819 | W129: 31.69 | X129: Dist- | Y129: 1690 | Z129: 34.15 | AA129: Dist | AB129: x | AC129: 0
A130: ALL | B130: 4 | C130: South West | D130: NULL | E130: 835 | F130: Dorset | G130: 2973 | H130: 30.41 | I130: 2488 | J130: 29.94 | K130: C | L130: 1735 | M130: 32.43 | N130: C+ | O130: 8.9 | P130: 16 | Q130: 1728 | R130: 11.1 | S130: 2493 | T130: 30.13 | U130: C | V130: 321 | W130: 25.84 | X130: Merit | Y130: 595 | Z130: 35.3 | AA130: Dist | AB130: 0 | AC130: 0
A131: ALL | B131: 4 | C131: South West | D131: NULL | E131: 916 | F131: Gloucestershire | G131: 5249 | H131: 32.83 | I131: 4141 | J131: 32.18 | K131: C+ | L131: 2959 | M131: 35.6 | N131: B- | O131: 14 | P131: 23.4 | Q131: 2940 | R131: 17.6 | S131: 4150 | T131: 32.32 | U131: C+ | V131: 781 | W131: 32.71 | X131: Dist- | Y131: 1105 | Z131: 35.96 | AA131: Dist | AB131: x | AC131: 0
A132: ALL | B132: 4 | C132: South West | D132: NULL | E132: 802 | F132: North Somerset | G132: 1574 | H132: 31.25 | I132: 1038 | J132: 29.56 | K132: C | L132: 673 | M132: 32.8 | N132: C+ | O132: 11 | P132: 19 | Q132: 665 | R132: 15 | S132: 1038 | T132: 29.65 | U132: C | V132: 328 | W132: 33.65 | X132: Dist | Y132: 456 | Z132: 34.34 | AA132: Dist | AB132: x | AC132: 0
A133: ALL | B133: 4 | C133: South West | D133: NULL | E133: 879 | F133: Plymouth | G133: 2018 | H133: 29.67 | I133: 1426 | J133: 28.98 | K133: C | L133: 854 | M133: 31.16 | N133: C | O133: 10.1 | P133: 15.2 | Q133: 843 | R133: 12.9 | S133: 1428 | T133: 29.05 | U133: C | V133: 390 | W133: 27.17 | X133: Merit+ | Y133: 638 | Z133: 33.5 | AA133: Dist | AB133: 0 | AC133: 0
A134: ALL | B134: 4 | C134: South West | D134: NULL | E134: 836 | F134: Poole | G134: 1546 | H134: 29.89 | I134: 961 | J134: 30.16 | K134: C | L134: 657 | M134: 33.89 | N134: C+ | O134: 10 | P134: 19.2 | Q134: 652 | R134: 12 | S134: 980 | T134: 30.14 | U134: C | V134: 328 | W134: 28.28 | X134: Merit+ | Y134: 431 | Z134: 30.33 | AA134: Dist- | AB134: 0 | AC134: 0
A135: ALL | B135: 4 | C135: South West | D135: NULL | E135: 933 | F135: Somerset | G135: 4011 | H135: 31.53 | I135: 2580 | J135: 30.32 | K135: C | L135: 1777 | M135: 33.2 | N135: C+ | O135: 9.5 | P135: 17.8 | Q135: 1774 | R135: 13.5 | S135: 2628 | T135: 30.56 | U135: C | V135: 986 | W135: 31.09 | X135: Dist- | Y135: 983 | Z135: 35.51 | AA135: Dist | AB135: x | AC135: 0
A136: ALL | B136: 4 | C136: South West | D136: NULL | E136: 803 | F136: South Gloucestershire | G136: 2315 | H136: 29.91 | I136: 1509 | J136: 28.26 | K136: C- | L136: 859 | M136: 31.45 | N136: C | O136: 9.1 | P136: 14.9 | Q136: 850 | R136: 11.2 | S136: 1529 | T136: 28.37 | U136: C | V136: 293 | W136: 33.27 | X136: Dist- | Y136: 1018 | Z136: 32.33 | AA136: Dist- | AB136: x | AC136: 0
A137: ALL | B137: 4 | C137: South West | D137: NULL | E137: 866 | F137: Swindon | G137: 1640 | H137: 27.88 | I137: 978 | J137: 26.67 | K137: C- | L137: 523 | M137: 27.37 | N137: C- | O137: 5.7 | P137: 11.1 | Q137: 507 | R137: 8.3 | S137: 983 | T137: 26.85 | U137: C- | V137: 383 | W137: 25.82 | X137: Merit | Y137: 591 | Z137: 31.33 | AA137: Dist- | AB137: 0 | AC137: 0
A138: ALL | B138: 4 | C138: South West | D138: NULL | E138: 880 | F138: Torbay | G138: 1312 | H138: 32.09 | I138: 776 | J138: 32.29 | K138: C+ | L138: 546 | M138: 35.07 | N138: B- | O138: 13.2 | P138: 23.8 | Q138: 546 | R138: 17 | S138: 827 | T138: 33.46 | U138: C+ | V138: 240 | W138: 27.57 | X138: Merit+ | Y138: 406 | Z138: 30.86 | AA138: Dist- | AB138: 0 | AC138: 0
A139: ALL | B139: 4 | C139: South West | D139: NULL | E139: 865 | F139: Wiltshire | G139: 2853 | H139: 32.14 | I139: 2258 | J139: 32.26 | K139: C+ | L139: 1668 | M139: 35.51 | N139: B- | O139: 11.8 | P139: 21.3 | Q139: 1655 | R139: 16.4 | S139: 2288 | T139: 32.4 | U139: C+ | V139: 442 | W139: 27.35 | X139: Merit+ | Y139: 571 | Z139: 35.04 | AA139: Dist | AB139: x | AC139: 0
A140: ALL | B140: 4 | C140: West Midlands | D140: NULL | E140: 330 | F140: Birmingham | G140: 8545 | H140: 31.65 | I140: 5767 | J140: 29.74 | K140: C | L140: 3659 | M140: 33.67 | N140: C+ | O140: 10.9 | P140: 19 | Q140: 3645 | R140: 15.4 | S140: 5789 | T140: 29.82 | U140: C | V140: 1217 | W140: 32.75 | X140: Dist- | Y140: 3314 | Z140: 35.71 | AA140: Dist | AB140: 0 | AC140: 0
A141: ALL | B141: 4 | C141: West Midlands | D141: NULL | E141: 331 | F141: Coventry | G141: 2246 | H141: 29.99 | I141: 1598 | J141: 28.29 | K141: C- | L141: 858 | M141: 32.71 | N141: C+ | O141: 6.8 | P141: 12.6 | Q141: 848 | R141: 8.6 | S141: 1609 | T141: 28.39 | U141: C | V141: 474 | W141: 28.63 | X141: Merit+ | Y141: 863 | Z141: 35.08 | AA141: Dist | AB141: 3 | AC141: 0
A142: ALL | B142: 4 | C142: West Midlands | D142: NULL | E142: 332 | F142: Dudley | G142: 2906 | H142: 31.67 | I142: 1997 | J142: 31.75 | K142: C+ | L142: 1491 | M142: 34.59 | N142: C+ | O142: 8.8 | P142: 16 | Q142: 1486 | R142: 11 | S142: 1999 | T142: 31.83 | U142: C+ | V142: 523 | W142: 30.1 | X142: Dist- | Y142: 751 | Z142: 32.38 | AA142: Dist- | AB142: 0 | AC142: 0
A143: ALL | B143: 4 | C143: West Midlands | D143: NULL | E143: 884 | F143: Herefordshire, County of | G143: 1642 | H143: 31.1 | I143: 1153 | J143: 31.51 | K143: C | L143: 895 | M143: 34.26 | N143: C+ | O143: 10.7 | P143: 21 | Q143: 888 | R143: 14.4 | S143: 1155 | T143: 31.67 | U143: C+ | V143: 150 | W143: 26 | X143: Merit | Y143: 505 | Z143: 30.63 | AA143: Dist- | AB143: 0 | AC143: 0
A144: ALL | B144: 4 | C144: West Midlands | D144: NULL | E144: 333 | F144: Sandwell | G144: 1947 | H144: 28.91 | I144: 1286 | J144: 26.68 | K144: C- | L144: 724 | M144: 30.44 | N144: C | O144: 2.8 | P144: 8.6 | Q144: 651 | R144: 3.8 | S144: 1318 | T144: 26.79 | U144: C- | V144: 369 | W144: 30.51 | X144: Dist- | Y144: 890 | Z144: 32.72 | AA144: Dist- | AB144: x | AC144: 0
A145: ALL | B145: 4 | C145: West Midlands | D145: NULL | E145: 893 | F145: Shropshire | G145: 1883 | H145: 30.5 | I145: 1425 | J145: 29.44 | K145: C | L145: 1026 | M145: 32.72 | N145: C+ | O145: 7.3 | P145: 13.8 | Q145: 1022 | R145: 9.6 | S145: 1425 | T145: 29.52 | U145: C | V145: 247 | W145: 32.53 | X145: Dist- | Y145: 516 | Z145: 33.74 | AA145: Dist | AB145: 0 | AC145: 0
A146: ALL | B146: 4 | C146: West Midlands | D146: NULL | E146: 334 | F146: Solihull | G146: 3057 | H146: 30.38 | I146: 1753 | J146: 28.86 | K146: C | L146: 1350 | M146: 32.25 | N146: C+ | O146: 7.1 | P146: 14.1 | Q146: 1347 | R146: 10.2 | S146: 1815 | T146: 28.96 | U146: C | V146: 617 | W146: 30.78 | X146: Dist- | Y146: 876 | Z146: 34.39 | AA146: Dist | AB146: 0 | AC146: 0
A147: ALL | B147: 4 | C147: West Midlands | D147: NULL | E147: 860 | F147: Staffordshire | G147: 6299 | H147: 30.3 | I147: 4025 | J147: 27.79 | K147: C- | L147: 2299 | M147: 31.8 | N147: C+ | O147: 6.2 | P147: 12.9 | Q147: 2280 | R147: 9 | S147: 4031 | T147: 27.9 | U147: C- | V147: 1440 | W147: 30.1 | X147: Dist- | Y147: 2225 | Z147: 36.23 | AA147: Dist | AB147: 19 | AC147: !
A148: ALL | B148: 4 | C148: West Midlands | D148: NULL | E148: 861 | F148: Stoke-on-Trent | G148: 1340 | H148: 30.69 | I148: 885 | J148: 28.8 | K148: C | L148: 500 | M148: 32.79 | N148: C+ | O148: 6 | P148: 15.6 | Q148: 500 | R148: 11.4 | S148: 899 | T148: 28.79 | U148: C | V148: 326 | W148: 30.6 | X148: Dist- | Y148: 592 | Z148: 34.78 | AA148: Dist | AB148: 0 | AC148: 0
A149: ALL | B149: 4 | C149: West Midlands | D149: NULL | E149: 894 | F149: Telford and Wrekin | G149: 1328 | H149: 32.62 | I149: 999 | J149: 32.64 | K149: C+ | L149: 626 | M149: 36.71 | N149: B- | O149: 17.9 | P149: 28.9 | Q149: 596 | R149: 23.5 | S149: 1001 | T149: 32.71 | U149: C+ | V149: 200 | W149: 27.45 | X149: Merit+ | Y149: 527 | Z149: 34.46 | AA149: Dist | AB149: 0 | AC149: 0
A150: ALL | B150: 4 | C150: West Midlands | D150: NULL | E150: 335 | F150: Walsall | G150: 2370 | H150: 30.86 | I150: 1525 | J150: 28.15 | K150: C- | L150: 760 | M150: 33.81 | N150: C+ | O150: 8.8 | P150: 16.4 | Q150: 744 | R150: 13.6 | S150: 1536 | T150: 28.29 | U150: C- | V150: 547 | W150: 31.59 | X150: Dist- | Y150: 1058 | Z150: 35.8 | AA150: Dist | AB150: 0 | AC150: 0
A151: ALL | B151: 4 | C151: West Midlands | D151: NULL | E151: 937 | F151: Warwickshire | G151: 5126 | H151: 31.97 | I151: 3343 | J151: 32.51 | K151: C+ | L151: 2394 | M151: 35.31 | N151: B- | O151: 13.2 | P151: 22.8 | Q151: 2380 | R151: 16.8 | S151: 3396 | T151: 32.65 | U151: C+ | V151: 1111 | W151: 28.67 | X151: Merit+ | Y151: 1378 | Z151: 32.42 | AA151: Dist- | AB151: 11 | AC151: 0
A152: ALL | B152: 4 | C152: West Midlands | D152: NULL | E152: 336 | F152: Wolverhampton | G152: 1636 | H152: 32.58 | I152: 1015 | J152: 29 | K152: C | L152: 479 | M152: 32.46 | N152: C+ | O152: 9.4 | P152: 17.5 | Q152: 475 | R152: 14.5 | S152: 1018 | T152: 29.01 | U152: C | V152: 369 | W152: 33.1 | X152: Dist- | Y152: 845 | Z152: 37.25 | AA152: Dist+ | AB152: 0 | AC152: 0
A153: ALL | B153: 4 | C153: West Midlands | D153: NULL | E153: 885 | F153: Worcestershire | G153: 3712 | H153: 30.02 | I153: 2882 | J153: 29.19 | K153: C | L153: 1899 | M153: 32.55 | N153: C+ | O153: 8.2 | P153: 14.4 | Q153: 1877 | R153: 10.4 | S153: 2887 | T153: 29.27 | U153: C | V153: 530 | W153: 28.49 | X153: Merit+ | Y153: 1130 | Z153: 34.39 | AA153: Dist | AB153: x | AC153: 0
A154: ALL | B154: 4 | C154: Yorkshire and the Humber | D154: NULL | E154: 370 | F154: Barnsley | G154: 1369 | H154: 30.59 | I154: 560 | J154: 26.35 | K154: C- | L154: 365 | M154: 31.71 | N154: C+ | O154: 4.4 | P154: 7.9 | Q154: 364 | R154: 5.8 | S154: 560 | T154: 26.37 | U154: C- | V154: 412 | W154: 32.01 | X154: Dist- | Y154: 504 | Z154: 35.09 | AA154: Dist | AB154: 0 | AC154: 0
A155: ALL | B155: 4 | C155: Yorkshire and the Humber | D155: NULL | E155: 380 | F155: Bradford | G155: 3332 | H155: 30.99 | I155: 2412 | J155: 26.88 | K155: C- | L155: 1127 | M155: 32.35 | N155: C+ | O155: 6.7 | P155: 13.6 | Q155: 1106 | R155: 11.4 | S155: 2423 | T155: 26.93 | U155: C- | V155: 455 | W155: 32.81 | X155: Dist- | Y155: 1711 | Z155: 38.44 | AA155: Dist+ | AB155: 0 | AC155: 0
A156: ALL | B156: 4 | C156: Yorkshire and the Humber | D156: NULL | E156: 381 | F156: Calderdale | G156: 1458 | H156: 32.46 | I156: 1152 | J156: 29.99 | K156: C | L156: 713 | M156: 32.95 | N156: C+ | O156: 9.5 | P156: 15.8 | Q156: 705 | R156: 10.6 | S156: 1155 | T156: 30.04 | U156: C | V156: 143 | W156: 32.77 | X156: Dist- | Y156: 558 | Z156: 39.66 | AA156: Dist+ | AB156: 0 | AC156: 0
A157: ALL | B157: 4 | C157: Yorkshire and the Humber | D157: NULL | E157: 371 | F157: Doncaster | G157: 1811 | H157: 30.52 | I157: 1341 | J157: 28.09 | K157: C- | L157: 774 | M157: 30.91 | N157: C | O157: 6.3 | P157: 13.2 | Q157: 744 | R157: 8.6 | S157: 1348 | T157: 28.13 | U157: C- | V157: 214 | W157: 30.19 | X157: Dist- | Y157: 732 | Z157: 37 | AA157: Dist+ | AB157: 0 | AC157: 0
A158: ALL | B158: 4 | C158: Yorkshire and the Humber | D158: NULL | E158: 811 | F158: East Riding of Yorkshire | G158: 2096 | H158: 31.1 | I158: 1349 | J158: 29.04 | K158: C | L158: 816 | M158: 34.02 | N158: C+ | O158: 9.1 | P158: 16.7 | Q158: 811 | R158: 11.7 | S158: 1351 | T158: 29.16 | U158: C | V158: 584 | W158: 32.52 | X158: Dist- | Y158: 634 | Z158: 36.11 | AA158: Dist | AB158: 0 | AC158: 0
A159: ALL | B159: 4 | C159: Yorkshire and the Humber | D159: NULL | E159: 810 | F159: Kingston upon Hull, City of | G159: 2381 | H159: 30.3 | I159: 1374 | J159: 28.16 | K159: C- | L159: 764 | M159: 33.61 | N159: C+ | O159: 6.9 | P159: 13.1 | Q159: 756 | R159: 7.5 | S159: 1374 | T159: 28.33 | U159: C- | V159: 638 | W159: 30.41 | X159: Dist- | Y159: 1008 | Z159: 34.43 | AA159: Dist | AB159: 0 | AC159: 0
A160: ALL | B160: 4 | C160: Yorkshire and the Humber | D160: NULL | E160: 382 | F160: Kirklees | G160: 3633 | H160: 33.29 | I160: 2734 | J160: 31.69 | K160: C+ | L160: 1845 | M160: 35.46 | N160: B- | O160: 12.8 | P160: 23.1 | Q160: 1823 | R160: 17.2 | S160: 2755 | T160: 31.78 | U160: C+ | V160: 562 | W160: 33.83 | X160: Dist | Y160: 1099 | Z160: 38.96 | AA160: Dist+ | AB160: x | AC160: 0
A161: ALL | B161: 4 | C161: Yorkshire and the Humber | D161: NULL | E161: 383 | F161: Leeds | G161: 5127 | H161: 29.49 | I161: 3761 | J161: 28.14 | K161: C- | L161: 2383 | M161: 31.64 | N161: C | O161: 7.8 | P161: 14.8 | Q161: 2332 | R161: 11.2 | S161: 3814 | T161: 28.08 | U161: C- | V161: 817 | W161: 29.77 | X161: Merit+ | Y161: 1605 | Z161: 34.74 | AA161: Dist | AB161: 0 | AC161: 0
A162: ALL | B162: 4 | C162: Yorkshire and the Humber | D162: NULL | E162: 812 | F162: North East Lincolnshire | G162: 1522 | H162: 27.82 | I162: 885 | J162: 26.04 | K162: C- | L162: 448 | M162: 30.31 | N162: C | O162: 3.6 | P162: 7.4 | Q162: 440 | R162: 4.5 | S162: 885 | T162: 26.09 | U162: C- | V162: 438 | W162: 27.53 | X162: Merit+ | Y162: 565 | Z162: 32.04 | AA162: Dist- | AB162: 0 | AC162: 0
A163: ALL | B163: 4 | C163: Yorkshire and the Humber | D163: NULL | E163: 813 | F163: North Lincolnshire | G163: 1305 | H163: 32.2 | I163: 953 | J163: 30.11 | K163: C | L163: 482 | M163: 32.49 | N163: C+ | O163: 10.8 | P163: 18.3 | Q163: 479 | R163: 14.6 | S163: 956 | T163: 30.15 | U163: C | V163: 296 | W163: 33.54 | X163: Dist | Y163: 520 | Z163: 36.73 | AA163: Dist+ | AB163: x | AC163: 0
A164: ALL | B164: 4 | C164: Yorkshire and the Humber | D164: NULL | E164: 815 | F164: North Yorkshire | G164: 4231 | H164: 32.53 | I164: 3412 | J164: 31.43 | K164: C | L164: 2411 | M164: 35.16 | N164: B- | O164: 14.5 | P164: 23.5 | Q164: 2385 | R164: 18.2 | S164: 3422 | T164: 31.51 | U164: C | V164: 548 | W164: 32.47 | X164: Dist- | Y164: 1124 | Z164: 38.11 | AA164: Dist+ | AB164: 6 | AC164: 0
A165: ALL | B165: 4 | C165: Yorkshire and the Humber | D165: NULL | E165: 372 | F165: Rotherham | G165: 2280 | H165: 30.17 | I165: 1639 | J165: 28.81 | K165: C | L165: 910 | M165: 32.05 | N165: C+ | O165: 7.5 | P165: 15.1 | Q165: 903 | R165: 10.9 | S165: 1640 | T165: 28.88 | U165: C | V165: 383 | W165: 27.2 | X165: Merit+ | Y165: 917 | Z165: 35.25 | AA165: Dist | AB165: x | AC165: 0
A166: ALL | B166: 4 | C166: Yorkshire and the Humber | D166: NULL | E166: 373 | F166: Sheffield | G166: 3357 | H166: 30.95 | I166: 2211 | J166: 30.8 | K166: C | L166: 1523 | M166: 33.99 | N166: C+ | O166: 13.1 | P166: 20 | Q166: 1519 | R166: 16.6 | S166: 2226 | T166: 30.93 | U166: C | V166: 510 | W166: 29.25 | X166: Merit+ | Y166: 1204 | Z166: 31.63 | AA166: Dist- | AB166: 5 | AC166: 0
A167: ALL | B167: 4 | C167: Yorkshire and the Humber | D167: NULL | E167: 384 | F167: Wakefield | G167: 2514 | H167: 32.14 | I167: 1610 | J167: 29.73 | K167: C | L167: 963 | M167: 33.18 | N167: C+ | O167: 6.5 | P167: 14.4 | Q167: 957 | R167: 8.5 | S167: 1611 | T167: 29.81 | U167: C | V167: 517 | W167: 32.06 | X167: Dist- | Y167: 997 | Z167: 37.03 | AA167: Dist+ | AB167: x | AC167: 0
A168: ALL | B168: 4 | C168: Yorkshire and the Humber | D168: NULL | E168: 816 | F168: York | G168: 2330 | H168: 31.78 | I168: 1187 | J168: 32.46 | K168: C+ | L168: 873 | M168: 35.8 | N168: B- | O168: 12.4 | P168: 21.4 | Q168: 864 | R168: 14.7 | S168: 1231 | T168: 32.63 | U168: C+ | V168: 867 | W168: 28.66 | X168: Merit+ | Y168: 477 | Z168: 34.98 | AA168: Dist | AB168: 7 | AC168: 0
A169: F | B169: 4-Region | C169: East Midlands | D169: NULL | E169: NULL | F169: NULL | G169: 16604 | H169: 31.4 | I169: 12624 | J169: 30.2 | K169: C | L169: 8597 | M169: 33.37 | N169: C+ | O169: 8.5 | P169: 16.3 | Q169: 8536 | R169: 11.2 | S169: 12685 | T169: 30.37 | U169: C | V169: 2234 | W169: 31.02 | X169: Dist- | Y169: 4617 | Z169: 36.05 | AA169: Dist | AB169: x | AC169: 0
A170: F | B170: 4-Region | C170: East of England | D170: NULL | E170: NULL | F170: NULL | G170: 24122 | H170: 32.69 | I170: 17976 | J170: 31.86 | K170: C+ | L170: 13044 | M170: 34.72 | N170: C+ | O170: 9.9 | P170: 18.7 | Q170: 12949 | R170: 12.6 | S170: 18239 | T170: 32.14 | U170: C+ | V170: 3081 | W170: 31.32 | X170: Dist- | Y170: 6627 | Z170: 35.78 | AA170: Dist | AB170: x | AC170: 0
A171: F | B171: 4-Region | C171: Inner London | D171: NULL | E171: NULL | F171: NULL | G171: 11761 | H171: 30.96 | I171: 8583 | J171: 30.05 | K171: C | L171: 6010 | M171: 32.52 | N171: C+ | O171: 7.1 | P171: 14.1 | Q171: 5969 | R171: 10.4 | S171: 8702 | T171: 30.25 | U171: C | V171: 863 | W171: 30.16 | X171: Dist- | Y171: 3647 | Z171: 33.31 | AA171: Dist- | AB171: 0 | AC171: 0
A172: F | B172: 4-Region | C172: North East | D172: NULL | E172: NULL | F172: NULL | G172: 10019 | H172: 32.59 | I172: 6852 | J172: 30.49 | K172: C | L172: 4392 | M172: 33.45 | N172: C+ | O172: 7.9 | P172: 16.1 | Q172: 4295 | R172: 10.7 | S172: 6892 | T172: 30.56 | U172: C | V172: 1676 | W172: 33.05 | X172: Dist- | Y172: 3452 | Z172: 38.26 | AA172: Dist+ | AB172: x | AC172: 0
A173: F | B173: 4-Region | C173: North West | D173: NULL | E173: NULL | F173: NULL | G173: 29112 | H173: 33.31 | I173: 21065 | J173: 31.77 | K173: C+ | L173: 14937 | M173: 35.22 | N173: B- | O173: 10.4 | P173: 19.3 | Q173: 14820 | R173: 11.6 | S173: 21179 | T173: 31.87 | U173: C+ | V173: 4067 | W173: 33.53 | X173: Dist | Y173: 8698 | Z173: 38.28 | AA173: Dist+ | AB173: 10 | AC173: 0
A174: F | B174: 4-Region | C174: Outer London | D174: NULL | E174: NULL | F174: NULL | G174: 21417 | H174: 32.43 | I174: 17301 | J174: 31.67 | K174: C+ | L174: 12309 | M174: 34.71 | N174: C+ | O174: 10.5 | P174: 18.8 | Q174: 12260 | R174: 14 | S174: 17400 | T174: 31.78 | U174: C+ | V174: 1950 | W174: 32.21 | X174: Dist- | Y174: 5589 | Z174: 35.48 | AA174: Dist | AB174: x | AC174: 0
A175: F | B175: 4-Region | C175: South East | D175: NULL | E175: NULL | F175: NULL | G175: 36919 | H175: 33.25 | I175: 28364 | J175: 32.44 | K175: C+ | L175: 19741 | M175: 35.21 | N175: B- | O175: 11 | P175: 20.4 | Q175: 19563 | R175: 13.9 | S175: 28856 | T175: 32.84 | U175: C+ | V175: 5429 | W175: 31.31 | X175: Dist- | Y175: 9586 | Z175: 36.6 | AA175: Dist | AB175: 8 | AC175: 0
A176: F | B176: 4-Region | C176: South West | D176: NULL | E176: NULL | F176: NULL | G176: 20940 | H176: 32.71 | I176: 15477 | J176: 31.94 | K176: C+ | L176: 10802 | M176: 34.42 | N176: C+ | O176: 10.4 | P176: 19.4 | Q176: 10707 | R176: 13.2 | S176: 15644 | T176: 32.18 | U176: C+ | V176: 3099 | W176: 30.22 | X176: Dist- | Y176: 5511 | Z176: 36.49 | AA176: Dist | AB176: 0 | AC176: 0
A177: F | B177: 4-Region | C177: West Midlands | D177: NULL | E177: NULL | F177: NULL | G177: 23005 | H177: 32.18 | I177: 16286 | J177: 30.58 | K177: C | L177: 10882 | M177: 33.84 | N177: C+ | O177: 8.1 | P177: 16.2 | Q177: 10766 | R177: 10.7 | S177: 16391 | T177: 30.69 | U177: C | V177: 3396 | W177: 31.92 | X177: Dist- | Y177: 7895 | Z177: 36.8 | AA177: Dist+ | AB177: 6 | AC177: 0
A178: F | B178: 4-Region | C178: Yorkshire and the Humber | D178: NULL | E178: NULL | F178: NULL | G178: 20666 | H178: 32.4 | I178: 14965 | J178: 30.55 | K178: C | L178: 9630 | M178: 34.01 | N178: C+ | O178: 9 | P178: 17 | Q178: 9484 | R178: 11.1 | S178: 15025 | T178: 30.65 | U178: C | V178: 3197 | W178: 32.5 | X178: Dist- | Y178: 7084 | Z178: 37.87 | AA178: Dist+ | AB178: x | AC178: 0
A179: F | B179: 4-London | C179: NULL | D179: LONDON | E179: NULL | F179: NULL | G179: 33178 | H179: 31.92 | I179: 25884 | J179: 31.15 | K179: C | L179: 18319 | M179: 33.99 | N179: C+ | O179: 9.4 | P179: 17.3 | Q179: 18229 | R179: 12.9 | S179: 26102 | T179: 31.28 | U179: C | V179: 2813 | W179: 31.57 | X179: Dist- | Y179: 9236 | Z179: 34.56 | AA179: Dist | AB179: x | AC179: 0
A180: F | B180: 4 | C180: East Midlands | D180: NULL | E180: 831 | F180: Derby | G180: 1070 | H180: 31.62 | I180: 708 | J180: 29.56 | K180: C | L180: 466 | M180: 32.15 | N180: C+ | O180: 7.1 | P180: 15.2 | Q180: 454 | R180: 10.8 | S180: 708 | T180: 29.63 | U180: C | V180: 219 | W180: 31.13 | X180: Dist- | Y180: 300 | Z180: 38.05 | AA180: Dist+ | AB180: 0 | AC180: 0
A181: F | B181: 4 | C181: East Midlands | D181: NULL | E181: 830 | F181: Derbyshire | G181: 1892 | H181: 30.66 | I181: 1533 | J181: 30.28 | K181: C | L181: 1113 | M181: 33.24 | N181: C+ | O181: 8.8 | P181: 15.9 | Q181: 1106 | R181: 11.4 | S181: 1539 | T181: 30.37 | U181: C | V181: 208 | W181: 27.28 | X181: Merit+ | Y181: 404 | Z181: 34.57 | AA181: Dist | AB181: 0 | AC181: 0
A182: F | B182: 4 | C182: East Midlands | D182: NULL | E182: 856 | F182: Leicester | G182: 1507 | H182: 29.96 | I182: 1127 | J182: 28.38 | K182: C | L182: 820 | M182: 31.05 | N182: C | O182: 6 | P182: 12.1 | Q182: 812 | R182: 6.8 | S182: 1143 | T182: 28.47 | U182: C | V182: 185 | W182: 29.08 | X182: Merit+ | Y182: 547 | Z182: 35.65 | AA182: Dist | AB182: 0 | AC182: 0
A183: F | B183: 4 | C183: East Midlands | D183: NULL | E183: 855 | F183: Leicestershire | G183: 2313 | H183: 31.27 | I183: 1914 | J183: 29.97 | K183: C | L183: 1329 | M183: 33.41 | N183: C+ | O183: 7.8 | P183: 15.2 | Q183: 1317 | R183: 9.8 | S183: 1916 | T183: 30.07 | U183: C | V183: 262 | W183: 35.7 | X183: Dist | Y183: 512 | Z183: 36.38 | AA183: Dist | AB183: 0 | AC183: 0
A184: F | B184: 4 | C184: East Midlands | D184: NULL | E184: 925 | F184: Lincolnshire | G184: 2944 | H184: 33.05 | I184: 2194 | J184: 31.8 | K184: C+ | L184: 1420 | M184: 35.18 | N184: B- | O184: 11.3 | P184: 20.4 | Q184: 1418 | R184: 15.4 | S184: 2195 | T184: 31.99 | U184: C+ | V184: 384 | W184: 32.7 | X184: Dist- | Y184: 1017 | Z184: 36.69 | AA184: Dist+ | AB184: 0 | AC184: 0
A185: F | B185: 4 | C185: East Midlands | D185: NULL | E185: 928 | F185: Northamptonshire | G185: 2821 | H185: 30.74 | I185: 1988 | J185: 29.27 | K185: C | L185: 1333 | M185: 32.52 | N185: C+ | O185: 7.4 | P185: 14.3 | Q185: 1322 | R185: 9.4 | S185: 1991 | T185: 29.37 | U185: C | V185: 494 | W185: 31.88 | X185: Dist- | Y185: 835 | Z185: 34.88 | AA185: Dist | AB185: x | AC185: 0
A186: F | B186: 4 | C186: East Midlands | D186: NULL | E186: 892 | F186: Nottingham | G186: 1561 | H186: 30.77 | I186: 1201 | J186: 29.25 | K186: C | L186: 785 | M186: 33.32 | N186: C+ | O186: 8.9 | P186: 16.7 | Q186: 785 | R186: 11.6 | S186: 1234 | T186: 29.83 | U186: C | V186: 160 | W186: 29.71 | X186: Merit+ | Y186: 373 | Z186: 35.75 | AA186: Dist | AB186: 0 | AC186: 0
A187: F | B187: 4 | C187: East Midlands | D187: NULL | E187: 891 | F187: Nottinghamshire | G187: 2432 | H187: 31.98 | I187: 1901 | J187: 31.3 | K187: C | L187: 1287 | M187: 34.22 | N187: C+ | O187: 8.8 | P187: 17.9 | Q187: 1278 | R187: 12.8 | S187: 1901 | T187: 31.44 | U187: C | V187: 322 | W187: 28.73 | X187: Merit+ | Y187: 620 | Z187: 36.64 | AA187: Dist | AB187: 0 | AC187: 0
A188: F | B188: 4 | C188: East Midlands | D188: NULL | E188: 857 | F188: Rutland | G188: 64 | H188: 33.77 | I188: 58 | J188: 32.34 | K188: C+ | L188: 44 | M188: 34.09 | N188: C+ | O188: 6.8 | P188: 18.2 | Q188: 44 | R188: 0 | S188: 58 | T188: 32.88 | U188: C+ | V188: 0 | W188: 0 | X188: U | Y188: 9 | Z188: 41.59 | AA188: Dist+ | AB188: 0 | AC188: 0
A189: F | B189: 4 | C189: East of England | D189: NULL | E189: 822 | F189: Bedford | G189: 948 | H189: 31.54 | I189: 638 | J189: 29.18 | K189: C | L189: 388 | M189: 32.22 | N189: C+ | O189: 7 | P189: 14.2 | Q189: 387 | R189: 10.9 | S189: 640 | T189: 29.34 | U189: C | V189: 238 | W189: 32.61 | X189: Dist- | Y189: 289 | Z189: 37.53 | AA189: Dist+ | AB189: 0 | AC189: 0
A190: F | B190: 4 | C190: East of England | D190: NULL | E190: 873 | F190: Cambridgeshire | G190: 2374 | H190: 34.69 | I190: 1892 | J190: 34.66 | K190: C+ | L190: 1443 | M190: 37.69 | N190: B- | O190: 15.9 | P190: 26.3 | Q190: 1434 | R190: 18.9 | S190: 1967 | T190: 34.95 | U190: C+ | V190: 203 | W190: 29.07 | X190: Merit+ | Y190: 482 | Z190: 35.22 | AA190: Dist | AB190: x | AC190: 0
A191: F | B191: 4 | C191: East of England | D191: NULL | E191: 823 | F191: Central Bedfordshire | G191: 794 | H191: 31.27 | I191: 713 | J191: 30.17 | K191: C | L191: 496 | M191: 32.98 | N191: C+ | O191: 5.8 | P191: 12.3 | Q191: 490 | R191: 6.9 | S191: 715 | T191: 30.24 | U191: C | V191: 27 | W191: 41.53 | X191: Dist+ | Y191: 273 | Z191: 36.07 | AA191: Dist | AB191: 0 | AC191: 0
A192: F | B192: 4 | C192: East of England | D192: NULL | E192: 881 | F192: Essex | G192: 5107 | H192: 31.81 | I192: 3783 | J192: 30.79 | K192: C | L192: 2821 | M192: 33.47 | N192: C+ | O192: 9.3 | P192: 17.1 | Q192: 2793 | R192: 11 | S192: 3877 | T192: 31.2 | U192: C | V192: 643 | W192: 30.8 | X192: Dist- | Y192: 1369 | Z192: 35.37 | AA192: Dist | AB192: 0 | AC192: 0
A193: F | B193: 4 | C193: East of England | D193: NULL | E193: 919 | F193: Hertfordshire | G193: 5479 | H193: 34.33 | I193: 4240 | J193: 34.25 | K193: C+ | L193: 3288 | M193: 36.63 | N193: B- | O193: 11.6 | P193: 22.4 | Q193: 3277 | R193: 15.9 | S193: 4310 | T193: 34.57 | U193: C+ | V193: 622 | W193: 30.81 | X193: Dist- | Y193: 1295 | Z193: 35.07 | AA193: Dist | AB193: 0 | AC193: 0
A194: F | B194: 4 | C194: East of England | D194: NULL | E194: 821 | F194: Luton | G194: 893 | H194: 30.75 | I194: 712 | J194: 28.06 | K194: C- | L194: 399 | M194: 31.23 | N194: C | O194: 5 | P194: 13.5 | Q194: 395 | R194: 6.8 | S194: 717 | T194: 28.28 | U194: C- | V194: 115 | W194: 32.14 | X194: Dist- | Y194: 379 | Z194: 37.45 | AA194: Dist+ | AB194: 0 | AC194: 0
A195: F | B195: 4 | C195: East of England | D195: NULL | E195: 926 | F195: Norfolk | G195: 3085 | H195: 31.57 | I195: 2197 | J195: 30.59 | K195: C | L195: 1527 | M195: 33.74 | N195: C+ | O195: 7.9 | P195: 16.4 | Q195: 1518 | R195: 10.4 | S195: 2198 | T195: 30.69 | U195: C | V195: 533 | W195: 31.33 | X195: Dist- | Y195: 769 | Z195: 35.68 | AA195: Dist | AB195: 0 | AC195: 0
A196: F | B196: 4 | C196: East of England | D196: NULL | E196: 874 | F196: Peterborough | G196: 864 | H196: 30.53 | I196: 634 | J196: 29.79 | K196: C | L196: 411 | M196: 33.51 | N196: C+ | O196: 9.2 | P196: 17.3 | Q196: 405 | R196: 12.8 | S196: 636 | T196: 29.9 | U196: C | V196: 115 | W196: 26.89 | X196: Merit+ | Y196: 312 | Z196: 34.08 | AA196: Dist | AB196: 0 | AC196: 0
A197: F | B197: 4 | C197: East of England | D197: NULL | E197: 882 | F197: Southend-on-Sea | G197: 1341 | H197: 33.58 | I197: 799 | J197: 32.8 | K197: C+ | L197: 606 | M197: 35.74 | N197: B- | O197: 13.4 | P197: 21.6 | Q197: 605 | R197: 15 | S197: 799 | T197: 33.02 | U197: C+ | V197: 263 | W197: 34.45 | X197: Dist | Y197: 405 | Z197: 34.71 | AA197: Dist | AB197: 0 | AC197: 0
A198: F | B198: 4 | C198: East of England | D198: NULL | E198: 935 | F198: Suffolk | G198: 2635 | H198: 32.64 | I198: 1901 | J198: 31.23 | K198: C | L198: 1360 | M198: 33.79 | N198: C+ | O198: 7 | P198: 14 | Q198: 1344 | R198: 8.8 | S198: 1911 | T198: 31.31 | U198: C | V198: 252 | W198: 31.72 | X198: Dist- | Y198: 858 | Z198: 37.38 | AA198: Dist+ | AB198: 0 | AC198: 0
A199: F | B199: 4 | C199: East of England | D199: NULL | E199: 883 | F199: Thurrock | G199: 602 | H199: 30.47 | I199: 467 | J199: 27.79 | K199: C- | L199: 305 | M199: 30.68 | N199: C | O199: 3.6 | P199: 9.5 | Q199: 301 | R199: 4.3 | S199: 469 | T199: 27.9 | U199: C- | V199: 70 | W199: 33.05 | X199: Dist- | Y199: 196 | Z199: 37.21 | AA199: Dist+ | AB199: x | AC199: 0
A200: F | B200: 4 | C200: Inner London | D200: LONDON | E200: 202 | F200: Camden | G200: 1186 | H200: 30.17 | I200: 805 | J200: 30.02 | K200: C | L200: 591 | M200: 32.13 | N200: C+ | O200: 7.8 | P200: 14.6 | Q200: 578 | R200: 11.4 | S200: 806 | T200: 30.03 | U200: C | V200: 75 | W200: 27.22 | X200: Merit+ | Y200: 389 | Z200: 30.97 | AA200: Dist- | AB200: 0 | AC200: 0
... 307 more rows

Sheet 9a_all (hidden)
A1: NULL | B1: 4-London | C1: NULL | D1: xx | E1: NULL | F1: NULL | G1: NULL | H1: 0 | I1: NULL | J1: 0 | K1: U | L1: NULL | M1: 0 | O1: 0 | P1: 0 | Q1: NULL | R1: 0 | S1: NULL | T1: 0 | U1: U | Y1: 0 | Z1: 0 | AA1: 0 | AB1: U
A2: NULL | B2: 4 | C2: xx | D2: xx | E2: 201 | F2: City of London | G2: NULL | H2: 0 | I2: NULL | J2: 0 | K2: U | L2: NULL | M2: 0 | O2: 0 | P2: 0 | Q2: NULL | R2: 0 | S2: NULL | T2: 0 | U2: U | Y2: 0 | Z2: 0 | AA2: 0 | AB2: U
A3: NULL | B3: 4 | C3: xx | D3: NULL | E3: 420 | F3: Isles of Scilly | G3: NULL | H3: 0 | I3: NULL | J3: 0 | K3: U | L3: NULL | M3: 0 | O3: 0 | P3: 0 | Q3: NULL | R3: 0 | S3: NULL | T3: 0 | U3: U | Y3: 0 | Z3: 0 | AA3: 0 | AB3: U
A4: ALL | B4: 4-Region | C4: East Midlands | D4: NULL | E4: NULL | F4: NULL | G4: 31755 | H4: 30.02 | I4: 22997 | J4: 29.1 | K4: C | L4: 15121 | M4: 32.68 | N4: C+ | O4: 9 | P4: 16.4 | Q4: 15029 | R4: 12.5 | S4: 23107 | T4: 29.24 | U4: C | V4: 5290 | W4: 29.37 | X4: Merit+ | Y4: 9250 | Z4: 33.56 | AA4: Dist | AB4: 21
A5: ALL | B5: 4-Region | C5: East of England | D5: NULL | E5: NULL | F5: NULL | G5: 46429 | H5: 31.44 | I5: 32809 | J5: 30.78 | K5: C | L5: 22979 | M5: 34.03 | N5: C+ | O5: 10.8 | P5: 19.2 | Q5: 22819 | R5: 14.2 | S5: 33239 | T5: 31.04 | U5: C | V5: 7605 | W5: 30.42 | X5: Dist- | Y5: 13687 | Z5: 33.61 | AA5: Dist | AB5: 11
A6: ALL | B6: 4-Region | C6: Inner London | D6: NULL | E6: NULL | F6: NULL | G6: 21978 | H6: 30.39 | I6: 15184 | J6: 29.4 | K6: C | L6: 10163 | M6: 32.27 | N6: C+ | O6: 8.1 | P6: 15.4 | Q6: 10091 | R6: 12.3 | S6: 15422 | T6: 29.54 | U6: C | V6: 2476 | W6: 30.96 | X6: Dist- | Y6: 7053 | Z6: 32.51 | AA6: Dist- | AB6: x
A7: ALL | B7: 4-Region | C7: North East | D7: NULL | E7: NULL | F7: NULL | G7: 19321 | H7: 31.26 | I7: 12097 | J7: 29.71 | K7: C | L7: 7459 | M7: 32.95 | N7: C+ | O7: 8.8 | P7: 16.3 | Q7: 7335 | R7: 12.2 | S7: 12167 | T7: 29.78 | U7: C | V7: 4750 | W7: 30.47 | X7: Dist- | Y7: 6351 | Z7: 36.17 | AA7: Dist | AB7: x
A8: ALL | B8: 4-Region | C8: North West | D8: NULL | E8: NULL | F8: NULL | G8: 55316 | H8: 32 | I8: 37905 | J8: 30.55 | K8: C | L8: 25643 | M8: 34.45 | N8: C+ | O8: 10.8 | P8: 19 | Q8: 25474 | R8: 13 | S8: 38191 | T8: 30.64 | U8: C | V8: 10060 | W8: 32.59 | X8: Dist- | Y8: 16972 | Z8: 36.12 | AA8: Dist | AB8: 64
A9: ALL | B9: 4-Region | C9: Outer London | D9: NULL | E9: NULL | F9: NULL | G9: 42052 | H9: 31.6 | I9: 32453 | J9: 30.94 | K9: C | L9: 22061 | M9: 34.35 | N9: C+ | O9: 11.5 | P9: 19.6 | Q9: 21966 | R9: 15.6 | S9: 32660 | T9: 31.04 | U9: C | V9: 5032 | W9: 31.81 | X9: Dist- | Y9: 11664 | Z9: 33.85 | AA9: Dist | AB9: 8
A10: ALL | B10: 4-Region | C10: South East | D10: NULL | E10: NULL | F10: NULL | G10: 71247 | H10: 31.96 | I10: 52925 | J10: 31.31 | K10: C | L10: 35454 | M10: 34.47 | N10: C+ | O10: 11.8 | P10: 20.3 | Q10: 35175 | R10: 15.4 | S10: 53826 | T10: 31.67 | U10: C+ | V10: 11780 | W10: 30.22 | X10: Dist- | Y10: 20123 | Z10: 34.43 | AA10: Dist | AB10: 60
A11: ALL | B11: 4-Region | C11: South West | D11: NULL | E11: NULL | F11: NULL | G11: 39404 | H11: 31.45 | I11: 28046 | J11: 30.72 | K11: C | L11: 18712 | M11: 33.67 | N11: C+ | O11: 11 | P11: 19.2 | Q11: 18581 | R11: 14.4 | S11: 28334 | T11: 30.95 | U11: C | V11: 6878 | W11: 30.04 | X11: Dist- | Y11: 11091 | Z11: 34.39 | AA11: Dist | AB11: 10
A12: ALL | B12: 4-Region | C12: West Midlands | D12: NULL | E12: NULL | F12: NULL | G12: 44037 | H12: 30.98 | I12: 29653 | J12: 29.7 | K12: C | L12: 18960 | M12: 33.37 | N12: C+ | O12: 9.2 | P12: 16.9 | Q12: 18739 | R12: 12.6 | S12: 29878 | T12: 29.79 | U12: C | V12: 8120 | W12: 30.33 | X12: Dist- | Y12: 15470 | Z12: 34.76 | AA12: Dist | AB12: 36
A13: ALL | B13: 4-Region | C13: Yorkshire and the Humber | D13: NULL | E13: NULL | F13: NULL | G13: 38746 | H13: 31.19 | I13: 26580 | J13: 29.55 | K13: C | L13: 16397 | M13: 33.41 | N13: C+ | O13: 9.9 | P13: 17.5 | Q13: 16188 | R13: 12.9 | S13: 26751 | T13: 29.62 | U13: C | V13: 7384 | W13: 30.81 | X13: Dist- | Y13: 13655 | Z13: 36 | AA13: Dist | AB13: 23
A14: ALL | B14: 4-London | C14: NULL | D14: LONDON | E14: NULL | F14: NULL | G14: 64030 | H14: 31.2 | I14: 47637 | J14: 30.46 | K14: C | L14: 32224 | M14: 33.7 | N14: C+ | O14: 10.4 | P14: 18.3 | Q14: 32057 | R14: 14.6 | S14: 48082 | T14: 30.57 | U14: C | V14: 7508 | W14: 31.52 | X14: Dist- | Y14: 18717 | Z14: 33.31 | AA14: Dist- | AB14: x
A15: ALL | B15: 4 | C15: East Midlands | D15: NULL | E15: 831 | F15: Derby | G15: 1992 | H15: 30.54 | I15: 1222 | J15: 28.59 | K15: C | L15: 795 | M15: 31.32 | N15: C | O15: 8.2 | P15: 14.6 | Q15: 782 | R15: 10.9 | S15: 1222 | T15: 28.67 | U15: C | V15: 463 | W15: 30.34 | X15: Dist- | Y15: 588 | Z15: 35.93 | AA15: Dist | AB15: 0
A16: ALL | B16: 4 | C16: East Midlands | D16: NULL | E16: 830 | F16: Derbyshire | G16: 3647 | H16: 29.46 | I16: 2880 | J16: 29.25 | K16: C | L16: 2040 | M16: 32.39 | N16: C+ | O16: 8.9 | P16: 16.6 | Q16: 2029 | R16: 13.4 | S16: 2895 | T16: 29.33 | U16: C | V16: 497 | W16: 26.87 | X16: Merit+ | Y16: 781 | Z16: 32.39 | AA16: Dist- | AB16: x
A17: ALL | B17: 4 | C17: East Midlands | D17: NULL | E17: 856 | F17: Leicester | G17: 2821 | H17: 28.85 | I17: 2031 | J17: 27.45 | K17: C- | L17: 1390 | M17: 30.7 | N17: C | O17: 7.8 | P17: 13.3 | Q17: 1376 | R17: 8.9 | S17: 2055 | T17: 27.51 | U17: C- | V17: 435 | W17: 30.24 | X17: Dist- | Y17: 1112 | Z17: 32.69 | AA17: Dist- | AB17: 0
A18: ALL | B18: 4 | C18: East Midlands | D18: NULL | E18: 855 | F18: Leicestershire | G18: 4663 | H18: 29.5 | I18: 3626 | J18: 28.51 | K18: C | L18: 2449 | M18: 32.43 | N18: C+ | O18: 8.2 | P18: 15.3 | Q18: 2432 | R18: 11.3 | S18: 3634 | T18: 28.59 | U18: C | V18: 620 | W18: 31.95 | X18: Dist- | Y18: 1146 | Z18: 32.82 | AA18: Dist- | AB18: x
A19: ALL | B19: 4 | C19: East Midlands | D19: NULL | E19: 925 | F19: Lincolnshire | G19: 5702 | H19: 31.73 | I19: 4027 | J19: 30.89 | K19: C | L19: 2592 | M19: 34.43 | N19: C+ | O19: 11.5 | P19: 20.3 | Q19: 2585 | R19: 16.2 | S19: 4034 | T19: 31.05 | U19: C | V19: 970 | W19: 31.18 | X19: Dist- | Y19: 1943 | Z19: 34.26 | AA19: Dist | AB19: x
A20: ALL | B20: 4 | C20: East Midlands | D20: NULL | E20: 928 | F20: Northamptonshire | G20: 5311 | H20: 29.4 | I20: 3640 | J20: 28.09 | K20: C- | L20: 2300 | M20: 31.8 | N20: C+ | O20: 7.5 | P20: 14 | Q20: 2282 | R20: 10.4 | S20: 3646 | T20: 28.18 | U20: C- | V20: 977 | W20: 29.9 | X20: Merit+ | Y20: 1762 | Z20: 32.86 | AA20: Dist- | AB20: 11
A21: ALL | B21: 4 | C21: East Midlands | D21: NULL | E21: 892 | F21: Nottingham | G21: 2639 | H21: 29.39 | I21: 2009 | J21: 27.9 | K21: C- | L21: 1246 | M21: 32.62 | N21: C+ | O21: 9.5 | P21: 16.4 | Q21: 1246 | R21: 11.9 | S21: 2057 | T21: 28.42 | U21: C | V21: 344 | W21: 28.12 | X21: Merit+ | Y21: 632 | Z21: 34.67 | AA21: Dist | AB21: 0
A22: ALL | B22: 4 | C22: East Midlands | D22: NULL | E22: 891 | F22: Nottinghamshire | G22: 4857 | H22: 30.37 | I22: 3454 | J22: 30.36 | K22: C | L22: 2224 | M22: 33.94 | N22: C+ | O22: 9.6 | P22: 18.4 | Q22: 2212 | R22: 14.1 | S22: 3456 | T22: 30.47 | U22: C | V22: 984 | W22: 26.6 | X22: Merit | Y22: 1264 | Z22: 33.57 | AA22: Dist | AB22: 6
A23: ALL | B23: 4 | C23: East Midlands | D23: NULL | E23: 857 | F23: Rutland | G23: 123 | H23: 31.23 | I23: 108 | J23: 30.02 | K23: C | L23: 85 | M23: 30.71 | N23: C | O23: 4.7 | P23: 11.8 | Q23: 85 | R23: 0 | S23: 108 | T23: 30.46 | U23: C | V23: 0 | W23: 0 | X23: U | Y23: 22 | Z23: 36.07 | AA23: Dist | AB23: 0
A24: ALL | B24: 4 | C24: East of England | D24: NULL | E24: 822 | F24: Bedford | G24: 1850 | H24: 30.17 | I24: 1151 | J24: 27.79 | K24: C- | L24: 660 | M24: 31.43 | N24: C | O24: 7.6 | P24: 14.7 | Q24: 657 | R24: 12.2 | S24: 1156 | T24: 27.93 | U24: C- | V24: 582 | W24: 30.75 | X24: Dist- | Y24: 576 | Z24: 36.1 | AA24: Dist | AB24: 0
A25: ALL | B25: 4 | C25: East of England | D25: NULL | E25: 873 | F25: Cambridgeshire | G25: 4437 | H25: 32.99 | I25: 3409 | J25: 33.11 | K25: C+ | L25: 2490 | M25: 36.61 | N25: B- | O25: 15.5 | P25: 25.6 | Q25: 2478 | R25: 19 | S25: 3540 | T25: 33.35 | U25: C+ | V25: 521 | W25: 28.5 | X25: Merit+ | Y25: 997 | Z25: 33.45 | AA25: Dist | AB25: x
A26: ALL | B26: 4 | C26: East of England | D26: NULL | E26: 823 | F26: Central Bedfordshire | G26: 1565 | H26: 30.16 | I26: 1341 | J26: 28.97 | K26: C | L26: 859 | M26: 32.75 | N26: C+ | O26: 7.2 | P26: 14.8 | Q26: 850 | R26: 10 | S26: 1352 | T26: 29.03 | U26: C | V26: 128 | W26: 33.39 | X26: Dist | Y26: 568 | Z26: 34.75 | AA26: Dist | AB26: 3
A27: ALL | B27: 4 | C27: East of England | D27: NULL | E27: 881 | F27: Essex | G27: 9947 | H27: 30.84 | I27: 7071 | J27: 29.73 | K27: C | L27: 5038 | M27: 33.01 | N27: C+ | O27: 10.6 | P27: 18.1 | Q27: 4989 | R27: 13 | S27: 7197 | T27: 30.08 | U27: C | V27: 1611 | W27: 31.01 | X27: Dist- | Y27: 2851 | Z27: 34.1 | AA27: Dist | AB27: 0
A28: ALL | B28: 4 | C28: East of England | D28: NULL | E28: 919 | F28: Hertfordshire | G28: 10553 | H28: 33.1 | I28: 7816 | J28: 33.23 | K28: C+ | L28: 5859 | M28: 35.87 | N28: B- | O28: 12.5 | P28: 22.7 | Q28: 5827 | R28: 17.6 | S28: 7946 | T28: 33.56 | U28: C+ | V28: 1455 | W28: 30.42 | X28: Dist- | Y28: 2785 | Z28: 32.76 | AA28: Dist- | AB28: 3
A29: ALL | B29: 4 | C29: East of England | D29: NULL | E29: 821 | F29: Luton | G29: 1684 | H29: 30.15 | I29: 1241 | J29: 27.14 | K29: C- | L29: 694 | M29: 30.9 | N29: C | O29: 5.6 | P29: 13.5 | Q29: 689 | R29: 8 | S29: 1247 | T29: 27.33 | U29: C- | V29: 319 | W29: 33.02 | X29: Dist- | Y29: 712 | Z29: 36.45 | AA29: Dist | AB29: 0
A30: ALL | B30: 4 | C30: East of England | D30: NULL | E30: 926 | F30: Norfolk | G30: 5768 | H30: 30.06 | I30: 3976 | J30: 29.24 | K30: C | L30: 2684 | M30: 32.63 | N30: C+ | O30: 8.3 | P30: 15.6 | Q30: 2673 | R30: 11.2 | S30: 3978 | T30: 29.33 | U30: C | V30: 1177 | W30: 29.89 | X30: Merit+ | Y30: 1523 | Z30: 33.11 | AA30: Dist- | AB30: 0
A31: ALL | B31: 4 | C31: East of England | D31: NULL | E31: 874 | F31: Peterborough | G31: 1624 | H31: 29.61 | I31: 1160 | J31: 29.08 | K31: C | L31: 728 | M31: 33.09 | N31: C+ | O31: 11.5 | P31: 19 | Q31: 719 | R31: 15.3 | S31: 1164 | T31: 29.16 | U31: C | V31: 280 | W31: 27.79 | X31: Merit+ | Y31: 564 | Z31: 32.2 | AA31: Dist- | AB31: x
A32: ALL | B32: 4 | C32: East of England | D32: NULL | E32: 882 | F32: Southend-on-Sea | G32: 2971 | H32: 31.72 | I32: 1471 | J32: 32.64 | K32: C+ | L32: 1088 | M32: 35.95 | N32: B- | O32: 13.6 | P32: 22.2 | Q32: 1087 | R32: 16.5 | S32: 1471 | T32: 32.81 | U32: C+ | V32: 659 | W32: 29.4 | X32: Merit+ | Y32: 1123 | Z32: 30.91 | AA32: Dist- | AB32: 0
A33: ALL | B33: 4 | C33: East of England | D33: NULL | E33: 935 | F33: Suffolk | G33: 4887 | H33: 31.41 | I33: 3315 | J33: 30.35 | K33: C | L33: 2347 | M33: 33.04 | N33: C+ | O33: 8.3 | P33: 15.4 | Q33: 2326 | R33: 11.1 | S33: 3326 | T33: 30.44 | U33: C | V33: 761 | W33: 31.21 | X33: Dist- | Y33: 1553 | Z33: 34.7 | AA33: Dist | AB33: x
A34: ALL | B34: 4 | C34: East of England | D34: NULL | E34: 883 | F34: Thurrock | G34: 1143 | H34: 29.27 | I34: 858 | J34: 26.52 | K34: C- | L34: 532 | M34: 29.41 | N34: C | O34: 3.6 | P34: 9 | Q34: 524 | R34: 5.2 | S34: 862 | T34: 26.63 | U34: C- | V34: 112 | W34: 31.45 | X34: Dist- | Y34: 435 | Z34: 35.02 | AA34: Dist | AB34: x
A35: ALL | B35: 4 | C35: Inner London | D35: LONDON | E35: 202 | F35: Camden | G35: 1929 | H35: 29.07 | I35: 1292 | J35: 28.81 | K35: C | L35: 914 | M35: 31.03 | N35: C | O35: 6.6 | P35: 13.7 | Q35: 887 | R35: 10.9 | S35: 1295 | T35: 28.8 | U35: C | V35: 160 | W35: 28.65 | X35: Merit+ | Y35: 651 | Z35: 29.92 | AA35: Merit+ | AB35: 0
A36: ALL | B36: 4 | C36: Inner London | D36: LONDON | E36: 204 | F36: Hackney | G36: 1762 | H36: 29.91 | I36: 1181 | J36: 29.35 | K36: C | L36: 777 | M36: 32.98 | N36: C+ | O36: 7.5 | P36: 16.2 | Q36: 774 | R36: 12.7 | S36: 1200 | T36: 29.44 | U36: C | V36: 133 | W36: 31.25 | X36: Dist- | Y36: 621 | Z36: 30.82 | AA36: Dist- | AB36: x
A37: ALL | B37: 4 | C37: Inner London | D37: LONDON | E37: 205 | F37: Hammersmith and Fulham | G37: 1483 | H37: 29.1 | I37: 1088 | J37: 29.29 | K37: C | L37: 684 | M37: 31.79 | N37: C+ | O37: 10.1 | P37: 18.3 | Q37: 679 | R37: 16.5 | S37: 1090 | T37: 29.43 | U37: C | V37: 160 | W37: 26.7 | X37: Merit+ | Y37: 429 | Z37: 29.09 | AA37: Merit+ | AB37: 0
A38: ALL | B38: 4 | C38: Inner London | D38: LONDON | E38: 309 | F38: Haringey | G38: 1361 | H38: 31.99 | I38: 988 | J38: 32.27 | K38: C+ | L38: 618 | M38: 36.56 | N38: B- | O38: 15 | P38: 23.1 | Q38: 609 | R38: 17.1 | S38: 988 | T38: 32.32 | U38: C+ | V38: 183 | W38: 28.13 | X38: Merit+ | Y38: 474 | Z38: 32.47 | AA38: Dist- | AB38: 0
A39: ALL | B39: 4 | C39: Inner London | D39: LONDON | E39: 206 | F39: Islington | G39: 2200 | H39: 28.4 | I39: 1245 | J39: 26.34 | K39: C- | L39: 856 | M39: 28.56 | N39: C | O39: 2.9 | P39: 6.8 | Q39: 856 | R39: 4.6 | S39: 1300 | T39: 26.91 | U39: C- | V39: 403 | W39: 31.39 | X39: Dist- | Y39: 653 | Z39: 29.93 | AA39: Merit+ | AB39: 0
A40: ALL | B40: 4 | C40: Inner London | D40: LONDON | E40: 207 | F40: Kensington and Chelsea | G40: 930 | H40: 32.87 | I40: 797 | J40: 32.26 | K40: C+ | L40: 558 | M40: 35.42 | N40: B- | O40: 14.7 | P40: 24.2 | Q40: 558 | R40: 21.3 | S40: 797 | T40: 32.33 | U40: C+ | V40: 80 | W40: 33.62 | X40: Dist | Y40: 170 | Z40: 36.07 | AA40: Dist | AB40: 0
A41: ALL | B41: 4 | C41: Inner London | D41: LONDON | E41: 208 | F41: Lambeth | G41: 1181 | H41: 31.72 | I41: 812 | J41: 31.57 | K41: C | L41: 511 | M41: 33.97 | N41: C+ | O41: 12.1 | P41: 19.4 | Q41: 511 | R41: 18.2 | S41: 815 | T41: 31.68 | U41: C+ | V41: 189 | W41: 29.61 | X41: Merit+ | Y41: 431 | Z41: 32.82 | AA41: Dist- | AB41: 0
A42: ALL | B42: 4 | C42: Inner London | D42: LONDON | E42: 209 | F42: Lewisham | G42: 2197 | H42: 26.86 | I42: 1589 | J42: 24.47 | K42: D+ | L42: 1090 | M42: 27.2 | N42: C- | O42: 2.8 | P42: 6.3 | Q42: 1083 | R42: 4.7 | S42: 1598 | T42: 24.53 | U42: D+ | V42: 131 | W42: 30.18 | X42: Dist- | Y42: 756 | Z42: 32.28 | AA42: Dist- | AB42: 0
A43: ALL | B43: 4 | C43: Inner London | D43: LONDON | E43: 316 | F43: Newham | G43: 1961 | H43: 32.23 | I43: 1296 | J43: 31.95 | K43: C+ | L43: 949 | M43: 34.9 | N43: C+ | O43: 10.6 | P43: 19.4 | Q43: 938 | R43: 15.8 | S43: 1316 | T43: 31.93 | U43: C+ | V43: 321 | W43: 33.45 | X43: Dist | Y43: 579 | Z43: 32.34 | AA43: Dist- | AB43: 0
A44: ALL | B44: 4 | C44: Inner London | D44: LONDON | E44: 210 | F44: Southwark | G44: 906 | H44: 33.27 | I44: 795 | J44: 31.93 | K44: C+ | L44: 496 | M44: 35.46 | N44: B- | O44: 8.5 | P44: 18.3 | Q44: 495 | R44: 12.5 | S44: 806 | T44: 31.86 | U44: C+ | V44: 56 | W44: 41.6 | X44: Dist+ | Y44: 256 | Z44: 37.38 | AA44: Dist+ | AB44: 0
A45: ALL | B45: 4 | C45: Inner London | D45: LONDON | E45: 211 | F45: Tower Hamlets | G45: 1856 | H45: 31.24 | I45: 1298 | J45: 28 | K45: C- | L45: 840 | M45: 30.58 | N45: C | O45: 4.4 | P45: 10.5 | Q45: 839 | R45: 7.7 | S45: 1356 | T45: 28.08 | U45: C- | V45: 155 | W45: 33.81 | X45: Dist | Y45: 661 | Z45: 37.65 | AA45: Dist+ | AB45: 0
A46: ALL | B46: 4 | C46: Inner London | D46: LONDON | E46: 212 | F46: Wandsworth | G46: 2311 | H46: 30.43 | I46: 1626 | J46: 29.33 | K46: C | L46: 1071 | M46: 32.55 | N46: C+ | O46: 8.2 | P46: 15.7 | Q46: 1069 | R46: 12.3 | S46: 1637 | T46: 29.61 | U46: C | V46: 193 | W46: 32.8 | X46: Dist- | Y46: 806 | Z46: 31.9 | AA46: Dist- | AB46: 0
A47: ALL | B47: 4 | C47: Inner London | D47: LONDON | E47: 213 | F47: Westminster | G47: 1901 | H47: 31.85 | I47: 1177 | J47: 31.36 | K47: C | L47: 799 | M47: 34.03 | N47: C+ | O47: 10.1 | P47: 19.6 | Q47: 793 | R47: 15.9 | S47: 1224 | T47: 31.86 | U47: C+ | V47: 312 | W47: 28.42 | X47: Merit+ | Y47: 566 | Z47: 34.02 | AA47: Dist | AB47: 0
A48: ALL | B48: 4 | C48: North East | D48: NULL | E48: 840 | F48: County Durham | G48: 2934 | H48: 33.01 | I48: 1864 | J48: 31.29 | K48: C | L48: 1036 | M48: 35.97 | N48: B- | O48: 12.6 | P48: 22.1 | Q48: 1017 | R48: 17 | S48: 1866 | T48: 31.41 | U48: C | V48: 804 | W48: 31.84 | X48: Dist- | Y48: 1084 | Z48: 37.83 | AA48: Dist+ | AB48: 4
A49: ALL | B49: 4 | C49: North East | D49: NULL | E49: 841 | F49: Darlington | G49: 1399 | H49: 31.79 | I49: 1085 | J49: 31.58 | K49: C | L49: 899 | M49: 32.91 | N49: C+ | O49: 9 | P49: 16 | Q49: 864 | R49: 9.7 | S49: 1087 | T49: 31.74 | U49: C+ | V49: 201 | W49: 31.3 | X49: Dist- | Y49: 243 | Z49: 32.72 | AA49: Dist- | AB49: 0
A50: ALL | B50: 4 | C50: North East | D50: NULL | E50: 390 | F50: Gateshead | G50: 1628 | H50: 33.62 | I50: 912 | J50: 31.18 | K50: C | L50: 527 | M50: 34 | N50: C+ | O50: 10.8 | P50: 17.8 | Q50: 516 | R50: 15.3 | S50: 925 | T50: 31.22 | U50: C | V50: 322 | W50: 33.5 | X50: Dist | Y50: 781 | Z50: 37.47 | AA50: Dist+ | AB50: 0
A51: ALL | B51: 4 | C51: North East | D51: NULL | E51: 805 | F51: Hartlepool | G51: 1006 | H51: 29.36 | I51: 554 | J51: 26.49 | K51: C- | L51: 313 | M51: 30.8 | N51: C | O51: 7 | P51: 14.1 | Q51: 312 | R51: 10.6 | S51: 554 | T51: 26.55 | U51: C- | V51: 310 | W51: 30.86 | X51: Dist- | Y51: 335 | Z51: 34.61 | AA51: Dist | AB51: 0
A52: ALL | B52: 4 | C52: North East | D52: NULL | E52: 806 | F52: Middlesbrough | G52: 1534 | H52: 31.41 | I52: 602 | J52: 27.4 | K52: C- | L52: 309 | M52: 30.94 | N52: C | O52: 4.2 | P52: 11 | Q52: 304 | R52: 7.9 | S52: 612 | T52: 27.44 | U52: C- | V52: 610 | W52: 30.91 | X52: Dist- | Y52: 524 | Z52: 37.07 | AA52: Dist+ | AB52: 0
A53: ALL | B53: 4 | C53: North East | D53: NULL | E53: 391 | F53: Newcastle upon Tyne | G53: 3303 | H53: 29.45 | I53: 1721 | J53: 28.12 | K53: C- | L53: 1078 | M53: 31.21 | N53: C | O53: 6.7 | P53: 13.8 | Q53: 1069 | R53: 9.8 | S53: 1756 | T53: 28.24 | U53: C- | V53: 958 | W53: 28.33 | X53: Merit+ | Y53: 1088 | Z53: 33.31 | AA53: Dist- | AB53: x
A54: ALL | B54: 4 | C54: North East | D54: NULL | E54: 392 | F54: North Tyneside | G54: 1390 | H54: 31.19 | I54: 989 | J54: 30.43 | K54: C | L54: 707 | M54: 31.64 | N54: C | O54: 7.8 | P54: 13.9 | Q54: 693 | R54: 12.3 | S54: 990 | T54: 30.51 | U54: C | V54: 276 | W54: 26.96 | X54: Merit+ | Y54: 317 | Z54: 38.11 | AA54: Dist+ | AB54: 0
A55: ALL | B55: 4 | C55: North East | D55: NULL | E55: 929 | F55: Northumberland | G55: 2092 | H55: 31.91 | I55: 1645 | J55: 30.15 | K55: C | L55: 904 | M55: 35.27 | N55: B- | O55: 11.4 | P55: 19.6 | Q55: 895 | R55: 14.7 | S55: 1651 | T55: 30.16 | U55: C | V55: 423 | W55: 30.98 | X55: Dist- | Y55: 754 | Z55: 39.79 | AA55: Dist+ | AB55: 0
A56: ALL | B56: 4 | C56: North East | D56: NULL | E56: 807 | F56: Redcar and Cleveland | G56: 821 | H56: 30.81 | I56: 608 | J56: 30.78 | K56: C | L56: 353 | M56: 32.52 | N56: C+ | O56: 7.1 | P56: 15.6 | Q56: 351 | R56: 10.5 | S56: 608 | T56: 30.77 | U56: C | V56: 192 | W56: 26.43 | X56: Merit | Y56: 225 | Z56: 35.81 | AA56: Dist | AB56: 0
A57: ALL | B57: 4 | C57: North East | D57: NULL | E57: 393 | F57: South Tyneside | G57: 616 | H57: 29.46 | I57: 390 | J57: 29.15 | K57: C | L57: 273 | M57: 32.44 | N57: C+ | O57: 8.4 | P57: 12.8 | Q57: 270 | R57: 10 | S57: 391 | T57: 29.15 | U57: C | V57: 155 | W57: 28.03 | X57: Merit+ | Y57: 138 | Z57: 32.4 | AA57: Dist- | AB57: 0
A58: ALL | B58: 4 | C58: North East | D58: NULL | E58: 808 | F58: Stockton-on-Tees | G58: 1091 | H58: 30.8 | I58: 802 | J58: 29.44 | K58: C | L58: 511 | M58: 31.84 | N58: C+ | O58: 6.7 | P58: 17 | Q58: 498 | R58: 12.9 | S58: 802 | T58: 29.52 | U58: C | V58: 204 | W58: 31.07 | X58: Dist- | Y58: 314 | Z58: 36.2 | AA58: Dist | AB58: 0
A59: ALL | B59: 4 | C59: North East | D59: NULL | E59: 394 | F59: Sunderland | G59: 1507 | H59: 29.99 | I59: 925 | J59: 27.19 | K59: C- | L59: 549 | M59: 31.55 | N59: C | O59: 7.3 | P59: 12.4 | Q59: 546 | R59: 10.1 | S59: 925 | T59: 27.23 | U59: C- | V59: 295 | W59: 34.52 | X59: Dist | Y59: 548 | Z59: 34.3 | AA59: Dist | AB59: 0
A60: ALL | B60: 4 | C60: North West | D60: NULL | E60: 889 | F60: Blackburn with Darwen | G60: 1480 | H60: 29.89 | I60: 832 | J60: 26.9 | K60: C- | L60: 491 | M60: 30.41 | N60: C | O60: 4.3 | P60: 10.4 | Q60: 491 | R60: 5.1 | S60: 847 | T60: 26.95 | U60: C- | V60: 278 | W60: 31.48 | X60: Dist- | Y60: 652 | Z60: 33.75 | AA60: Dist | AB60: x
A61: ALL | B61: 4 | C61: North West | D61: NULL | E61: 890 | F61: Blackpool | G61: 1756 | H61: 35.09 | I61: 1038 | J61: 29.89 | K61: C | L61: 427 | M61: 36.32 | N61: B- | O61: 8.4 | P61: 18.7 | Q61: 427 | R61: 9.8 | S61: 1062 | T61: 29.92 | U61: C | V61: 507 | W61: 37.1 | X61: Dist+ | Y61: 906 | Z61: 41.61 | AA61: Dist+ | AB61: 38
A62: ALL | B62: 4 | C62: North West | D62: NULL | E62: 350 | F62: Bolton | G62: 1731 | H62: 31.93 | I62: 1124 | J62: 29.12 | K62: C | L62: 645 | M62: 33.87 | N62: C+ | O62: 8.7 | P62: 16.1 | Q62: 642 | R62: 11.2 | S62: 1138 | T62: 29.06 | U62: C | V62: 358 | W62: 33.88 | X62: Dist | Y62: 665 | Z62: 37.51 | AA62: Dist+ | AB62: x
A63: ALL | B63: 4 | C63: North West | D63: NULL | E63: 351 | F63: Bury | G63: 2374 | H63: 30.23 | I63: 1599 | J63: 27.51 | K63: C- | L63: 1197 | M63: 30.68 | N63: C | O63: 5.7 | P63: 13.1 | Q63: 1197 | R63: 7.2 | S63: 1599 | T63: 27.64 | U63: C- | V63: 368 | W63: 31.25 | X63: Dist- | Y63: 630 | Z63: 37.45 | AA63: Dist+ | AB63: 0
A64: ALL | B64: 4 | C64: North West | D64: NULL | E64: 895 | F64: Cheshire East | G64: 3358 | H64: 31.3 | I64: 2108 | J64: 30.8 | K64: C | L64: 1545 | M64: 34.28 | N64: C+ | O64: 10.7 | P64: 18.8 | Q64: 1539 | R64: 14.1 | S64: 2135 | T64: 30.92 | U64: C | V64: 919 | W64: 29.49 | X64: Merit+ | Y64: 705 | Z64: 35.34 | AA64: Dist | AB64: x
A65: ALL | B65: 4 | C65: North West | D65: NULL | E65: 896 | F65: Cheshire West and Chester | G65: 3027 | H65: 31.13 | I65: 2341 | J65: 30.96 | K65: C | L65: 1744 | M65: 34.77 | N65: C+ | O65: 10.8 | P65: 19.7 | Q65: 1733 | R65: 13.3 | S65: 2345 | T65: 31.04 | U65: C | V65: 500 | W65: 29.49 | X65: Merit+ | Y65: 583 | Z65: 33.4 | AA65: Dist | AB65: 0
A66: ALL | B66: 4 | C66: North West | D66: NULL | E66: 909 | F66: Cumbria | G66: 3211 | H66: 31.27 | I66: 2489 | J66: 30.04 | K66: C | L66: 1655 | M66: 33.41 | N66: C+ | O66: 11.8 | P66: 18.7 | Q66: 1632 | R66: 14.6 | S66: 2540 | T66: 30.24 | U66: C | V66: 446 | W66: 32.02 | X66: Dist- | Y66: 929 | Z66: 35.78 | AA66: Dist | AB66: 7
A67: ALL | B67: 4 | C67: North West | D67: NULL | E67: 876 | F67: Halton | G67: 871 | H67: 34.29 | I67: 427 | J67: 28.04 | K67: C- | L67: 259 | M67: 31.79 | N67: C+ | O67: 6.2 | P67: 12 | Q67: 255 | R67: 8.6 | S67: 427 | T67: 28.05 | U67: C- | V67: 254 | W67: 39.71 | X67: Dist+ | Y67: 295 | Z67: 40.2 | AA67: Dist+ | AB67: 0
A68: ALL | B68: 4 | C68: North West | D68: NULL | E68: 340 | F68: Knowsley | G68: 431 | H68: 28.35 | I68: 93 | J68: 16.44 | K68: D- | L68: 19 | M68: 22.11 | N68: D+ | O68: 0 | P68: 0 | Q68: 19 | R68: 0 | S68: 96 | T68: 16.44 | U68: D- | V68: 105 | W68: 28.7 | X68: Merit+ | Y68: 268 | Z68: 31.49 | AA68: Dist- | AB68: 0
A69: ALL | B69: 4 | C69: North West | D69: NULL | E69: 888 | F69: Lancashire | G69: 8360 | H69: 33.9 | I69: 5552 | J69: 32.49 | K69: C+ | L69: 3992 | M69: 36.32 | N69: B- | O69: 14.4 | P69: 23.8 | Q69: 3985 | R69: 16.2 | S69: 5586 | T69: 32.6 | U69: C+ | V69: 1509 | W69: 35.61 | X69: Dist | Y69: 2371 | Z69: 36.93 | AA69: Dist+ | AB69: x
A70: ALL | B70: 4 | C70: North West | D70: NULL | E70: 341 | F70: Liverpool | G70: 3862 | H70: 29.46 | I70: 2613 | J70: 28.13 | K70: C- | L70: 1480 | M70: 32.34 | N70: C+ | O70: 9.2 | P70: 15.7 | Q70: 1451 | R70: 13.4 | S70: 2658 | T70: 28.2 | U70: C- | V70: 701 | W70: 28.01 | X70: Merit+ | Y70: 1484 | Z70: 33.59 | AA70: Dist | AB70: 4
A71: ALL | B71: 4 | C71: North West | D71: NULL | E71: 352 | F71: Manchester | G71: 4309 | H71: 31.42 | I71: 3171 | J71: 31.21 | K71: C | L71: 2452 | M71: 34.95 | N71: C+ | O71: 9.1 | P71: 17.7 | Q71: 2445 | R71: 11.5 | S71: 3181 | T71: 31.21 | U71: C | V71: 354 | W71: 30.66 | X71: Dist- | Y71: 1193 | Z71: 32.65 | AA71: Dist- | AB71: 0
A72: ALL | B72: 4 | C72: North West | D72: NULL | E72: 353 | F72: Oldham | G72: 1829 | H72: 31.34 | I72: 1289 | J72: 29.8 | K72: C | L72: 931 | M72: 34.31 | N72: C+ | O72: 9 | P72: 16.1 | Q72: 927 | R72: 10.6 | S72: 1290 | T72: 29.85 | U72: C | V72: 249 | W72: 33.07 | X72: Dist- | Y72: 600 | Z72: 35.28 | AA72: Dist | AB72: 0
A73: ALL | B73: 4 | C73: North West | D73: NULL | E73: 354 | F73: Rochdale | G73: 1367 | H73: 31.9 | I73: 852 | J73: 30.76 | K73: C | L73: 680 | M73: 34.2 | N73: C+ | O73: 6.5 | P73: 15.7 | Q73: 658 | R73: 7.8 | S73: 852 | T73: 30.85 | U73: C | V73: 321 | W73: 31.66 | X73: Dist- | Y73: 312 | Z73: 36.95 | AA73: Dist+ | AB73: 0
A74: ALL | B74: 4 | C74: North West | D74: NULL | E74: 355 | F74: Salford | G74: 1813 | H74: 31.77 | I74: 640 | J74: 26.99 | K74: C- | L74: 399 | M74: 31.01 | N74: C | O74: 3.3 | P74: 7.5 | Q74: 397 | R74: 3 | S74: 640 | T74: 26.99 | U74: C- | V74: 558 | W74: 31.41 | X74: Dist- | Y74: 810 | Z74: 36.23 | AA74: Dist | AB74: 0
A75: ALL | B75: 4 | C75: North West | D75: NULL | E75: 343 | F75: Sefton | G75: 2041 | H75: 30.94 | I75: 1489 | J75: 28 | K75: C- | L75: 787 | M75: 32.99 | N75: C+ | O75: 7.9 | P75: 14.2 | Q75: 772 | R75: 10.2 | S75: 1497 | T75: 28.09 | U75: C- | V75: 403 | W75: 31.4 | X75: Dist- | Y75: 780 | Z75: 38.72 | AA75: Dist+ | AB75: 0
A76: ALL | B76: 4 | C76: North West | D76: NULL | E76: 342 | F76: St. Helens | G76: 1599 | H76: 32.73 | I76: 1241 | J76: 30.32 | K76: C | L76: 801 | M76: 33.96 | N76: C+ | O76: 8.4 | P76: 16 | Q76: 798 | R76: 10.2 | S76: 1248 | T76: 30.43 | U76: C | V76: 228 | W76: 35.25 | X76: Dist | Y76: 490 | Z76: 39.69 | AA76: Dist+ | AB76: x
A77: ALL | B77: 4 | C77: North West | D77: NULL | E77: 356 | F77: Stockport | G77: 1999 | H77: 32.41 | I77: 1512 | J77: 30.42 | K77: C | L77: 872 | M77: 34.22 | N77: C+ | O77: 10.2 | P77: 19.6 | Q77: 865 | R77: 11.3 | S77: 1512 | T77: 30.55 | U77: C | V77: 387 | W77: 37.27 | X77: Dist+ | Y77: 722 | Z77: 35.93 | AA77: Dist | AB77: x
A78: ALL | B78: 4 | C78: North West | D78: NULL | E78: 357 | F78: Tameside | G78: 1410 | H78: 29.57 | I78: 919 | J78: 27.13 | K78: C- | L78: 628 | M78: 31.4 | N78: C | O78: 5.6 | P78: 10.7 | Q78: 627 | R78: 7.5 | S78: 919 | T78: 27.16 | U78: C- | V78: 297 | W78: 32.03 | X78: Dist- | Y78: 384 | Z78: 36.61 | AA78: Dist | AB78: x
A79: ALL | B79: 4 | C79: North West | D79: NULL | E79: 358 | F79: Trafford | G79: 1967 | H79: 34.77 | I79: 1413 | J79: 35.92 | K79: B- | L79: 1205 | M79: 39.51 | N79: B | O79: 25 | P79: 36.1 | Q79: 1205 | R79: 28.5 | S79: 1420 | T79: 36.05 | U79: B- | V79: 352 | W79: 28.57 | X79: Merit+ | Y79: 333 | Z79: 31.96 | AA79: Dist- | AB79: x
A80: ALL | B80: 4 | C80: North West | D80: NULL | E80: 877 | F80: Warrington | G80: 1672 | H80: 30.4 | I80: 1233 | J80: 28.08 | K80: C- | L80: 704 | M80: 31.36 | N80: C | O80: 6.5 | P80: 13.5 | Q80: 694 | R80: 9.7 | S80: 1252 | T80: 28.19 | U80: C- | V80: 353 | W80: 34.12 | X80: Dist | Y80: 537 | Z80: 34.54 | AA80: Dist | AB80: 0
A81: ALL | B81: 4 | C81: North West | D81: NULL | E81: 359 | F81: Wigan | G81: 2384 | H81: 34.19 | I81: 1762 | J81: 33.39 | K81: C+ | L81: 1318 | M81: 36.63 | N81: B- | O81: 12.8 | P81: 21.9 | Q81: 1318 | R81: 13.4 | S81: 1771 | T81: 33.49 | U81: C+ | V81: 437 | W81: 34.13 | X81: Dist | Y81: 525 | Z81: 37.69 | AA81: Dist+ | AB81: 4
A82: ALL | B82: 4 | C82: North West | D82: NULL | E82: 344 | F82: Wirral | G82: 2465 | H82: 32.35 | I82: 2168 | J82: 31.41 | K82: C | L82: 1412 | M82: 35.46 | N82: B- | O82: 12.7 | P82: 21 | Q82: 1397 | R82: 15.1 | S82: 2176 | T82: 31.55 | U82: C | V82: 176 | W82: 29.69 | X82: Merit+ | Y82: 798 | Z82: 37.06 | AA82: Dist+ | AB82: 0
A83: ALL | B83: 4 | C83: Outer London | D83: LONDON | E83: 301 | F83: Barking and Dagenham | G83: 1638 | H83: 29.82 | I83: 952 | J83: 28.81 | K83: C | L83: 539 | M83: 31.97 | N83: C+ | O83: 3.7 | P83: 10.8 | Q83: 537 | R83: 7.3 | S83: 963 | T83: 28.9 | U83: C | V83: 346 | W83: 28.36 | X83: Merit+ | Y83: 631 | Z83: 32.72 | AA83: Dist- | AB83: x
A84: ALL | B84: 4 | C84: Outer London | D84: LONDON | E84: 302 | F84: Barnet | G84: 3497 | H84: 33.72 | I84: 3065 | J84: 34.04 | K84: C+ | L84: 2474 | M84: 36.48 | N84: B- | O84: 16.4 | P84: 25.7 | Q84: 2469 | R84: 22.1 | S84: 3067 | T84: 34.1 | U84: C+ | V84: 188 | W84: 29.44 | X84: Merit+ | Y84: 499 | Z84: 30.94 | AA84: Dist- | AB84: 0
A85: ALL | B85: 4 | C85: Outer London | D85: LONDON | E85: 303 | F85: Bexley | G85: 1764 | H85: 32.31 | I85: 1498 | J85: 31.03 | K85: C | L85: 1014 | M85: 34.55 | N85: C+ | O85: 10.2 | P85: 19.2 | Q85: 1013 | R85: 13.2 | S85: 1559 | T85: 31.49 | U85: C | V85: 139 | W85: 33.58 | X85: Dist | Y85: 480 | Z85: 36.53 | AA85: Dist | AB85: 0
A86: ALL | B86: 4 | C86: Outer London | D86: LONDON | E86: 304 | F86: Brent | G86: 1793 | H86: 31.29 | I86: 1544 | J86: 30.73 | K86: C | L86: 1014 | M86: 34.92 | N86: C+ | O86: 12 | P86: 22.6 | Q86: 1006 | R86: 17.1 | S86: 1545 | T86: 30.82 | U86: C | V86: 99 | W86: 34.25 | X86: Dist | Y86: 391 | Z86: 33.32 | AA86: Dist- | AB86: 0
A87: ALL | B87: 4 | C87: Outer London | D87: LONDON | E87: 305 | F87: Bromley | G87: 3356 | H87: 32.84 | I87: 2670 | J87: 32.69 | K87: C+ | L87: 1787 | M87: 36.35 | N87: B- | O87: 15.2 | P87: 24.5 | Q87: 1782 | R87: 19.3 | S87: 2683 | T87: 32.74 | U87: C+ | V87: 392 | W87: 30.02 | X87: Dist- | Y87: 982 | Z87: 34.58 | AA87: Dist | AB87: x
A88: ALL | B88: 4 | C88: Outer London | D88: LONDON | E88: 306 | F88: Croydon | G88: 2787 | H88: 32.4 | I88: 1770 | J88: 27.75 | K88: C- | L88: 884 | M88: 31.17 | N88: C | O88: 4.5 | P88: 11.7 | Q88: 881 | R88: 8.5 | S88: 1792 | T88: 27.79 | U88: C- | V88: 511 | W88: 37.51 | X88: Dist+ | Y88: 1319 | Z88: 37.01 | AA88: Dist+ | AB88: 0
A89: ALL | B89: 4 | C89: Outer London | D89: LONDON | E89: 307 | F89: Ealing | G89: 1926 | H89: 32.74 | I89: 1692 | J89: 31.71 | K89: C+ | L89: 1242 | M89: 34.6 | N89: C+ | O89: 10.2 | P89: 18.2 | Q89: 1228 | R89: 14.1 | S89: 1695 | T89: 31.78 | U89: C+ | V89: 80 | W89: 33.32 | X89: Dist- | Y89: 378 | Z89: 38.25 | AA89: Dist+ | AB89: 0
A90: ALL | B90: 4 | C90: Outer London | D90: LONDON | E90: 308 | F90: Enfield | G90: 2074 | H90: 31.78 | I90: 1793 | J90: 30.35 | K90: C | L90: 1165 | M90: 33.8 | N90: C+ | O90: 11.7 | P90: 18.4 | Q90: 1157 | R90: 15.5 | S90: 1796 | T90: 30.36 | U90: C | V90: 220 | W90: 34.97 | X90: Dist | Y90: 519 | Z90: 37.77 | AA90: Dist+ | AB90: x
A91: ALL | B91: 4 | C91: Outer London | D91: LONDON | E91: 203 | F91: Greenwich | G91: 1406 | H91: 29.63 | I91: 1109 | J91: 26.9 | K91: C- | L91: 572 | M91: 30.4 | N91: C | O91: 3.7 | P91: 8.6 | Q91: 568 | R91: 5.5 | S91: 1141 | T91: 26.97 | U91: C- | V91: 170 | W91: 35.6 | X91: Dist | Y91: 548 | Z91: 34.77 | AA91: Dist | AB91: 0
A92: ALL | B92: 4 | C92: Outer London | D92: LONDON | E92: 310 | F92: Harrow | G92: 2566 | H92: 31.56 | I92: 1840 | J92: 30.67 | K92: C | L92: 1356 | M92: 35.28 | N92: B- | O92: 11.5 | P92: 20.4 | Q92: 1356 | R92: 15 | S92: 1846 | T92: 30.76 | U92: C | V92: 218 | W92: 35.78 | X92: Dist | Y92: 792 | Z92: 32.8 | AA92: Dist- | AB92: 0
A93: ALL | B93: 4 | C93: Outer London | D93: LONDON | E93: 311 | F93: Havering | G93: 2388 | H93: 27.75 | I93: 1767 | J93: 27.48 | K93: C- | L93: 1216 | M93: 29.15 | N93: C | O93: 6 | P93: 10.9 | Q93: 1207 | R93: 7 | S93: 1767 | T93: 27.55 | U93: C- | V93: 397 | W93: 28.42 | X93: Merit+ | Y93: 658 | Z93: 28.14 | AA93: Merit+ | AB93: 0
A94: ALL | B94: 4 | C94: Outer London | D94: LONDON | E94: 312 | F94: Hillingdon | G94: 2890 | H94: 29.62 | I94: 1932 | J94: 28.11 | K94: C- | L94: 1194 | M94: 32.15 | N94: C+ | O94: 6.5 | P94: 12.7 | Q94: 1181 | R94: 9.8 | S94: 1934 | T94: 28.23 | U94: C- | V94: 651 | W94: 31.12 | X94: Dist- | Y94: 862 | Z94: 32.4 | AA94: Dist- | AB94: 0
A95: ALL | B95: 4 | C95: Outer London | D95: LONDON | E95: 313 | F95: Hounslow | G95: 2068 | H95: 30.89 | I95: 1645 | J95: 30.19 | K95: C | L95: 1091 | M95: 33.94 | N95: C+ | O95: 7.7 | P95: 15.1 | Q95: 1082 | R95: 12 | S95: 1646 | T95: 30.24 | U95: C | V95: 146 | W95: 32.29 | X95: Dist- | Y95: 628 | Z95: 33.04 | AA95: Dist- | AB95: 0
A96: ALL | B96: 4 | C96: Outer London | D96: LONDON | E96: 314 | F96: Kingston upon Thames | G96: 1851 | H96: 33.3 | I96: 1230 | J96: 34.76 | K96: C+ | L96: 924 | M96: 37.27 | N96: B- | O96: 22 | P96: 30.8 | Q96: 922 | R96: 28.7 | S96: 1230 | T96: 34.9 | U96: C+ | V96: 363 | W96: 29.43 | X96: Merit+ | Y96: 399 | Z96: 29.7 | AA96: Merit+ | AB96: 0
A97: ALL | B97: 4 | C97: Outer London | D97: LONDON | E97: 315 | F97: Merton | G97: 696 | H97: 32.19 | I97: 641 | J97: 30.22 | K97: C | L97: 376 | M97: 33.87 | N97: C+ | O97: 6.6 | P97: 14.9 | Q97: 374 | R97: 12.8 | S97: 641 | T97: 30.29 | U97: C | V97: 41 | W97: 36.5 | X97: Dist | Y97: 218 | Z97: 40 | AA97: Dist+ | AB97: 0
A98: ALL | B98: 4 | C98: Outer London | D98: LONDON | E98: 317 | F98: Redbridge | G98: 3019 | H98: 31.36 | I98: 2681 | J98: 30.81 | K98: C | L98: 2040 | M98: 34.01 | N98: C+ | O98: 10.5 | P98: 17.8 | Q98: 2032 | R98: 14.9 | S98: 2683 | T98: 30.84 | U98: C | V98: 182 | W98: 28.59 | X98: Merit+ | Y98: 503 | Z98: 36.78 | AA98: Dist+ | AB98: 0
A99: ALL | B99: 4 | C99: Outer London | D99: LONDON | E99: 318 | F99: Richmond upon Thames | G99: 1351 | H99: 28.24 | I99: 961 | J99: 27.46 | K99: C- | L99: 629 | M99: 31.01 | N99: C | O99: 8.6 | P99: 13.2 | Q99: 629 | R99: 11 | S99: 994 | T99: 27.83 | U99: C- | V99: 190 | W99: 30.92 | X99: Dist- | Y99: 322 | Z99: 28.09 | AA99: Merit+ | AB99: 0
A100: ALL | B100: 4 | C100: Outer London | D100: LONDON | E100: 319 | F100: Sutton | G100: 2290 | H100: 37.46 | I100: 2029 | J100: 37.6 | K100: B- | L100: 1545 | M100: 40.63 | N100: B | O100: 23.1 | P100: 36.6 | Q100: 1544 | R100: 30.6 | S100: 2030 | T100: 37.75 | U100: B- | V100: 215 | W100: 33.56 | X100: Dist | Y100: 484 | Z100: 36.74 | AA100: Dist+ | AB100: x
A101: ALL | B101: 4 | C101: Outer London | D101: LONDON | E101: 320 | F101: Waltham Forest | G101: 2692 | H101: 28.26 | I101: 1634 | J101: 26.05 | K101: C- | L101: 999 | M101: 30.19 | N101: C | O101: 4.3 | P101: 8.7 | Q101: 998 | R101: 5.2 | S101: 1648 | T101: 26.08 | U101: C- | V101: 484 | W101: 30.34 | X101: Dist- | Y101: 1051 | Z101: 31.57 | AA101: Dist- | AB101: x
A102: ALL | B102: 4 | C102: South East | D102: NULL | E102: 867 | F102: Bracknell Forest | G102: 809 | H102: 31.07 | I102: 630 | J102: 29.16 | K102: C | L102: 366 | M102: 32.24 | N102: C+ | O102: 7.4 | P102: 16.7 | Q102: 363 | R102: 11.3 | S102: 631 | T102: 29.15 | U102: C | V102: 139 | W102: 32.78 | X102: Dist- | Y102: 238 | Z102: 37.43 | AA102: Dist+ | AB102: 0
A103: ALL | B103: 4 | C103: South East | D103: NULL | E103: 846 | F103: Brighton and Hove | G103: 2811 | H103: 33.95 | I103: 2167 | J103: 33.54 | K103: C+ | L103: 1521 | M103: 35.89 | N103: B- | O103: 15.1 | P103: 24.5 | Q103: 1518 | R103: 16.2 | S103: 2224 | T103: 34.05 | U103: C+ | V103: 276 | W103: 29.97 | X103: Merit+ | Y103: 786 | Z103: 34.79 | AA103: Dist | AB103: 0
A104: ALL | B104: 4 | C104: South East | D104: NULL | E104: 825 | F104: Buckinghamshire | G104: 4516 | H104: 35.83 | I104: 3774 | J104: 36.29 | K104: B- | L104: 2877 | M104: 39.1 | N104: B | O104: 21.2 | P104: 33.1 | Q104: 2853 | R104: 28.3 | S104: 3797 | T104: 36.45 | U104: B- | V104: 399 | W104: 32.68 | X104: Dist- | Y104: 943 | Z104: 33.4 | AA104: Dist | AB104: 0
A105: ALL | B105: 4 | C105: South East | D105: NULL | E105: 845 | F105: East Sussex | G105: 3520 | H105: 30.35 | I105: 2471 | J105: 28.55 | K105: C | L105: 1384 | M105: 30.19 | N105: C | O105: 6.7 | P105: 13.2 | Q105: 1355 | R105: 8.9 | S105: 2475 | T105: 28.63 | U105: C | V105: 781 | W105: 31.65 | X105: Dist- | Y105: 1093 | Z105: 35.16 | AA105: Dist | AB105: x
A106: ALL | B106: 4 | C106: South East | D106: NULL | E106: 850 | F106: Hampshire | G106: 13354 | H106: 32.17 | I106: 9924 | J106: 31.76 | K106: C+ | L106: 7165 | M106: 34.59 | N106: C+ | O106: 11 | P106: 19.7 | Q106: 7145 | R106: 13.8 | S106: 9962 | T106: 31.88 | U106: C+ | V106: 2501 | W106: 30.55 | X106: Dist- | Y106: 3016 | Z106: 35.34 | AA106: Dist | AB106: 29
A107: ALL | B107: 4 | C107: South East | D107: NULL | E107: 921 | F107: Isle of Wight | G107: 856 | H107: 28.64 | I107: 648 | J107: 26.4 | K107: C- | L107: 370 | M107: 30.17 | N107: C | O107: 6.2 | P107: 11.9 | Q107: 368 | R107: 8.2 | S107: 648 | T107: 26.48 | U107: C- | V107: 121 | W107: 32.37 | X107: Dist- | Y107: 268 | Z107: 33.68 | AA107: Dist | AB107: 0
A108: ALL | B108: 4 | C108: South East | D108: NULL | E108: 886 | F108: Kent | G108: 12314 | H108: 32.32 | I108: 8344 | J108: 30.79 | K108: C | L108: 5215 | M108: 34.89 | N108: C+ | O108: 12.4 | P108: 21.5 | Q108: 5150 | R108: 16.7 | S108: 9007 | T108: 32.06 | U108: C+ | V108: 2358 | W108: 29.73 | X108: Merit+ | Y108: 3854 | Z108: 35.11 | AA108: Dist | AB108: 20
A109: ALL | B109: 4 | C109: South East | D109: NULL | E109: 887 | F109: Medway | G109: 2476 | H109: 31.12 | I109: 1625 | J109: 29.2 | K109: C | L109: 944 | M109: 33.31 | N109: C+ | O109: 11 | P109: 17.6 | Q109: 933 | R109: 12.8 | S109: 1666 | T109: 30.1 | U109: C | V109: 555 | W109: 30.4 | X109: Dist- | Y109: 1093 | Z109: 34.31 | AA109: Dist | AB109: 0
A110: ALL | B110: 4 | C110: South East | D110: NULL | E110: 826 | F110: Milton Keynes | G110: 2025 | H110: 29.92 | I110: 1515 | J110: 28.77 | K110: C | L110: 889 | M110: 31.64 | N110: C | O110: 6.3 | P110: 12.5 | Q110: 873 | R110: 9.2 | S110: 1534 | T110: 29.04 | U110: C | V110: 244 | W110: 27.76 | X110: Merit+ | Y110: 878 | Z110: 32.97 | AA110: Dist- | AB110: x
A111: ALL | B111: 4 | C111: South East | D111: NULL | E111: 931 | F111: Oxfordshire | G111: 5597 | H111: 30.52 | I111: 3714 | J111: 30.21 | K111: C | L111: 2723 | M111: 33.24 | N111: C+ | O111: 10.1 | P111: 17.3 | Q111: 2711 | R111: 13.8 | S111: 3725 | T111: 30.32 | U111: C | V111: 851 | W111: 28.29 | X111: Merit+ | Y111: 1565 | Z111: 32.54 | AA111: Dist- | AB111: x
A112: ALL | B112: 4 | C112: South East | D112: NULL | E112: 851 | F112: Portsmouth | G112: 598 | H112: 29.03 | I112: 343 | J112: 26.69 | K112: C- | L112: 200 | M112: 29.05 | N112: C | O112: 2 | P112: 4.5 | Q112: 199 | R112: 2.5 | S112: 347 | T112: 26.72 | U112: C- | V112: 161 | W112: 29.09 | X112: Merit+ | Y112: 224 | Z112: 33.98 | AA112: Dist | AB112: 0
A113: ALL | B113: 4 | C113: South East | D113: NULL | E113: 870 | F113: Reading | G113: 679 | H113: 38.59 | I113: 587 | J113: 38.73 | K113: B | L113: 400 | M113: 42.78 | N113: B+ | O113: 43.5 | P113: 49.8 | Q113: 400 | R113: 48 | S113: 596 | T113: 38.73 | U113: B | V113: 85 | W113: 39.97 | X113: Dist+ | Y113: 130 | Z113: 36.46 | AA113: Dist | AB113: 0
A114: ALL | B114: 4 | C114: South East | D114: NULL | E114: 871 | F114: Slough | G114: 1685 | H114: 29.92 | I114: 1298 | J114: 29.91 | K114: C | L114: 850 | M114: 34.04 | N114: C+ | O114: 11.1 | P114: 19.2 | Q114: 849 | R114: 17.7 | S114: 1303 | T114: 30.01 | U114: C | V114: 260 | W114: 27.1 | X114: Merit+ | Y114: 436 | Z114: 31.19 | AA114: Dist- | AB114: 0
A115: ALL | B115: 4 | C115: South East | D115: NULL | E115: 852 | F115: Southampton | G115: 1346 | H115: 27.87 | I115: 1025 | J115: 25.86 | K115: C- | L115: 513 | M115: 28.43 | N115: C | O115: 3.9 | P115: 7.6 | Q115: 493 | R115: 5.5 | S115: 1025 | T115: 26.01 | U115: C- | V115: 280 | W115: 30.44 | X115: Dist- | Y115: 520 | Z115: 32.24 | AA115: Dist- | AB115: 0
A116: ALL | B116: 4 | C116: South East | D116: NULL | E116: 936 | F116: Surrey | G116: 9553 | H116: 32.21 | I116: 7560 | J116: 31.86 | K116: C+ | L116: 5171 | M116: 35.23 | N116: B- | O116: 11.3 | P116: 20.6 | Q116: 5155 | R116: 14.4 | S116: 7566 | T116: 32.02 | U116: C+ | V116: 1574 | W116: 29.77 | X116: Merit+ | Y116: 2566 | Z116: 34.94 | AA116: Dist | AB116: 6
A117: ALL | B117: 4 | C117: South East | D117: NULL | E117: 869 | F117: West Berkshire | G117: 1241 | H117: 30.87 | I117: 1129 | J117: 30.37 | K117: C | L117: 785 | M117: 33.72 | N117: C+ | O117: 8.9 | P117: 17.8 | Q117: 766 | R117: 13.1 | S117: 1130 | T117: 30.45 | U117: C | V117: 105 | W117: 29.36 | X117: Merit+ | Y117: 256 | Z117: 35.43 | AA117: Dist | AB117: 0
A118: ALL | B118: 4 | C118: South East | D118: NULL | E118: 938 | F118: West Sussex | G118: 5614 | H118: 31.37 | I118: 4289 | J118: 30.5 | K118: C | L118: 2742 | M118: 32.63 | N118: C+ | O118: 9.8 | P118: 16.6 | Q118: 2713 | R118: 12.3 | S118: 4304 | T118: 30.62 | U118: C | V118: 784 | W118: 31.03 | X118: Dist- | Y118: 1785 | Z118: 34.39 | AA118: Dist | AB118: x
A119: ALL | B119: 4 | C119: South East | D119: NULL | E119: 868 | F119: Windsor and Maidenhead | G119: 1222 | H119: 30.61 | I119: 896 | J119: 30.2 | K119: C | L119: 587 | M119: 33.75 | N119: C+ | O119: 9.7 | P119: 18.9 | Q119: 580 | R119: 15.5 | S119: 900 | T119: 30.27 | U119: C | V119: 249 | W119: 29.55 | X119: Merit+ | Y119: 319 | Z119: 33.07 | AA119: Dist- | AB119: 0
A120: ALL | B120: 4 | C120: South East | D120: NULL | E120: 872 | F120: Wokingham | G120: 1031 | H120: 32.06 | I120: 986 | J120: 31.54 | K120: C | L120: 752 | M120: 34.58 | N120: C+ | O120: 9.7 | P120: 18.5 | Q120: 751 | R120: 14.5 | S120: 986 | T120: 31.66 | U120: C | V120: 57 | W120: 32.94 | X120: Dist- | Y120: 153 | Z120: 36.69 | AA120: Dist+ | AB120: 0
A121: ALL | B121: 4 | C121: South West | D121: NULL | E121: 800 | F121: Bath and North East Somerset | G121: 1445 | H121: 31.32 | I121: 1042 | J121: 30.92 | K121: C | L121: 726 | M121: 34.26 | N121: C+ | O121: 11.3 | P121: 20 | Q121: 723 | R121: 16.7 | S121: 1052 | T121: 31.08 | U121: C | V121: 268 | W121: 29.05 | X121: Merit+ | Y121: 426 | Z121: 33.89 | AA121: Dist | AB121: 0
A122: ALL | B122: 4 | C122: South West | D122: NULL | E122: 837 | F122: Bournemouth | G122: 865 | H122: 32.36 | I122: 710 | J122: 32.47 | K122: C+ | L122: 523 | M122: 35.53 | N122: B- | O122: 14.7 | P122: 25 | Q122: 520 | R122: 20 | S122: 711 | T122: 32.59 | U122: C+ | V122: 71 | W122: 30.45 | X122: Dist- | Y122: 201 | Z122: 31.87 | AA122: Dist- | AB122: 0
A123: ALL | B123: 4 | C123: South West | D123: NULL | E123: 801 | F123: Bristol, City of | G123: 2561 | H123: 30.31 | I123: 2020 | J123: 30.18 | K123: C | L123: 1345 | M123: 32.48 | N123: C+ | O123: 9 | P123: 16.3 | Q123: 1342 | R123: 12.1 | S123: 2020 | T123: 30.38 | U123: C | V123: 385 | W123: 26.8 | X123: Merit+ | Y123: 557 | Z123: 33.35 | AA123: Dist | AB123: 0
A124: ALL | B124: 4 | C124: South West | D124: NULL | E124: 908 | F124: Cornwall | G124: 4034 | H124: 33.35 | I124: 2486 | J124: 31.51 | K124: C | L124: 1599 | M124: 35.03 | N124: B- | O124: 11.1 | P124: 20.1 | Q124: 1580 | R124: 13.5 | S124: 2540 | T124: 32.03 | U124: C+ | V124: 843 | W124: 31.24 | X124: Dist- | Y124: 1423 | Z124: 37.55 | AA124: Dist+ | AB124: x
A125: ALL | B125: 4 | C125: South West | D125: NULL | E125: 878 | F125: Devon | G125: 5008 | H125: 31.59 | I125: 3633 | J125: 30.54 | K125: C | L125: 2268 | M125: 33.34 | N125: C+ | O125: 11.2 | P125: 18.9 | Q125: 2256 | R125: 15.2 | S125: 3667 | T125: 30.81 | U125: C | V125: 819 | W125: 31.69 | X125: Dist- | Y125: 1690 | Z125: 34.15 | AA125: Dist | AB125: x
A126: ALL | B126: 4 | C126: South West | D126: NULL | E126: 835 | F126: Dorset | G126: 2973 | H126: 30.41 | I126: 2488 | J126: 29.94 | K126: C | L126: 1735 | M126: 32.43 | N126: C+ | O126: 8.9 | P126: 16 | Q126: 1728 | R126: 11.1 | S126: 2493 | T126: 30.13 | U126: C | V126: 321 | W126: 25.84 | X126: Merit | Y126: 595 | Z126: 35.3 | AA126: Dist | AB126: 0
A127: ALL | B127: 4 | C127: South West | D127: NULL | E127: 916 | F127: Gloucestershire | G127: 5249 | H127: 32.83 | I127: 4141 | J127: 32.18 | K127: C+ | L127: 2959 | M127: 35.6 | N127: B- | O127: 14 | P127: 23.4 | Q127: 2940 | R127: 17.6 | S127: 4150 | T127: 32.32 | U127: C+ | V127: 781 | W127: 32.71 | X127: Dist- | Y127: 1105 | Z127: 35.96 | AA127: Dist | AB127: x
A128: ALL | B128: 4 | C128: South West | D128: NULL | E128: 802 | F128: North Somerset | G128: 1574 | H128: 31.25 | I128: 1038 | J128: 29.56 | K128: C | L128: 673 | M128: 32.8 | N128: C+ | O128: 11 | P128: 19 | Q128: 665 | R128: 15 | S128: 1038 | T128: 29.65 | U128: C | V128: 328 | W128: 33.65 | X128: Dist | Y128: 456 | Z128: 34.34 | AA128: Dist | AB128: x
A129: ALL | B129: 4 | C129: South West | D129: NULL | E129: 879 | F129: Plymouth | G129: 2018 | H129: 29.67 | I129: 1426 | J129: 28.98 | K129: C | L129: 854 | M129: 31.16 | N129: C | O129: 10.1 | P129: 15.2 | Q129: 843 | R129: 12.9 | S129: 1428 | T129: 29.05 | U129: C | V129: 390 | W129: 27.17 | X129: Merit+ | Y129: 638 | Z129: 33.5 | AA129: Dist | AB129: 0
A130: ALL | B130: 4 | C130: South West | D130: NULL | E130: 836 | F130: Poole | G130: 1546 | H130: 29.89 | I130: 961 | J130: 30.16 | K130: C | L130: 657 | M130: 33.89 | N130: C+ | O130: 10 | P130: 19.2 | Q130: 652 | R130: 12 | S130: 980 | T130: 30.14 | U130: C | V130: 328 | W130: 28.28 | X130: Merit+ | Y130: 431 | Z130: 30.33 | AA130: Dist- | AB130: 0
A131: ALL | B131: 4 | C131: South West | D131: NULL | E131: 933 | F131: Somerset | G131: 4011 | H131: 31.53 | I131: 2580 | J131: 30.32 | K131: C | L131: 1777 | M131: 33.2 | N131: C+ | O131: 9.5 | P131: 17.8 | Q131: 1774 | R131: 13.5 | S131: 2628 | T131: 30.56 | U131: C | V131: 986 | W131: 31.09 | X131: Dist- | Y131: 983 | Z131: 35.51 | AA131: Dist | AB131: x
A132: ALL | B132: 4 | C132: South West | D132: NULL | E132: 803 | F132: South Gloucestershire | G132: 2315 | H132: 29.91 | I132: 1509 | J132: 28.26 | K132: C- | L132: 859 | M132: 31.45 | N132: C | O132: 9.1 | P132: 14.9 | Q132: 850 | R132: 11.2 | S132: 1529 | T132: 28.37 | U132: C | V132: 293 | W132: 33.27 | X132: Dist- | Y132: 1018 | Z132: 32.33 | AA132: Dist- | AB132: x
A133: ALL | B133: 4 | C133: South West | D133: NULL | E133: 866 | F133: Swindon | G133: 1640 | H133: 27.88 | I133: 978 | J133: 26.67 | K133: C- | L133: 523 | M133: 27.37 | N133: C- | O133: 5.7 | P133: 11.1 | Q133: 507 | R133: 8.3 | S133: 983 | T133: 26.85 | U133: C- | V133: 383 | W133: 25.82 | X133: Merit | Y133: 591 | Z133: 31.33 | AA133: Dist- | AB133: 0
A134: ALL | B134: 4 | C134: South West | D134: NULL | E134: 880 | F134: Torbay | G134: 1312 | H134: 32.09 | I134: 776 | J134: 32.29 | K134: C+ | L134: 546 | M134: 35.07 | N134: B- | O134: 13.2 | P134: 23.8 | Q134: 546 | R134: 17 | S134: 827 | T134: 33.46 | U134: C+ | V134: 240 | W134: 27.57 | X134: Merit+ | Y134: 406 | Z134: 30.86 | AA134: Dist- | AB134: 0
A135: ALL | B135: 4 | C135: South West | D135: NULL | E135: 865 | F135: Wiltshire | G135: 2853 | H135: 32.14 | I135: 2258 | J135: 32.26 | K135: C+ | L135: 1668 | M135: 35.51 | N135: B- | O135: 11.8 | P135: 21.3 | Q135: 1655 | R135: 16.4 | S135: 2288 | T135: 32.4 | U135: C+ | V135: 442 | W135: 27.35 | X135: Merit+ | Y135: 571 | Z135: 35.04 | AA135: Dist | AB135: x
A136: ALL | B136: 4 | C136: West Midlands | D136: NULL | E136: 330 | F136: Birmingham | G136: 8545 | H136: 31.65 | I136: 5767 | J136: 29.74 | K136: C | L136: 3659 | M136: 33.67 | N136: C+ | O136: 10.9 | P136: 19 | Q136: 3645 | R136: 15.4 | S136: 5789 | T136: 29.82 | U136: C | V136: 1217 | W136: 32.75 | X136: Dist- | Y136: 3314 | Z136: 35.71 | AA136: Dist | AB136: 0
A137: ALL | B137: 4 | C137: West Midlands | D137: NULL | E137: 331 | F137: Coventry | G137: 2246 | H137: 29.99 | I137: 1598 | J137: 28.29 | K137: C- | L137: 858 | M137: 32.71 | N137: C+ | O137: 6.8 | P137: 12.6 | Q137: 848 | R137: 8.6 | S137: 1609 | T137: 28.39 | U137: C | V137: 474 | W137: 28.63 | X137: Merit+ | Y137: 863 | Z137: 35.08 | AA137: Dist | AB137: 3
A138: ALL | B138: 4 | C138: West Midlands | D138: NULL | E138: 332 | F138: Dudley | G138: 2906 | H138: 31.67 | I138: 1997 | J138: 31.75 | K138: C+ | L138: 1491 | M138: 34.59 | N138: C+ | O138: 8.8 | P138: 16 | Q138: 1486 | R138: 11 | S138: 1999 | T138: 31.83 | U138: C+ | V138: 523 | W138: 30.1 | X138: Dist- | Y138: 751 | Z138: 32.38 | AA138: Dist- | AB138: 0
A139: ALL | B139: 4 | C139: West Midlands | D139: NULL | E139: 884 | F139: Herefordshire, County of | G139: 1642 | H139: 31.1 | I139: 1153 | J139: 31.51 | K139: C | L139: 895 | M139: 34.26 | N139: C+ | O139: 10.7 | P139: 21 | Q139: 888 | R139: 14.4 | S139: 1155 | T139: 31.67 | U139: C+ | V139: 150 | W139: 26 | X139: Merit | Y139: 505 | Z139: 30.63 | AA139: Dist- | AB139: 0
A140: ALL | B140: 4 | C140: West Midlands | D140: NULL | E140: 333 | F140: Sandwell | G140: 1947 | H140: 28.91 | I140: 1286 | J140: 26.68 | K140: C- | L140: 724 | M140: 30.44 | N140: C | O140: 2.8 | P140: 8.6 | Q140: 651 | R140: 3.8 | S140: 1318 | T140: 26.79 | U140: C- | V140: 369 | W140: 30.51 | X140: Dist- | Y140: 890 | Z140: 32.72 | AA140: Dist- | AB140: x
A141: ALL | B141: 4 | C141: West Midlands | D141: NULL | E141: 893 | F141: Shropshire | G141: 1883 | H141: 30.5 | I141: 1425 | J141: 29.44 | K141: C | L141: 1026 | M141: 32.72 | N141: C+ | O141: 7.3 | P141: 13.8 | Q141: 1022 | R141: 9.6 | S141: 1425 | T141: 29.52 | U141: C | V141: 247 | W141: 32.53 | X141: Dist- | Y141: 516 | Z141: 33.74 | AA141: Dist | AB141: 0
A142: ALL | B142: 4 | C142: West Midlands | D142: NULL | E142: 334 | F142: Solihull | G142: 3057 | H142: 30.38 | I142: 1753 | J142: 28.86 | K142: C | L142: 1350 | M142: 32.25 | N142: C+ | O142: 7.1 | P142: 14.1 | Q142: 1347 | R142: 10.2 | S142: 1815 | T142: 28.96 | U142: C | V142: 617 | W142: 30.78 | X142: Dist- | Y142: 876 | Z142: 34.39 | AA142: Dist | AB142: 0
A143: ALL | B143: 4 | C143: West Midlands | D143: NULL | E143: 860 | F143: Staffordshire | G143: 6299 | H143: 30.3 | I143: 4025 | J143: 27.79 | K143: C- | L143: 2299 | M143: 31.8 | N143: C+ | O143: 6.2 | P143: 12.9 | Q143: 2280 | R143: 9 | S143: 4031 | T143: 27.9 | U143: C- | V143: 1440 | W143: 30.1 | X143: Dist- | Y143: 2225 | Z143: 36.23 | AA143: Dist | AB143: 19
A144: ALL | B144: 4 | C144: West Midlands | D144: NULL | E144: 861 | F144: Stoke-on-Trent | G144: 1340 | H144: 30.69 | I144: 885 | J144: 28.8 | K144: C | L144: 500 | M144: 32.79 | N144: C+ | O144: 6 | P144: 15.6 | Q144: 500 | R144: 11.4 | S144: 899 | T144: 28.79 | U144: C | V144: 326 | W144: 30.6 | X144: Dist- | Y144: 592 | Z144: 34.78 | AA144: Dist | AB144: 0
A145: ALL | B145: 4 | C145: West Midlands | D145: NULL | E145: 894 | F145: Telford and Wrekin | G145: 1328 | H145: 32.62 | I145: 999 | J145: 32.64 | K145: C+ | L145: 626 | M145: 36.71 | N145: B- | O145: 17.9 | P145: 28.9 | Q145: 596 | R145: 23.5 | S145: 1001 | T145: 32.71 | U145: C+ | V145: 200 | W145: 27.45 | X145: Merit+ | Y145: 527 | Z145: 34.46 | AA145: Dist | AB145: 0
A146: ALL | B146: 4 | C146: West Midlands | D146: NULL | E146: 335 | F146: Walsall | G146: 2370 | H146: 30.86 | I146: 1525 | J146: 28.15 | K146: C- | L146: 760 | M146: 33.81 | N146: C+ | O146: 8.8 | P146: 16.4 | Q146: 744 | R146: 13.6 | S146: 1536 | T146: 28.29 | U146: C- | V146: 547 | W146: 31.59 | X146: Dist- | Y146: 1058 | Z146: 35.8 | AA146: Dist | AB146: 0
A147: ALL | B147: 4 | C147: West Midlands | D147: NULL | E147: 937 | F147: Warwickshire | G147: 5126 | H147: 31.97 | I147: 3343 | J147: 32.51 | K147: C+ | L147: 2394 | M147: 35.31 | N147: B- | O147: 13.2 | P147: 22.8 | Q147: 2380 | R147: 16.8 | S147: 3396 | T147: 32.65 | U147: C+ | V147: 1111 | W147: 28.67 | X147: Merit+ | Y147: 1378 | Z147: 32.42 | AA147: Dist- | AB147: 11
A148: ALL | B148: 4 | C148: West Midlands | D148: NULL | E148: 336 | F148: Wolverhampton | G148: 1636 | H148: 32.58 | I148: 1015 | J148: 29 | K148: C | L148: 479 | M148: 32.46 | N148: C+ | O148: 9.4 | P148: 17.5 | Q148: 475 | R148: 14.5 | S148: 1018 | T148: 29.01 | U148: C | V148: 369 | W148: 33.1 | X148: Dist- | Y148: 845 | Z148: 37.25 | AA148: Dist+ | AB148: 0
A149: ALL | B149: 4 | C149: West Midlands | D149: NULL | E149: 885 | F149: Worcestershire | G149: 3712 | H149: 30.02 | I149: 2882 | J149: 29.19 | K149: C | L149: 1899 | M149: 32.55 | N149: C+ | O149: 8.2 | P149: 14.4 | Q149: 1877 | R149: 10.4 | S149: 2887 | T149: 29.27 | U149: C | V149: 530 | W149: 28.49 | X149: Merit+ | Y149: 1130 | Z149: 34.39 | AA149: Dist | AB149: x
A150: ALL | B150: 4 | C150: Yorkshire and the Humber | D150: NULL | E150: 370 | F150: Barnsley | G150: 1369 | H150: 30.59 | I150: 560 | J150: 26.35 | K150: C- | L150: 365 | M150: 31.71 | N150: C+ | O150: 4.4 | P150: 7.9 | Q150: 364 | R150: 5.8 | S150: 560 | T150: 26.37 | U150: C- | V150: 412 | W150: 32.01 | X150: Dist- | Y150: 504 | Z150: 35.09 | AA150: Dist | AB150: 0
A151: ALL | B151: 4 | C151: Yorkshire and the Humber | D151: NULL | E151: 380 | F151: Bradford | G151: 3332 | H151: 30.99 | I151: 2412 | J151: 26.88 | K151: C- | L151: 1127 | M151: 32.35 | N151: C+ | O151: 6.7 | P151: 13.6 | Q151: 1106 | R151: 11.4 | S151: 2423 | T151: 26.93 | U151: C- | V151: 455 | W151: 32.81 | X151: Dist- | Y151: 1711 | Z151: 38.44 | AA151: Dist+ | AB151: 0
A152: ALL | B152: 4 | C152: Yorkshire and the Humber | D152: NULL | E152: 381 | F152: Calderdale | G152: 1458 | H152: 32.46 | I152: 1152 | J152: 29.99 | K152: C | L152: 713 | M152: 32.95 | N152: C+ | O152: 9.5 | P152: 15.8 | Q152: 705 | R152: 10.6 | S152: 1155 | T152: 30.04 | U152: C | V152: 143 | W152: 32.77 | X152: Dist- | Y152: 558 | Z152: 39.66 | AA152: Dist+ | AB152: 0
A153: ALL | B153: 4 | C153: Yorkshire and the Humber | D153: NULL | E153: 371 | F153: Doncaster | G153: 1811 | H153: 30.52 | I153: 1341 | J153: 28.09 | K153: C- | L153: 774 | M153: 30.91 | N153: C | O153: 6.3 | P153: 13.2 | Q153: 744 | R153: 8.6 | S153: 1348 | T153: 28.13 | U153: C- | V153: 214 | W153: 30.19 | X153: Dist- | Y153: 732 | Z153: 37 | AA153: Dist+ | AB153: 0
A154: ALL | B154: 4 | C154: Yorkshire and the Humber | D154: NULL | E154: 811 | F154: East Riding of Yorkshire | G154: 2096 | H154: 31.1 | I154: 1349 | J154: 29.04 | K154: C | L154: 816 | M154: 34.02 | N154: C+ | O154: 9.1 | P154: 16.7 | Q154: 811 | R154: 11.7 | S154: 1351 | T154: 29.16 | U154: C | V154: 584 | W154: 32.52 | X154: Dist- | Y154: 634 | Z154: 36.11 | AA154: Dist | AB154: 0
A155: ALL | B155: 4 | C155: Yorkshire and the Humber | D155: NULL | E155: 810 | F155: Kingston upon Hull, City of | G155: 2381 | H155: 30.3 | I155: 1374 | J155: 28.16 | K155: C- | L155: 764 | M155: 33.61 | N155: C+ | O155: 6.9 | P155: 13.1 | Q155: 756 | R155: 7.5 | S155: 1374 | T155: 28.33 | U155: C- | V155: 638 | W155: 30.41 | X155: Dist- | Y155: 1008 | Z155: 34.43 | AA155: Dist | AB155: 0
A156: ALL | B156: 4 | C156: Yorkshire and the Humber | D156: NULL | E156: 382 | F156: Kirklees | G156: 3633 | H156: 33.29 | I156: 2734 | J156: 31.69 | K156: C+ | L156: 1845 | M156: 35.46 | N156: B- | O156: 12.8 | P156: 23.1 | Q156: 1823 | R156: 17.2 | S156: 2755 | T156: 31.78 | U156: C+ | V156: 562 | W156: 33.83 | X156: Dist | Y156: 1099 | Z156: 38.96 | AA156: Dist+ | AB156: x
A157: ALL | B157: 4 | C157: Yorkshire and the Humber | D157: NULL | E157: 383 | F157: Leeds | G157: 5127 | H157: 29.49 | I157: 3761 | J157: 28.14 | K157: C- | L157: 2383 | M157: 31.64 | N157: C | O157: 7.8 | P157: 14.8 | Q157: 2332 | R157: 11.2 | S157: 3814 | T157: 28.08 | U157: C- | V157: 817 | W157: 29.77 | X157: Merit+ | Y157: 1605 | Z157: 34.74 | AA157: Dist | AB157: 0
A158: ALL | B158: 4 | C158: Yorkshire and the Humber | D158: NULL | E158: 812 | F158: North East Lincolnshire | G158: 1522 | H158: 27.82 | I158: 885 | J158: 26.04 | K158: C- | L158: 448 | M158: 30.31 | N158: C | O158: 3.6 | P158: 7.4 | Q158: 440 | R158: 4.5 | S158: 885 | T158: 26.09 | U158: C- | V158: 438 | W158: 27.53 | X158: Merit+ | Y158: 565 | Z158: 32.04 | AA158: Dist- | AB158: 0
A159: ALL | B159: 4 | C159: Yorkshire and the Humber | D159: NULL | E159: 813 | F159: North Lincolnshire | G159: 1305 | H159: 32.2 | I159: 953 | J159: 30.11 | K159: C | L159: 482 | M159: 32.49 | N159: C+ | O159: 10.8 | P159: 18.3 | Q159: 479 | R159: 14.6 | S159: 956 | T159: 30.15 | U159: C | V159: 296 | W159: 33.54 | X159: Dist | Y159: 520 | Z159: 36.73 | AA159: Dist+ | AB159: x
A160: ALL | B160: 4 | C160: Yorkshire and the Humber | D160: NULL | E160: 815 | F160: North Yorkshire | G160: 4231 | H160: 32.53 | I160: 3412 | J160: 31.43 | K160: C | L160: 2411 | M160: 35.16 | N160: B- | O160: 14.5 | P160: 23.5 | Q160: 2385 | R160: 18.2 | S160: 3422 | T160: 31.51 | U160: C | V160: 548 | W160: 32.47 | X160: Dist- | Y160: 1124 | Z160: 38.11 | AA160: Dist+ | AB160: 6
A161: ALL | B161: 4 | C161: Yorkshire and the Humber | D161: NULL | E161: 372 | F161: Rotherham | G161: 2280 | H161: 30.17 | I161: 1639 | J161: 28.81 | K161: C | L161: 910 | M161: 32.05 | N161: C+ | O161: 7.5 | P161: 15.1 | Q161: 903 | R161: 10.9 | S161: 1640 | T161: 28.88 | U161: C | V161: 383 | W161: 27.2 | X161: Merit+ | Y161: 917 | Z161: 35.25 | AA161: Dist | AB161: x
A162: ALL | B162: 4 | C162: Yorkshire and the Humber | D162: NULL | E162: 373 | F162: Sheffield | G162: 3357 | H162: 30.95 | I162: 2211 | J162: 30.8 | K162: C | L162: 1523 | M162: 33.99 | N162: C+ | O162: 13.1 | P162: 20 | Q162: 1519 | R162: 16.6 | S162: 2226 | T162: 30.93 | U162: C | V162: 510 | W162: 29.25 | X162: Merit+ | Y162: 1204 | Z162: 31.63 | AA162: Dist- | AB162: 5
A163: ALL | B163: 4 | C163: Yorkshire and the Humber | D163: NULL | E163: 384 | F163: Wakefield | G163: 2514 | H163: 32.14 | I163: 1610 | J163: 29.73 | K163: C | L163: 963 | M163: 33.18 | N163: C+ | O163: 6.5 | P163: 14.4 | Q163: 957 | R163: 8.5 | S163: 1611 | T163: 29.81 | U163: C | V163: 517 | W163: 32.06 | X163: Dist- | Y163: 997 | Z163: 37.03 | AA163: Dist+ | AB163: x
A164: ALL | B164: 4 | C164: Yorkshire and the Humber | D164: NULL | E164: 816 | F164: York | G164: 2330 | H164: 31.78 | I164: 1187 | J164: 32.46 | K164: C+ | L164: 873 | M164: 35.8 | N164: B- | O164: 12.4 | P164: 21.4 | Q164: 864 | R164: 14.7 | S164: 1231 | T164: 32.63 | U164: C+ | V164: 867 | W164: 28.66 | X164: Merit+ | Y164: 477 | Z164: 34.98 | AA164: Dist | AB164: 7

Sheet 9a_females (hidden)
A1: F | B1: 4-Region | C1: East Midlands | D1: NULL | E1: NULL | F1: NULL | G1: 16604 | H1: 31.4 | I1: 12624 | J1: 30.2 | K1: C | L1: 8597 | M1: 33.37 | N1: C+ | O1: 8.5 | P1: 16.3 | Q1: 8536 | R1: 11.2 | S1: 12685 | T1: 30.37 | U1: C | V1: 2234 | W1: 31.02 | X1: Dist- | Y1: 4617 | Z1: 36.05 | AA1: Dist | AB1: x
A2: F | B2: 4-Region | C2: East of England | D2: NULL | E2: NULL | F2: NULL | G2: 24122 | H2: 32.69 | I2: 17976 | J2: 31.86 | K2: C+ | L2: 13044 | M2: 34.72 | N2: C+ | O2: 9.9 | P2: 18.7 | Q2: 12949 | R2: 12.6 | S2: 18239 | T2: 32.14 | U2: C+ | V2: 3081 | W2: 31.32 | X2: Dist- | Y2: 6627 | Z2: 35.78 | AA2: Dist | AB2: x
A3: F | B3: 4-Region | C3: Inner London | D3: NULL | E3: NULL | F3: NULL | G3: 11761 | H3: 30.96 | I3: 8583 | J3: 30.05 | K3: C | L3: 6010 | M3: 32.52 | N3: C+ | O3: 7.1 | P3: 14.1 | Q3: 5969 | R3: 10.4 | S3: 8702 | T3: 30.25 | U3: C | V3: 863 | W3: 30.16 | X3: Dist- | Y3: 3647 | Z3: 33.31 | AA3: Dist- | AB3: 0
A4: F | B4: 4-Region | C4: North East | D4: NULL | E4: NULL | F4: NULL | G4: 10019 | H4: 32.59 | I4: 6852 | J4: 30.49 | K4: C | L4: 4392 | M4: 33.45 | N4: C+ | O4: 7.9 | P4: 16.1 | Q4: 4295 | R4: 10.7 | S4: 6892 | T4: 30.56 | U4: C | V4: 1676 | W4: 33.05 | X4: Dist- | Y4: 3452 | Z4: 38.26 | AA4: Dist+ | AB4: x
A5: F | B5: 4-Region | C5: North West | D5: NULL | E5: NULL | F5: NULL | G5: 29112 | H5: 33.31 | I5: 21065 | J5: 31.77 | K5: C+ | L5: 14937 | M5: 35.22 | N5: B- | O5: 10.4 | P5: 19.3 | Q5: 14820 | R5: 11.6 | S5: 21179 | T5: 31.87 | U5: C+ | V5: 4067 | W5: 33.53 | X5: Dist | Y5: 8698 | Z5: 38.28 | AA5: Dist+ | AB5: 10
A6: F | B6: 4-Region | C6: Outer London | D6: NULL | E6: NULL | F6: NULL | G6: 21417 | H6: 32.43 | I6: 17301 | J6: 31.67 | K6: C+ | L6: 12309 | M6: 34.71 | N6: C+ | O6: 10.5 | P6: 18.8 | Q6: 12260 | R6: 14 | S6: 17400 | T6: 31.78 | U6: C+ | V6: 1950 | W6: 32.21 | X6: Dist- | Y6: 5589 | Z6: 35.48 | AA6: Dist | AB6: x
A7: F | B7: 4-Region | C7: South East | D7: NULL | E7: NULL | F7: NULL | G7: 36919 | H7: 33.25 | I7: 28364 | J7: 32.44 | K7: C+ | L7: 19741 | M7: 35.21 | N7: B- | O7: 11 | P7: 20.4 | Q7: 19563 | R7: 13.9 | S7: 28856 | T7: 32.84 | U7: C+ | V7: 5429 | W7: 31.31 | X7: Dist- | Y7: 9586 | Z7: 36.6 | AA7: Dist | AB7: 8
A8: F | B8: 4-Region | C8: South West | D8: NULL | E8: NULL | F8: NULL | G8: 20940 | H8: 32.71 | I8: 15477 | J8: 31.94 | K8: C+ | L8: 10802 | M8: 34.42 | N8: C+ | O8: 10.4 | P8: 19.4 | Q8: 10707 | R8: 13.2 | S8: 15644 | T8: 32.18 | U8: C+ | V8: 3099 | W8: 30.22 | X8: Dist- | Y8: 5511 | Z8: 36.49 | AA8: Dist | AB8: 0
A9: F | B9: 4-Region | C9: West Midlands | D9: NULL | E9: NULL | F9: NULL | G9: 23005 | H9: 32.18 | I9: 16286 | J9: 30.58 | K9: C | L9: 10882 | M9: 33.84 | N9: C+ | O9: 8.1 | P9: 16.2 | Q9: 10766 | R9: 10.7 | S9: 16391 | T9: 30.69 | U9: C | V9: 3396 | W9: 31.92 | X9: Dist- | Y9: 7895 | Z9: 36.8 | AA9: Dist+ | AB9: 6
A10: F | B10: 4-Region | C10: Yorkshire and the Humber | D10: NULL | E10: NULL | F10: NULL | G10: 20666 | H10: 32.4 | I10: 14965 | J10: 30.55 | K10: C | L10: 9630 | M10: 34.01 | N10: C+ | O10: 9 | P10: 17 | Q10: 9484 | R10: 11.1 | S10: 15025 | T10: 30.65 | U10: C | V10: 3197 | W10: 32.5 | X10: Dist- | Y10: 7084 | Z10: 37.87 | AA10: Dist+ | AB10: x
A11: F | B11: 4-London | C11: NULL | D11: LONDON | E11: NULL | F11: NULL | G11: 33178 | H11: 31.92 | I11: 25884 | J11: 31.15 | K11: C | L11: 18319 | M11: 33.99 | N11: C+ | O11: 9.4 | P11: 17.3 | Q11: 18229 | R11: 12.9 | S11: 26102 | T11: 31.28 | U11: C | V11: 2813 | W11: 31.57 | X11: Dist- | Y11: 9236 | Z11: 34.56 | AA11: Dist | AB11: x
A12: F | B12: 4 | C12: East Midlands | D12: NULL | E12: 831 | F12: Derby | G12: 1070 | H12: 31.62 | I12: 708 | J12: 29.56 | K12: C | L12: 466 | M12: 32.15 | N12: C+ | O12: 7.1 | P12: 15.2 | Q12: 454 | R12: 10.8 | S12: 708 | T12: 29.63 | U12: C | V12: 219 | W12: 31.13 | X12: Dist- | Y12: 300 | Z12: 38.05 | AA12: Dist+ | AB12: 0
A13: F | B13: 4 | C13: East Midlands | D13: NULL | E13: 830 | F13: Derbyshire | G13: 1892 | H13: 30.66 | I13: 1533 | J13: 30.28 | K13: C | L13: 1113 | M13: 33.24 | N13: C+ | O13: 8.8 | P13: 15.9 | Q13: 1106 | R13: 11.4 | S13: 1539 | T13: 30.37 | U13: C | V13: 208 | W13: 27.28 | X13: Merit+ | Y13: 404 | Z13: 34.57 | AA13: Dist | AB13: 0
A14: F | B14: 4 | C14: East Midlands | D14: NULL | E14: 856 | F14: Leicester | G14: 1507 | H14: 29.96 | I14: 1127 | J14: 28.38 | K14: C | L14: 820 | M14: 31.05 | N14: C | O14: 6 | P14: 12.1 | Q14: 812 | R14: 6.8 | S14: 1143 | T14: 28.47 | U14: C | V14: 185 | W14: 29.08 | X14: Merit+ | Y14: 547 | Z14: 35.65 | AA14: Dist | AB14: 0
A15: F | B15: 4 | C15: East Midlands | D15: NULL | E15: 855 | F15: Leicestershire | G15: 2313 | H15: 31.27 | I15: 1914 | J15: 29.97 | K15: C | L15: 1329 | M15: 33.41 | N15: C+ | O15: 7.8 | P15: 15.2 | Q15: 1317 | R15: 9.8 | S15: 1916 | T15: 30.07 | U15: C | V15: 262 | W15: 35.7 | X15: Dist | Y15: 512 | Z15: 36.38 | AA15: Dist | AB15: 0
A16: F | B16: 4 | C16: East Midlands | D16: NULL | E16: 925 | F16: Lincolnshire | G16: 2944 | H16: 33.05 | I16: 2194 | J16: 31.8 | K16: C+ | L16: 1420 | M16: 35.18 | N16: B- | O16: 11.3 | P16: 20.4 | Q16: 1418 | R16: 15.4 | S16: 2195 | T16: 31.99 | U16: C+ | V16: 384 | W16: 32.7 | X16: Dist- | Y16: 1017 | Z16: 36.69 | AA16: Dist+ | AB16: 0
A17: F | B17: 4 | C17: East Midlands | D17: NULL | E17: 928 | F17: Northamptonshire | G17: 2821 | H17: 30.74 | I17: 1988 | J17: 29.27 | K17: C | L17: 1333 | M17: 32.52 | N17: C+ | O17: 7.4 | P17: 14.3 | Q17: 1322 | R17: 9.4 | S17: 1991 | T17: 29.37 | U17: C | V17: 494 | W17: 31.88 | X17: Dist- | Y17: 835 | Z17: 34.88 | AA17: Dist | AB17: x
A18: F | B18: 4 | C18: East Midlands | D18: NULL | E18: 892 | F18: Nottingham | G18: 1561 | H18: 30.77 | I18: 1201 | J18: 29.25 | K18: C | L18: 785 | M18: 33.32 | N18: C+ | O18: 8.9 | P18: 16.7 | Q18: 785 | R18: 11.6 | S18: 1234 | T18: 29.83 | U18: C | V18: 160 | W18: 29.71 | X18: Merit+ | Y18: 373 | Z18: 35.75 | AA18: Dist | AB18: 0
A19: F | B19: 4 | C19: East Midlands | D19: NULL | E19: 891 | F19: Nottinghamshire | G19: 2432 | H19: 31.98 | I19: 1901 | J19: 31.3 | K19: C | L19: 1287 | M19: 34.22 | N19: C+ | O19: 8.8 | P19: 17.9 | Q19: 1278 | R19: 12.8 | S19: 1901 | T19: 31.44 | U19: C | V19: 322 | W19: 28.73 | X19: Merit+ | Y19: 620 | Z19: 36.64 | AA19: Dist | AB19: 0
A20: F | B20: 4 | C20: East Midlands | D20: NULL | E20: 857 | F20: Rutland | G20: 64 | H20: 33.77 | I20: 58 | J20: 32.34 | K20: C+ | L20: 44 | M20: 34.09 | N20: C+ | O20: 6.8 | P20: 18.2 | Q20: 44 | R20: 0 | S20: 58 | T20: 32.88 | U20: C+ | V20: 0 | W20: 0 | X20: U | Y20: 9 | Z20: 41.59 | AA20: Dist+ | AB20: 0
A21: F | B21: 4 | C21: East of England | D21: NULL | E21: 822 | F21: Bedford | G21: 948 | H21: 31.54 | I21: 638 | J21: 29.18 | K21: C | L21: 388 | M21: 32.22 | N21: C+ | O21: 7 | P21: 14.2 | Q21: 387 | R21: 10.9 | S21: 640 | T21: 29.34 | U21: C | V21: 238 | W21: 32.61 | X21: Dist- | Y21: 289 | Z21: 37.53 | AA21: Dist+ | AB21: 0
A22: F | B22: 4 | C22: East of England | D22: NULL | E22: 873 | F22: Cambridgeshire | G22: 2374 | H22: 34.69 | I22: 1892 | J22: 34.66 | K22: C+ | L22: 1443 | M22: 37.69 | N22: B- | O22: 15.9 | P22: 26.3 | Q22: 1434 | R22: 18.9 | S22: 1967 | T22: 34.95 | U22: C+ | V22: 203 | W22: 29.07 | X22: Merit+ | Y22: 482 | Z22: 35.22 | AA22: Dist | AB22: x
A23: F | B23: 4 | C23: East of England | D23: NULL | E23: 823 | F23: Central Bedfordshire | G23: 794 | H23: 31.27 | I23: 713 | J23: 30.17 | K23: C | L23: 496 | M23: 32.98 | N23: C+ | O23: 5.8 | P23: 12.3 | Q23: 490 | R23: 6.9 | S23: 715 | T23: 30.24 | U23: C | V23: 27 | W23: 41.53 | X23: Dist+ | Y23: 273 | Z23: 36.07 | AA23: Dist | AB23: 0
A24: F | B24: 4 | C24: East of England | D24: NULL | E24: 881 | F24: Essex | G24: 5107 | H24: 31.81 | I24: 3783 | J24: 30.79 | K24: C | L24: 2821 | M24: 33.47 | N24: C+ | O24: 9.3 | P24: 17.1 | Q24: 2793 | R24: 11 | S24: 3877 | T24: 31.2 | U24: C | V24: 643 | W24: 30.8 | X24: Dist- | Y24: 1369 | Z24: 35.37 | AA24: Dist | AB24: 0
A25: F | B25: 4 | C25: East of England | D25: NULL | E25: 919 | F25: Hertfordshire | G25: 5479 | H25: 34.33 | I25: 4240 | J25: 34.25 | K25: C+ | L25: 3288 | M25: 36.63 | N25: B- | O25: 11.6 | P25: 22.4 | Q25: 3277 | R25: 15.9 | S25: 4310 | T25: 34.57 | U25: C+ | V25: 622 | W25: 30.81 | X25: Dist- | Y25: 1295 | Z25: 35.07 | AA25: Dist | AB25: 0
A26: F | B26: 4 | C26: East of England | D26: NULL | E26: 821 | F26: Luton | G26: 893 | H26: 30.75 | I26: 712 | J26: 28.06 | K26: C- | L26: 399 | M26: 31.23 | N26: C | O26: 5 | P26: 13.5 | Q26: 395 | R26: 6.8 | S26: 717 | T26: 28.28 | U26: C- | V26: 115 | W26: 32.14 | X26: Dist- | Y26: 379 | Z26: 37.45 | AA26: Dist+ | AB26: 0
A27: F | B27: 4 | C27: East of England | D27: NULL | E27: 926 | F27: Norfolk | G27: 3085 | H27: 31.57 | I27: 2197 | J27: 30.59 | K27: C | L27: 1527 | M27: 33.74 | N27: C+ | O27: 7.9 | P27: 16.4 | Q27: 1518 | R27: 10.4 | S27: 2198 | T27: 30.69 | U27: C | V27: 533 | W27: 31.33 | X27: Dist- | Y27: 769 | Z27: 35.68 | AA27: Dist | AB27: 0
A28: F | B28: 4 | C28: East of England | D28: NULL | E28: 874 | F28: Peterborough | G28: 864 | H28: 30.53 | I28: 634 | J28: 29.79 | K28: C | L28: 411 | M28: 33.51 | N28: C+ | O28: 9.2 | P28: 17.3 | Q28: 405 | R28: 12.8 | S28: 636 | T28: 29.9 | U28: C | V28: 115 | W28: 26.89 | X28: Merit+ | Y28: 312 | Z28: 34.08 | AA28: Dist | AB28: 0
A29: F | B29: 4 | C29: East of England | D29: NULL | E29: 882 | F29: Southend-on-Sea | G29: 1341 | H29: 33.58 | I29: 799 | J29: 32.8 | K29: C+ | L29: 606 | M29: 35.74 | N29: B- | O29: 13.4 | P29: 21.6 | Q29: 605 | R29: 15 | S29: 799 | T29: 33.02 | U29: C+ | V29: 263 | W29: 34.45 | X29: Dist | Y29: 405 | Z29: 34.71 | AA29: Dist | AB29: 0
A30: F | B30: 4 | C30: East of England | D30: NULL | E30: 935 | F30: Suffolk | G30: 2635 | H30: 32.64 | I30: 1901 | J30: 31.23 | K30: C | L30: 1360 | M30: 33.79 | N30: C+ | O30: 7 | P30: 14 | Q30: 1344 | R30: 8.8 | S30: 1911 | T30: 31.31 | U30: C | V30: 252 | W30: 31.72 | X30: Dist- | Y30: 858 | Z30: 37.38 | AA30: Dist+ | AB30: 0
A31: F | B31: 4 | C31: East of England | D31: NULL | E31: 883 | F31: Thurrock | G31: 602 | H31: 30.47 | I31: 467 | J31: 27.79 | K31: C- | L31: 305 | M31: 30.68 | N31: C | O31: 3.6 | P31: 9.5 | Q31: 301 | R31: 4.3 | S31: 469 | T31: 27.9 | U31: C- | V31: 70 | W31: 33.05 | X31: Dist- | Y31: 196 | Z31: 37.21 | AA31: Dist+ | AB31: x
A32: F | B32: 4 | C32: Inner London | D32: LONDON | E32: 202 | F32: Camden | G32: 1186 | H32: 30.17 | I32: 805 | J32: 30.02 | K32: C | L32: 591 | M32: 32.13 | N32: C+ | O32: 7.8 | P32: 14.6 | Q32: 578 | R32: 11.4 | S32: 806 | T32: 30.03 | U32: C | V32: 75 | W32: 27.22 | X32: Merit+ | Y32: 389 | Z32: 30.97 | AA32: Dist- | AB32: 0
A33: F | B33: 4 | C33: Inner London | D33: LONDON | E33: 204 | F33: Hackney | G33: 917 | H33: 30 | I33: 675 | J33: 29.07 | K33: C | L33: 468 | M33: 31.81 | N33: C+ | O33: 5.1 | P33: 13 | Q33: 466 | R33: 9.2 | S33: 685 | T33: 29.2 | U33: C | V33: 54 | W33: 29.38 | X33: Merit+ | Y33: 261 | Z33: 32.9 | AA33: Dist- | AB33: 0
A34: F | B34: 4 | C34: Inner London | D34: LONDON | E34: 205 | F34: Hammersmith and Fulham | G34: 788 | H34: 29.47 | I34: 625 | J34: 29.33 | K34: C | L34: 410 | M34: 31.5 | N34: C | O34: 6.6 | P34: 13.7 | Q34: 406 | R34: 11.3 | S34: 626 | T34: 29.46 | U34: C | V34: 45 | W34: 26.29 | X34: Merit | Y34: 216 | Z34: 30.31 | AA34: Dist- | AB34: 0
A35: F | B35: 4 | C35: Inner London | D35: LONDON | E35: 309 | F35: Haringey | G35: 709 | H35: 33.07 | I35: 548 | J35: 33.32 | K35: C+ | L35: 367 | M35: 36.84 | N35: B- | O35: 13.9 | P35: 21.8 | Q35: 364 | R35: 14.8 | S35: 548 | T35: 33.39 | U35: C+ | V35: 63 | W35: 29.95 | X35: Merit+ | Y35: 229 | Z35: 32.64 | AA35: Dist- | AB35: 0
A36: F | B36: 4 | C36: Inner London | D36: LONDON | E36: 206 | F36: Islington | G36: 1180 | H36: 29.33 | I36: 694 | J36: 27.75 | K36: C- | L36: 510 | M36: 29.81 | N36: C | O36: 3.3 | P36: 7.5 | Q36: 510 | R36: 4.1 | S36: 726 | T36: 28.53 | U36: C | V36: 160 | W36: 30.94 | X36: Dist- | Y36: 356 | Z36: 30.57 | AA36: Dist- | AB36: 0
A37: F | B37: 4 | C37: Inner London | D37: LONDON | E37: 207 | F37: Kensington and Chelsea | G37: 524 | H37: 32.86 | I37: 432 | J37: 31.76 | K37: C+ | L37: 290 | M37: 34.95 | N37: C+ | O37: 12.8 | P37: 21 | Q37: 290 | R37: 19 | S37: 432 | T37: 31.81 | U37: C+ | V37: 61 | W37: 35.05 | X37: Dist | Y37: 112 | Z37: 37.24 | AA37: Dist+ | AB37: 0
A38: F | B38: 4 | C38: Inner London | D38: LONDON | E38: 208 | F38: Lambeth | G38: 638 | H38: 31.84 | I38: 443 | J38: 31.74 | K38: C+ | L38: 294 | M38: 33.12 | N38: C+ | O38: 9.2 | P38: 16 | Q38: 294 | R38: 14.3 | S38: 445 | T38: 31.82 | U38: C+ | V38: 99 | W38: 29.24 | X38: Merit+ | Y38: 249 | Z38: 33.03 | AA38: Dist- | AB38: 0
A39: F | B39: 4 | C39: Inner London | D39: LONDON | E39: 209 | F39: Lewisham | G39: 1238 | H39: 27.46 | I39: 953 | J39: 25.25 | K39: C- | L39: 695 | M39: 27.79 | N39: C- | O39: 2.2 | P39: 5.5 | Q39: 690 | R39: 3.8 | S39: 953 | T39: 25.35 | U39: C- | V39: 36 | W39: 26.59 | X39: Merit | Y39: 383 | Z39: 33.98 | AA39: Dist | AB39: 0
A40: F | B40: 4 | C40: Inner London | D40: LONDON | E40: 316 | F40: Newham | G40: 980 | H40: 32.61 | I40: 712 | J40: 32.51 | K40: C+ | L40: 544 | M40: 34.77 | N40: C+ | O40: 9 | P40: 18.8 | Q40: 533 | R40: 14.1 | S40: 722 | T40: 32.48 | U40: C+ | V40: 88 | W40: 31.15 | X40: Dist- | Y40: 281 | Z40: 33.37 | AA40: Dist | AB40: 0
A41: F | B41: 4 | C41: Inner London | D41: LONDON | E41: 210 | F41: Southwark | G41: 477 | H41: 34.26 | I41: 433 | J41: 33.47 | K41: C+ | L41: 287 | M41: 36.63 | N41: B- | O41: 9.4 | P41: 20.6 | Q41: 287 | R41: 13.2 | S41: 436 | T41: 33.42 | U41: C+ | V41: 18 | W41: 40.62 | X41: Dist+ | Y41: 120 | Z41: 37.61 | AA41: Dist+ | AB41: 0
A42: F | B42: 4 | C42: Inner London | D42: LONDON | E42: 211 | F42: Tower Hamlets | G42: 974 | H42: 32 | I42: 729 | J42: 29.3 | K42: C | L42: 493 | M42: 31.64 | N42: C | O42: 3.9 | P42: 8.7 | Q42: 493 | R42: 5.7 | S42: 759 | T42: 29.43 | U42: C | V42: 31 | W42: 32.31 | X42: Dist- | Y42: 353 | Z42: 38.3 | AA42: Dist+ | AB42: 0
A43: F | B43: 4 | C43: Inner London | D43: LONDON | E43: 212 | F43: Wandsworth | G43: 1168 | H43: 30.78 | I43: 858 | J43: 30.02 | K43: C | L43: 595 | M43: 32.95 | N43: C+ | O43: 8.2 | P43: 15.1 | Q43: 594 | R43: 11.3 | S43: 867 | T43: 30.46 | U43: C | V43: 47 | W43: 28.21 | X43: Merit+ | Y43: 402 | Z43: 31.85 | AA43: Dist- | AB43: 0
A44: F | B44: 4 | C44: Inner London | D44: LONDON | E44: 213 | F44: Westminster | G44: 982 | H44: 32.94 | I44: 676 | J44: 32.19 | K44: C+ | L44: 466 | M44: 34.59 | N44: C+ | O44: 8.4 | P44: 18.2 | Q44: 464 | R44: 12.9 | S44: 697 | T44: 32.78 | U44: C+ | V44: 86 | W44: 29.94 | X44: Merit+ | Y44: 296 | Z44: 34.4 | AA44: Dist | AB44: 0
A45: F | B45: 4 | C45: North East | D45: NULL | E45: 840 | F45: County Durham | G45: 1570 | H45: 34.24 | I45: 1087 | J45: 31.9 | K45: C+ | L45: 614 | M45: 36.24 | N45: B- | O45: 10.6 | P45: 21.5 | Q45: 600 | R45: 15.3 | S45: 1088 | T45: 32.03 | U45: C+ | V45: 348 | W45: 35.32 | X45: Dist | Y45: 598 | Z45: 39.5 | AA45: Dist+ | AB45: x
A46: F | B46: 4 | C46: North East | D46: NULL | E46: 841 | F46: Darlington | G46: 746 | H46: 32.82 | I46: 626 | J46: 32.35 | K46: C+ | L46: 544 | M46: 33.17 | N46: C+ | O46: 7.7 | P46: 14.9 | Q46: 515 | R46: 6.8 | S46: 627 | T46: 32.53 | U46: C+ | V46: 71 | W46: 32.12 | X46: Dist- | Y46: 104 | Z46: 36.42 | AA46: Dist | AB46: 0
A47: F | B47: 4 | C47: North East | D47: NULL | E47: 390 | F47: Gateshead | G47: 801 | H47: 34.7 | I47: 537 | J47: 31.72 | K47: C+ | L47: 330 | M47: 34.02 | N47: C+ | O47: 8.8 | P47: 17 | Q47: 320 | R47: 13.8 | S47: 549 | T47: 31.77 | U47: C+ | V47: 75 | W47: 34.42 | X47: Dist | Y47: 377 | Z47: 40.45 | AA47: Dist+ | AB47: 0
A48: F | B48: 4 | C48: North East | D48: NULL | E48: 805 | F48: Hartlepool | G48: 506 | H48: 30.68 | I48: 331 | J48: 27.86 | K48: C- | L48: 192 | M48: 32.31 | N48: C+ | O48: 8.3 | P48: 15.1 | Q48: 191 | R48: 10.5 | S48: 331 | T48: 27.92 | U48: C- | V48: 65 | W48: 33.33 | X48: Dist- | Y48: 211 | Z48: 35.98 | AA48: Dist | AB48: 0
A49: F | B49: 4 | C49: North East | D49: NULL | E49: 806 | F49: Middlesbrough | G49: 825 | H49: 33.52 | I49: 359 | J49: 27.89 | K49: C- | L49: 200 | M49: 30.97 | N49: C | O49: 2.5 | P49: 9 | Q49: 196 | R49: 4.6 | S49: 361 | T49: 27.97 | U49: C- | V49: 236 | W49: 34.25 | X49: Dist | Y49: 351 | Z49: 39.19 | AA49: Dist+ | AB49: 0
A50: F | B50: 4 | C50: North East | D50: NULL | E50: 391 | F50: Newcastle upon Tyne | G50: 1699 | H50: 31.3 | I50: 950 | J50: 29.05 | K50: C | L50: 617 | M50: 31.98 | N50: C+ | O50: 6.6 | P50: 14.7 | Q50: 612 | R50: 9.2 | S50: 968 | T50: 29.12 | U50: C | V50: 350 | W50: 30.74 | X50: Dist- | Y50: 600 | Z50: 36.37 | AA50: Dist | AB50: 0
A51: F | B51: 4 | C51: North East | D51: NULL | E51: 392 | F51: North Tyneside | G51: 637 | H51: 33.3 | I51: 539 | J51: 31.6 | K51: C | L51: 393 | M51: 32.54 | N51: C+ | O51: 8.4 | P51: 16 | Q51: 384 | R51: 13.8 | S51: 540 | T51: 31.67 | U51: C+ | V51: 45 | W51: 29.97 | X51: Merit+ | Y51: 158 | Z51: 42.68 | AA51: Dist*- | AB51: 0
A52: F | B52: 4 | C52: North East | D52: NULL | E52: 929 | F52: Northumberland | G52: 1072 | H52: 33.28 | I52: 850 | J52: 31.15 | K52: C | L52: 503 | M52: 35.82 | N52: B- | O52: 10.9 | P52: 19.3 | Q52: 495 | R52: 12.5 | S52: 855 | T52: 31.18 | U52: C | V52: 187 | W52: 33.86 | X52: Dist | Y52: 367 | Z52: 41.71 | AA52: Dist*- | AB52: 0
A53: F | B53: 4 | C53: North East | D53: NULL | E53: 807 | F53: Redcar and Cleveland | G53: 451 | H53: 32.94 | I53: 371 | J53: 31.95 | K53: C+ | L53: 212 | M53: 33.62 | N53: C+ | O53: 7.1 | P53: 17 | Q53: 210 | R53: 10 | S53: 371 | T53: 31.94 | U53: C+ | V53: 66 | W53: 32.96 | X53: Dist- | Y53: 141 | Z53: 36.79 | AA53: Dist+ | AB53: 0
A54: F | B54: 4 | C54: North East | D54: NULL | E54: 393 | F54: South Tyneside | G54: 316 | H54: 30.01 | I54: 221 | J54: 29.68 | K54: C | L54: 172 | M54: 32.21 | N54: C+ | O54: 6.4 | P54: 9.9 | Q54: 169 | R54: 5.9 | S54: 221 | T54: 29.69 | U54: C | V54: 38 | W54: 27.96 | X54: Merit+ | Y54: 77 | Z54: 32.32 | AA54: Dist- | AB54: 0
A55: F | B55: 4 | C55: North East | D55: NULL | E55: 808 | F55: Stockton-on-Tees | G55: 565 | H55: 31.04 | I55: 424 | J55: 29.78 | K55: C | L55: 271 | M55: 33.11 | N55: C+ | O55: 4.8 | P55: 17.7 | Q55: 260 | R55: 11.9 | S55: 424 | T55: 29.87 | U55: C | V55: 87 | W55: 30.74 | X55: Dist- | Y55: 172 | Z55: 35.91 | AA55: Dist | AB55: 0
A56: F | B56: 4 | C56: North East | D56: NULL | E56: 394 | F56: Sunderland | G56: 831 | H56: 30.32 | I56: 557 | J56: 27.68 | K56: C- | L56: 344 | M56: 31.46 | N56: C | O56: 5.8 | P56: 10.8 | Q56: 343 | R56: 7.6 | S56: 557 | T56: 27.7 | U56: C- | V56: 108 | W56: 34.98 | X56: Dist | Y56: 296 | Z56: 35.74 | AA56: Dist | AB56: 0
A57: F | B57: 4 | C57: North West | D57: NULL | E57: 889 | F57: Blackburn with Darwen | G57: 864 | H57: 31.16 | I57: 507 | J57: 28.76 | K57: C | L57: 307 | M57: 31.7 | N57: C+ | O57: 4.6 | P57: 12.4 | Q57: 307 | R57: 5.2 | S57: 514 | T57: 28.83 | U57: C | V57: 101 | W57: 35.43 | X57: Dist | Y57: 423 | Z57: 33.66 | AA57: Dist | AB57: x
A58: F | B58: 4 | C58: North West | D58: NULL | E58: 890 | F58: Blackpool | G58: 854 | H58: 36.22 | I58: 566 | J58: 30.76 | K58: C | L58: 253 | M58: 35.8 | N58: B- | O58: 7.1 | P58: 16.2 | Q58: 253 | R58: 7.1 | S58: 568 | T58: 30.88 | U58: C | V58: 154 | W58: 38.79 | X58: Dist+ | Y58: 463 | Z58: 43.31 | AA58: Dist*- | AB58: 3
A59: F | B59: 4 | C59: North West | D59: NULL | E59: 350 | F59: Bolton | G59: 855 | H59: 33.48 | I59: 632 | J59: 30.24 | K59: C | L59: 382 | M59: 34.69 | N59: C+ | O59: 7.6 | P59: 15.7 | Q59: 381 | R59: 8.9 | S59: 636 | T59: 30.18 | U59: C | V59: 129 | W59: 37.1 | X59: Dist+ | Y59: 308 | Z59: 41.27 | AA59: Dist+ | AB59: 0
A60: F | B60: 4 | C60: North West | D60: NULL | E60: 351 | F60: Bury | G60: 1203 | H60: 31.88 | I60: 852 | J60: 29.22 | K60: C | L60: 683 | M60: 32.06 | N60: C+ | O60: 5.7 | P60: 13.6 | Q60: 683 | R60: 5.9 | S60: 852 | T60: 29.36 | U60: C | V60: 132 | W60: 30.91 | X60: Dist- | Y60: 317 | Z60: 40.32 | AA60: Dist+ | AB60: 0
A61: F | B61: 4 | C61: North West | D61: NULL | E61: 895 | F61: Cheshire East | G61: 1719 | H61: 33.15 | I61: 1148 | J61: 32.01 | K61: C+ | L61: 884 | M61: 34.98 | N61: C+ | O61: 10.4 | P61: 18 | Q61: 879 | R61: 12.2 | S61: 1163 | T61: 32.14 | U61: C+ | V61: 397 | W61: 32.33 | X61: Dist- | Y61: 343 | Z61: 38.77 | AA61: Dist+ | AB61: 0
A62: F | B62: 4 | C62: North West | D62: NULL | E62: 896 | F62: Cheshire West and Chester | G62: 1634 | H62: 32.97 | I62: 1293 | J62: 32.84 | K62: C+ | L62: 982 | M62: 36.32 | N62: B- | O62: 12.2 | P62: 22.6 | Q62: 979 | R62: 13 | S62: 1293 | T62: 32.92 | U62: C+ | V62: 212 | W62: 30.85 | X62: Dist- | Y62: 330 | Z62: 34.92 | AA62: Dist | AB62: 0
A63: F | B63: 4 | C63: North West | D63: NULL | E63: 909 | F63: Cumbria | G63: 1748 | H63: 32.92 | I63: 1400 | J63: 31.54 | K63: C | L63: 970 | M63: 34.39 | N63: C+ | O63: 11.8 | P63: 19.4 | Q63: 952 | R63: 14 | S63: 1430 | T63: 31.76 | U63: C+ | V63: 148 | W63: 32.49 | X63: Dist- | Y63: 527 | Z63: 38.38 | AA63: Dist+ | AB63: 0
A64: F | B64: 4 | C64: North West | D64: NULL | E64: 876 | F64: Halton | G64: 489 | H64: 34.28 | I64: 261 | J64: 28.39 | K64: C | L64: 163 | M64: 31.88 | N64: C+ | O64: 4.9 | P64: 9.8 | Q64: 162 | R64: 5.6 | S64: 261 | T64: 28.43 | U64: C | V64: 95 | W64: 37.98 | X64: Dist+ | Y64: 194 | Z64: 41.44 | AA64: Dist+ | AB64: 0
A65: F | B65: 4 | C65: North West | D65: NULL | E65: 340 | F65: Knowsley | G65: 173 | H65: 29.62 | I65: 48 | J65: 14.63 | K65: E+ | L65: 9 | M65: 22.59 | N65: D+ | O65: 0 | P65: 0 | Q65: 9 | R65: 0 | S65: 48 | T65: 14.86 | U65: E+ | V65: 22 | W65: 27.94 | X65: Merit+ | Y65: 122 | Z65: 34.04 | AA65: Dist | AB65: 0
A66: F | B66: 4 | C66: North West | D66: NULL | E66: 888 | F66: Lancashire | G66: 4230 | H66: 35.35 | I66: 2980 | J66: 33.79 | K66: C+ | L66: 2250 | M66: 37.26 | N66: B- | O66: 14.2 | P66: 24.8 | Q66: 2247 | R66: 14.2 | S66: 2992 | T66: 33.87 | U66: C+ | V66: 639 | W66: 35.32 | X66: Dist | Y66: 1127 | Z66: 40.6 | AA66: Dist+ | AB66: x
A67: F | B67: 4 | C67: North West | D67: NULL | E67: 341 | F67: Liverpool | G67: 2049 | H67: 29.91 | I67: 1486 | J67: 28.31 | K67: C- | L67: 877 | M67: 31.87 | N67: C+ | O67: 6.8 | P67: 13.1 | Q67: 851 | R67: 10.5 | S67: 1511 | T67: 28.43 | U67: C | V67: 290 | W67: 28.09 | X67: Merit+ | Y67: 756 | Z67: 35 | AA67: Dist | AB67: 0
A68: F | B68: 4 | C68: North West | D68: NULL | E68: 352 | F68: Manchester | G68: 2515 | H68: 32.65 | I68: 1895 | J68: 32.37 | K68: C+ | L68: 1511 | M68: 35.8 | N68: B- | O68: 9.3 | P68: 18.8 | Q68: 1504 | R68: 10.7 | S68: 1898 | T68: 32.38 | U68: C+ | V68: 158 | W68: 31.59 | X68: Dist- | Y68: 692 | Z68: 34.2 | AA68: Dist | AB68: 0
A69: F | B69: 4 | C69: North West | D69: NULL | E69: 353 | F69: Oldham | G69: 943 | H69: 32.85 | I69: 706 | J69: 30.83 | K69: C | L69: 545 | M69: 34.89 | N69: C+ | O69: 8.6 | P69: 16.1 | Q69: 543 | R69: 9.8 | S69: 706 | T69: 30.89 | U69: C | V69: 101 | W69: 37.75 | X69: Dist+ | Y69: 266 | Z69: 38.67 | AA69: Dist+ | AB69: 0
A70: F | B70: 4 | C70: North West | D70: NULL | E70: 354 | F70: Rochdale | G70: 681 | H70: 32.89 | I70: 480 | J70: 32.19 | K70: C+ | L70: 394 | M70: 35.42 | N70: B- | O70: 6.6 | P70: 17.5 | Q70: 383 | R70: 7 | S70: 480 | T70: 32.29 | U70: C+ | V70: 135 | W70: 32.88 | X70: Dist- | Y70: 123 | Z70: 36.66 | AA70: Dist | AB70: 0
A71: F | B71: 4 | C71: North West | D71: NULL | E71: 355 | F71: Salford | G71: 1025 | H71: 33.4 | I71: 387 | J71: 28.34 | K71: C | L71: 252 | M71: 32.3 | N71: C+ | O71: 4 | P71: 8.3 | Q71: 250 | R71: 2.4 | S71: 387 | T71: 28.34 | U71: C | V71: 288 | W71: 32.41 | X71: Dist- | Y71: 438 | Z71: 38.55 | AA71: Dist+ | AB71: 0
A72: F | B72: 4 | C72: North West | D72: NULL | E72: 343 | F72: Sefton | G72: 1047 | H72: 31.88 | I72: 817 | J72: 29.35 | K72: C | L72: 465 | M72: 34.06 | N72: C+ | O72: 8.4 | P72: 16.3 | Q72: 455 | R72: 11 | S72: 819 | T72: 29.43 | U72: C | V72: 141 | W72: 31.46 | X72: Dist- | Y72: 402 | Z72: 39.7 | AA72: Dist+ | AB72: 0
A73: F | B73: 4 | C73: North West | D73: NULL | E73: 342 | F73: St. Helens | G73: 897 | H73: 33.64 | I73: 700 | J73: 30.95 | K73: C | L73: 462 | M73: 34.73 | N73: C+ | O73: 6.7 | P73: 14.9 | Q73: 460 | R73: 7.2 | S73: 704 | T73: 31.06 | U73: C | V73: 91 | W73: 36.23 | X73: Dist | Y73: 292 | Z73: 40.99 | AA73: Dist+ | AB73: 0
A74: F | B74: 4 | C74: North West | D74: NULL | E74: 356 | F74: Stockport | G74: 1030 | H74: 33.13 | I74: 805 | J74: 31.68 | K74: C+ | L74: 497 | M74: 34.71 | N74: C+ | O74: 10.1 | P74: 18.7 | Q74: 492 | R74: 10.4 | S74: 805 | T74: 31.8 | U74: C+ | V74: 173 | W74: 37.68 | X74: Dist+ | Y74: 327 | Z74: 35.78 | AA74: Dist | AB74: x
A75: F | B75: 4 | C75: North West | D75: NULL | E75: 357 | F75: Tameside | G75: 728 | H75: 31.37 | I75: 481 | J75: 29.05 | K75: C | L75: 356 | M75: 32.69 | N75: C+ | O75: 4.8 | P75: 11 | Q75: 355 | R75: 6.2 | S75: 481 | T75: 29.07 | U75: C | V75: 118 | W75: 35.09 | X75: Dist | Y75: 211 | Z75: 37.29 | AA75: Dist+ | AB75: 0
A76: F | B76: 4 | C76: North West | D76: NULL | E76: 358 | F76: Trafford | G76: 950 | H76: 36.56 | I76: 753 | J76: 37.27 | K76: B- | L76: 651 | M76: 40.19 | N76: B | O76: 25.2 | P76: 38.7 | Q76: 651 | R76: 27.6 | S76: 756 | T76: 37.41 | U76: B- | V76: 141 | W76: 29.67 | X76: Merit+ | Y76: 121 | Z76: 34.72 | AA76: Dist | AB76: x
A77: F | B77: 4 | C77: North West | D77: NULL | E77: 877 | F77: Warrington | G77: 838 | H77: 31.4 | I77: 666 | J77: 29.41 | K77: C | L77: 400 | M77: 32.27 | N77: C+ | O77: 5.3 | P77: 12.8 | Q77: 391 | R77: 7.7 | S77: 673 | T77: 29.51 | U77: C | V77: 152 | W77: 34.1 | X77: Dist | Y77: 270 | Z77: 36.8 | AA77: Dist+ | AB77: 0
A78: F | B78: 4 | C78: North West | D78: NULL | E78: 359 | F78: Wigan | G78: 1295 | H78: 35.14 | I78: 996 | J78: 34.17 | K78: C+ | L78: 774 | M78: 36.87 | N78: B- | O78: 11.5 | P78: 21.1 | Q78: 774 | R78: 12.8 | S78: 996 | T78: 34.3 | U78: C+ | V78: 182 | W78: 35.02 | X78: Dist | Y78: 289 | Z78: 39.47 | AA78: Dist+ | AB78: x
A79: F | B79: 4 | C79: North West | D79: NULL | E79: 344 | F79: Wirral | G79: 1345 | H79: 33.96 | I79: 1206 | J79: 33.03 | K79: C+ | L79: 870 | M79: 36.07 | N79: B- | O79: 12.4 | P79: 22 | Q79: 859 | R79: 13.9 | S79: 1206 | T79: 33.17 | U79: C+ | V79: 68 | W79: 28.96 | X79: Merit+ | Y79: 357 | Z79: 39.8 | AA79: Dist+ | AB79: 0
A80: F | B80: 4 | C80: Outer London | D80: LONDON | E80: 301 | F80: Barking and Dagenham | G80: 778 | H80: 30.65 | I80: 515 | J80: 29.25 | K80: C | L80: 318 | M80: 31.92 | N80: C+ | O80: 2.8 | P80: 9.4 | Q80: 317 | R80: 5.7 | S80: 517 | T80: 29.37 | U80: C | V80: 102 | W80: 26.55 | X80: Merit | Y80: 292 | Z80: 35.3 | AA80: Dist | AB80: 0
A81: F | B81: 4 | C81: Outer London | D81: LONDON | E81: 302 | F81: Barnet | G81: 1808 | H81: 34.63 | I81: 1648 | J81: 34.71 | K81: C+ | L81: 1406 | M81: 36.87 | N81: B- | O81: 14.9 | P81: 24.8 | Q81: 1405 | R81: 20.4 | S81: 1648 | T81: 34.78 | U81: C+ | V81: 60 | W81: 33.21 | X81: Dist- | Y81: 201 | Z81: 32.74 | AA81: Dist- | AB81: 0
A82: F | B82: 4 | C82: Outer London | D82: LONDON | E82: 303 | F82: Bexley | G82: 905 | H82: 33.52 | I82: 772 | J82: 32.61 | K82: C+ | L82: 544 | M82: 36.14 | N82: B- | O82: 10.8 | P82: 20.6 | Q82: 543 | R82: 12.5 | S82: 804 | T82: 32.94 | U82: C+ | V82: 61 | W82: 30.58 | X82: Dist- | Y82: 233 | Z82: 37.92 | AA82: Dist+ | AB82: 0
A83: F | B83: 4 | C83: Outer London | D83: LONDON | E83: 304 | F83: Brent | G83: 893 | H83: 31.3 | I83: 785 | J83: 31.04 | K83: C | L83: 540 | M83: 34.89 | N83: C+ | O83: 12.2 | P83: 23.5 | Q83: 538 | R83: 16.5 | S83: 785 | T83: 31.16 | U83: C | V83: 33 | W83: 30.82 | X83: Dist- | Y83: 190 | Z83: 32.22 | AA83: Dist- | AB83: 0
A84: F | B84: 4 | C84: Outer London | D84: LONDON | E84: 305 | F84: Bromley | G84: 1686 | H84: 33.75 | I84: 1447 | J84: 33.44 | K84: C+ | L84: 992 | M84: 36.82 | N84: B- | O84: 14.4 | P84: 24.2 | Q84: 989 | R84: 17.1 | S84: 1452 | T84: 33.52 | U84: C+ | V84: 174 | W84: 30.76 | X84: Dist- | Y84: 429 | Z84: 36.42 | AA84: Dist | AB84: 0
A85: F | B85: 4 | C85: Outer London | D85: LONDON | E85: 306 | F85: Croydon | G85: 1537 | H85: 33.55 | I85: 1037 | J85: 29.2 | K85: C | L85: 526 | M85: 32.62 | N85: C+ | O85: 4.6 | P85: 12.2 | Q85: 525 | R85: 8.4 | S85: 1044 | T85: 29.23 | U85: C | V85: 248 | W85: 39.63 | X85: Dist+ | Y85: 703 | Z85: 38.25 | AA85: Dist+ | AB85: 0
A86: F | B86: 4 | C86: Outer London | D86: LONDON | E86: 307 | F86: Ealing | G86: 1021 | H86: 33.29 | I86: 913 | J86: 32.34 | K86: C+ | L86: 716 | M86: 34.75 | N86: C+ | O86: 9.5 | P86: 17.9 | Q86: 705 | R86: 13.5 | S86: 914 | T86: 32.44 | U86: C+ | V86: 30 | W86: 36.71 | X86: Dist+ | Y86: 176 | Z86: 38.71 | AA86: Dist+ | AB86: 0
A87: F | B87: 4 | C87: Outer London | D87: LONDON | E87: 308 | F87: Enfield | G87: 1040 | H87: 32.26 | I87: 882 | J87: 30.69 | K87: C | L87: 572 | M87: 33.86 | N87: C+ | O87: 10 | P87: 16.3 | Q87: 567 | R87: 12.2 | S87: 883 | T87: 30.68 | U87: C | V87: 117 | W87: 33.38 | X87: Dist | Y87: 262 | Z87: 39.59 | AA87: Dist+ | AB87: 0
A88: F | B88: 4 | C88: Outer London | D88: LONDON | E88: 203 | F88: Greenwich | G88: 720 | H88: 30.85 | I88: 580 | J88: 28.13 | K88: C- | L88: 315 | M88: 30.8 | N88: C | O88: 3.8 | P88: 7.9 | Q88: 314 | R88: 5.1 | S88: 597 | T88: 28.23 | U88: C- | V88: 60 | W88: 40.19 | X88: Dist+ | Y88: 279 | Z88: 35.87 | AA88: Dist | AB88: 0
A89: F | B89: 4 | C89: Outer London | D89: LONDON | E89: 310 | F89: Harrow | G89: 1308 | H89: 32.46 | I89: 1008 | J89: 31.56 | K89: C | L89: 793 | M89: 35.64 | N89: B- | O89: 9.7 | P89: 19.2 | Q89: 793 | R89: 13.1 | S89: 1010 | T89: 31.66 | U89: C | V89: 49 | W89: 33.29 | X89: Dist- | Y89: 372 | Z89: 35.24 | AA89: Dist | AB89: 0
A90: F | B90: 4 | C90: Outer London | D90: LONDON | E90: 311 | F90: Havering | G90: 1199 | H90: 29.18 | I90: 946 | J90: 28.88 | K90: C | L90: 683 | M90: 30.13 | N90: C | O90: 5.9 | P90: 11.6 | Q90: 676 | R90: 7.1 | S90: 946 | T90: 28.93 | U90: C | V90: 168 | W90: 28.54 | X90: Merit+ | Y90: 299 | Z90: 30.97 | AA90: Dist- | AB90: 0
A91: F | B91: 4 | C91: Outer London | D91: LONDON | E91: 312 | F91: Hillingdon | G91: 1325 | H91: 30.66 | I91: 987 | J91: 29.16 | K91: C | L91: 657 | M91: 32.74 | N91: C+ | O91: 5.5 | P91: 11.4 | Q91: 653 | R91: 7.2 | S91: 988 | T91: 29.26 | U91: C | V91: 192 | W91: 31.99 | X91: Dist- | Y91: 398 | Z91: 34.78 | AA91: Dist | AB91: 0
A92: F | B92: 4 | C92: Outer London | D92: LONDON | E92: 313 | F92: Hounslow | G92: 1070 | H92: 31.08 | I92: 871 | J92: 30.72 | K92: C | L92: 615 | M92: 33.54 | N92: C+ | O92: 6.2 | P92: 13.2 | Q92: 612 | R92: 9.3 | S92: 872 | T92: 30.8 | U92: C | V92: 62 | W92: 30.96 | X92: Dist- | Y92: 270 | Z92: 32.46 | AA92: Dist- | AB92: 0
A93: F | B93: 4 | C93: Outer London | D93: LONDON | E93: 314 | F93: Kingston upon Thames | G93: 946 | H93: 34.02 | I93: 659 | J93: 35.03 | K93: B- | L93: 496 | M93: 37.31 | N93: B- | O93: 22 | P93: 29.6 | Q93: 494 | R93: 27.7 | S93: 659 | T93: 35.26 | U93: B- | V93: 158 | W93: 29.07 | X93: Merit+ | Y93: 204 | Z93: 31.9 | AA93: Dist- | AB93: 0
A94: F | B94: 4 | C94: Outer London | D94: LONDON | E94: 315 | F94: Merton | G94: 329 | H94: 34.68 | I94: 302 | J94: 32.82 | K94: C+ | L94: 186 | M94: 34.98 | N94: C+ | O94: 6.5 | P94: 16.1 | Q94: 185 | R94: 13.5 | S94: 302 | T94: 32.86 | U94: C+ | V94: 19 | W94: 39.44 | X94: Dist+ | Y94: 116 | Z94: 41.48 | AA94: Dist+ | AB94: 0
A95: F | B95: 4 | C95: Outer London | D95: LONDON | E95: 317 | F95: Redbridge | G95: 1594 | H95: 32.19 | I95: 1448 | J95: 31.74 | K95: C+ | L95: 1171 | M95: 34.45 | N95: C+ | O95: 9.9 | P95: 17.7 | Q95: 1166 | R95: 13.7 | S95: 1450 | T95: 31.77 | U95: C+ | V95: 76 | W95: 28.88 | X95: Merit+ | Y95: 224 | Z95: 37.71 | AA95: Dist+ | AB95: 0
A96: F | B96: 4 | C96: Outer London | D96: LONDON | E96: 318 | F96: Richmond upon Thames | G96: 705 | H96: 29.55 | I96: 538 | J96: 29.22 | K96: C | L96: 361 | M96: 33.27 | N96: C+ | O96: 11.1 | P96: 16.1 | Q96: 361 | R96: 13.6 | S96: 560 | T96: 29.52 | U96: C | V96: 57 | W96: 32.4 | X96: Dist- | Y96: 175 | Z96: 28.89 | AA96: Merit+ | AB96: 0
A97: F | B97: 4 | C97: Outer London | D97: LONDON | E97: 319 | F97: Sutton | G97: 1152 | H97: 37.58 | I97: 1065 | J97: 37.14 | K97: B- | L97: 832 | M97: 39.98 | N97: B | O97: 19.2 | P97: 33.8 | Q97: 831 | R97: 26 | S97: 1065 | T97: 37.3 | U97: B- | V97: 85 | W97: 39.51 | X97: Dist+ | Y97: 219 | Z97: 39.58 | AA97: Dist+ | AB97: 0
A98: F | B98: 4 | C98: Outer London | D98: LONDON | E98: 320 | F98: Waltham Forest | G98: 1401 | H98: 28.56 | I98: 898 | J98: 26.2 | K98: C- | L98: 586 | M98: 29.92 | N98: C | O98: 2.6 | P98: 7.2 | Q98: 586 | R98: 4.3 | S98: 904 | T98: 26.23 | U98: C- | V98: 199 | W98: 28.19 | X98: Merit+ | Y98: 547 | Z98: 33.5 | AA98: Dist | AB98: x
A99: F | B99: 4 | C99: South East | D99: NULL | E99: 867 | F99: Bracknell Forest | G99: 417 | H99: 31.97 | I99: 318 | J99: 29.87 | K99: C | L99: 197 | M99: 32.01 | N99: C+ | O99: 6.6 | P99: 12.7 | Q99: 195 | R99: 6.2 | S99: 319 | T99: 29.87 | U99: C | V99: 77 | W99: 34.58 | X99: Dist | Y99: 110 | Z99: 38.73 | AA99: Dist+ | AB99: 0
A100: F | B100: 4 | C100: South East | D100: NULL | E100: 846 | F100: Brighton and Hove | G100: 1560 | H100: 35.57 | I100: 1178 | J100: 34.95 | K100: C+ | L100: 841 | M100: 37.13 | N100: B- | O100: 14.6 | P100: 26.5 | Q100: 839 | R100: 14.8 | S100: 1218 | T100: 35.5 | U100: B- | V100: 149 | W100: 32.51 | X100: Dist- | Y100: 454 | Z100: 36.88 | AA100: Dist+ | AB100: 0
A101: F | B101: 4 | C101: South East | D101: NULL | E101: 825 | F101: Buckinghamshire | G101: 2236 | H101: 36.74 | I101: 1904 | J101: 36.81 | K101: B- | L101: 1468 | M101: 39.29 | N101: B | O101: 19.5 | P101: 32.6 | Q101: 1460 | R101: 26 | S101: 1918 | T101: 37.06 | U101: B- | V101: 176 | W101: 34.75 | X101: Dist | Y101: 422 | Z101: 35.47 | AA101: Dist | AB101: 0
A102: F | B102: 4 | C102: South East | D102: NULL | E102: 845 | F102: East Sussex | G102: 1891 | H102: 31.85 | I102: 1364 | J102: 30.3 | K102: C | L102: 771 | M102: 31.67 | N102: C+ | O102: 5.6 | P102: 13.9 | Q102: 748 | R102: 7.8 | S102: 1367 | T102: 30.4 | U102: C | V102: 383 | W102: 32.2 | X102: Dist- | Y102: 591 | Z102: 36.65 | AA102: Dist | AB102: 0
A103: F | B103: 4 | C103: South East | D103: NULL | E103: 850 | F103: Hampshire | G103: 7047 | H103: 33.74 | I103: 5411 | J103: 33.28 | K103: C+ | L103: 4014 | M103: 35.79 | N103: B- | O103: 10.9 | P103: 20.6 | Q103: 4000 | R103: 12.9 | S103: 5415 | T103: 33.42 | U103: C+ | V103: 1163 | W103: 31.45 | X103: Dist- | Y103: 1494 | Z103: 37.86 | AA103: Dist+ | AB103: 5
A104: F | B104: 4 | C104: South East | D104: NULL | E104: 921 | F104: Isle of Wight | G104: 431 | H104: 29.68 | I104: 349 | J104: 27.15 | K104: C- | L104: 207 | M104: 30.48 | N104: C | O104: 4.8 | P104: 10.6 | Q104: 207 | R104: 5.8 | S104: 349 | T104: 27.2 | U104: C- | V104: 58 | W104: 35.86 | X104: Dist | Y104: 123 | Z104: 36.05 | AA104: Dist | AB104: 0
A105: F | B105: 4 | C105: South East | D105: NULL | E105: 886 | F105: Kent | G105: 6458 | H105: 33.47 | I105: 4478 | J105: 31.91 | K105: C+ | L105: 2944 | M105: 35.59 | N105: B- | O105: 11.1 | P105: 21.1 | Q105: 2901 | R105: 14.9 | S105: 4847 | T105: 33.19 | U105: C+ | V105: 1146 | W105: 29.95 | X105: Merit+ | Y105: 1894 | Z105: 37.05 | AA105: Dist+ | AB105: 0
A106: F | B106: 4 | C106: South East | D106: NULL | E106: 887 | F106: Medway | G106: 1266 | H106: 32.23 | I106: 863 | J106: 29.96 | K106: C | L106: 548 | M106: 33.31 | N106: C+ | O106: 10.6 | P106: 16.8 | Q106: 540 | R106: 10.2 | S106: 899 | T106: 31.27 | U106: C | V106: 241 | W106: 30.31 | X106: Dist- | Y106: 493 | Z106: 36.68 | AA106: Dist+ | AB106: 0
A107: F | B107: 4 | C107: South East | D107: NULL | E107: 826 | F107: Milton Keynes | G107: 1041 | H107: 30.97 | I107: 832 | J107: 29.52 | K107: C | L107: 505 | M107: 31.88 | N107: C+ | O107: 5.3 | P107: 12.3 | Q107: 490 | R107: 8 | S107: 846 | T107: 29.85 | U107: C | V107: 73 | W107: 33.17 | X107: Dist- | Y107: 429 | Z107: 33.95 | AA107: Dist | AB107: 0
A108: F | B108: 4 | C108: South East | D108: NULL | E108: 931 | F108: Oxfordshire | G108: 2794 | H108: 31.95 | I108: 2027 | J108: 31.2 | K108: C | L108: 1515 | M108: 34.08 | N108: C+ | O108: 9.8 | P108: 17.7 | Q108: 1511 | R108: 13 | S108: 2032 | T108: 31.32 | U108: C | V108: 348 | W108: 29.24 | X108: Merit+ | Y108: 671 | Z108: 36.13 | AA108: Dist | AB108: x
A109: F | B109: 4 | C109: South East | D109: NULL | E109: 851 | F109: Portsmouth | G109: 298 | H109: 30.82 | I109: 205 | J109: 27.74 | K109: C- | L109: 131 | M109: 29.75 | N109: C | O109: 1.5 | P109: 4.6 | Q109: 130 | R109: 1.5 | S109: 206 | T109: 27.74 | U109: C- | V109: 42 | W109: 30.67 | X109: Dist- | Y109: 102 | Z109: 39.59 | AA109: Dist+ | AB109: 0
A110: F | B110: 4 | C110: South East | D110: NULL | E110: 870 | F110: Reading | G110: 308 | H110: 38.52 | I110: 282 | J110: 38.06 | K110: B- | L110: 199 | M110: 41.54 | N110: B | O110: 37.7 | P110: 45.2 | Q110: 199 | R110: 44.7 | S110: 283 | T110: 38.16 | U110: B- | V110: 17 | W110: 44.22 | X110: Dist*- | Y110: 60 | Z110: 39.49 | AA110: Dist+ | AB110: 0
A111: F | B111: 4 | C111: South East | D111: NULL | E111: 871 | F111: Slough | G111: 862 | H111: 29.81 | I111: 694 | J111: 29.55 | K111: C | L111: 474 | M111: 33.04 | N111: C+ | O111: 8.2 | P111: 14.1 | Q111: 473 | R111: 12.9 | S111: 694 | T111: 29.63 | U111: C | V111: 110 | W111: 28.1 | X111: Merit+ | Y111: 204 | Z111: 31.64 | AA111: Dist- | AB111: 0
A112: F | B112: 4 | C112: South East | D112: NULL | E112: 852 | F112: Southampton | G112: 717 | H112: 28.85 | I112: 590 | J112: 27.1 | K112: C- | L112: 319 | M112: 29.41 | N112: C | O112: 4.1 | P112: 7.8 | Q112: 305 | R112: 5.6 | S112: 590 | T112: 27.23 | U112: C- | V112: 127 | W112: 34.23 | X112: Dist | Y112: 248 | Z112: 32.99 | AA112: Dist- | AB112: 0
A113: F | B113: 4 | C113: South East | D113: NULL | E113: 936 | F113: Surrey | G113: 4866 | H113: 33.9 | I113: 3982 | J113: 33.52 | K113: C+ | L113: 2892 | M113: 36.32 | N113: B- | O113: 10.9 | P113: 21.9 | Q113: 2882 | R113: 13.6 | S113: 3982 | T113: 33.7 | U113: C+ | V113: 753 | W113: 31.91 | X113: Dist- | Y113: 1147 | Z113: 36.71 | AA113: Dist+ | AB113: x
A114: F | B114: 4 | C114: South East | D114: NULL | E114: 869 | F114: West Berkshire | G114: 675 | H114: 33.21 | I114: 621 | J114: 32.62 | K114: C+ | L114: 451 | M114: 35.74 | N114: B- | O114: 10.2 | P114: 21.1 | Q114: 441 | R114: 14.5 | S114: 622 | T114: 32.71 | U114: C+ | V114: 46 | W114: 30.6 | X114: Dist- | Y114: 128 | Z114: 38.88 | AA114: Dist+ | AB114: 0
A115: F | B115: 4 | C115: South East | D115: NULL | E115: 938 | F115: West Sussex | G115: 2933 | H115: 32.55 | I115: 2330 | J115: 31.59 | K115: C | L115: 1560 | M115: 33.35 | N115: C+ | O115: 9.1 | P115: 16.5 | Q115: 1539 | R115: 11 | S115: 2330 | T115: 31.72 | U115: C+ | V115: 344 | W115: 32.75 | X115: Dist- | Y115: 855 | Z115: 36.08 | AA115: Dist | AB115: 0
A116: F | B116: 4 | C116: South East | D116: NULL | E116: 868 | F116: Windsor and Maidenhead | G116: 589 | H116: 31.26 | I116: 417 | J116: 31.02 | K116: C | L116: 296 | M116: 34.08 | N116: C+ | O116: 7.4 | P116: 17.2 | Q116: 295 | R116: 13.2 | S116: 420 | T116: 31.06 | U116: C | V116: 156 | W116: 29.2 | X116: Merit+ | Y116: 97 | Z116: 36.91 | AA116: Dist+ | AB116: 0
A117: F | B117: 4 | C117: South East | D117: NULL | E117: 872 | F117: Wokingham | G117: 530 | H117: 32.85 | I117: 519 | J117: 32.17 | K117: C+ | L117: 409 | M117: 35.07 | N117: B- | O117: 9.8 | P117: 18.3 | Q117: 408 | R117: 12.7 | S117: 519 | T117: 32.31 | U117: C+ | V117: 20 | W117: 36 | X117: Dist | Y117: 64 | Z117: 40.51 | AA117: Dist+ | AB117: 0
A118: F | B118: 4 | C118: South West | D118: NULL | E118: 800 | F118: Bath and North East Somerset | G118: 763 | H118: 32.33 | I118: 572 | J118: 31.63 | K118: C | L118: 422 | M118: 34.19 | N118: C+ | O118: 9 | P118: 17.8 | Q118: 420 | R118: 13.1 | S118: 575 | T118: 31.79 | U118: C+ | V118: 107 | W118: 28.46 | X118: Merit+ | Y118: 209 | Z118: 36.9 | AA118: Dist+ | AB118: 0
A119: F | B119: 4 | C119: South West | D119: NULL | E119: 837 | F119: Bournemouth | G119: 446 | H119: 33.33 | I119: 399 | J119: 33.11 | K119: C+ | L119: 301 | M119: 35.96 | N119: B- | O119: 14 | P119: 24.9 | Q119: 299 | R119: 16.7 | S119: 399 | T119: 33.23 | U119: C+ | V119: 24 | W119: 31.13 | X119: Dist- | Y119: 82 | Z119: 34.6 | AA119: Dist | AB119: 0
A120: F | B120: 4 | C120: South West | D120: NULL | E120: 801 | F120: Bristol, City of | G120: 1484 | H120: 31.32 | I120: 1192 | J120: 31.1 | K120: C | L120: 831 | M120: 32.82 | N120: C+ | O120: 7.7 | P120: 15.3 | Q120: 828 | R120: 9.8 | S120: 1192 | T120: 31.29 | U120: C | V120: 195 | W120: 27.99 | X120: Merit+ | Y120: 304 | Z120: 34.32 | AA120: Dist | AB120: 0
A121: F | B121: 4 | C121: South West | D121: NULL | E121: 908 | F121: Cornwall | G121: 2150 | H121: 34.67 | I121: 1406 | J121: 32.65 | K121: C+ | L121: 943 | M121: 35.74 | N121: B- | O121: 10.5 | P121: 20.1 | Q121: 930 | R121: 12.4 | S121: 1446 | T121: 33.32 | U121: C+ | V121: 376 | W121: 30.12 | X121: Dist- | Y121: 722 | Z121: 40.19 | AA121: Dist+ | AB121: 0
A122: F | B122: 4 | C122: South West | D122: NULL | E122: 878 | F122: Devon | G122: 2730 | H122: 32.97 | I122: 2008 | J122: 31.77 | K122: C+ | L122: 1342 | M122: 33.98 | N122: C+ | O122: 10.6 | P122: 18.3 | Q122: 1333 | R122: 13.4 | S122: 2032 | T122: 32.04 | U122: C+ | V122: 439 | W122: 31.4 | X122: Dist- | Y122: 830 | Z122: 37.47 | AA122: Dist+ | AB122: 0
A123: F | B123: 4 | C123: South West | D123: NULL | E123: 835 | F123: Dorset | G123: 1624 | H123: 31.91 | I123: 1366 | J123: 31.44 | K123: C | L123: 1010 | M123: 33.46 | N123: C+ | O123: 9.8 | P123: 17 | Q123: 1007 | R123: 11.1 | S123: 1367 | T123: 31.63 | U123: C | V123: 153 | W123: 26.1 | X123: Merit | Y123: 304 | Z123: 37.1 | AA123: Dist+ | AB123: 0
A124: F | B124: 4 | C124: South West | D124: NULL | E124: 916 | F124: Gloucestershire | G124: 2729 | H124: 33.81 | I124: 2250 | J124: 33.06 | K124: C+ | L124: 1639 | M124: 36.21 | N124: B- | O124: 12.9 | P124: 24 | Q124: 1624 | R124: 16.6 | S124: 2251 | T124: 33.23 | U124: C+ | V124: 394 | W124: 34 | X124: Dist | Y124: 466 | Z124: 38.27 | AA124: Dist+ | AB124: 0
A125: F | B125: 4 | C125: South West | D125: NULL | E125: 802 | F125: North Somerset | G125: 812 | H125: 32.28 | I125: 533 | J125: 31.18 | K125: C | L125: 364 | M125: 33.78 | N125: C+ | O125: 11 | P125: 20.6 | Q125: 358 | R125: 15.1 | S125: 533 | T125: 31.28 | U125: C | V125: 142 | W125: 32.94 | X125: Dist- | Y125: 258 | Z125: 35 | AA125: Dist | AB125: 0
A126: F | B126: 4 | C126: South West | D126: NULL | E126: 879 | F126: Plymouth | G126: 1030 | H126: 31.87 | I126: 795 | J126: 30.82 | K126: C | L126: 502 | M126: 32.58 | N126: C+ | O126: 9.6 | P126: 15.5 | Q126: 495 | R126: 12.3 | S126: 796 | T126: 30.88 | U126: C | V126: 126 | W126: 30.95 | X126: Dist- | Y126: 330 | Z126: 35.79 | AA126: Dist | AB126: 0
A127: F | B127: 4 | C127: South West | D127: NULL | E127: 836 | F127: Poole | G127: 847 | H127: 31.36 | I127: 525 | J127: 31.64 | K127: C | L127: 372 | M127: 35.2 | N127: B- | O127: 11 | P127: 22.3 | Q127: 368 | R127: 13.6 | S127: 540 | T127: 31.55 | U127: C | V127: 182 | W127: 30.22 | X127: Dist- | Y127: 221 | Z127: 31.63 | AA127: Dist- | AB127: 0
A128: F | B128: 4 | C128: South West | D128: NULL | E128: 933 | F128: Somerset | G128: 2117 | H128: 32.46 | I128: 1426 | J128: 31.6 | K128: C | L128: 1031 | M128: 33.89 | N128: C+ | O128: 8.3 | P128: 17.9 | Q128: 1028 | R128: 12 | S128: 1462 | T128: 31.85 | U128: C+ | V128: 426 | W128: 29.71 | X128: Merit+ | Y128: 516 | Z128: 37.14 | AA128: Dist+ | AB128: 0
A129: F | B129: 4 | C129: South West | D129: NULL | E129: 803 | F129: South Gloucestershire | G129: 1117 | H129: 31.43 | I129: 740 | J129: 30.19 | K129: C | L129: 445 | M129: 32.69 | N129: C+ | O129: 8.3 | P129: 14.4 | Q129: 438 | R129: 8.7 | S129: 741 | T129: 30.27 | U129: C | V129: 88 | W129: 33.37 | X129: Dist | Y129: 490 | Z129: 33.7 | AA129: Dist | AB129: 0
A130: F | B130: 4 | C130: South West | D130: NULL | E130: 866 | F130: Swindon | G130: 827 | H130: 29.21 | I130: 525 | J130: 28.08 | K130: C- | L130: 293 | M130: 28.35 | N130: C | O130: 5.5 | P130: 10.9 | Q130: 283 | R130: 7.4 | S130: 530 | T130: 28.2 | U130: C- | V130: 163 | W130: 26.64 | X130: Merit | Y130: 285 | Z130: 33.27 | AA130: Dist- | AB130: 0
A131: F | B131: 4 | C131: South West | D131: NULL | E131: 880 | F131: Torbay | G131: 696 | H131: 33.45 | I131: 449 | J131: 33.85 | K131: C+ | L131: 322 | M131: 36.04 | N131: B- | O131: 13.7 | P131: 26.7 | Q131: 322 | R131: 17.4 | S131: 471 | T131: 34.72 | U131: C+ | V131: 98 | W131: 28.59 | X131: Merit+ | Y131: 202 | Z131: 31.66 | AA131: Dist- | AB131: 0
A132: F | B132: 4 | C132: South West | D132: NULL | E132: 865 | F132: Wiltshire | G132: 1568 | H132: 33.21 | I132: 1291 | J132: 33.2 | K132: C+ | L132: 985 | M132: 36.21 | N132: B- | O132: 12 | P132: 21.9 | Q132: 974 | R132: 15.8 | S132: 1309 | T132: 33.35 | U132: C+ | V132: 186 | W132: 27.17 | X132: Merit+ | Y132: 292 | Z132: 36.86 | AA132: Dist+ | AB132: 0
A133: F | B133: 4 | C133: West Midlands | D133: NULL | E133: 330 | F133: Birmingham | G133: 4523 | H133: 32.66 | I133: 3231 | J133: 30.36 | K133: C | L133: 2145 | M133: 33.87 | N133: C+ | O133: 9 | P133: 18 | Q133: 2141 | R133: 13.2 | S133: 3244 | T133: 30.46 | U133: C | V133: 376 | W133: 34.45 | X133: Dist | Y133: 1796 | Z133: 37.7 | AA133: Dist+ | AB133: 0
A134: F | B134: 4 | C134: West Midlands | D134: NULL | E134: 331 | F134: Coventry | G134: 1184 | H134: 31.28 | I134: 849 | J134: 29.45 | K134: C | L134: 513 | M134: 32.99 | N134: C+ | O134: 5.7 | P134: 11.3 | Q134: 508 | R134: 6.9 | S134: 853 | T134: 29.54 | U134: C | V134: 194 | W134: 30.94 | X134: Dist- | Y134: 456 | Z134: 36.03 | AA134: Dist | AB134: 0
A135: F | B135: 4 | C135: West Midlands | D135: NULL | E135: 332 | F135: Dudley | G135: 1559 | H135: 33.12 | I135: 1098 | J135: 32.91 | K135: C+ | L135: 865 | M135: 35.19 | N135: B- | O135: 8.6 | P135: 14.9 | Q135: 862 | R135: 9.6 | S135: 1100 | T135: 33.01 | U135: C+ | V135: 263 | W135: 32.77 | X135: Dist- | Y135: 362 | Z135: 33.88 | AA135: Dist | AB135: 0
A136: F | B136: 4 | C136: West Midlands | D136: NULL | E136: 884 | F136: Herefordshire, County of | G136: 913 | H136: 31.99 | I136: 672 | J136: 32.02 | K136: C+ | L136: 527 | M136: 34.72 | N136: C+ | O136: 10.1 | P136: 21.8 | Q136: 522 | R136: 13.8 | S136: 673 | T136: 32.18 | U136: C+ | V136: 66 | W136: 25.45 | X136: Merit | Y136: 269 | Z136: 32.86 | AA136: Dist- | AB136: 0
A137: F | B137: 4 | C137: West Midlands | D137: NULL | E137: 333 | F137: Sandwell | G137: 943 | H137: 29.8 | I137: 677 | J137: 27.68 | K137: C- | L137: 407 | M137: 30.54 | N137: C | O137: 3.2 | P137: 8.4 | Q137: 373 | R137: 3.2 | S137: 689 | T137: 27.84 | U137: C- | V137: 116 | W137: 29.08 | X137: Merit+ | Y137: 431 | Z137: 34.72 | AA137: Dist | AB137: 0
A138: F | B138: 4 | C138: West Midlands | D138: NULL | E138: 893 | F138: Shropshire | G138: 1014 | H138: 31.74 | I138: 784 | J138: 30.26 | K138: C | L138: 584 | M138: 33.3 | N138: C+ | O138: 6 | P138: 12.5 | Q138: 581 | R138: 7.6 | S138: 784 | T138: 30.31 | U138: C | V138: 122 | W138: 36.61 | X138: Dist | Y138: 262 | Z138: 35.88 | AA138: Dist | AB138: 0
A139: F | B139: 4 | C139: West Midlands | D139: NULL | E139: 334 | F139: Solihull | G139: 1542 | H139: 31.68 | I139: 930 | J139: 29.97 | K139: C | L139: 747 | M139: 32.79 | N139: C+ | O139: 5.8 | P139: 12.9 | Q139: 745 | R139: 8.9 | S139: 969 | T139: 30.07 | U139: C | V139: 267 | W139: 32.62 | X139: Dist- | Y139: 426 | Z139: 36.24 | AA139: Dist | AB139: 0
A140: F | B140: 4 | C140: West Midlands | D140: NULL | E140: 860 | F140: Staffordshire | G140: 3294 | H140: 31.96 | I140: 2166 | J140: 29.1 | K140: C | L140: 1307 | M140: 32.65 | N140: C+ | O140: 4.9 | P140: 12.8 | Q140: 1297 | R140: 7.4 | S140: 2167 | T140: 29.2 | U140: C | V140: 697 | W140: 32.27 | X140: Dist- | Y140: 1116 | Z140: 38.9 | AA140: Dist+ | AB140: x
A141: F | B141: 4 | C141: West Midlands | D141: NULL | E141: 861 | F141: Stoke-on-Trent | G141: 741 | H141: 32.56 | I141: 526 | J141: 30.11 | K141: C | L141: 293 | M141: 34.33 | N141: C+ | O141: 5.8 | P141: 15.7 | Q141: 293 | R141: 10.2 | S141: 532 | T141: 30.09 | U141: C | V141: 132 | W141: 33.41 | X141: Dist | Y141: 363 | Z141: 37.3 | AA141: Dist+ | AB141: 0
A142: F | B142: 4 | C142: West Midlands | D142: NULL | E142: 894 | F142: Telford and Wrekin | G142: 625 | H142: 32.98 | I142: 524 | J142: 32.49 | K142: C+ | L142: 334 | M142: 35.99 | N142: B- | O142: 15.6 | P142: 24.6 | Q142: 314 | R142: 17.8 | S142: 524 | T142: 32.65 | U142: C+ | V142: 69 | W142: 27.25 | X142: Merit+ | Y142: 234 | Z142: 36.12 | AA142: Dist | AB142: 0
A143: F | B143: 4 | C143: West Midlands | D143: NULL | E143: 335 | F143: Walsall | G143: 1229 | H143: 31.26 | I143: 824 | J143: 27.58 | K143: C- | L143: 429 | M143: 32.55 | N143: C+ | O143: 4.9 | P143: 11.4 | Q143: 419 | R143: 8.4 | S143: 828 | T143: 27.72 | U143: C- | V143: 239 | W143: 34.48 | X143: Dist | Y143: 546 | Z143: 37.62 | AA143: Dist+ | AB143: 0
A144: F | B144: 4 | C144: West Midlands | D144: NULL | E144: 937 | F144: Warwickshire | G144: 2720 | H144: 33.13 | I144: 1851 | J144: 33.45 | K144: C+ | L144: 1373 | M144: 35.89 | N144: B- | O144: 12.7 | P144: 23 | Q144: 1367 | R144: 14.5 | S144: 1869 | T144: 33.61 | U144: C+ | V144: 502 | W144: 29.62 | X144: Merit+ | Y144: 717 | Z144: 34.02 | AA144: Dist | AB144: x
A145: F | B145: 4 | C145: West Midlands | D145: NULL | E145: 336 | F145: Wolverhampton | G145: 838 | H145: 34.19 | I145: 602 | J145: 31.2 | K145: C | L145: 306 | M145: 34.92 | N145: C+ | O145: 12.4 | P145: 21.2 | Q145: 304 | R145: 17.4 | S145: 604 | T145: 31.22 | U145: C | V145: 127 | W145: 35.97 | X145: Dist | Y145: 416 | Z145: 39.08 | AA145: Dist+ | AB145: 0
A146: F | B146: 4 | C146: West Midlands | D146: NULL | E146: 885 | F146: Worcestershire | G146: 1880 | H146: 31.1 | I146: 1552 | J146: 30.15 | K146: C | L146: 1052 | M146: 33.14 | N146: C+ | O146: 7.1 | P146: 13.6 | Q146: 1040 | R146: 8.7 | S146: 1555 | T146: 30.23 | U146: C | V146: 226 | W146: 28.22 | X146: Merit+ | Y146: 501 | Z146: 37.61 | AA146: Dist+ | AB146: 0
A147: F | B147: 4 | C147: Yorkshire and the Humber | D147: NULL | E147: 370 | F147: Barnsley | G147: 679 | H147: 31.77 | I147: 313 | J147: 26.8 | K147: C- | L147: 210 | M147: 31.52 | N147: C | O147: 2.4 | P147: 5.7 | Q147: 209 | R147: 2.4 | S147: 313 | T147: 26.82 | U147: C- | V147: 128 | W147: 36.18 | X147: Dist | Y147: 292 | Z147: 36.27 | AA147: Dist | AB147: 0
A148: F | B148: 4 | C148: Yorkshire and the Humber | D148: NULL | E148: 380 | F148: Bradford | G148: 1750 | H148: 31.77 | I148: 1356 | J148: 27.73 | K148: C- | L148: 661 | M148: 32.95 | N148: C+ | O148: 5.3 | P148: 12.3 | Q148: 653 | R148: 10 | S148: 1358 | T148: 27.78 | U148: C- | V148: 173 | W148: 34.69 | X148: Dist | Y148: 876 | Z148: 40.05 | AA148: Dist+ | AB148: 0
A149: F | B149: 4 | C149: Yorkshire and the Humber | D149: NULL | E149: 381 | F149: Calderdale | G149: 744 | H149: 33.97 | I149: 622 | J149: 31.63 | K149: C | L149: 391 | M149: 34.58 | N149: C+ | O149: 10.7 | P149: 19.4 | Q149: 387 | R149: 10.3 | S149: 622 | T149: 31.69 | U149: C+ | V149: 65 | W149: 35.23 | X149: Dist | Y149: 273 | Z149: 41.98 | AA149: Dist*- | AB149: 0
A150: F | B150: 4 | C150: Yorkshire and the Humber | D150: NULL | E150: 371 | F150: Doncaster | G150: 996 | H150: 31.39 | I150: 745 | J150: 28.9 | K150: C | L150: 465 | M150: 30.91 | N150: C | O150: 3.7 | P150: 11.4 | Q150: 441 | R150: 5.2 | S150: 749 | T150: 28.98 | U150: C | V150: 104 | W150: 33.89 | X150: Dist | Y150: 392 | Z150: 37.47 | AA150: Dist+ | AB150: 0
A151: F | B151: 4 | C151: Yorkshire and the Humber | D151: NULL | E151: 811 | F151: East Riding of Yorkshire | G151: 1149 | H151: 32.43 | I151: 735 | J151: 30.13 | K151: C | L151: 479 | M151: 34.47 | N151: C+ | O151: 7.7 | P151: 16.3 | Q151: 475 | R151: 9.5 | S151: 736 | T151: 30.24 | U151: C | V151: 340 | W151: 34.55 | X151: Dist | Y151: 292 | Z151: 38.31 | AA151: Dist+ | AB151: 0
A152: F | B152: 4 | C152: Yorkshire and the Humber | D152: NULL | E152: 810 | F152: Kingston upon Hull, City of | G152: 1394 | H152: 31.42 | I152: 875 | J152: 28.57 | K152: C | L152: 494 | M152: 33.56 | N152: C+ | O152: 5.5 | P152: 12.1 | Q152: 490 | R152: 5.3 | S152: 875 | T152: 28.74 | U152: C | V152: 300 | W152: 33.05 | X152: Dist- | Y152: 611 | Z152: 36.59 | AA152: Dist | AB152: 0
A153: F | B153: 4 | C153: Yorkshire and the Humber | D153: NULL | E153: 382 | F153: Kirklees | G153: 1993 | H153: 34.22 | I153: 1580 | J153: 32.71 | K153: C+ | L153: 1095 | M153: 35.99 | N153: B- | O153: 11.7 | P153: 22.3 | Q153: 1076 | R153: 14.8 | S153: 1583 | T153: 32.82 | U153: C+ | V153: 255 | W153: 33.36 | X153: Dist | Y153: 548 | Z153: 41.23 | AA153: Dist+ | AB153: 0
A154: F | B154: 4 | C154: Yorkshire and the Humber | D154: NULL | E154: 383 | F154: Leeds | G154: 2585 | H154: 30.95 | I154: 2013 | J154: 29.31 | K154: C | L154: 1346 | M154: 32.38 | N154: C+ | O154: 7.1 | P154: 14.3 | Q154: 1314 | R154: 9.7 | S154: 2032 | T154: 29.31 | U154: C | V154: 266 | W154: 32.02 | X154: Dist- | Y154: 809 | Z154: 37 | AA154: Dist+ | AB154: 0
A155: F | B155: 4 | C155: Yorkshire and the Humber | D155: NULL | E155: 812 | F155: North East Lincolnshire | G155: 794 | H155: 29.38 | I155: 504 | J155: 27.31 | K155: C- | L155: 276 | M155: 30.48 | N155: C | O155: 3.3 | P155: 6.2 | Q155: 268 | R155: 3.4 | S155: 504 | T155: 27.35 | U155: C- | V155: 175 | W155: 28.32 | X155: Merit+ | Y155: 287 | Z155: 35.18 | AA155: Dist | AB155: 0
A156: F | B156: 4 | C156: Yorkshire and the Humber | D156: NULL | E156: 813 | F156: North Lincolnshire | G156: 684 | H156: 32.91 | I156: 530 | J156: 30.44 | K156: C | L156: 270 | M156: 33.11 | N156: C+ | O156: 8.9 | P156: 15.9 | Q156: 268 | R156: 10.4 | S156: 532 | T156: 30.49 | U156: C | V156: 135 | W156: 35.41 | X156: Dist | Y156: 274 | Z156: 38.51 | AA156: Dist+ | AB156: 0
A157: F | B157: 4 | C157: Yorkshire and the Humber | D157: NULL | E157: 815 | F157: North Yorkshire | G157: 2228 | H157: 33.65 | I157: 1862 | J157: 32.4 | K157: C+ | L157: 1362 | M157: 35.7 | N157: B- | O157: 14 | P157: 22.7 | Q157: 1344 | R157: 16.1 | S157: 1864 | T157: 32.49 | U157: C+ | V157: 237 | W157: 32.95 | X157: Dist- | Y157: 549 | Z157: 40.95 | AA157: Dist+ | AB157: x
A158: F | B158: 4 | C158: Yorkshire and the Humber | D158: NULL | E158: 372 | F158: Rotherham | G158: 1204 | H158: 31.67 | I158: 912 | J158: 30.21 | K158: C | L158: 511 | M158: 33.21 | N158: C+ | O158: 6.1 | P158: 13.9 | Q158: 505 | R158: 9.1 | S158: 912 | T158: 30.27 | U158: C | V158: 189 | W158: 30.21 | X158: Dist- | Y158: 487 | Z158: 36.34 | AA158: Dist | AB158: x
A159: F | B159: 4 | C159: Yorkshire and the Humber | D159: NULL | E159: 373 | F159: Sheffield | G159: 1794 | H159: 32.16 | I159: 1246 | J159: 31.52 | K159: C | L159: 904 | M159: 34.28 | N159: C+ | O159: 11.8 | P159: 19.1 | Q159: 900 | R159: 14.8 | S159: 1254 | T159: 31.67 | U159: C+ | V159: 171 | W159: 30.09 | X159: Dist- | Y159: 636 | Z159: 33.75 | AA159: Dist | AB159: 0
A160: F | B160: 4 | C160: Yorkshire and the Humber | D160: NULL | E160: 384 | F160: Wakefield | G160: 1368 | H160: 33.78 | I160: 962 | J160: 31.14 | K160: C | L160: 624 | M160: 34.07 | N160: C+ | O160: 6.7 | P160: 15.7 | Q160: 618 | R160: 7.4 | S160: 962 | T160: 31.22 | U160: C | V160: 191 | W160: 35.7 | X160: Dist | Y160: 538 | Z160: 39.13 | AA160: Dist+ | AB160: 0
A161: F | B161: 4 | C161: Yorkshire and the Humber | D161: NULL | E161: 816 | F161: York | G161: 1304 | H161: 32.96 | I161: 710 | J161: 33.68 | K161: C+ | L161: 542 | M161: 36.86 | N161: B- | O161: 13.7 | P161: 23.2 | Q161: 536 | R161: 14.7 | S161: 729 | T161: 33.9 | U161: C+ | V161: 468 | W161: 29.33 | X161: Merit+ | Y161: 220 | Z161: 36.92 | AA161: Dist+ | AB161: x

Sheet 9a_males (hidden)
A1: M | B1: 4-Region | C1: East Midlands | D1: NULL | E1: NULL | F1: NULL | G1: 15151 | H1: 28.45 | I1: 10373 | J1: 27.73 | K1: C- | L1: 6524 | M1: 31.77 | N1: C+ | O1: 9.7 | P1: 16.6 | Q1: 6493 | R1: 14.1 | S1: 10422 | T1: 27.83 | U1: C- | V1: 3056 | W1: 28.23 | X1: Merit+ | Y1: 4633 | Z1: 30.9 | AA1: Dist- | AB1: x
A2: M | B2: 4-Region | C2: East of England | D2: NULL | E2: NULL | F2: NULL | G2: 22307 | H2: 30.04 | I2: 14833 | J2: 29.44 | K2: C | L2: 9935 | M2: 33.12 | N2: C+ | O2: 11.8 | P2: 19.8 | Q2: 9870 | R2: 16.2 | S2: 15000 | T2: 29.65 | U2: C | V2: 4524 | W2: 29.82 | X2: Merit+ | Y2: 7060 | Z2: 31.52 | AA2: Dist- | AB2: x
A3: M | B3: 4-Region | C3: Inner London | D3: NULL | E3: NULL | F3: NULL | G3: 10217 | H3: 29.7 | I3: 6601 | J3: 28.51 | K3: C | L3: 4153 | M3: 31.92 | N3: C+ | O3: 9.7 | P3: 17.4 | Q3: 4122 | R3: 15.2 | S3: 6720 | T3: 28.57 | U3: C | V3: 1613 | W3: 31.33 | X3: Dist- | Y3: 3406 | Z3: 31.61 | AA3: Dist- | AB3: x
A4: M | B4: 4-Region | C4: North East | D4: NULL | E4: NULL | F4: NULL | G4: 9302 | H4: 29.74 | I4: 5245 | J4: 28.65 | K4: C | L4: 3067 | M4: 32.24 | N4: C+ | O4: 10.1 | P4: 16.6 | Q4: 3040 | R4: 14.4 | S4: 5275 | T4: 28.72 | U4: C | V4: 3074 | W4: 29.17 | X4: Merit+ | Y4: 2899 | Z4: 33.39 | AA4: Dist | AB4: 5
A5: M | B5: 4-Region | C5: North West | D5: NULL | E5: NULL | F5: NULL | G5: 26204 | H5: 30.49 | I5: 16840 | J5: 28.96 | K5: C | L5: 10706 | M5: 33.38 | N5: C+ | O5: 11.3 | P5: 18.5 | Q5: 10654 | R5: 15 | S5: 17012 | T5: 29.04 | U5: C | V5: 5993 | W5: 32 | X5: Dist- | Y5: 8274 | Z5: 33.67 | AA5: Dist | AB5: 54
A6: M | B6: 4-Region | C6: Outer London | D6: NULL | E6: NULL | F6: NULL | G6: 20635 | H6: 30.71 | I6: 15152 | J6: 30.05 | K6: C | L6: 9752 | M6: 33.9 | N6: C+ | O6: 12.7 | P6: 20.4 | Q6: 9706 | R6: 17.7 | S6: 15260 | T6: 30.15 | U6: C | V6: 3082 | W6: 31.58 | X6: Dist- | Y6: 6075 | Z6: 32.28 | AA6: Dist- | AB6: x
A7: M | B7: 4-Region | C7: South East | D7: NULL | E7: NULL | F7: NULL | G7: 34328 | H7: 30.53 | I7: 24561 | J7: 29.96 | K7: C | L7: 15713 | M7: 33.53 | N7: C+ | O7: 12.9 | P7: 20.3 | Q7: 15612 | R7: 17.3 | S7: 24970 | T7: 30.26 | U7: C | V7: 6351 | W7: 29.33 | X7: Merit+ | Y7: 10537 | Z7: 32.44 | AA7: Dist- | AB7: 52
A8: M | B8: 4-Region | C8: South West | D8: NULL | E8: NULL | F8: NULL | G8: 18464 | H8: 30 | I8: 12569 | J8: 29.16 | K8: C | L8: 7910 | M8: 32.65 | N8: C+ | O8: 11.7 | P8: 18.8 | Q8: 7874 | R8: 16 | S8: 12690 | T8: 29.37 | U8: C | V8: 3779 | W8: 29.9 | X8: Merit+ | Y8: 5580 | Z8: 32.25 | AA8: Dist- | AB8: 10
A9: M | B9: 4-Region | C9: West Midlands | D9: NULL | E9: NULL | F9: NULL | G9: 21032 | H9: 29.61 | I9: 13367 | J9: 28.56 | K9: C | L9: 8078 | M9: 32.74 | N9: C+ | O9: 10.7 | P9: 18 | Q9: 7973 | R9: 15.1 | S9: 13487 | T9: 28.64 | U9: C | V9: 4724 | W9: 29.16 | X9: Merit+ | Y9: 7575 | Z9: 32.48 | AA9: Dist- | AB9: 30
A10: M | B10: 4-Region | C10: Yorkshire and the Humber | D10: NULL | E10: NULL | F10: NULL | G10: 18080 | H10: 29.76 | I10: 11615 | J10: 28.2 | K10: C- | L10: 6767 | M10: 32.56 | N10: C+ | O10: 11.1 | P10: 18.2 | Q10: 6704 | R10: 15.6 | S10: 11726 | T10: 28.24 | U10: C- | V10: 4187 | W10: 29.58 | X10: Merit+ | Y10: 6571 | Z10: 33.9 | AA10: Dist | AB10: x
A11: M | B11: 4-London | C11: NULL | D11: LONDON | E11: NULL | F11: NULL | G11: 30852 | H11: 30.39 | I11: 21753 | J11: 29.6 | K11: C | L11: 13905 | M11: 33.31 | N11: C+ | O11: 11.8 | P11: 19.5 | Q11: 13828 | R11: 16.9 | S11: 21980 | T11: 29.68 | U11: C | V11: 4695 | W11: 31.49 | X11: Dist- | Y11: 9481 | Z11: 32.02 | AA11: Dist- | AB11: x
A12: M | B12: 4 | C12: East Midlands | D12: NULL | E12: 831 | F12: Derby | G12: 922 | H12: 29.24 | I12: 514 | J12: 27.23 | K12: C- | L12: 329 | M12: 30.15 | N12: C | O12: 9.7 | P12: 13.7 | Q12: 328 | R12: 11 | S12: 514 | T12: 27.31 | U12: C- | V12: 244 | W12: 29.68 | X12: Merit+ | Y12: 288 | Z12: 33.53 | AA12: Dist | AB12: 0
A13: M | B13: 4 | C13: East Midlands | D13: NULL | E13: 830 | F13: Derbyshire | G13: 1755 | H13: 28.12 | I13: 1347 | J13: 28.06 | K13: C- | L13: 927 | M13: 31.37 | N13: C | O13: 9 | P13: 17.4 | Q13: 923 | R13: 15.8 | S13: 1356 | T13: 28.12 | U13: C- | V13: 289 | W13: 26.55 | X13: Merit | Y13: 377 | Z13: 29.67 | AA13: Merit+ | AB13: x
A14: M | B14: 4 | C14: East Midlands | D14: NULL | E14: 856 | F14: Leicester | G14: 1314 | H14: 27.51 | I14: 904 | J14: 26.23 | K14: C- | L14: 570 | M14: 30.19 | N14: C | O14: 10.5 | P14: 15.1 | Q14: 564 | R14: 12.1 | S14: 912 | T14: 26.25 | U14: C- | V14: 250 | W14: 31.17 | X14: Dist- | Y14: 565 | Z14: 29.26 | AA14: Merit+ | AB14: 0
A15: M | B15: 4 | C15: East Midlands | D15: NULL | E15: 855 | F15: Leicestershire | G15: 2350 | H15: 27.65 | I15: 1712 | J15: 26.82 | K15: C- | L15: 1120 | M15: 31.25 | N15: C | O15: 8.8 | P15: 15.4 | Q15: 1115 | R15: 13.1 | S15: 1718 | T15: 26.89 | U15: C- | V15: 358 | W15: 29.37 | X15: Merit+ | Y15: 634 | Z15: 29.91 | AA15: Merit+ | AB15: x
A16: M | B16: 4 | C16: East Midlands | D16: NULL | E16: 925 | F16: Lincolnshire | G16: 2758 | H16: 30.28 | I16: 1833 | J16: 29.81 | K16: C | L16: 1172 | M16: 33.51 | N16: C+ | O16: 11.7 | P16: 20.1 | Q16: 1167 | R16: 17.2 | S16: 1839 | T16: 29.92 | U16: C | V16: 586 | W16: 30.31 | X16: Dist- | Y16: 926 | Z16: 31.41 | AA16: Dist- | AB16: x
A17: M | B17: 4 | C17: East Midlands | D17: NULL | E17: 928 | F17: Northamptonshire | G17: 2490 | H17: 27.84 | I17: 1652 | J17: 26.58 | K17: C- | L17: 967 | M17: 30.8 | N17: C | O17: 7.5 | P17: 13.8 | Q17: 960 | R17: 11.9 | S17: 1655 | T17: 26.65 | U17: C- | V17: 483 | W17: 27.9 | X17: Merit+ | Y17: 927 | Z17: 30.96 | AA17: Dist- | AB17: x
A18: M | B18: 4 | C18: East Midlands | D18: NULL | E18: 892 | F18: Nottingham | G18: 1078 | H18: 27.37 | I18: 808 | J18: 25.8 | K18: C- | L18: 461 | M18: 31.41 | N18: C | O18: 10.4 | P18: 15.8 | Q18: 461 | R18: 12.4 | S18: 823 | T18: 26.17 | U18: C- | V18: 184 | W18: 26.95 | X18: Merit+ | Y18: 259 | Z18: 33.09 | AA18: Dist- | AB18: 0
A19: M | B19: 4 | C19: East Midlands | D19: NULL | E19: 891 | F19: Nottinghamshire | G19: 2425 | H19: 28.66 | I19: 1553 | J19: 29.15 | K19: C | L19: 937 | M19: 33.55 | N19: C+ | O19: 10.8 | P19: 19 | Q19: 934 | R19: 16 | S19: 1555 | T19: 29.23 | U19: C | V19: 662 | W19: 25.71 | X19: Merit | Y19: 644 | Z19: 30.49 | AA19: Dist- | AB19: 6
A20: M | B20: 4 | C20: East Midlands | D20: NULL | E20: 857 | F20: Rutland | G20: 59 | H20: 28.43 | I20: 50 | J20: 27.3 | K20: C- | L20: 41 | M20: 27.07 | N20: C- | O20: 2.4 | P20: 4.9 | Q20: 41 | R20: 0 | S20: 50 | T20: 27.55 | U20: C- | V20: 0 | W20: 0 | X20: U | Y20: 13 | Z20: 32.54 | AA20: Dist- | AB20: 0
A21: M | B21: 4 | C21: East of England | D21: NULL | E21: 822 | F21: Bedford | G21: 902 | H21: 28.66 | I21: 513 | J21: 25.94 | K21: C- | L21: 272 | M21: 30.32 | N21: C | O21: 8.5 | P21: 15.4 | Q21: 270 | R21: 14.1 | S21: 516 | T21: 26.05 | U21: C- | V21: 344 | W21: 29.45 | X21: Merit+ | Y21: 287 | Z21: 34.48 | AA21: Dist | AB21: 0
A22: M | B22: 4 | C22: East of England | D22: NULL | E22: 873 | F22: Cambridgeshire | G22: 2063 | H22: 30.99 | I22: 1517 | J22: 31.11 | K22: C | L22: 1047 | M22: 35.13 | N22: B- | O22: 14.8 | P22: 24.5 | Q22: 1044 | R22: 19.1 | S22: 1573 | T22: 31.25 | U22: C | V22: 318 | W22: 28.18 | X22: Merit+ | Y22: 515 | Z22: 31.7 | AA22: Dist- | AB22: x
A23: M | B23: 4 | C23: East of England | D23: NULL | E23: 823 | F23: Central Bedfordshire | G23: 771 | H23: 28.97 | I23: 628 | J23: 27.49 | K23: C- | L23: 363 | M23: 32.42 | N23: C+ | O23: 9.1 | P23: 18.2 | Q23: 360 | R23: 14.2 | S23: 637 | T23: 27.54 | U23: C- | V23: 101 | W23: 31.85 | X23: Dist- | Y23: 295 | Z23: 33.52 | AA23: Dist | AB23: 3
A24: M | B24: 4 | C24: East of England | D24: NULL | E24: 881 | F24: Essex | G24: 4840 | H24: 29.81 | I24: 3288 | J24: 28.47 | K24: C | L24: 2217 | M24: 32.42 | N24: C+ | O24: 12.1 | P24: 19.4 | Q24: 2196 | R24: 15.5 | S24: 3320 | T24: 28.73 | U24: C | V24: 968 | W24: 31.15 | X24: Dist- | Y24: 1482 | Z24: 32.93 | AA24: Dist- | AB24: 0
A25: M | B25: 4 | C25: East of England | D25: NULL | E25: 919 | F25: Hertfordshire | G25: 5074 | H25: 31.74 | I25: 3576 | J25: 31.97 | K25: C+ | L25: 2571 | M25: 34.9 | N25: C+ | O25: 13.7 | P25: 23.1 | Q25: 2550 | R25: 19.8 | S25: 3636 | T25: 32.3 | U25: C+ | V25: 833 | W25: 30.11 | X25: Dist- | Y25: 1490 | Z25: 30.79 | AA25: Dist- | AB25: 3
A26: M | B26: 4 | C26: East of England | D26: NULL | E26: 821 | F26: Luton | G26: 791 | H26: 29.44 | I26: 529 | J26: 25.9 | K26: C- | L26: 295 | M26: 30.45 | N26: C | O26: 6.4 | P26: 13.6 | Q26: 294 | R26: 9.5 | S26: 530 | T26: 26.04 | U26: C- | V26: 204 | W26: 33.44 | X26: Dist | Y26: 333 | Z26: 35.22 | AA26: Dist | AB26: 0
A27: M | B27: 4 | C27: East of England | D27: NULL | E27: 926 | F27: Norfolk | G27: 2683 | H27: 28.31 | I27: 1779 | J27: 27.53 | K27: C- | L27: 1157 | M27: 31.17 | N27: C | O27: 9 | P27: 14.7 | Q27: 1155 | R27: 12.3 | S27: 1780 | T27: 27.61 | U27: C- | V27: 644 | W27: 28.6 | X27: Merit+ | Y27: 754 | Z27: 30.53 | AA27: Dist- | AB27: 0
A28: M | B28: 4 | C28: East of England | D28: NULL | E28: 874 | F28: Peterborough | G28: 760 | H28: 28.54 | I28: 526 | J28: 28.19 | K28: C- | L28: 317 | M28: 32.54 | N28: C+ | O28: 14.5 | P28: 21.1 | Q28: 314 | R28: 18.5 | S28: 528 | T28: 28.22 | U28: C- | V28: 165 | W28: 28.36 | X28: Merit+ | Y28: 252 | Z28: 29.79 | AA28: Merit+ | AB28: x
A29: M | B29: 4 | C29: East of England | D29: NULL | E29: 882 | F29: Southend-on-Sea | G29: 1630 | H29: 29.98 | I29: 672 | J29: 32.45 | K29: C+ | L29: 482 | M29: 36.21 | N29: B- | O29: 13.9 | P29: 23 | Q29: 482 | R29: 18.3 | S29: 672 | T29: 32.54 | U29: C+ | V29: 396 | W29: 26.57 | X29: Merit | Y29: 718 | Z29: 28.33 | AA29: Merit+ | AB29: 0
A30: M | B30: 4 | C30: East of England | D30: NULL | E30: 935 | F30: Suffolk | G30: 2252 | H30: 29.94 | I30: 1414 | J30: 29.18 | K30: C | L30: 987 | M30: 32.01 | N30: C+ | O30: 10 | P30: 17.2 | Q30: 982 | R30: 14.3 | S30: 1415 | T30: 29.26 | U30: C | V30: 509 | W30: 30.96 | X30: Dist- | Y30: 695 | Z30: 31.25 | AA30: Dist- | AB30: x
A31: M | B31: 4 | C31: East of England | D31: NULL | E31: 883 | F31: Thurrock | G31: 541 | H31: 27.92 | I31: 391 | J31: 24.93 | K31: D+ | L31: 227 | M31: 27.69 | N31: C- | O31: 3.5 | P31: 8.4 | Q31: 223 | R31: 6.3 | S31: 393 | T31: 25.03 | U31: C- | V31: 42 | W31: 29.2 | X31: Merit+ | Y31: 239 | Z31: 33.22 | AA31: Dist- | AB31: 0
A32: M | B32: 4 | C32: Inner London | D32: LONDON | E32: 202 | F32: Camden | G32: 743 | H32: 27.27 | I32: 487 | J32: 26.66 | K32: C- | L32: 323 | M32: 29.03 | N32: C | O32: 4.3 | P32: 12.1 | Q32: 309 | R32: 10 | S32: 489 | T32: 26.62 | U32: C- | V32: 85 | W32: 29.6 | X32: Merit+ | Y32: 262 | Z32: 28.1 | AA32: Merit+ | AB32: 0
A33: M | B33: 4 | C33: Inner London | D33: LONDON | E33: 204 | F33: Hackney | G33: 845 | H33: 29.8 | I33: 506 | J33: 29.73 | K33: C | L33: 309 | M33: 34.76 | N33: C+ | O33: 11 | P33: 21 | Q33: 308 | R33: 17.9 | S33: 515 | T33: 29.76 | U33: C | V33: 79 | W33: 32.48 | X33: Dist- | Y33: 360 | Z33: 29.19 | AA33: Merit+ | AB33: x
A34: M | B34: 4 | C34: Inner London | D34: LONDON | E34: 205 | F34: Hammersmith and Fulham | G34: 695 | H34: 28.68 | I34: 463 | J34: 29.24 | K34: C | L34: 274 | M34: 32.23 | N34: C+ | O34: 15.3 | P34: 25.2 | Q34: 273 | R34: 24.2 | S34: 464 | T34: 29.4 | U34: C | V34: 115 | W34: 26.85 | X34: Merit+ | Y34: 213 | Z34: 27.92 | AA34: Merit+ | AB34: 0
A35: M | B35: 4 | C35: Inner London | D35: LONDON | E35: 309 | F35: Haringey | G35: 652 | H35: 30.75 | I35: 440 | J35: 30.82 | K35: C | L35: 251 | M35: 36.15 | N35: B- | O35: 16.7 | P35: 25.1 | Q35: 245 | R35: 20.4 | S35: 440 | T35: 30.85 | U35: C | V35: 120 | W35: 27.39 | X35: Merit+ | Y35: 245 | Z35: 32.31 | AA35: Dist- | AB35: 0
A36: M | B36: 4 | C36: Inner London | D36: LONDON | E36: 206 | F36: Islington | G36: 1020 | H36: 27.27 | I36: 551 | J36: 24.39 | K36: D+ | L36: 346 | M36: 26.71 | N36: C- | O36: 2.3 | P36: 5.8 | Q36: 346 | R36: 5.2 | S36: 574 | T36: 24.63 | U36: D+ | V36: 243 | W36: 31.67 | X36: Dist- | Y36: 297 | Z36: 29.11 | AA36: Merit+ | AB36: 0
A37: M | B37: 4 | C37: Inner London | D37: LONDON | E37: 207 | F37: Kensington and Chelsea | G37: 406 | H37: 32.88 | I37: 365 | J37: 32.79 | K37: C+ | L37: 268 | M37: 35.93 | N37: B- | O37: 16.8 | P37: 27.6 | Q37: 268 | R37: 23.9 | S37: 365 | T37: 32.9 | U37: C+ | V37: 19 | W37: 29.43 | X37: Merit+ | Y37: 58 | Z37: 33.87 | AA37: Dist | AB37: 0
A38: M | B38: 4 | C38: Inner London | D38: LONDON | E38: 208 | F38: Lambeth | G38: 543 | H38: 31.57 | I38: 369 | J38: 31.37 | K38: C | L38: 217 | M38: 35.13 | N38: B- | O38: 16.1 | P38: 24 | Q38: 217 | R38: 23.5 | S38: 370 | T38: 31.5 | U38: C | V38: 90 | W38: 29.99 | X38: Merit+ | Y38: 182 | Z38: 32.56 | AA38: Dist- | AB38: 0
A39: M | B39: 4 | C39: Inner London | D39: LONDON | E39: 209 | F39: Lewisham | G39: 959 | H39: 26.04 | I39: 636 | J39: 23.2 | K39: D+ | L39: 395 | M39: 26.16 | N39: C- | O39: 3.8 | P39: 7.8 | Q39: 393 | R39: 6.4 | S39: 645 | T39: 23.2 | U39: D+ | V39: 95 | W39: 31.41 | X39: Dist- | Y39: 373 | Z39: 30.42 | AA39: Dist- | AB39: 0
A40: M | B40: 4 | C40: Inner London | D40: LONDON | E40: 316 | F40: Newham | G40: 981 | H40: 31.84 | I40: 584 | J40: 31.24 | K40: C | L40: 405 | M40: 35.08 | N40: B- | O40: 12.8 | P40: 20.2 | Q40: 405 | R40: 18 | S40: 594 | T40: 31.22 | U40: C | V40: 233 | W40: 34.04 | X40: Dist | Y40: 298 | Z40: 31.3 | AA40: Dist- | AB40: 0
A41: M | B41: 4 | C41: Inner London | D41: LONDON | E41: 210 | F41: Southwark | G41: 429 | H41: 32.14 | I41: 362 | J41: 29.96 | K41: C | L41: 209 | M41: 33.84 | N41: C+ | O41: 7.2 | P41: 15.3 | Q41: 208 | R41: 11.5 | S41: 370 | T41: 29.87 | U41: C | V41: 38 | W41: 42 | X41: Dist*- | Y41: 136 | Z41: 37.16 | AA41: Dist+ | AB41: 0
A42: M | B42: 4 | C42: Inner London | D42: LONDON | E42: 211 | F42: Tower Hamlets | G42: 882 | H42: 30.36 | I42: 569 | J42: 26.24 | K42: C- | L42: 347 | M42: 29.07 | N42: C | O42: 5.2 | P42: 13 | Q42: 346 | R42: 10.7 | S42: 597 | T42: 26.22 | U42: C- | V42: 124 | W42: 34.18 | X42: Dist | Y42: 308 | Z42: 36.92 | AA42: Dist+ | AB42: 0
A43: M | B43: 4 | C43: Inner London | D43: LONDON | E43: 212 | F43: Wandsworth | G43: 1143 | H43: 30.07 | I43: 768 | J43: 28.49 | K43: C | L43: 476 | M43: 32.05 | N43: C+ | O43: 8.2 | P43: 16.4 | Q43: 475 | R43: 13.7 | S43: 770 | T43: 28.57 | U43: C | V43: 146 | W43: 34.02 | X43: Dist | Y43: 404 | Z43: 31.96 | AA43: Dist- | AB43: 0
A44: M | B44: 4 | C44: Inner London | D44: LONDON | E44: 213 | F44: Westminster | G44: 919 | H44: 30.61 | I44: 501 | J44: 30.22 | K44: C | L44: 333 | M44: 33.25 | N44: C+ | O44: 12.6 | P44: 21.6 | Q44: 329 | R44: 20.1 | S44: 527 | T44: 30.57 | U44: C | V44: 226 | W44: 27.86 | X44: Merit+ | Y44: 270 | Z44: 33.56 | AA44: Dist | AB44: 0
A45: M | B45: 4 | C45: North East | D45: NULL | E45: 840 | F45: County Durham | G45: 1364 | H45: 31.55 | I45: 777 | J45: 30.41 | K45: C | L45: 422 | M45: 35.58 | N45: B- | O45: 15.6 | P45: 23 | Q45: 417 | R45: 19.4 | S45: 778 | T45: 30.52 | U45: C | V45: 456 | W45: 29.68 | X45: Merit+ | Y45: 486 | Z45: 35.8 | AA45: Dist | AB45: x
A46: M | B46: 4 | C46: North East | D46: NULL | E46: 841 | F46: Darlington | G46: 653 | H46: 30.57 | I46: 459 | J46: 30.49 | K46: C | L46: 355 | M46: 32.52 | N46: C+ | O46: 11 | P46: 17.7 | Q46: 349 | R46: 14 | S46: 460 | T46: 30.62 | U46: C | V46: 130 | W46: 30.94 | X46: Dist- | Y46: 139 | Z46: 29.84 | AA46: Merit+ | AB46: 0
A47: M | B47: 4 | C47: North East | D47: NULL | E47: 390 | F47: Gateshead | G47: 827 | H47: 32.5 | I47: 375 | J47: 30.35 | K47: C | L47: 197 | M47: 33.96 | N47: C+ | O47: 14.2 | P47: 19.3 | Q47: 196 | R47: 17.9 | S47: 376 | T47: 30.38 | U47: C | V47: 247 | W47: 33.26 | X47: Dist- | Y47: 404 | Z47: 34.57 | AA47: Dist | AB47: 0
A48: M | B48: 4 | C48: North East | D48: NULL | E48: 805 | F48: Hartlepool | G48: 500 | H48: 27.91 | I48: 223 | J48: 24.38 | K48: D+ | L48: 121 | M48: 28.4 | N48: C | O48: 5 | P48: 12.4 | Q48: 121 | R48: 10.7 | S48: 223 | T48: 24.44 | U48: D+ | V48: 245 | W48: 30.26 | X48: Dist- | Y48: 124 | Z48: 31.88 | AA48: Dist- | AB48: 0
A49: M | B49: 4 | C49: North East | D49: NULL | E49: 806 | F49: Middlesbrough | G49: 709 | H49: 28.86 | I49: 243 | J49: 26.64 | K49: C- | L49: 109 | M49: 30.89 | N49: C | O49: 7.3 | P49: 14.7 | Q49: 108 | R49: 13.9 | S49: 251 | T49: 26.62 | U49: C- | V49: 374 | W49: 28.87 | X49: Merit+ | Y49: 173 | Z49: 32.4 | AA49: Dist- | AB49: 0
A50: M | B50: 4 | C50: North East | D50: NULL | E50: 391 | F50: Newcastle upon Tyne | G50: 1604 | H50: 27.38 | I50: 771 | J50: 26.95 | K50: C- | L50: 461 | M50: 30.17 | N50: C | O50: 6.7 | P50: 12.6 | Q50: 457 | R50: 10.7 | S50: 788 | T50: 27.11 | U50: C- | V50: 608 | W50: 26.87 | X50: Merit+ | Y50: 488 | Z50: 28.83 | AA50: Merit+ | AB50: x
A51: M | B51: 4 | C51: North East | D51: NULL | E51: 392 | F51: North Tyneside | G51: 753 | H51: 29.17 | I51: 450 | J51: 28.98 | K51: C | L51: 314 | M51: 30.52 | N51: C | O51: 7 | P51: 11.1 | Q51: 309 | R51: 10.4 | S51: 450 | T51: 29.09 | U51: C | V51: 231 | W51: 26.47 | X51: Merit | Y51: 159 | Z51: 33.57 | AA51: Dist | AB51: 0
A52: M | B52: 4 | C52: North East | D52: NULL | E52: 929 | F52: Northumberland | G52: 1020 | H52: 30.41 | I52: 795 | J52: 29 | K52: C | L52: 401 | M52: 34.59 | N52: C+ | O52: 12 | P52: 20 | Q52: 400 | R52: 17.5 | S52: 796 | T52: 28.99 | U52: C | V52: 236 | W52: 28.9 | X52: Merit+ | Y52: 387 | Z52: 37.55 | AA52: Dist+ | AB52: 0
A53: M | B53: 4 | C53: North East | D53: NULL | E53: 807 | F53: Redcar and Cleveland | G53: 370 | H53: 28.18 | I53: 237 | J53: 28.94 | K53: C | L53: 141 | M53: 30.87 | N53: C | O53: 7.1 | P53: 13.5 | Q53: 141 | R53: 11.3 | S53: 237 | T53: 28.95 | U53: C | V53: 126 | W53: 24.03 | X53: Merit | Y53: 84 | Z53: 34.09 | AA53: Dist | AB53: 0
A54: M | B54: 4 | C54: North East | D54: NULL | E54: 393 | F54: South Tyneside | G54: 300 | H54: 28.83 | I54: 169 | J54: 28.38 | K54: C | L54: 101 | M54: 32.84 | N54: C+ | O54: 11.9 | P54: 17.8 | Q54: 101 | R54: 16.8 | S54: 170 | T54: 28.37 | U54: C | V54: 117 | W54: 28.05 | X54: Merit+ | Y54: 61 | Z54: 32.52 | AA54: Dist- | AB54: 0
A55: M | B55: 4 | C55: North East | D55: NULL | E55: 808 | F55: Stockton-on-Tees | G55: 526 | H55: 30.51 | I55: 378 | J55: 29.04 | K55: C | L55: 240 | M55: 30.4 | N55: C | O55: 8.8 | P55: 16.3 | Q55: 238 | R55: 13.9 | S55: 378 | T55: 29.1 | U55: C | V55: 117 | W55: 31.3 | X55: Dist- | Y55: 142 | Z55: 36.64 | AA55: Dist | AB55: 0
A56: M | B56: 4 | C56: North East | D56: NULL | E56: 394 | F56: Sunderland | G56: 676 | H56: 29.56 | I56: 368 | J56: 26.41 | K56: C- | L56: 205 | M56: 31.69 | N56: C+ | O56: 9.8 | P56: 15.1 | Q56: 203 | R56: 14.3 | S56: 368 | T56: 26.47 | U56: C- | V56: 187 | W56: 34.25 | X56: Dist | Y56: 252 | Z56: 32.38 | AA56: Dist- | AB56: 0
A57: M | B57: 4 | C57: North West | D57: NULL | E57: 889 | F57: Blackburn with Darwen | G57: 616 | H57: 28.12 | I57: 325 | J57: 23.98 | K57: D+ | L57: 184 | M57: 28.26 | N57: C- | O57: 3.8 | P57: 7.1 | Q57: 184 | R57: 4.9 | S57: 333 | T57: 24 | U57: D+ | V57: 177 | W57: 29.53 | X57: Merit+ | Y57: 229 | Z57: 33.92 | AA57: Dist | AB57: 0
A58: M | B58: 4 | C58: North West | D58: NULL | E58: 890 | F58: Blackpool | G58: 902 | H58: 33.93 | I58: 472 | J58: 28.75 | K58: C | L58: 174 | M58: 37.09 | N58: B- | O58: 10.3 | P58: 22.4 | Q58: 174 | R58: 13.8 | S58: 494 | T58: 28.69 | U58: C | V58: 353 | W58: 36.43 | X58: Dist | Y58: 443 | Z58: 39.28 | AA58: Dist+ | AB58: 35
A59: M | B59: 4 | C59: North West | D59: NULL | E59: 350 | F59: Bolton | G59: 876 | H59: 30.3 | I59: 492 | J59: 27.61 | K59: C- | L59: 263 | M59: 32.69 | N59: C+ | O59: 10.3 | P59: 16.7 | Q59: 261 | R59: 14.6 | S59: 502 | T59: 27.55 | U59: C- | V59: 229 | W59: 32.37 | X59: Dist- | Y59: 357 | Z59: 34.03 | AA59: Dist | AB59: x
A60: M | B60: 4 | C60: North West | D60: NULL | E60: 351 | F60: Bury | G60: 1171 | H60: 28.48 | I60: 747 | J60: 25.43 | K60: C- | L60: 514 | M60: 28.85 | N60: C | O60: 5.6 | P60: 12.5 | Q60: 514 | R60: 8.9 | S60: 747 | T60: 25.54 | U60: C- | V60: 236 | W60: 31.4 | X60: Dist- | Y60: 313 | Z60: 34.37 | AA60: Dist | AB60: 0
A61: M | B61: 4 | C61: North West | D61: NULL | E61: 895 | F61: Cheshire East | G61: 1639 | H61: 29.31 | I61: 960 | J61: 29.29 | K61: C | L61: 661 | M61: 33.34 | N61: C+ | O61: 11.2 | P61: 20 | Q61: 660 | R61: 16.7 | S61: 972 | T61: 29.38 | U61: C | V61: 522 | W61: 27.41 | X61: Merit+ | Y61: 362 | Z61: 32.02 | AA61: Dist- | AB61: x
A62: M | B62: 4 | C62: North West | D62: NULL | E62: 896 | F62: Cheshire West and Chester | G62: 1393 | H62: 28.95 | I62: 1048 | J62: 28.62 | K62: C | L62: 762 | M62: 32.77 | N62: C+ | O62: 9.1 | P62: 16 | Q62: 754 | R62: 13.8 | S62: 1052 | T62: 28.7 | U62: C | V62: 288 | W62: 28.44 | X62: Merit+ | Y62: 253 | Z62: 31.36 | AA62: Dist- | AB62: 0
A63: M | B63: 4 | C63: North West | D63: NULL | E63: 909 | F63: Cumbria | G63: 1463 | H63: 29.25 | I63: 1089 | J63: 28.03 | K63: C- | L63: 685 | M63: 32.03 | N63: C+ | O63: 12 | P63: 17.8 | Q63: 680 | R63: 15.6 | S63: 1110 | T63: 28.2 | U63: C- | V63: 298 | W63: 31.81 | X63: Dist- | Y63: 402 | Z63: 31.99 | AA63: Dist- | AB63: 7
A64: M | B64: 4 | C64: North West | D64: NULL | E64: 876 | F64: Halton | G64: 382 | H64: 34.31 | I64: 166 | J64: 27.48 | K64: C- | L64: 96 | M64: 31.63 | N64: C | O64: 8.3 | P64: 15.6 | Q64: 93 | R64: 14 | S64: 166 | T64: 27.46 | U64: C- | V64: 159 | W64: 40.64 | X64: Dist+ | Y64: 101 | Z64: 37.63 | AA64: Dist+ | AB64: 0
A65: M | B65: 4 | C65: North West | D65: NULL | E65: 340 | F65: Knowsley | G65: 258 | H65: 27.4 | I65: 45 | J65: 18.3 | K65: D- | L65: 10 | M65: 21.67 | N65: D+ | O65: 0 | P65: 0 | Q65: 10 | R65: 0 | S65: 48 | T65: 18.04 | U65: D- | V65: 83 | W65: 28.89 | X65: Merit+ | Y65: 146 | Z65: 29.09 | AA65: Merit+ | AB65: 0
A66: M | B66: 4 | C66: North West | D66: NULL | E66: 888 | F66: Lancashire | G66: 4130 | H66: 32.35 | I66: 2572 | J66: 30.9 | K66: C | L66: 1742 | M66: 35.11 | N66: B- | O66: 14.6 | P66: 22.5 | Q66: 1738 | R66: 18.7 | S66: 2594 | T66: 31.05 | U66: C | V66: 870 | W66: 35.81 | X66: Dist | Y66: 1244 | Z66: 33.32 | AA66: Dist- | AB66: 0
A67: M | B67: 4 | C67: North West | D67: NULL | E67: 341 | F67: Liverpool | G67: 1813 | H67: 28.93 | I67: 1127 | J67: 27.89 | K67: C- | L67: 603 | M67: 33.01 | N67: C+ | O67: 12.6 | P67: 19.6 | Q67: 600 | R67: 17.5 | S67: 1147 | T67: 27.9 | U67: C- | V67: 411 | W67: 27.96 | X67: Merit+ | Y67: 728 | Z67: 32.06 | AA67: Dist- | AB67: 4
A68: M | B68: 4 | C68: North West | D68: NULL | E68: 352 | F68: Manchester | G68: 1794 | H68: 29.61 | I68: 1276 | J68: 29.4 | K68: C | L68: 941 | M68: 33.58 | N68: C+ | O68: 8.8 | P68: 16 | Q68: 941 | R68: 12.8 | S68: 1283 | T68: 29.4 | U68: C | V68: 196 | W68: 29.98 | X68: Merit+ | Y68: 501 | Z68: 30.4 | AA68: Dist- | AB68: 0
A69: M | B69: 4 | C69: North West | D69: NULL | E69: 353 | F69: Oldham | G69: 886 | H69: 29.65 | I69: 583 | J69: 28.45 | K69: C | L69: 386 | M69: 33.49 | N69: C+ | O69: 9.6 | P69: 16.1 | Q69: 384 | R69: 11.7 | S69: 584 | T69: 28.5 | U69: C | V69: 148 | W69: 30.68 | X69: Dist- | Y69: 334 | Z69: 32.13 | AA69: Dist- | AB69: 0
A70: M | B70: 4 | C70: North West | D70: NULL | E70: 354 | F70: Rochdale | G70: 686 | H70: 30.85 | I70: 372 | J70: 28.88 | K70: C | L70: 286 | M70: 32.52 | N70: C+ | O70: 6.3 | P70: 13.3 | Q70: 275 | R70: 8.7 | S70: 372 | T70: 28.95 | U70: C | V70: 186 | W70: 30.82 | X70: Dist- | Y70: 189 | Z70: 37.15 | AA70: Dist+ | AB70: 0
A71: M | B71: 4 | C71: North West | D71: NULL | E71: 355 | F71: Salford | G71: 788 | H71: 29.55 | I71: 253 | J71: 24.86 | K71: D+ | L71: 147 | M71: 28.8 | N71: C | O71: 2 | P71: 6.1 | Q71: 147 | R71: 4.1 | S71: 253 | T71: 24.86 | U71: D+ | V71: 270 | W71: 30.37 | X71: Dist- | Y71: 372 | Z71: 32.8 | AA71: Dist- | AB71: 0
A72: M | B72: 4 | C72: North West | D72: NULL | E72: 343 | F72: Sefton | G72: 994 | H72: 29.91 | I72: 672 | J72: 26.23 | K72: C- | L72: 322 | M72: 31.45 | N72: C | O72: 7.1 | P72: 11.2 | Q72: 317 | R72: 9.1 | S72: 678 | T72: 26.32 | U72: C- | V72: 262 | W72: 31.37 | X72: Dist- | Y72: 378 | Z72: 37.7 | AA72: Dist+ | AB72: 0
A73: M | B73: 4 | C73: North West | D73: NULL | E73: 342 | F73: St. Helens | G73: 702 | H73: 31.53 | I73: 541 | J73: 29.47 | K73: C | L73: 339 | M73: 32.92 | N73: C+ | O73: 10.6 | P73: 17.4 | Q73: 338 | R73: 14.2 | S73: 544 | T73: 29.57 | U73: C | V73: 137 | W73: 34.6 | X73: Dist | Y73: 198 | Z73: 37.22 | AA73: Dist+ | AB73: x
A74: M | B74: 4 | C74: North West | D74: NULL | E74: 356 | F74: Stockport | G74: 969 | H74: 31.62 | I74: 707 | J74: 28.92 | K74: C | L74: 375 | M74: 33.57 | N74: C+ | O74: 10.4 | P74: 20.8 | Q74: 373 | R74: 12.6 | S74: 707 | T74: 29.03 | U74: C | V74: 214 | W74: 36.91 | X74: Dist+ | Y74: 395 | Z74: 36.06 | AA74: Dist | AB74: 0
A75: M | B75: 4 | C75: North West | D75: NULL | E75: 357 | F75: Tameside | G75: 682 | H75: 27.62 | I75: 438 | J75: 24.91 | K75: D+ | L75: 272 | M75: 29.72 | N75: C | O75: 6.6 | P75: 10.3 | Q75: 272 | R75: 9.2 | S75: 438 | T75: 24.95 | U75: D+ | V75: 179 | W75: 30.15 | X75: Dist- | Y75: 173 | Z75: 35.67 | AA75: Dist | AB75: x
A76: M | B76: 4 | C76: North West | D76: NULL | E76: 358 | F76: Trafford | G76: 1017 | H76: 33.05 | I76: 660 | J76: 34.43 | K76: C+ | L76: 554 | M76: 38.71 | N76: B | O76: 24.7 | P76: 33 | Q76: 554 | R76: 29.6 | S76: 664 | T76: 34.52 | U76: C+ | V76: 211 | W76: 27.93 | X76: Merit+ | Y76: 212 | Z76: 30.48 | AA76: Dist- | AB76: x
A77: M | B77: 4 | C77: North West | D77: NULL | E77: 877 | F77: Warrington | G77: 834 | H77: 29.34 | I77: 567 | J77: 26.43 | K77: C- | L77: 304 | M77: 30.18 | N77: C | O77: 8.2 | P77: 14.5 | Q77: 303 | R77: 12.2 | S77: 579 | T77: 26.55 | U77: C- | V77: 201 | W77: 34.12 | X77: Dist | Y77: 267 | Z77: 32.62 | AA77: Dist- | AB77: 0
A78: M | B78: 4 | C78: North West | D78: NULL | E78: 359 | F78: Wigan | G78: 1089 | H78: 33.03 | I78: 766 | J78: 32.33 | K78: C+ | L78: 544 | M78: 36.28 | N78: B- | O78: 14.7 | P78: 23 | Q78: 544 | R78: 14.2 | S78: 775 | T78: 32.39 | U78: C+ | V78: 255 | W78: 33.56 | X78: Dist | Y78: 236 | Z78: 35.44 | AA78: Dist | AB78: x
A79: M | B79: 4 | C79: North West | D79: NULL | E79: 344 | F79: Wirral | G79: 1120 | H79: 30.39 | I79: 962 | J79: 29.33 | K79: C | L79: 542 | M79: 34.48 | N79: C+ | O79: 13.3 | P79: 19.4 | Q79: 538 | R79: 17.1 | S79: 970 | T79: 29.4 | U79: C | V79: 108 | W79: 30.15 | X79: Dist- | Y79: 441 | Z79: 34.67 | AA79: Dist | AB79: 0
A80: M | B80: 4 | C80: Outer London | D80: LONDON | E80: 301 | F80: Barking and Dagenham | G80: 860 | H80: 29.01 | I80: 437 | J80: 28.23 | K80: C- | L80: 221 | M80: 32.04 | N80: C+ | O80: 5 | P80: 12.7 | Q80: 220 | R80: 9.5 | S80: 446 | T80: 28.28 | U80: C- | V80: 244 | W80: 28.99 | X80: Merit+ | Y80: 339 | Z80: 30.33 | AA80: Dist- | AB80: x
A81: M | B81: 4 | C81: Outer London | D81: LONDON | E81: 302 | F81: Barnet | G81: 1689 | H81: 32.68 | I81: 1417 | J81: 33.2 | K81: C+ | L81: 1068 | M81: 35.96 | N81: B- | O81: 18.4 | P81: 27.1 | Q81: 1064 | R81: 24.4 | S81: 1419 | T81: 33.26 | U81: C+ | V81: 128 | W81: 27.93 | X81: Merit+ | Y81: 298 | Z81: 29.65 | AA81: Merit+ | AB81: 0
A82: M | B82: 4 | C82: Outer London | D82: LONDON | E82: 303 | F82: Bexley | G82: 859 | H82: 31.01 | I82: 726 | J82: 29.3 | K82: C | L82: 470 | M82: 32.72 | N82: C+ | O82: 9.4 | P82: 17.7 | Q82: 470 | R82: 14 | S82: 755 | T82: 29.91 | U82: C | V82: 78 | W82: 35.99 | X82: Dist | Y82: 247 | Z82: 35.15 | AA82: Dist | AB82: 0
A83: M | B83: 4 | C83: Outer London | D83: LONDON | E83: 304 | F83: Brent | G83: 900 | H83: 31.27 | I83: 759 | J83: 30.4 | K83: C | L83: 474 | M83: 34.96 | N83: C+ | O83: 11.8 | P83: 21.5 | Q83: 468 | R83: 17.7 | S83: 760 | T83: 30.44 | U83: C | V83: 66 | W83: 35.48 | X83: Dist | Y83: 201 | Z83: 34.44 | AA83: Dist | AB83: 0
A84: M | B84: 4 | C84: Outer London | D84: LONDON | E84: 305 | F84: Bromley | G84: 1670 | H84: 31.87 | I84: 1223 | J84: 31.78 | K84: C+ | L84: 795 | M84: 35.76 | N84: B- | O84: 16.2 | P84: 24.8 | Q84: 793 | R84: 22.1 | S84: 1231 | T84: 31.79 | U84: C+ | V84: 218 | W84: 29.53 | X84: Merit+ | Y84: 553 | Z84: 33.26 | AA84: Dist- | AB84: x
A85: M | B85: 4 | C85: Outer London | D85: LONDON | E85: 306 | F85: Croydon | G85: 1250 | H85: 30.98 | I85: 733 | J85: 25.64 | K85: C- | L85: 358 | M85: 29.03 | N85: C | O85: 4.5 | P85: 10.9 | Q85: 356 | R85: 8.7 | S85: 748 | T85: 25.72 | U85: C- | V85: 263 | W85: 35.77 | X85: Dist | Y85: 616 | Z85: 35.53 | AA85: Dist | AB85: 0
A86: M | B86: 4 | C86: Outer London | D86: LONDON | E86: 307 | F86: Ealing | G86: 905 | H86: 32.08 | I86: 779 | J86: 30.91 | K86: C | L86: 526 | M86: 34.41 | N86: C+ | O86: 11.2 | P86: 18.6 | Q86: 523 | R86: 14.9 | S86: 781 | T86: 30.95 | U86: C | V86: 50 | W86: 31.22 | X86: Dist- | Y86: 202 | Z86: 37.84 | AA86: Dist+ | AB86: 0
A87: M | B87: 4 | C87: Outer London | D87: LONDON | E87: 308 | F87: Enfield | G87: 1034 | H87: 31.3 | I87: 911 | J87: 30.03 | K87: C | L87: 593 | M87: 33.73 | N87: C+ | O87: 13.3 | P87: 20.4 | Q87: 590 | R87: 18.6 | S87: 913 | T87: 30.06 | U87: C | V87: 103 | W87: 37.14 | X87: Dist+ | Y87: 257 | Z87: 35.86 | AA87: Dist | AB87: x
A88: M | B88: 4 | C88: Outer London | D88: LONDON | E88: 203 | F88: Greenwich | G88: 686 | H88: 28.3 | I88: 529 | J88: 25.49 | K88: C- | L88: 257 | M88: 29.91 | N88: C | O88: 3.5 | P88: 9.3 | Q88: 254 | R88: 5.9 | S88: 544 | T88: 25.52 | U88: C- | V88: 110 | W88: 33.27 | X88: Dist- | Y88: 269 | Z88: 33.45 | AA88: Dist | AB88: 0
A89: M | B89: 4 | C89: Outer London | D89: LONDON | E89: 310 | F89: Harrow | G89: 1258 | H89: 30.57 | I89: 832 | J89: 29.49 | K89: C | L89: 563 | M89: 34.77 | N89: C+ | O89: 14 | P89: 22 | Q89: 563 | R89: 17.8 | S89: 836 | T89: 29.56 | U89: C | V89: 169 | W89: 36.49 | X89: Dist | Y89: 420 | Z89: 30.51 | AA89: Dist- | AB89: 0
A90: M | B90: 4 | C90: Outer London | D90: LONDON | E90: 311 | F90: Havering | G90: 1189 | H90: 26.18 | I90: 821 | J90: 25.73 | K90: C- | L90: 533 | M90: 27.89 | N90: C- | O90: 6.2 | P90: 9.9 | Q90: 531 | R90: 6.8 | S90: 821 | T90: 25.82 | U90: C- | V90: 229 | W90: 28.31 | X90: Merit+ | Y90: 359 | Z90: 26.02 | AA90: Merit | AB90: 0
A91: M | B91: 4 | C91: Outer London | D91: LONDON | E91: 312 | F91: Hillingdon | G91: 1565 | H91: 28.69 | I91: 945 | J91: 26.91 | K91: C- | L91: 537 | M91: 31.42 | N91: C | O91: 7.8 | P91: 14.3 | Q91: 528 | R91: 13.1 | S91: 946 | T91: 27.03 | U91: C- | V91: 459 | W91: 30.8 | X91: Dist- | Y91: 464 | Z91: 30.31 | AA91: Dist- | AB91: 0
A92: M | B92: 4 | C92: Outer London | D92: LONDON | E92: 313 | F92: Hounslow | G92: 998 | H92: 30.68 | I92: 774 | J92: 29.57 | K92: C | L92: 476 | M92: 34.45 | N92: C+ | O92: 9.7 | P92: 17.6 | Q92: 470 | R92: 15.5 | S92: 774 | T92: 29.58 | U92: C | V92: 84 | W92: 33.42 | X92: Dist | Y92: 358 | Z92: 33.52 | AA92: Dist | AB92: 0
A93: M | B93: 4 | C93: Outer London | D93: LONDON | E93: 314 | F93: Kingston upon Thames | G93: 905 | H93: 32.51 | I93: 571 | J93: 34.45 | K93: C+ | L93: 428 | M93: 37.22 | N93: B- | O93: 22 | P93: 32.2 | Q93: 428 | R93: 29.9 | S93: 571 | T93: 34.46 | U93: C+ | V93: 205 | W93: 29.68 | X93: Merit+ | Y93: 195 | Z93: 27.33 | AA93: Merit+ | AB93: 0
A94: M | B94: 4 | C94: Outer London | D94: LONDON | E94: 315 | F94: Merton | G94: 367 | H94: 29.76 | I94: 339 | J94: 27.75 | K94: C- | L94: 190 | M94: 32.79 | N94: C+ | O94: 6.8 | P94: 13.7 | Q94: 189 | R94: 12.2 | S94: 339 | T94: 27.85 | U94: C- | V94: 22 | W94: 34.48 | X94: Dist | Y94: 102 | Z94: 38.26 | AA94: Dist+ | AB94: 0
A95: M | B95: 4 | C95: Outer London | D95: LONDON | E95: 317 | F95: Redbridge | G95: 1425 | H95: 30.41 | I95: 1233 | J95: 29.67 | K95: C | L95: 869 | M95: 33.43 | N95: C+ | O95: 11.3 | P95: 18.1 | Q95: 866 | R95: 16.5 | S95: 1233 | T95: 29.7 | U95: C | V95: 106 | W95: 28.39 | X95: Merit+ | Y95: 279 | Z95: 36.05 | AA95: Dist | AB95: 0
A96: M | B96: 4 | C96: Outer London | D96: LONDON | E96: 318 | F96: Richmond upon Thames | G96: 646 | H96: 26.79 | I96: 423 | J96: 25.12 | K96: C- | L96: 268 | M96: 27.97 | N96: C- | O96: 5.2 | P96: 9.3 | Q96: 268 | R96: 7.5 | S96: 434 | T96: 25.55 | U96: C- | V96: 133 | W96: 30.51 | X96: Dist- | Y96: 147 | Z96: 27.13 | AA96: Merit+ | AB96: 0
A97: M | B97: 4 | C97: Outer London | D97: LONDON | E97: 319 | F97: Sutton | G97: 1138 | H97: 37.33 | I97: 964 | J97: 38.13 | K97: B- | L97: 713 | M97: 41.39 | N97: B | O97: 27.6 | P97: 39.8 | Q97: 713 | R97: 35.9 | S97: 965 | T97: 38.27 | U97: B- | V97: 130 | W97: 30.56 | X97: Dist- | Y97: 265 | Z97: 34.32 | AA97: Dist | AB97: x
A98: M | B98: 4 | C98: Outer London | D98: LONDON | E98: 320 | F98: Waltham Forest | G98: 1291 | H98: 27.89 | I98: 736 | J98: 25.85 | K98: C- | L98: 413 | M98: 30.57 | N98: C | O98: 6.8 | P98: 10.9 | Q98: 412 | R98: 6.6 | S98: 744 | T98: 25.88 | U98: C- | V98: 285 | W98: 31.69 | X98: Dist- | Y98: 504 | Z98: 29.19 | AA98: Merit+ | AB98: 0
A99: M | B99: 4 | C99: South East | D99: NULL | E99: 867 | F99: Bracknell Forest | G99: 392 | H99: 30.11 | I99: 312 | J99: 28.42 | K99: C | L99: 169 | M99: 32.5 | N99: C+ | O99: 8.3 | P99: 21.3 | Q99: 168 | R99: 17.3 | S99: 312 | T99: 28.4 | U99: C | V99: 62 | W99: 30.27 | X99: Dist- | Y99: 128 | Z99: 36.25 | AA99: Dist | AB99: 0
A100: M | B100: 4 | C100: South East | D100: NULL | E100: 846 | F100: Brighton and Hove | G100: 1251 | H100: 31.89 | I100: 989 | J100: 31.82 | K100: C+ | L100: 680 | M100: 34.35 | N100: C+ | O100: 15.6 | P100: 22.1 | Q100: 679 | R100: 18 | S100: 1006 | T100: 32.23 | U100: C+ | V100: 127 | W100: 26.98 | X100: Merit+ | Y100: 332 | Z100: 31.84 | AA100: Dist- | AB100: 0
A101: M | B101: 4 | C101: South East | D101: NULL | E101: 825 | F101: Buckinghamshire | G101: 2280 | H101: 34.93 | I101: 1870 | J101: 35.76 | K101: B- | L101: 1409 | M101: 38.91 | N101: B | O101: 22.9 | P101: 33.6 | Q101: 1393 | R101: 30.7 | S101: 1879 | T101: 35.83 | U101: B- | V101: 223 | W101: 31.08 | X101: Dist- | Y101: 521 | Z101: 31.63 | AA101: Dist- | AB101: 0
A102: M | B102: 4 | C102: South East | D102: NULL | E102: 845 | F102: East Sussex | G102: 1629 | H102: 28.61 | I102: 1107 | J102: 26.41 | K102: C- | L102: 613 | M102: 28.33 | N102: C- | O102: 8.2 | P102: 12.4 | Q102: 607 | R102: 10.2 | S102: 1108 | T102: 26.48 | U102: C- | V102: 398 | W102: 31.15 | X102: Dist- | Y102: 502 | Z102: 33.39 | AA102: Dist | AB102: x
A103: M | B103: 4 | C103: South East | D103: NULL | E103: 850 | F103: Hampshire | G103: 6307 | H103: 30.39 | I103: 4513 | J103: 29.91 | K103: C | L103: 3151 | M103: 33.05 | N103: C+ | O103: 11.2 | P103: 18.6 | Q103: 3145 | R103: 14.9 | S103: 4547 | T103: 30 | U103: C | V103: 1338 | W103: 29.79 | X103: Merit+ | Y103: 1522 | Z103: 32.87 | AA103: Dist- | AB103: 24
A104: M | B104: 4 | C104: South East | D104: NULL | E104: 921 | F104: Isle of Wight | G104: 425 | H104: 27.5 | I104: 299 | J104: 25.47 | K104: C- | L104: 163 | M104: 29.78 | N104: C | O104: 8 | P104: 13.5 | Q104: 161 | R104: 11.2 | S104: 299 | T104: 25.59 | U104: C- | V104: 63 | W104: 29.44 | X104: Merit+ | Y104: 145 | Z104: 31.61 | AA104: Dist- | AB104: 0
A105: M | B105: 4 | C105: South East | D105: NULL | E105: 886 | F105: Kent | G105: 5856 | H105: 31.01 | I105: 3866 | J105: 29.42 | K105: C | L105: 2271 | M105: 33.99 | N105: C+ | O105: 14.1 | P105: 22 | Q105: 2249 | R105: 18.9 | S105: 4160 | T105: 30.67 | U105: C | V105: 1212 | W105: 29.53 | X105: Merit+ | Y105: 1960 | Z105: 33.24 | AA105: Dist- | AB105: 20
A106: M | B106: 4 | C106: South East | D106: NULL | E106: 887 | F106: Medway | G106: 1210 | H106: 29.91 | I106: 762 | J106: 28.26 | K106: C- | L106: 396 | M106: 33.31 | N106: C+ | O106: 11.6 | P106: 18.7 | Q106: 393 | R106: 16.3 | S106: 767 | T106: 28.53 | U106: C | V106: 314 | W106: 30.47 | X106: Dist- | Y106: 600 | Z106: 32.39 | AA106: Dist- | AB106: 0
A107: M | B107: 4 | C107: South East | D107: NULL | E107: 826 | F107: Milton Keynes | G107: 984 | H107: 28.76 | I107: 683 | J107: 27.85 | K107: C- | L107: 384 | M107: 31.33 | N107: C | O107: 7.6 | P107: 12.8 | Q107: 383 | R107: 10.7 | S107: 688 | T107: 28.02 | U107: C- | V107: 171 | W107: 25.39 | X107: Merit | Y107: 449 | Z107: 31.98 | AA107: Dist- | AB107: x
A108: M | B108: 4 | C108: South East | D108: NULL | E108: 931 | F108: Oxfordshire | G108: 2803 | H108: 29.02 | I108: 1687 | J108: 28.99 | K108: C | L108: 1208 | M108: 32.19 | N108: C+ | O108: 10.5 | P108: 16.9 | Q108: 1200 | R108: 14.8 | S108: 1693 | T108: 29.07 | U108: C | V108: 503 | W108: 27.63 | X108: Merit+ | Y108: 894 | Z108: 29.8 | AA108: Merit+ | AB108: x
A109: M | B109: 4 | C109: South East | D109: NULL | E109: 851 | F109: Portsmouth | G109: 300 | H109: 27.01 | I109: 138 | J109: 24.84 | K109: D+ | L109: 69 | M109: 27.73 | N109: C- | O109: 2.9 | P109: 4.3 | Q109: 69 | R109: 4.3 | S109: 141 | T109: 24.93 | U109: D+ | V109: 119 | W109: 28.4 | X109: Merit+ | Y109: 122 | Z109: 28.58 | AA109: Merit+ | AB109: 0
A110: M | B110: 4 | C110: South East | D110: NULL | E110: 870 | F110: Reading | G110: 371 | H110: 38.65 | I110: 305 | J110: 39.34 | K110: B | L110: 201 | M110: 44.01 | N110: B+ | O110: 49.3 | P110: 54.2 | Q110: 201 | R110: 51.2 | S110: 313 | T110: 39.25 | U110: B | V110: 68 | W110: 39.14 | X110: Dist+ | Y110: 70 | Z110: 33.78 | AA110: Dist | AB110: 0
A111: M | B111: 4 | C111: South East | D111: NULL | E111: 871 | F111: Slough | G111: 823 | H111: 30.02 | I111: 604 | J111: 30.34 | K111: C | L111: 376 | M111: 35.3 | N111: B- | O111: 14.6 | P111: 25.5 | Q111: 376 | R111: 23.7 | S111: 609 | T111: 30.46 | U111: C | V111: 150 | W111: 26.46 | X111: Merit | Y111: 232 | Z111: 30.8 | AA111: Dist- | AB111: 0
A112: M | B112: 4 | C112: South East | D112: NULL | E112: 852 | F112: Southampton | G112: 629 | H112: 26.7 | I112: 435 | J112: 23.95 | K112: D+ | L112: 194 | M112: 26.82 | N112: C- | O112: 3.6 | P112: 7.2 | Q112: 188 | R112: 5.3 | S112: 435 | T112: 24.14 | U112: D+ | V112: 153 | W112: 28.16 | X112: Merit+ | Y112: 272 | Z112: 31.6 | AA112: Dist- | AB112: 0
A113: M | B113: 4 | C113: South East | D113: NULL | E113: 936 | F113: Surrey | G113: 4687 | H113: 30.39 | I113: 3578 | J113: 29.9 | K113: C | L113: 2279 | M113: 33.85 | N113: C+ | O113: 11.8 | P113: 19 | Q113: 2273 | R113: 15.5 | S113: 3584 | T113: 30.03 | U113: C | V113: 821 | W113: 27.96 | X113: Merit+ | Y113: 1419 | Z113: 33.57 | AA113: Dist | AB113: x
A114: M | B114: 4 | C114: South East | D114: NULL | E114: 869 | F114: West Berkshire | G114: 566 | H114: 28.03 | I114: 508 | J114: 27.51 | K114: C- | L114: 334 | M114: 31 | N114: C | O114: 7.2 | P114: 13.5 | Q114: 325 | R114: 11.1 | S114: 508 | T114: 27.57 | U114: C- | V114: 59 | W114: 28.57 | X114: Merit+ | Y114: 128 | Z114: 31.51 | AA114: Dist- | AB114: 0
A115: M | B115: 4 | C115: South East | D115: NULL | E115: 938 | F115: West Sussex | G115: 2681 | H115: 30.03 | I115: 1959 | J115: 29.13 | K115: C | L115: 1182 | M115: 31.69 | N115: C+ | O115: 10.7 | P115: 16.7 | Q115: 1174 | R115: 14 | S115: 1974 | T115: 29.25 | U115: C | V115: 440 | W115: 29.77 | X115: Merit+ | Y115: 930 | Z115: 32.78 | AA115: Dist- | AB115: x
A116: M | B116: 4 | C116: South East | D116: NULL | E116: 868 | F116: Windsor and Maidenhead | G116: 633 | H116: 30 | I116: 479 | J116: 29.45 | K116: C | L116: 291 | M116: 33.42 | N116: C+ | O116: 12 | P116: 20.6 | Q116: 285 | R116: 17.9 | S116: 480 | T116: 29.55 | U116: C | V116: 93 | W116: 30.29 | X116: Dist- | Y116: 222 | Z116: 31.35 | AA116: Dist- | AB116: 0
A117: M | B117: 4 | C117: South East | D117: NULL | E117: 872 | F117: Wokingham | G117: 501 | H117: 31.2 | I117: 467 | J117: 30.8 | K117: C | L117: 343 | M117: 33.99 | N117: C+ | O117: 9.6 | P117: 18.7 | Q117: 343 | R117: 16.6 | S117: 467 | T117: 30.9 | U117: C | V117: 37 | W117: 31.42 | X117: Dist- | Y117: 89 | Z117: 34 | AA117: Dist | AB117: 0
A118: M | B118: 4 | C118: South West | D118: NULL | E118: 800 | F118: Bath and North East Somerset | G118: 682 | H118: 30.2 | I118: 470 | J118: 30.02 | K118: C | L118: 304 | M118: 34.35 | N118: C+ | O118: 14.5 | P118: 23 | Q118: 303 | R118: 21.8 | S118: 477 | T118: 30.2 | U118: C | V118: 161 | W118: 29.45 | X118: Merit+ | Y118: 217 | Z118: 30.86 | AA118: Dist- | AB118: 0
A119: M | B119: 4 | C119: South West | D119: NULL | E119: 837 | F119: Bournemouth | G119: 419 | H119: 31.28 | I119: 311 | J119: 31.63 | K119: C | L119: 222 | M119: 34.94 | N119: C+ | O119: 15.8 | P119: 25.2 | Q119: 221 | R119: 24.4 | S119: 312 | T119: 31.75 | U119: C+ | V119: 47 | W119: 30.14 | X119: Dist- | Y119: 119 | Z119: 30.12 | AA119: Dist- | AB119: 0
A120: M | B120: 4 | C120: South West | D120: NULL | E120: 801 | F120: Bristol, City of | G120: 1077 | H120: 28.88 | I120: 828 | J120: 28.77 | K120: C | L120: 514 | M120: 31.93 | N120: C+ | O120: 11.1 | P120: 17.9 | Q120: 514 | R120: 15.8 | S120: 828 | T120: 28.97 | U120: C | V120: 190 | W120: 25.65 | X120: Merit | Y120: 253 | Z120: 32.06 | AA120: Dist- | AB120: 0
A121: M | B121: 4 | C121: South West | D121: NULL | E121: 908 | F121: Cornwall | G121: 1884 | H121: 31.75 | I121: 1080 | J121: 29.97 | K121: C | L121: 656 | M121: 34.01 | N121: C+ | O121: 12 | P121: 20.1 | Q121: 650 | R121: 15.2 | S121: 1094 | T121: 30.22 | U121: C | V121: 467 | W121: 32.12 | X121: Dist- | Y121: 701 | Z121: 34.59 | AA121: Dist | AB121: x
A122: M | B122: 4 | C122: South West | D122: NULL | E122: 878 | F122: Devon | G122: 2278 | H122: 29.91 | I122: 1625 | J122: 28.93 | K122: C | L122: 926 | M122: 32.41 | N122: C+ | O122: 12.1 | P122: 19.9 | Q122: 923 | R122: 17.8 | S122: 1635 | T122: 29.16 | U122: C | V122: 380 | W122: 31.98 | X122: Dist- | Y122: 860 | Z122: 30.9 | AA122: Dist- | AB122: x
A123: M | B123: 4 | C123: South West | D123: NULL | E123: 835 | F123: Dorset | G123: 1349 | H123: 28.56 | I123: 1122 | J123: 28.01 | K123: C- | L123: 725 | M123: 31 | N123: C | O123: 7.6 | P123: 14.5 | Q123: 721 | R123: 11.1 | S123: 1126 | T123: 28.18 | U123: C- | V123: 168 | W123: 25.64 | X123: Merit | Y123: 291 | Z123: 33.21 | AA123: Dist- | AB123: 0
A124: M | B124: 4 | C124: South West | D124: NULL | E124: 916 | F124: Gloucestershire | G124: 2520 | H124: 31.76 | I124: 1891 | J124: 31.14 | K124: C | L124: 1320 | M124: 34.85 | N124: C+ | O124: 15.4 | P124: 22.6 | Q124: 1316 | R124: 18.8 | S124: 1899 | T124: 31.23 | U124: C | V124: 387 | W124: 31.4 | X124: Dist- | Y124: 639 | Z124: 34.4 | AA124: Dist | AB124: x
A125: M | B125: 4 | C125: South West | D125: NULL | E125: 802 | F125: North Somerset | G125: 762 | H125: 30.11 | I125: 505 | J125: 27.74 | K125: C- | L125: 309 | M125: 31.65 | N125: C | O125: 11 | P125: 17.2 | Q125: 307 | R125: 15 | S125: 505 | T125: 27.82 | U125: C- | V125: 186 | W125: 34.26 | X125: Dist | Y125: 198 | Z125: 33.5 | AA125: Dist | AB125: x
A126: M | B126: 4 | C126: South West | D126: NULL | E126: 879 | F126: Plymouth | G126: 988 | H126: 27.28 | I126: 631 | J126: 26.64 | K126: C- | L126: 352 | M126: 29.13 | N126: C | O126: 10.8 | P126: 14.8 | Q126: 348 | R126: 13.8 | S126: 632 | T126: 26.69 | U126: C- | V126: 264 | W126: 25.53 | X126: Merit | Y126: 308 | Z126: 30.94 | AA126: Dist- | AB126: 0
A127: M | B127: 4 | C127: South West | D127: NULL | E127: 836 | F127: Poole | G127: 699 | H127: 28.18 | I127: 436 | J127: 28.38 | K127: C | L127: 285 | M127: 32.18 | N127: C+ | O127: 8.8 | P127: 15.1 | Q127: 284 | R127: 9.9 | S127: 440 | T127: 28.43 | U127: C | V127: 146 | W127: 26.17 | X127: Merit | Y127: 210 | Z127: 28.97 | AA127: Merit+ | AB127: 0
A128: M | B128: 4 | C128: South West | D128: NULL | E128: 933 | F128: Somerset | G128: 1894 | H128: 30.45 | I128: 1154 | J128: 28.69 | K128: C | L128: 746 | M128: 32.24 | N128: C+ | O128: 11.1 | P128: 17.7 | Q128: 746 | R128: 15.7 | S128: 1166 | T128: 28.87 | U128: C | V128: 560 | W128: 32.11 | X128: Dist- | Y128: 467 | Z128: 33.55 | AA128: Dist | AB128: x
A129: M | B129: 4 | C129: South West | D129: NULL | E129: 803 | F129: South Gloucestershire | G129: 1198 | H129: 28.49 | I129: 769 | J129: 26.31 | K129: C- | L129: 414 | M129: 30.12 | N129: C | O129: 9.9 | P129: 15.5 | Q129: 412 | R129: 13.8 | S129: 788 | T129: 26.47 | U129: C- | V129: 205 | W129: 33.24 | X129: Dist- | Y129: 528 | Z129: 30.91 | AA129: Dist- | AB129: x
A130: M | B130: 4 | C130: South West | D130: NULL | E130: 866 | F130: Swindon | G130: 813 | H130: 26.53 | I130: 453 | J130: 24.92 | K130: D+ | L130: 230 | M130: 26.12 | N130: C- | O130: 6.1 | P130: 11.3 | Q130: 224 | R130: 9.4 | S130: 453 | T130: 25.16 | U130: C- | V130: 220 | W130: 25.2 | X130: Merit | Y130: 306 | Z130: 29.68 | AA130: Merit+ | AB130: 0
A131: M | B131: 4 | C131: South West | D131: NULL | E131: 880 | F131: Torbay | G131: 616 | H131: 30.49 | I131: 327 | J131: 30.16 | K131: C | L131: 224 | M131: 33.69 | N131: C+ | O131: 12.5 | P131: 19.6 | Q131: 224 | R131: 16.5 | S131: 356 | T131: 31.78 | U131: C+ | V131: 142 | W131: 26.89 | X131: Merit+ | Y131: 204 | Z131: 29.94 | AA131: Merit+ | AB131: 0
A132: M | B132: 4 | C132: South West | D132: NULL | E132: 865 | F132: Wiltshire | G132: 1285 | H132: 30.78 | I132: 967 | J132: 30.94 | K132: C | L132: 683 | M132: 34.5 | N132: C+ | O132: 11.4 | P132: 20.4 | Q132: 681 | R132: 17.2 | S132: 979 | T132: 31.07 | U132: C | V132: 256 | W132: 27.48 | X132: Merit+ | Y132: 279 | Z132: 33.02 | AA132: Dist- | AB132: x
A133: M | B133: 4 | C133: West Midlands | D133: NULL | E133: 330 | F133: Birmingham | G133: 4022 | H133: 30.44 | I133: 2536 | J133: 28.9 | K133: C | L133: 1514 | M133: 33.39 | N133: C+ | O133: 13.6 | P133: 20.5 | Q133: 1504 | R133: 18.4 | S133: 2545 | T133: 28.95 | U133: C | V133: 841 | W133: 32.03 | X133: Dist- | Y133: 1518 | Z133: 33.08 | AA133: Dist- | AB133: 0
A134: M | B134: 4 | C134: West Midlands | D134: NULL | E134: 331 | F134: Coventry | G134: 1062 | H134: 28.46 | I134: 749 | J134: 26.78 | K134: C- | L134: 345 | M134: 32.29 | N134: C+ | O134: 8.4 | P134: 14.5 | Q134: 340 | R134: 11.2 | S134: 756 | T134: 26.88 | U134: C- | V134: 280 | W134: 26.97 | X134: Merit+ | Y134: 407 | Z134: 33.86 | AA134: Dist | AB134: 3
A135: M | B135: 4 | C135: West Midlands | D135: NULL | E135: 332 | F135: Dudley | G135: 1347 | H135: 29.98 | I135: 899 | J135: 30.28 | K135: C | L135: 626 | M135: 33.75 | N135: C+ | O135: 9.1 | P135: 17.6 | Q135: 624 | R135: 13 | S135: 899 | T135: 30.34 | U135: C | V135: 260 | W135: 27.4 | X135: Merit+ | Y135: 389 | Z135: 30.85 | AA135: Dist- | AB135: 0
A136: M | B136: 4 | C136: West Midlands | D136: NULL | E136: 884 | F136: Herefordshire, County of | G136: 729 | H136: 29.94 | I136: 481 | J136: 30.8 | K136: C | L136: 368 | M136: 33.6 | N136: C+ | O136: 11.7 | P136: 19.8 | Q136: 366 | R136: 15.3 | S136: 482 | T136: 30.97 | U136: C | V136: 84 | W136: 26.42 | X136: Merit | Y136: 236 | Z136: 27.94 | AA136: Merit+ | AB136: 0
A137: M | B137: 4 | C137: West Midlands | D137: NULL | E137: 333 | F137: Sandwell | G137: 1004 | H137: 28.03 | I137: 609 | J137: 25.51 | K137: C- | L137: 317 | M137: 30.32 | N137: C | O137: 2.2 | P137: 8.8 | Q137: 278 | R137: 4.7 | S137: 629 | T137: 25.57 | U137: C- | V137: 253 | W137: 31.16 | X137: Dist- | Y137: 459 | Z137: 30.76 | AA137: Dist- | AB137: x
A138: M | B138: 4 | C138: West Midlands | D138: NULL | E138: 893 | F138: Shropshire | G138: 869 | H138: 29 | I138: 641 | J138: 28.4 | K138: C | L138: 442 | M138: 31.95 | N138: C+ | O138: 9 | P138: 15.6 | Q138: 441 | R138: 12.2 | S138: 641 | T138: 28.52 | U138: C | V138: 125 | W138: 28.39 | X138: Merit+ | Y138: 254 | Z138: 31.36 | AA138: Dist- | AB138: 0
A139: M | B139: 4 | C139: West Midlands | D139: NULL | E139: 334 | F139: Solihull | G139: 1515 | H139: 28.97 | I139: 823 | J139: 27.55 | K139: C- | L139: 603 | M139: 31.59 | N139: C | O139: 8.8 | P139: 15.8 | Q139: 602 | R139: 12 | S139: 846 | T139: 27.63 | U139: C- | V139: 350 | W139: 29.5 | X139: Merit+ | Y139: 450 | Z139: 32.36 | AA139: Dist- | AB139: 0
A140: M | B140: 4 | C140: West Midlands | D140: NULL | E140: 860 | F140: Staffordshire | G140: 3005 | H140: 28.4 | I140: 1859 | J140: 26.19 | K140: C- | L140: 992 | M140: 30.68 | N140: C | O140: 8 | P140: 13 | Q140: 983 | R140: 11.2 | S140: 1864 | T140: 26.3 | U140: C- | V140: 743 | W140: 27.86 | X140: Merit+ | Y140: 1109 | Z140: 33.46 | AA140: Dist | AB140: 14
A141: M | B141: 4 | C141: West Midlands | D141: NULL | E141: 861 | F141: Stoke-on-Trent | G141: 599 | H141: 28.24 | I141: 359 | J141: 26.9 | K141: C- | L141: 207 | M141: 30.6 | N141: C | O141: 6.3 | P141: 15.5 | Q141: 207 | R141: 13 | S141: 367 | T141: 26.89 | U141: C- | V141: 194 | W141: 28.8 | X141: Merit+ | Y141: 229 | Z141: 30.76 | AA141: Dist- | AB141: 0
A142: M | B142: 4 | C142: West Midlands | D142: NULL | E142: 894 | F142: Telford and Wrekin | G142: 703 | H142: 32.28 | I142: 475 | J142: 32.82 | K142: C+ | L142: 292 | M142: 37.55 | N142: B- | O142: 20.5 | P142: 33.9 | Q142: 282 | R142: 29.8 | S142: 477 | T142: 32.79 | U142: C+ | V142: 131 | W142: 27.54 | X142: Merit+ | Y142: 293 | Z142: 33.27 | AA142: Dist- | AB142: 0
A143: M | B143: 4 | C143: West Midlands | D143: NULL | E143: 335 | F143: Walsall | G143: 1141 | H143: 30.39 | I143: 701 | J143: 28.87 | K143: C | L143: 331 | M143: 35.45 | N143: B- | O143: 13.9 | P143: 23 | Q143: 325 | R143: 20.3 | S143: 708 | T143: 29.03 | U143: C | V143: 308 | W143: 29.47 | X143: Merit+ | Y143: 512 | Z143: 33.68 | AA143: Dist | AB143: 0
A144: M | B144: 4 | C144: West Midlands | D144: NULL | E144: 937 | F144: Warwickshire | G144: 2406 | H144: 30.6 | I144: 1492 | J144: 31.31 | K144: C | L144: 1021 | M144: 34.52 | N144: C+ | O144: 13.9 | P144: 22.5 | Q144: 1013 | R144: 19.8 | S144: 1527 | T144: 31.42 | U144: C | V144: 609 | W144: 27.87 | X144: Merit+ | Y144: 661 | Z144: 30.53 | AA144: Dist- | AB144: x
A145: M | B145: 4 | C145: West Midlands | D145: NULL | E145: 336 | F145: Wolverhampton | G145: 798 | H145: 30.74 | I145: 413 | J145: 25.2 | K145: C- | L145: 173 | M145: 28.11 | N145: C- | O145: 4 | P145: 11 | Q145: 171 | R145: 9.4 | S145: 414 | T145: 25.21 | U145: C- | V145: 242 | W145: 31.86 | X145: Dist- | Y145: 429 | Z145: 35.54 | AA145: Dist | AB145: 0
A146: M | B146: 4 | C146: West Midlands | D146: NULL | E146: 885 | F146: Worcestershire | G146: 1832 | H146: 28.87 | I146: 1330 | J146: 28.07 | K146: C- | L146: 847 | M146: 31.82 | N146: C+ | O146: 9.4 | P146: 15.5 | Q146: 837 | R146: 12.5 | S146: 1332 | T146: 28.14 | U146: C- | V146: 304 | W146: 28.68 | X146: Merit+ | Y146: 629 | Z146: 31.77 | AA146: Dist- | AB146: x
A147: M | B147: 4 | C147: Yorkshire and the Humber | D147: NULL | E147: 370 | F147: Barnsley | G147: 690 | H147: 29.34 | I147: 247 | J147: 25.79 | K147: C- | L147: 155 | M147: 31.96 | N147: C+ | O147: 7.1 | P147: 11 | Q147: 155 | R147: 10.3 | S147: 247 | T147: 25.8 | U147: C- | V147: 284 | W147: 30.26 | X147: Dist- | Y147: 212 | Z147: 33.31 | AA147: Dist- | AB147: 0
A148: M | B148: 4 | C148: Yorkshire and the Humber | D148: NULL | E148: 380 | F148: Bradford | G148: 1582 | H148: 30.1 | I148: 1056 | J148: 25.74 | K148: C- | L148: 466 | M148: 31.5 | N148: C | O148: 8.8 | P148: 15.5 | Q148: 453 | R148: 13.5 | S148: 1065 | T148: 25.78 | U148: C- | V148: 282 | W148: 31.87 | X148: Dist- | Y148: 835 | Z148: 36.76 | AA148: Dist+ | AB148: 0
A149: M | B149: 4 | C149: Yorkshire and the Humber | D149: NULL | E149: 381 | F149: Calderdale | G149: 714 | H149: 30.83 | I149: 530 | J149: 28.02 | K149: C- | L149: 322 | M149: 30.98 | N149: C | O149: 8.1 | P149: 11.5 | Q149: 318 | R149: 11 | S149: 533 | T149: 28.08 | U149: C- | V149: 78 | W149: 30.73 | X149: Dist- | Y149: 285 | Z149: 37.76 | AA149: Dist+ | AB149: 0
A150: M | B150: 4 | C150: Yorkshire and the Humber | D150: NULL | E150: 371 | F150: Doncaster | G150: 815 | H150: 29.39 | I150: 596 | J150: 26.96 | K150: C- | L150: 309 | M150: 30.91 | N150: C | O150: 10.4 | P150: 15.9 | Q150: 303 | R150: 13.5 | S150: 599 | T150: 26.97 | U150: C- | V150: 110 | W150: 26.64 | X150: Merit | Y150: 340 | Z150: 36.41 | AA150: Dist | AB150: 0
A151: M | B151: 4 | C151: Yorkshire and the Humber | D151: NULL | E151: 811 | F151: East Riding of Yorkshire | G151: 947 | H151: 29.43 | I151: 614 | J151: 27.65 | K151: C- | L151: 337 | M151: 33.39 | N151: C+ | O151: 11 | P151: 17.2 | Q151: 336 | R151: 14.9 | S151: 615 | T151: 27.77 | U151: C- | V151: 244 | W151: 29.26 | X151: Merit+ | Y151: 342 | Z151: 34.23 | AA151: Dist | AB151: 0
A152: M | B152: 4 | C152: Yorkshire and the Humber | D152: NULL | E152: 810 | F152: Kingston upon Hull, City of | G152: 987 | H152: 28.63 | I152: 499 | J152: 27.4 | K152: C- | L152: 270 | M152: 33.69 | N152: C+ | O152: 9.6 | P152: 14.8 | Q152: 266 | R152: 11.7 | S152: 499 | T152: 27.56 | U152: C- | V152: 338 | W152: 28.41 | X152: Merit+ | Y152: 397 | Z152: 30.97 | AA152: Dist- | AB152: 0
A153: M | B153: 4 | C153: Yorkshire and the Humber | D153: NULL | E153: 382 | F153: Kirklees | G153: 1640 | H153: 32.16 | I153: 1154 | J153: 30.28 | K153: C | L153: 750 | M153: 34.68 | N153: C+ | O153: 14.5 | P153: 24.3 | Q153: 747 | R153: 20.6 | S153: 1172 | T153: 30.35 | U153: C | V153: 307 | W153: 34.23 | X153: Dist | Y153: 551 | Z153: 36.75 | AA153: Dist+ | AB153: x
A154: M | B154: 4 | C154: Yorkshire and the Humber | D154: NULL | E154: 383 | F154: Leeds | G154: 2542 | H154: 27.94 | I154: 1748 | J154: 26.73 | K154: C- | L154: 1037 | M154: 30.69 | N154: C | O154: 8.7 | P154: 15.4 | Q154: 1018 | R154: 13.1 | S154: 1782 | T154: 26.61 | U154: C- | V154: 551 | W154: 28.78 | X154: Merit+ | Y154: 796 | Z154: 32.17 | AA154: Dist- | AB154: 0
A155: M | B155: 4 | C155: Yorkshire and the Humber | D155: NULL | E155: 812 | F155: North East Lincolnshire | G155: 728 | H155: 26.08 | I155: 381 | J155: 24.27 | K155: D+ | L155: 172 | M155: 30.04 | N155: C | O155: 4.1 | P155: 9.3 | Q155: 172 | R155: 6.4 | S155: 381 | T155: 24.32 | U155: D+ | V155: 263 | W155: 27.03 | X155: Merit+ | Y155: 278 | Z155: 28.45 | AA155: Merit+ | AB155: 0
A156: M | B156: 4 | C156: Yorkshire and the Humber | D156: NULL | E156: 813 | F156: North Lincolnshire | G156: 621 | H156: 31.4 | I156: 423 | J156: 29.69 | K156: C | L156: 212 | M156: 31.7 | N156: C+ | O156: 13.2 | P156: 21.2 | Q156: 211 | R156: 19.9 | S156: 424 | T156: 29.72 | U156: C | V156: 161 | W156: 32.25 | X156: Dist- | Y156: 246 | Z156: 34.77 | AA156: Dist | AB156: x
A157: M | B157: 4 | C157: Yorkshire and the Humber | D157: NULL | E157: 815 | F157: North Yorkshire | G157: 2003 | H157: 31.25 | I157: 1550 | J157: 30.25 | K157: C | L157: 1049 | M157: 34.47 | N157: C+ | O157: 15.2 | P157: 24.5 | Q157: 1041 | R157: 20.9 | S157: 1558 | T157: 30.32 | U157: C | V157: 311 | W157: 32.05 | X157: Dist- | Y157: 575 | Z157: 35.31 | AA157: Dist | AB157: x
A158: M | B158: 4 | C158: Yorkshire and the Humber | D158: NULL | E158: 372 | F158: Rotherham | G158: 1076 | H158: 28.4 | I158: 727 | J158: 27.04 | K158: C- | L158: 399 | M158: 30.56 | N158: C | O158: 9.3 | P158: 16.5 | Q158: 398 | R158: 13.1 | S158: 728 | T158: 27.1 | U158: C- | V158: 194 | W158: 24.71 | X158: Merit | Y158: 430 | Z158: 33.98 | AA158: Dist | AB158: 0
A159: M | B159: 4 | C159: Yorkshire and the Humber | D159: NULL | E159: 373 | F159: Sheffield | G159: 1563 | H159: 29.5 | I159: 965 | J159: 29.8 | K159: C | L159: 619 | M159: 33.57 | N159: C+ | O159: 15 | P159: 21.3 | Q159: 619 | R159: 19.2 | S159: 972 | T159: 29.92 | U159: C | V159: 339 | W159: 28.86 | X159: Merit+ | Y159: 568 | Z159: 28.96 | AA159: Merit+ | AB159: 5
A160: M | B160: 4 | C160: Yorkshire and the Humber | D160: NULL | E160: 384 | F160: Wakefield | G160: 1146 | H160: 30.13 | I160: 648 | J160: 27.45 | K160: C- | L160: 339 | M160: 31.56 | N160: C | O160: 6.2 | P160: 12.1 | Q160: 339 | R160: 10.3 | S160: 649 | T160: 27.52 | U160: C- | V160: 326 | W160: 30.45 | X160: Dist- | Y160: 459 | Z160: 34.44 | AA160: Dist | AB160: x
A161: M | B161: 4 | C161: Yorkshire and the Humber | D161: NULL | E161: 816 | F161: York | G161: 1026 | H161: 30.31 | I161: 477 | J161: 30.59 | K161: C | L161: 331 | M161: 34.07 | N161: C+ | O161: 10.3 | P161: 18.4 | Q161: 328 | R161: 14.6 | S161: 502 | T161: 30.71 | U161: C | V161: 399 | W161: 27.93 | X161: Merit+ | Y161: 257 | Z161: 33.42 | AA161: Dist | AB161: x

Sheet Table 9a
A1: Table 9a: Attainment1 of level 3 state-funded students2,3 aged 16 to 184 by gender, local authority and region
A2: Year: 2015/16 (revised)
A3: Coverage: England
C5: All
A6: Select gender: | C6: Level 3 students3 | F6: A level students5 | S6: Academic students6 | W6: Tech level students7 | AA6: Applied General students8 | AE6: TechBacc9
B7: Region/ Local authority number | C7: Number of students | D7: APS10 per entry | F7: Number of students5 | G7: APS per entry | H7: APS per entry as a grade | J7: Number of students entered for one or more A level or applied A level11 | K7: APS per entry, best 311,12 | L7: APS per entry, best 3 as a grade | M7: Percentage of students achieving 3 A*-A grades or better at A level11,13 | N7: Percentage of students achieving grades AAB or better at A level11,13 | P7: Number of students entered for 1 or more A level14 | Q7: Percentage of students achieving grades AAB or better at A level, of which at least two are in facilitating subjects14,15 | S7: Number of students | T7: APS per entry | U7: APS per entry as a grade | W7: Number of students | X7: APS per entry | Y7: APS per entry as a grade | AA7: Number of students | AB7: APS per entry | AC7: APS per entry as a grade | AE7: Number of students achieving TechBacc
A10: England16 | B10: E92000001 | C10: =IF($C$5="All",SUPP_9a!D501,IF($C$5="Females",SUPP_9a!D502,IF($C$5="Males",SUPP_9a!D503))) -> 440455 | D10: =IF($C$5="All",SUPP_9a!H501,IF($C$5="Females",SUPP_9a!H502,IF($C$5="Males",SUPP_9a!H503))) -> 32.41 | F10: =IF($C$5="All",SUPP_9a!I501,IF($C$5="Females",SUPP_9a!I502,IF($C$5="Males",SUPP_9a!I503))) -> 323273 | G10: =IF($C$5="All",SUPP_9a!M501,IF($C$5="Females",SUPP_9a!M502,IF($C$5="Males",SUPP_9a!M503))) -> 31.79 | H10: =IF($C$5="All",SUPP_9a!N501,IF($C$5="Females",SUPP_9a!N502,IF($C$5="Males",SUPP_9a!N503))) -> C+ | J10: =IF($C$5="All",SUPP_9a!O501,IF($C$5="Females",SUPP_9a!O502,IF($C$5="Males",SUPP_9a!O503))) -> 225732 | K10: =IF($C$5="All",SUPP_9a!R501,IF($C$5="Females",SUPP_9a!R502,IF($C$5="Males",SUPP_9a!R503))) -> 34.97 | L10: =IF($C$5="All",SUPP_9a!S501,IF($C$5="Females",SUPP_9a!S502,IF($C$5="Males",SUPP_9a!S503))) -> C+ | M10: =IF($C$5="All",SUPP_9a!T501,IF($C$5="Females",SUPP_9a!T502,IF($C$5="Males",SUPP_9a!T503))) -> 13.2 | N10: =IF($C$5="All",SUPP_9a!U501,IF($C$5="Females",SUPP_9a!U502,IF($C$5="Males",SUPP_9a!U503))) -> 22.1 | P10: =IF($C$5="All",SUPP_9a!V501,IF($C$5="Females",SUPP_9a!V502,IF($C$5="Males",SUPP_9a!V503))) -> 224100 | Q10: =IF($C$5="All",SUPP_9a!X501,IF($C$5="Females",SUPP_9a!X502,IF($C$5="Males",SUPP_9a!X503))) -> 17 | S10: =IF($C$5="All",SUPP_9a!Y501,IF($C$5="Females",SUPP_9a!Y502,IF($C$5="Males",SUPP_9a!Y503))) -> 328373 | T10: =IF($C$5="All",SUPP_9a!AC501,IF($C$5="Females",SUPP_9a!AC502,IF($C$5="Males",SUPP_9a!AC503))) -> 32.11 | U10: =IF($C$5="All",SUPP_9a!AD501,IF($C$5="Females",SUPP_9a!AD502,IF($C$5="Males",SUPP_9a!AD503))) -> C+ | W10: =IF($C$5="All",SUPP_9a!AE501,IF($C$5="Females",SUPP_9a!AE502,IF($C$5="Males",SUPP_9a!AE503))) -> 69318 | X10: =IF($C$5="All",SUPP_9a!AI501,IF($C$5="Females",SUPP_9a!AI502,IF($C$5="Males",SUPP_9a!AI503))) -> 30.77 | Y10: =IF($C$5="All",SUPP_9a!AJ501,IF($C$5="Females",SUPP_9a!AJ502,IF($C$5="Males",SUPP_9a!AJ503))) -> Dist- | AA10: =IF($C$5="All",SUPP_9a!AK501,IF($C$5="Females",SUPP_9a!AK502,IF($C$5="Males",SUPP_9a!AK503))) -> 125325 | AB10: =IF($C$5="All",SUPP_9a!AO501,IF($C$5="Females",SUPP_9a!AO502,IF($C$5="Males",SUPP_9a!AO503))) -> 34.69 | AC10: =IF($C$5="All",SUPP_9a!AP501,IF($C$5="Females",SUPP_9a!AP502,IF($C$5="Males",SUPP_9a!AP503))) -> Dist | AE10: =IF($C$5="All",SUPP_9a!AQ501,IF($C$5="Females",SUPP_9a!AQ502,IF($C$5="Males",SUPP_9a!AQ503))) -> 241 | AR10: ALL_SCHOOLS_AND_FE_SECTOR_COLLEGES
A12: State-funded sector 2 | C12: =IF($C$5="All",SUPP_9a!D505,IF($C$5="Females",SUPP_9a!D506,IF($C$5="Males",SUPP_9a!D507))) -> 401222 | D12: =IF($C$5="All",SUPP_9a!H505,IF($C$5="Females",SUPP_9a!H506,IF($C$5="Males",SUPP_9a!H507))) -> 31.42 | F12: =IF($C$5="All",SUPP_9a!I505,IF($C$5="Females",SUPP_9a!I506,IF($C$5="Males",SUPP_9a!I507))) -> 286399 | G12: =IF($C$5="All",SUPP_9a!M505,IF($C$5="Females",SUPP_9a!M506,IF($C$5="Males",SUPP_9a!M507))) -> 30.44 | H12: =IF($C$5="All",SUPP_9a!N505,IF($C$5="Females",SUPP_9a!N506,IF($C$5="Males",SUPP_9a!N507))) -> C | J12: =IF($C$5="All",SUPP_9a!O505,IF($C$5="Females",SUPP_9a!O506,IF($C$5="Males",SUPP_9a!O507))) -> 193155 | K12: =IF($C$5="All",SUPP_9a!R505,IF($C$5="Females",SUPP_9a!R506,IF($C$5="Males",SUPP_9a!R507))) -> 33.79 | L12: =IF($C$5="All",SUPP_9a!S505,IF($C$5="Females",SUPP_9a!S506,IF($C$5="Males",SUPP_9a!S507))) -> C+ | M12: =IF($C$5="All",SUPP_9a!T505,IF($C$5="Females",SUPP_9a!T506,IF($C$5="Males",SUPP_9a!T507))) -> 10.5 | N12: =IF($C$5="All",SUPP_9a!U505,IF($C$5="Females",SUPP_9a!U506,IF($C$5="Males",SUPP_9a!U507))) -> 18.5 | P12: =IF($C$5="All",SUPP_9a!V505,IF($C$5="Females",SUPP_9a!V506,IF($C$5="Males",SUPP_9a!V507))) -> 191607 | Q12: =IF($C$5="All",SUPP_9a!X505,IF($C$5="Females",SUPP_9a!X506,IF($C$5="Males",SUPP_9a!X507))) -> 13.9 | S12: =IF($C$5="All",SUPP_9a!Y505,IF($C$5="Females",SUPP_9a!Y506,IF($C$5="Males",SUPP_9a!Y507))) -> 289261 | T12: =IF($C$5="All",SUPP_9a!AC505,IF($C$5="Females",SUPP_9a!AC506,IF($C$5="Males",SUPP_9a!AC507))) -> 30.63 | U12: =IF($C$5="All",SUPP_9a!AD505,IF($C$5="Females",SUPP_9a!AD506,IF($C$5="Males",SUPP_9a!AD507))) -> C | W12: =IF($C$5="All",SUPP_9a!AE505,IF($C$5="Females",SUPP_9a!AE506,IF($C$5="Males",SUPP_9a!AE507))) -> 69129 | X12: =IF($C$5="All",SUPP_9a!AI505,IF($C$5="Females",SUPP_9a!AI506,IF($C$5="Males",SUPP_9a!AI507))) -> 30.76 | Y12: =IF($C$5="All",SUPP_9a!AJ505,IF($C$5="Females",SUPP_9a!AJ506,IF($C$5="Males",SUPP_9a!AJ507))) -> Dist- | AA12: =IF($C$5="All",SUPP_9a!AK505,IF($C$5="Females",SUPP_9a!AK506,IF($C$5="Males",SUPP_9a!AK507))) -> 124269 | AB12: =IF($C$5="All",SUPP_9a!AO505,IF($C$5="Females",SUPP_9a!AO506,IF($C$5="Males",SUPP_9a!AO507))) -> 34.66 | AC12: =IF($C$5="All",SUPP_9a!AP505,IF($C$5="Females",SUPP_9a!AP506,IF($C$5="Males",SUPP_9a!AP507))) -> Dist | AE12: =IF($C$5="All",SUPP_9a!AQ505,IF($C$5="Females",SUPP_9a!AQ506,IF($C$5="Males",SUPP_9a!AQ507))) -> 241 | AR12: ALL_STATE_FUNDED_SCHOOLS_AND_FE_SECTOR_COLLEGES
A14: North East | B14: E12000001 | C14: =IF($C$5="All",VLOOKUP($A14,'9a_all'!$C:$AQ,5,FALSE),IF($C$5="Females",VLOOKUP($A14,'9a_females'!$C:$AQ,5,FALSE),IF($C$5="Males",VLOOKUP($A14,'9a_males'!$C:$AQ,5,FALSE)))) -> 19321 | D14: =IF($C$5="All",VLOOKUP($A14,'9a_all'!$C:$AQ,6,FALSE),IF($C$5="Females",VLOOKUP($A14,'9a_females'!$C:$AQ,6,FALSE),IF($C$5="Males",VLOOKUP($A14,'9a_males'!$C:$AQ,6,FALSE)))) -> 31.26 | F14: =IF($C$5="All",VLOOKUP($A14,'9a_all'!$C:$AQ,7,FALSE),IF($C$5="Females",VLOOKUP($A14,'9a_females'!$C:$AQ,7,FALSE),IF($C$5="Males",VLOOKUP($A14,'9a_males'!$C:$AQ,7,FALSE)))) -> 12097 | G14: =IF($C$5="All",VLOOKUP($A14,'9a_all'!$C:$AQ,8,FALSE),IF($C$5="Females",VLOOKUP($A14,'9a_females'!$C:$AQ,8,FALSE),IF($C$5="Males",VLOOKUP($A14,'9a_males'!$C:$AQ,8,FALSE)))) -> 29.71 | H14: =IF($C$5="All",VLOOKUP($A14,'9a_all'!$C:$AQ,9,FALSE),IF($C$5="Females",VLOOKUP($A14,'9a_females'!$C:$AQ,9,FALSE),IF($C$5="Males",VLOOKUP($A14,'9a_males'!$C:$AQ,9,FALSE)))) -> C | J14: =IF($C$5="All",VLOOKUP($A14,'9a_all'!$C:$AQ,10,FALSE),IF($C$5="Females",VLOOKUP($A14,'9a_females'!$C:$AQ,10,FALSE),IF($C$5="Males",VLOOKUP($A14,'9a_males'!$C:$AQ,10,FALSE)))) -> 7459 | K14: =IF($C$5="All",VLOOKUP($A14,'9a_all'!$C:$AQ,11,FALSE),IF($C$5="Females",VLOOKUP($A14,'9a_females'!$C:$AQ,11,FALSE),IF($C$5="Males",VLOOKUP($A14,'9a_males'!$C:$AQ,11,FALSE)))) -> 32.95 | L14: =IF($C$5="All",VLOOKUP($A14,'9a_all'!$C:$AQ,12,FALSE),IF($C$5="Females",VLOOKUP($A14,'9a_females'!$C:$AQ,12,FALSE),IF($C$5="Males",VLOOKUP($A14,'9a_males'!$C:$AQ,12,FALSE)))) -> C+ | M14: =IF($C$5="All",VLOOKUP($A14,'9a_all'!$C:$AQ,13,FALSE),IF($C$5="Females",VLOOKUP($A14,'9a_females'!$C:$AQ,13,FALSE),IF($C$5="Males",VLOOKUP($A14,'9a_males'!$C:$AQ,13,FALSE)))) -> 8.8 | N14: =IF($C$5="All",VLOOKUP($A14,'9a_all'!$C:$AQ,14,FALSE),IF($C$5="Females",VLOOKUP($A14,'9a_females'!$C:$AQ,14,FALSE),IF($C$5="Males",VLOOKUP($A14,'9a_males'!$C:$AQ,14,FALSE)))) -> 16.3 | P14: =IF($C$5="All",VLOOKUP($A14,'9a_all'!$C:$AQ,15,FALSE),IF($C$5="Females",VLOOKUP($A14,'9a_females'!$C:$AQ,15,FALSE),IF($C$5="Males",VLOOKUP($A14,'9a_males'!$C:$AQ,15,FALSE)))) -> 7335 | Q14: =IF($C$5="All",VLOOKUP($A14,'9a_all'!$C:$AQ,16,FALSE),IF($C$5="Females",VLOOKUP($A14,'9a_females'!$C:$AQ,16,FALSE),IF($C$5="Males",VLOOKUP($A14,'9a_males'!$C:$AQ,16,FALSE)))) -> 12.2 | S14: =IF($C$5="All",VLOOKUP($A14,'9a_all'!$C:$AQ,17,FALSE),IF($C$5="Females",VLOOKUP($A14,'9a_females'!$C:$AQ,17,FALSE),IF($C$5="Males",VLOOKUP($A14,'9a_males'!$C:$AQ,17,FALSE)))) -> 12167 | T14: =IF($C$5="All",VLOOKUP($A14,'9a_all'!$C:$AQ,18,FALSE),IF($C$5="Females",VLOOKUP($A14,'9a_females'!$C:$AQ,18,FALSE),IF($C$5="Males",VLOOKUP($A14,'9a_males'!$C:$AQ,18,FALSE)))) -> 29.78 | U14: =IF($C$5="All",VLOOKUP($A14,'9a_all'!$C:$AQ,19,FALSE),IF($C$5="Females",VLOOKUP($A14,'9a_females'!$C:$AQ,19,FALSE),IF($C$5="Males",VLOOKUP($A14,'9a_males'!$C:$AQ,19,FALSE)))) -> C | W14: =IF($C$5="All",VLOOKUP($A14,'9a_all'!$C:$AQ,20,FALSE),IF($C$5="Females",VLOOKUP($A14,'9a_females'!$C:$AQ,20,FALSE),IF($C$5="Males",VLOOKUP($A14,'9a_males'!$C:$AQ,20,FALSE)))) -> 4750 | X14: =IF($C$5="All",VLOOKUP($A14,'9a_all'!$C:$AQ,21,FALSE),IF($C$5="Females",VLOOKUP($A14,'9a_females'!$C:$AQ,21,FALSE),IF($C$5="Males",VLOOKUP($A14,'9a_males'!$C:$AQ,21,FALSE)))) -> 30.47 | Y14: =IF($C$5="All",VLOOKUP($A14,'9a_all'!$C:$AQ,22,FALSE),IF($C$5="Females",VLOOKUP($A14,'9a_females'!$C:$AQ,22,FALSE),IF($C$5="Males",VLOOKUP($A14,'9a_males'!$C:$AQ,22,FALSE)))) -> Dist- | AA14: =IF($C$5="All",VLOOKUP($A14,'9a_all'!$C:$AQ,23,FALSE),IF($C$5="Females",VLOOKUP($A14,'9a_females'!$C:$AQ,23,FALSE),IF($C$5="Males",VLOOKUP($A14,'9a_males'!$C:$AQ,23,FALSE)))) -> 6351 | AB14: =IF($C$5="All",VLOOKUP($A14,'9a_all'!$C:$AQ,24,FALSE),IF($C$5="Females",VLOOKUP($A14,'9a_females'!$C:$AQ,24,FALSE),IF($C$5="Males",VLOOKUP($A14,'9a_males'!$C:$AQ,24,FALSE)))) -> 36.17 | AC14: =IF($C$5="All",VLOOKUP($A14,'9a_all'!$C:$AQ,25,FALSE),IF($C$5="Females",VLOOKUP($A14,'9a_females'!$C:$AQ,25,FALSE),IF($C$5="Males",VLOOKUP($A14,'9a_males'!$C:$AQ,25,FALSE)))) -> Dist | AE14: =IF($C$5="All",VLOOKUP($A14,'9a_all'!$C:$AQ,26,FALSE),IF($C$5="Females",VLOOKUP($A14,'9a_females'!$C:$AQ,26,FALSE),IF($C$5="Males",VLOOKUP($A14,'9a_males'!$C:$AQ,26,FALSE)))) -> x
A15: County Durham | B15: E06000047 | C15: =IF($C$5="All",VLOOKUP($A15,'9a_all'!$F:$AQ,2,FALSE),IF($C$5="Females",VLOOKUP($A15,'9a_females'!$F:$AQ,2,FALSE),IF($C$5="Males",VLOOKUP($A15,'9a_males'!$F:$AQ,2,FALSE)))) -> 2934 | D15: =IF($C$5="All",VLOOKUP($A15,'9a_all'!$F:$AQ,3,FALSE),IF($C$5="Females",VLOOKUP($A15,'9a_females'!$F:$AQ,3,FALSE),IF($C$5="Males",VLOOKUP($A15,'9a_males'!$F:$AQ,3,FALSE)))) -> 33.01 | F15: =IF($C$5="All",VLOOKUP($A15,'9a_all'!$F:$AQ,4,FALSE),IF($C$5="Females",VLOOKUP($A15,'9a_females'!$F:$AQ,4,FALSE),IF($C$5="Males",VLOOKUP($A15,'9a_males'!$F:$AQ,4,FALSE)))) -> 1864 | G15: =IF($C$5="All",VLOOKUP($A15,'9a_all'!$F:$AQ,5,FALSE),IF($C$5="Females",VLOOKUP($A15,'9a_females'!$F:$AQ,5,FALSE),IF($C$5="Males",VLOOKUP($A15,'9a_males'!$F:$AQ,5,FALSE)))) -> 31.29 | H15: =IF($C$5="All",VLOOKUP($A15,'9a_all'!$F:$AQ,6,FALSE),IF($C$5="Females",VLOOKUP($A15,'9a_females'!$F:$AQ,6,FALSE),IF($C$5="Males",VLOOKUP($A15,'9a_males'!$F:$AQ,6,FALSE)))) -> C | J15: =IF($C$5="All",VLOOKUP($A15,'9a_all'!$F:$AQ,7,FALSE),IF($C$5="Females",VLOOKUP($A15,'9a_females'!$F:$AQ,7,FALSE),IF($C$5="Males",VLOOKUP($A15,'9a_males'!$F:$AQ,7,FALSE)))) -> 1036 | K15: =IF($C$5="All",VLOOKUP($A15,'9a_all'!$F:$AQ,8,FALSE),IF($C$5="Females",VLOOKUP($A15,'9a_females'!$F:$AQ,8,FALSE),IF($C$5="Males",VLOOKUP($A15,'9a_males'!$F:$AQ,8,FALSE)))) -> 35.97 | L15: =IF($C$5="All",VLOOKUP($A15,'9a_all'!$F:$AQ,9,FALSE),IF($C$5="Females",VLOOKUP($A15,'9a_females'!$F:$AQ,9,FALSE),IF($C$5="Males",VLOOKUP($A15,'9a_males'!$F:$AQ,9,FALSE)))) -> B- | M15: =IF($C$5="All",VLOOKUP($A15,'9a_all'!$F:$AQ,10,FALSE),IF($C$5="Females",VLOOKUP($A15,'9a_females'!$F:$AQ,10,FALSE),IF($C$5="Males",VLOOKUP($A15,'9a_males'!$F:$AQ,10,FALSE)))) -> 12.6 | N15: =IF($C$5="All",VLOOKUP($A15,'9a_all'!$F:$AQ,11,FALSE),IF($C$5="Females",VLOOKUP($A15,'9a_females'!$F:$AQ,11,FALSE),IF($C$5="Males",VLOOKUP($A15,'9a_males'!$F:$AQ,11,FALSE)))) -> 22.1 | P15: =IF($C$5="All",VLOOKUP($A15,'9a_all'!$F:$AQ,12,FALSE),IF($C$5="Females",VLOOKUP($A15,'9a_females'!$F:$AQ,12,FALSE),IF($C$5="Males",VLOOKUP($A15,'9a_males'!$F:$AQ,12,FALSE)))) -> 1017 | Q15: =IF($C$5="All",VLOOKUP($A15,'9a_all'!$F:$AQ,13,FALSE),IF($C$5="Females",VLOOKUP($A15,'9a_females'!$F:$AQ,13,FALSE),IF($C$5="Males",VLOOKUP($A15,'9a_males'!$F:$AQ,13,FALSE)))) -> 17 | S15: =IF($C$5="All",VLOOKUP($A15,'9a_all'!$F:$AQ,14,FALSE),IF($C$5="Females",VLOOKUP($A15,'9a_females'!$F:$AQ,14,FALSE),IF($C$5="Males",VLOOKUP($A15,'9a_males'!$F:$AQ,14,FALSE)))) -> 1866 | T15: =IF($C$5="All",VLOOKUP($A15,'9a_all'!$F:$AQ,15,FALSE),IF($C$5="Females",VLOOKUP($A15,'9a_females'!$F:$AQ,15,FALSE),IF($C$5="Males",VLOOKUP($A15,'9a_males'!$F:$AQ,15,FALSE)))) -> 31.41 | U15: =IF($C$5="All",VLOOKUP($A15,'9a_all'!$F:$AQ,16,FALSE),IF($C$5="Females",VLOOKUP($A15,'9a_females'!$F:$AQ,16,FALSE),IF($C$5="Males",VLOOKUP($A15,'9a_males'!$F:$AQ,16,FALSE)))) -> C | W15: =IF($C$5="All",VLOOKUP($A15,'9a_all'!$F:$AQ,17,FALSE),IF($C$5="Females",VLOOKUP($A15,'9a_females'!$F:$AQ,17,FALSE),IF($C$5="Males",VLOOKUP($A15,'9a_males'!$F:$AQ,17,FALSE)))) -> 804 | X15: =IF($C$5="All",VLOOKUP($A15,'9a_all'!$F:$AQ,18,FALSE),IF($C$5="Females",VLOOKUP($A15,'9a_females'!$F:$AQ,18,FALSE),IF($C$5="Males",VLOOKUP($A15,'9a_males'!$F:$AQ,18,FALSE)))) -> 31.84 | Y15: =IF($C$5="All",VLOOKUP($A15,'9a_all'!$F:$AQ,19,FALSE),IF($C$5="Females",VLOOKUP($A15,'9a_females'!$F:$AQ,19,FALSE),IF($C$5="Males",VLOOKUP($A15,'9a_males'!$F:$AQ,19,FALSE)))) -> Dist- | AA15: =IF($C$5="All",VLOOKUP($A15,'9a_all'!$F:$AQ,20,FALSE),IF($C$5="Females",VLOOKUP($A15,'9a_females'!$F:$AQ,20,FALSE),IF($C$5="Males",VLOOKUP($A15,'9a_males'!$F:$AQ,20,FALSE)))) -> 1084 | AB15: =IF($C$5="All",VLOOKUP($A15,'9a_all'!$F:$AQ,21,FALSE),IF($C$5="Females",VLOOKUP($A15,'9a_females'!$F:$AQ,21,FALSE),IF($C$5="Males",VLOOKUP($A15,'9a_males'!$F:$AQ,21,FALSE)))) -> 37.83 | AC15: =IF($C$5="All",VLOOKUP($A15,'9a_all'!$F:$AQ,22,FALSE),IF($C$5="Females",VLOOKUP($A15,'9a_females'!$F:$AQ,22,FALSE),IF($C$5="Males",VLOOKUP($A15,'9a_males'!$F:$AQ,22,FALSE)))) -> Dist+ | AE15: =IF($C$5="All",VLOOKUP($A15,'9a_all'!$F:$AS,23,FALSE),IF($C$5="Females",VLOOKUP($A15,'9a_females'!$F:$AS,23,FALSE),IF($C$5="Males",VLOOKUP($A15,'9a_males'!$F:$AS,23,FALSE)))) -> 4
A16: Darlington | B16: E06000005 | C16: =IF($C$5="All",VLOOKUP($A16,'9a_all'!$F:$AQ,2,FALSE),IF($C$5="Females",VLOOKUP($A16,'9a_females'!$F:$AQ,2,FALSE),IF($C$5="Males",VLOOKUP($A16,'9a_males'!$F:$AQ,2,FALSE)))) -> 1399 | D16: =IF($C$5="All",VLOOKUP($A16,'9a_all'!$F:$AQ,3,FALSE),IF($C$5="Females",VLOOKUP($A16,'9a_females'!$F:$AQ,3,FALSE),IF($C$5="Males",VLOOKUP($A16,'9a_males'!$F:$AQ,3,FALSE)))) -> 31.79 | F16: =IF($C$5="All",VLOOKUP($A16,'9a_all'!$F:$AQ,4,FALSE),IF($C$5="Females",VLOOKUP($A16,'9a_females'!$F:$AQ,4,FALSE),IF($C$5="Males",VLOOKUP($A16,'9a_males'!$F:$AQ,4,FALSE)))) -> 1085 | G16: =IF($C$5="All",VLOOKUP($A16,'9a_all'!$F:$AQ,5,FALSE),IF($C$5="Females",VLOOKUP($A16,'9a_females'!$F:$AQ,5,FALSE),IF($C$5="Males",VLOOKUP($A16,'9a_males'!$F:$AQ,5,FALSE)))) -> 31.58 | H16: =IF($C$5="All",VLOOKUP($A16,'9a_all'!$F:$AQ,6,FALSE),IF($C$5="Females",VLOOKUP($A16,'9a_females'!$F:$AQ,6,FALSE),IF($C$5="Males",VLOOKUP($A16,'9a_males'!$F:$AQ,6,FALSE)))) -> C | J16: =IF($C$5="All",VLOOKUP($A16,'9a_all'!$F:$AQ,7,FALSE),IF($C$5="Females",VLOOKUP($A16,'9a_females'!$F:$AQ,7,FALSE),IF($C$5="Males",VLOOKUP($A16,'9a_males'!$F:$AQ,7,FALSE)))) -> 899 | K16: =IF($C$5="All",VLOOKUP($A16,'9a_all'!$F:$AQ,8,FALSE),IF($C$5="Females",VLOOKUP($A16,'9a_females'!$F:$AQ,8,FALSE),IF($C$5="Males",VLOOKUP($A16,'9a_males'!$F:$AQ,8,FALSE)))) -> 32.91 | L16: =IF($C$5="All",VLOOKUP($A16,'9a_all'!$F:$AQ,9,FALSE),IF($C$5="Females",VLOOKUP($A16,'9a_females'!$F:$AQ,9,FALSE),IF($C$5="Males",VLOOKUP($A16,'9a_males'!$F:$AQ,9,FALSE)))) -> C+ | M16: =IF($C$5="All",VLOOKUP($A16,'9a_all'!$F:$AQ,10,FALSE),IF($C$5="Females",VLOOKUP($A16,'9a_females'!$F:$AQ,10,FALSE),IF($C$5="Males",VLOOKUP($A16,'9a_males'!$F:$AQ,10,FALSE)))) -> 9 | N16: =IF($C$5="All",VLOOKUP($A16,'9a_all'!$F:$AQ,11,FALSE),IF($C$5="Females",VLOOKUP($A16,'9a_females'!$F:$AQ,11,FALSE),IF($C$5="Males",VLOOKUP($A16,'9a_males'!$F:$AQ,11,FALSE)))) -> 16 | P16: =IF($C$5="All",VLOOKUP($A16,'9a_all'!$F:$AQ,12,FALSE),IF($C$5="Females",VLOOKUP($A16,'9a_females'!$F:$AQ,12,FALSE),IF($C$5="Males",VLOOKUP($A16,'9a_males'!$F:$AQ,12,FALSE)))) -> 864 | Q16: =IF($C$5="All",VLOOKUP($A16,'9a_all'!$F:$AQ,13,FALSE),IF($C$5="Females",VLOOKUP($A16,'9a_females'!$F:$AQ,13,FALSE),IF($C$5="Males",VLOOKUP($A16,'9a_males'!$F:$AQ,13,FALSE)))) -> 9.7 | S16: =IF($C$5="All",VLOOKUP($A16,'9a_all'!$F:$AQ,14,FALSE),IF($C$5="Females",VLOOKUP($A16,'9a_females'!$F:$AQ,14,FALSE),IF($C$5="Males",VLOOKUP($A16,'9a_males'!$F:$AQ,14,FALSE)))) -> 1087 | T16: =IF($C$5="All",VLOOKUP($A16,'9a_all'!$F:$AQ,15,FALSE),IF($C$5="Females",VLOOKUP($A16,'9a_females'!$F:$AQ,15,FALSE),IF($C$5="Males",VLOOKUP($A16,'9a_males'!$F:$AQ,15,FALSE)))) -> 31.74 | U16: =IF($C$5="All",VLOOKUP($A16,'9a_all'!$F:$AQ,16,FALSE),IF($C$5="Females",VLOOKUP($A16,'9a_females'!$F:$AQ,16,FALSE),IF($C$5="Males",VLOOKUP($A16,'9a_males'!$F:$AQ,16,FALSE)))) -> C+ | W16: =IF($C$5="All",VLOOKUP($A16,'9a_all'!$F:$AQ,17,FALSE),IF($C$5="Females",VLOOKUP($A16,'9a_females'!$F:$AQ,17,FALSE),IF($C$5="Males",VLOOKUP($A16,'9a_males'!$F:$AQ,17,FALSE)))) -> 201 | X16: =IF($C$5="All",VLOOKUP($A16,'9a_all'!$F:$AQ,18,FALSE),IF($C$5="Females",VLOOKUP($A16,'9a_females'!$F:$AQ,18,FALSE),IF($C$5="Males",VLOOKUP($A16,'9a_males'!$F:$AQ,18,FALSE)))) -> 31.3 | Y16: =IF($C$5="All",VLOOKUP($A16,'9a_all'!$F:$AQ,19,FALSE),IF($C$5="Females",VLOOKUP($A16,'9a_females'!$F:$AQ,19,FALSE),IF($C$5="Males",VLOOKUP($A16,'9a_males'!$F:$AQ,19,FALSE)))) -> Dist- | AA16: =IF($C$5="All",VLOOKUP($A16,'9a_all'!$F:$AQ,20,FALSE),IF($C$5="Females",VLOOKUP($A16,'9a_females'!$F:$AQ,20,FALSE),IF($C$5="Males",VLOOKUP($A16,'9a_males'!$F:$AQ,20,FALSE)))) -> 243 | AB16: =IF($C$5="All",VLOOKUP($A16,'9a_all'!$F:$AQ,21,FALSE),IF($C$5="Females",VLOOKUP($A16,'9a_females'!$F:$AQ,21,FALSE),IF($C$5="Males",VLOOKUP($A16,'9a_males'!$F:$AQ,21,FALSE)))) -> 32.72 | AC16: =IF($C$5="All",VLOOKUP($A16,'9a_all'!$F:$AQ,22,FALSE),IF($C$5="Females",VLOOKUP($A16,'9a_females'!$F:$AQ,22,FALSE),IF($C$5="Males",VLOOKUP($A16,'9a_males'!$F:$AQ,22,FALSE)))) -> Dist- | AE16: =IF($C$5="All",VLOOKUP($A16,'9a_all'!$F:$AS,23,FALSE),IF($C$5="Females",VLOOKUP($A16,'9a_females'!$F:$AS,23,FALSE),IF($C$5="Males",VLOOKUP($A16,'9a_males'!$F:$AS,23,FALSE)))) -> 0
A17: Gateshead | B17: E08000020 | C17: =IF($C$5="All",VLOOKUP($A17,'9a_all'!$F:$AQ,2,FALSE),IF($C$5="Females",VLOOKUP($A17,'9a_females'!$F:$AQ,2,FALSE),IF($C$5="Males",VLOOKUP($A17,'9a_males'!$F:$AQ,2,FALSE)))) -> 1628 | D17: =IF($C$5="All",VLOOKUP($A17,'9a_all'!$F:$AQ,3,FALSE),IF($C$5="Females",VLOOKUP($A17,'9a_females'!$F:$AQ,3,FALSE),IF($C$5="Males",VLOOKUP($A17,'9a_males'!$F:$AQ,3,FALSE)))) -> 33.62 | F17: =IF($C$5="All",VLOOKUP($A17,'9a_all'!$F:$AQ,4,FALSE),IF($C$5="Females",VLOOKUP($A17,'9a_females'!$F:$AQ,4,FALSE),IF($C$5="Males",VLOOKUP($A17,'9a_males'!$F:$AQ,4,FALSE)))) -> 912 | G17: =IF($C$5="All",VLOOKUP($A17,'9a_all'!$F:$AQ,5,FALSE),IF($C$5="Females",VLOOKUP($A17,'9a_females'!$F:$AQ,5,FALSE),IF($C$5="Males",VLOOKUP($A17,'9a_males'!$F:$AQ,5,FALSE)))) -> 31.18 | H17: =IF($C$5="All",VLOOKUP($A17,'9a_all'!$F:$AQ,6,FALSE),IF($C$5="Females",VLOOKUP($A17,'9a_females'!$F:$AQ,6,FALSE),IF($C$5="Males",VLOOKUP($A17,'9a_males'!$F:$AQ,6,FALSE)))) -> C | J17: =IF($C$5="All",VLOOKUP($A17,'9a_all'!$F:$AQ,7,FALSE),IF($C$5="Females",VLOOKUP($A17,'9a_females'!$F:$AQ,7,FALSE),IF($C$5="Males",VLOOKUP($A17,'9a_males'!$F:$AQ,7,FALSE)))) -> 527 | K17: =IF($C$5="All",VLOOKUP($A17,'9a_all'!$F:$AQ,8,FALSE),IF($C$5="Females",VLOOKUP($A17,'9a_females'!$F:$AQ,8,FALSE),IF($C$5="Males",VLOOKUP($A17,'9a_males'!$F:$AQ,8,FALSE)))) -> 34 | L17: =IF($C$5="All",VLOOKUP($A17,'9a_all'!$F:$AQ,9,FALSE),IF($C$5="Females",VLOOKUP($A17,'9a_females'!$F:$AQ,9,FALSE),IF($C$5="Males",VLOOKUP($A17,'9a_males'!$F:$AQ,9,FALSE)))) -> C+ | M17: =IF($C$5="All",VLOOKUP($A17,'9a_all'!$F:$AQ,10,FALSE),IF($C$5="Females",VLOOKUP($A17,'9a_females'!$F:$AQ,10,FALSE),IF($C$5="Males",VLOOKUP($A17,'9a_males'!$F:$AQ,10,FALSE)))) -> 10.8 | N17: =IF($C$5="All",VLOOKUP($A17,'9a_all'!$F:$AQ,11,FALSE),IF($C$5="Females",VLOOKUP($A17,'9a_females'!$F:$AQ,11,FALSE),IF($C$5="Males",VLOOKUP($A17,'9a_males'!$F:$AQ,11,FALSE)))) -> 17.8 | P17: =IF($C$5="All",VLOOKUP($A17,'9a_all'!$F:$AQ,12,FALSE),IF($C$5="Females",VLOOKUP($A17,'9a_females'!$F:$AQ,12,FALSE),IF($C$5="Males",VLOOKUP($A17,'9a_males'!$F:$AQ,12,FALSE)))) -> 516 | Q17: =IF($C$5="All",VLOOKUP($A17,'9a_all'!$F:$AQ,13,FALSE),IF($C$5="Females",VLOOKUP($A17,'9a_females'!$F:$AQ,13,FALSE),IF($C$5="Males",VLOOKUP($A17,'9a_males'!$F:$AQ,13,FALSE)))) -> 15.3 | S17: =IF($C$5="All",VLOOKUP($A17,'9a_all'!$F:$AQ,14,FALSE),IF($C$5="Females",VLOOKUP($A17,'9a_females'!$F:$AQ,14,FALSE),IF($C$5="Males",VLOOKUP($A17,'9a_males'!$F:$AQ,14,FALSE)))) -> 925 | T17: =IF($C$5="All",VLOOKUP($A17,'9a_all'!$F:$AQ,15,FALSE),IF($C$5="Females",VLOOKUP($A17,'9a_females'!$F:$AQ,15,FALSE),IF($C$5="Males",VLOOKUP($A17,'9a_males'!$F:$AQ,15,FALSE)))) -> 31.22 | U17: =IF($C$5="All",VLOOKUP($A17,'9a_all'!$F:$AQ,16,FALSE),IF($C$5="Females",VLOOKUP($A17,'9a_females'!$F:$AQ,16,FALSE),IF($C$5="Males",VLOOKUP($A17,'9a_males'!$F:$AQ,16,FALSE)))) -> C | W17: =IF($C$5="All",VLOOKUP($A17,'9a_all'!$F:$AQ,17,FALSE),IF($C$5="Females",VLOOKUP($A17,'9a_females'!$F:$AQ,17,FALSE),IF($C$5="Males",VLOOKUP($A17,'9a_males'!$F:$AQ,17,FALSE)))) -> 322 | X17: =IF($C$5="All",VLOOKUP($A17,'9a_all'!$F:$AQ,18,FALSE),IF($C$5="Females",VLOOKUP($A17,'9a_females'!$F:$AQ,18,FALSE),IF($C$5="Males",VLOOKUP($A17,'9a_males'!$F:$AQ,18,FALSE)))) -> 33.5 | Y17: =IF($C$5="All",VLOOKUP($A17,'9a_all'!$F:$AQ,19,FALSE),IF($C$5="Females",VLOOKUP($A17,'9a_females'!$F:$AQ,19,FALSE),IF($C$5="Males",VLOOKUP($A17,'9a_males'!$F:$AQ,19,FALSE)))) -> Dist | AA17: =IF($C$5="All",VLOOKUP($A17,'9a_all'!$F:$AQ,20,FALSE),IF($C$5="Females",VLOOKUP($A17,'9a_females'!$F:$AQ,20,FALSE),IF($C$5="Males",VLOOKUP($A17,'9a_males'!$F:$AQ,20,FALSE)))) -> 781 | AB17: =IF($C$5="All",VLOOKUP($A17,'9a_all'!$F:$AQ,21,FALSE),IF($C$5="Females",VLOOKUP($A17,'9a_females'!$F:$AQ,21,FALSE),IF($C$5="Males",VLOOKUP($A17,'9a_males'!$F:$AQ,21,FALSE)))) -> 37.47 | AC17: =IF($C$5="All",VLOOKUP($A17,'9a_all'!$F:$AQ,22,FALSE),IF($C$5="Females",VLOOKUP($A17,'9a_females'!$F:$AQ,22,FALSE),IF($C$5="Males",VLOOKUP($A17,'9a_males'!$F:$AQ,22,FALSE)))) -> Dist+ | AE17: =IF($C$5="All",VLOOKUP($A17,'9a_all'!$F:$AS,23,FALSE),IF($C$5="Females",VLOOKUP($A17,'9a_females'!$F:$AS,23,FALSE),IF($C$5="Males",VLOOKUP($A17,'9a_males'!$F:$AS,23,FALSE)))) -> 0
A18: Hartlepool | B18: E06000001 | C18: =IF($C$5="All",VLOOKUP($A18,'9a_all'!$F:$AQ,2,FALSE),IF($C$5="Females",VLOOKUP($A18,'9a_females'!$F:$AQ,2,FALSE),IF($C$5="Males",VLOOKUP($A18,'9a_males'!$F:$AQ,2,FALSE)))) -> 1006 | D18: =IF($C$5="All",VLOOKUP($A18,'9a_all'!$F:$AQ,3,FALSE),IF($C$5="Females",VLOOKUP($A18,'9a_females'!$F:$AQ,3,FALSE),IF($C$5="Males",VLOOKUP($A18,'9a_males'!$F:$AQ,3,FALSE)))) -> 29.36 | F18: =IF($C$5="All",VLOOKUP($A18,'9a_all'!$F:$AQ,4,FALSE),IF($C$5="Females",VLOOKUP($A18,'9a_females'!$F:$AQ,4,FALSE),IF($C$5="Males",VLOOKUP($A18,'9a_males'!$F:$AQ,4,FALSE)))) -> 554 | G18: =IF($C$5="All",VLOOKUP($A18,'9a_all'!$F:$AQ,5,FALSE),IF($C$5="Females",VLOOKUP($A18,'9a_females'!$F:$AQ,5,FALSE),IF($C$5="Males",VLOOKUP($A18,'9a_males'!$F:$AQ,5,FALSE)))) -> 26.49 | H18: =IF($C$5="All",VLOOKUP($A18,'9a_all'!$F:$AQ,6,FALSE),IF($C$5="Females",VLOOKUP($A18,'9a_females'!$F:$AQ,6,FALSE),IF($C$5="Males",VLOOKUP($A18,'9a_males'!$F:$AQ,6,FALSE)))) -> C- | J18: =IF($C$5="All",VLOOKUP($A18,'9a_all'!$F:$AQ,7,FALSE),IF($C$5="Females",VLOOKUP($A18,'9a_females'!$F:$AQ,7,FALSE),IF($C$5="Males",VLOOKUP($A18,'9a_males'!$F:$AQ,7,FALSE)))) -> 313 | K18: =IF($C$5="All",VLOOKUP($A18,'9a_all'!$F:$AQ,8,FALSE),IF($C$5="Females",VLOOKUP($A18,'9a_females'!$F:$AQ,8,FALSE),IF($C$5="Males",VLOOKUP($A18,'9a_males'!$F:$AQ,8,FALSE)))) -> 30.8 | L18: =IF($C$5="All",VLOOKUP($A18,'9a_all'!$F:$AQ,9,FALSE),IF($C$5="Females",VLOOKUP($A18,'9a_females'!$F:$AQ,9,FALSE),IF($C$5="Males",VLOOKUP($A18,'9a_males'!$F:$AQ,9,FALSE)))) -> C | M18: =IF($C$5="All",VLOOKUP($A18,'9a_all'!$F:$AQ,10,FALSE),IF($C$5="Females",VLOOKUP($A18,'9a_females'!$F:$AQ,10,FALSE),IF($C$5="Males",VLOOKUP($A18,'9a_males'!$F:$AQ,10,FALSE)))) -> 7 | N18: =IF($C$5="All",VLOOKUP($A18,'9a_all'!$F:$AQ,11,FALSE),IF($C$5="Females",VLOOKUP($A18,'9a_females'!$F:$AQ,11,FALSE),IF($C$5="Males",VLOOKUP($A18,'9a_males'!$F:$AQ,11,FALSE)))) -> 14.1 | P18: =IF($C$5="All",VLOOKUP($A18,'9a_all'!$F:$AQ,12,FALSE),IF($C$5="Females",VLOOKUP($A18,'9a_females'!$F:$AQ,12,FALSE),IF($C$5="Males",VLOOKUP($A18,'9a_males'!$F:$AQ,12,FALSE)))) -> 312 | Q18: =IF($C$5="All",VLOOKUP($A18,'9a_all'!$F:$AQ,13,FALSE),IF($C$5="Females",VLOOKUP($A18,'9a_females'!$F:$AQ,13,FALSE),IF($C$5="Males",VLOOKUP($A18,'9a_males'!$F:$AQ,13,FALSE)))) -> 10.6 | S18: =IF($C$5="All",VLOOKUP($A18,'9a_all'!$F:$AQ,14,FALSE),IF($C$5="Females",VLOOKUP($A18,'9a_females'!$F:$AQ,14,FALSE),IF($C$5="Males",VLOOKUP($A18,'9a_males'!$F:$AQ,14,FALSE)))) -> 554 | T18: =IF($C$5="All",VLOOKUP($A18,'9a_all'!$F:$AQ,15,FALSE),IF($C$5="Females",VLOOKUP($A18,'9a_females'!$F:$AQ,15,FALSE),IF($C$5="Males",VLOOKUP($A18,'9a_males'!$F:$AQ,15,FALSE)))) -> 26.55 | U18: =IF($C$5="All",VLOOKUP($A18,'9a_all'!$F:$AQ,16,FALSE),IF($C$5="Females",VLOOKUP($A18,'9a_females'!$F:$AQ,16,FALSE),IF($C$5="Males",VLOOKUP($A18,'9a_males'!$F:$AQ,16,FALSE)))) -> C- | W18: =IF($C$5="All",VLOOKUP($A18,'9a_all'!$F:$AQ,17,FALSE),IF($C$5="Females",VLOOKUP($A18,'9a_females'!$F:$AQ,17,FALSE),IF($C$5="Males",VLOOKUP($A18,'9a_males'!$F:$AQ,17,FALSE)))) -> 310 | X18: =IF($C$5="All",VLOOKUP($A18,'9a_all'!$F:$AQ,18,FALSE),IF($C$5="Females",VLOOKUP($A18,'9a_females'!$F:$AQ,18,FALSE),IF($C$5="Males",VLOOKUP($A18,'9a_males'!$F:$AQ,18,FALSE)))) -> 30.86 | Y18: =IF($C$5="All",VLOOKUP($A18,'9a_all'!$F:$AQ,19,FALSE),IF($C$5="Females",VLOOKUP($A18,'9a_females'!$F:$AQ,19,FALSE),IF($C$5="Males",VLOOKUP($A18,'9a_males'!$F:$AQ,19,FALSE)))) -> Dist- | AA18: =IF($C$5="All",VLOOKUP($A18,'9a_all'!$F:$AQ,20,FALSE),IF($C$5="Females",VLOOKUP($A18,'9a_females'!$F:$AQ,20,FALSE),IF($C$5="Males",VLOOKUP($A18,'9a_males'!$F:$AQ,20,FALSE)))) -> 335 | AB18: =IF($C$5="All",VLOOKUP($A18,'9a_all'!$F:$AQ,21,FALSE),IF($C$5="Females",VLOOKUP($A18,'9a_females'!$F:$AQ,21,FALSE),IF($C$5="Males",VLOOKUP($A18,'9a_males'!$F:$AQ,21,FALSE)))) -> 34.61 | AC18: =IF($C$5="All",VLOOKUP($A18,'9a_all'!$F:$AQ,22,FALSE),IF($C$5="Females",VLOOKUP($A18,'9a_females'!$F:$AQ,22,FALSE),IF($C$5="Males",VLOOKUP($A18,'9a_males'!$F:$AQ,22,FALSE)))) -> Dist | AE18: =IF($C$5="All",VLOOKUP($A18,'9a_all'!$F:$AS,23,FALSE),IF($C$5="Females",VLOOKUP($A18,'9a_females'!$F:$AS,23,FALSE),IF($C$5="Males",VLOOKUP($A18,'9a_males'!$F:$AS,23,FALSE)))) -> 0
A19: Middlesbrough | B19: E06000002 | C19: =IF($C$5="All",VLOOKUP($A19,'9a_all'!$F:$AQ,2,FALSE),IF($C$5="Females",VLOOKUP($A19,'9a_females'!$F:$AQ,2,FALSE),IF($C$5="Males",VLOOKUP($A19,'9a_males'!$F:$AQ,2,FALSE)))) -> 1534 | D19: =IF($C$5="All",VLOOKUP($A19,'9a_all'!$F:$AQ,3,FALSE),IF($C$5="Females",VLOOKUP($A19,'9a_females'!$F:$AQ,3,FALSE),IF($C$5="Males",VLOOKUP($A19,'9a_males'!$F:$AQ,3,FALSE)))) -> 31.41 | F19: =IF($C$5="All",VLOOKUP($A19,'9a_all'!$F:$AQ,4,FALSE),IF($C$5="Females",VLOOKUP($A19,'9a_females'!$F:$AQ,4,FALSE),IF($C$5="Males",VLOOKUP($A19,'9a_males'!$F:$AQ,4,FALSE)))) -> 602 | G19: =IF($C$5="All",VLOOKUP($A19,'9a_all'!$F:$AQ,5,FALSE),IF($C$5="Females",VLOOKUP($A19,'9a_females'!$F:$AQ,5,FALSE),IF($C$5="Males",VLOOKUP($A19,'9a_males'!$F:$AQ,5,FALSE)))) -> 27.4 | H19: =IF($C$5="All",VLOOKUP($A19,'9a_all'!$F:$AQ,6,FALSE),IF($C$5="Females",VLOOKUP($A19,'9a_females'!$F:$AQ,6,FALSE),IF($C$5="Males",VLOOKUP($A19,'9a_males'!$F:$AQ,6,FALSE)))) -> C- | J19: =IF($C$5="All",VLOOKUP($A19,'9a_all'!$F:$AQ,7,FALSE),IF($C$5="Females",VLOOKUP($A19,'9a_females'!$F:$AQ,7,FALSE),IF($C$5="Males",VLOOKUP($A19,'9a_males'!$F:$AQ,7,FALSE)))) -> 309 | K19: =IF($C$5="All",VLOOKUP($A19,'9a_all'!$F:$AQ,8,FALSE),IF($C$5="Females",VLOOKUP($A19,'9a_females'!$F:$AQ,8,FALSE),IF($C$5="Males",VLOOKUP($A19,'9a_males'!$F:$AQ,8,FALSE)))) -> 30.94 | L19: =IF($C$5="All",VLOOKUP($A19,'9a_all'!$F:$AQ,9,FALSE),IF($C$5="Females",VLOOKUP($A19,'9a_females'!$F:$AQ,9,FALSE),IF($C$5="Males",VLOOKUP($A19,'9a_males'!$F:$AQ,9,FALSE)))) -> C | M19: =IF($C$5="All",VLOOKUP($A19,'9a_all'!$F:$AQ,10,FALSE),IF($C$5="Females",VLOOKUP($A19,'9a_females'!$F:$AQ,10,FALSE),IF($C$5="Males",VLOOKUP($A19,'9a_males'!$F:$AQ,10,FALSE)))) -> 4.2 | N19: =IF($C$5="All",VLOOKUP($A19,'9a_all'!$F:$AQ,11,FALSE),IF($C$5="Females",VLOOKUP($A19,'9a_females'!$F:$AQ,11,FALSE),IF($C$5="Males",VLOOKUP($A19,'9a_males'!$F:$AQ,11,FALSE)))) -> 11 | P19: =IF($C$5="All",VLOOKUP($A19,'9a_all'!$F:$AQ,12,FALSE),IF($C$5="Females",VLOOKUP($A19,'9a_females'!$F:$AQ,12,FALSE),IF($C$5="Males",VLOOKUP($A19,'9a_males'!$F:$AQ,12,FALSE)))) -> 304 | Q19: =IF($C$5="All",VLOOKUP($A19,'9a_all'!$F:$AQ,13,FALSE),IF($C$5="Females",VLOOKUP($A19,'9a_females'!$F:$AQ,13,FALSE),IF($C$5="Males",VLOOKUP($A19,'9a_males'!$F:$AQ,13,FALSE)))) -> 7.9 | S19: =IF($C$5="All",VLOOKUP($A19,'9a_all'!$F:$AQ,14,FALSE),IF($C$5="Females",VLOOKUP($A19,'9a_females'!$F:$AQ,14,FALSE),IF($C$5="Males",VLOOKUP($A19,'9a_males'!$F:$AQ,14,FALSE)))) -> 612 | T19: =IF($C$5="All",VLOOKUP($A19,'9a_all'!$F:$AQ,15,FALSE),IF($C$5="Females",VLOOKUP($A19,'9a_females'!$F:$AQ,15,FALSE),IF($C$5="Males",VLOOKUP($A19,'9a_males'!$F:$AQ,15,FALSE)))) -> 27.44 | U19: =IF($C$5="All",VLOOKUP($A19,'9a_all'!$F:$AQ,16,FALSE),IF($C$5="Females",VLOOKUP($A19,'9a_females'!$F:$AQ,16,FALSE),IF($C$5="Males",VLOOKUP($A19,'9a_males'!$F:$AQ,16,FALSE)))) -> C- | W19: =IF($C$5="All",VLOOKUP($A19,'9a_all'!$F:$AQ,17,FALSE),IF($C$5="Females",VLOOKUP($A19,'9a_females'!$F:$AQ,17,FALSE),IF($C$5="Males",VLOOKUP($A19,'9a_males'!$F:$AQ,17,FALSE)))) -> 610 | X19: =IF($C$5="All",VLOOKUP($A19,'9a_all'!$F:$AQ,18,FALSE),IF($C$5="Females",VLOOKUP($A19,'9a_females'!$F:$AQ,18,FALSE),IF($C$5="Males",VLOOKUP($A19,'9a_males'!$F:$AQ,18,FALSE)))) -> 30.91 | Y19: =IF($C$5="All",VLOOKUP($A19,'9a_all'!$F:$AQ,19,FALSE),IF($C$5="Females",VLOOKUP($A19,'9a_females'!$F:$AQ,19,FALSE),IF($C$5="Males",VLOOKUP($A19,'9a_males'!$F:$AQ,19,FALSE)))) -> Dist- | AA19: =IF($C$5="All",VLOOKUP($A19,'9a_all'!$F:$AQ,20,FALSE),IF($C$5="Females",VLOOKUP($A19,'9a_females'!$F:$AQ,20,FALSE),IF($C$5="Males",VLOOKUP($A19,'9a_males'!$F:$AQ,20,FALSE)))) -> 524 | AB19: =IF($C$5="All",VLOOKUP($A19,'9a_all'!$F:$AQ,21,FALSE),IF($C$5="Females",VLOOKUP($A19,'9a_females'!$F:$AQ,21,FALSE),IF($C$5="Males",VLOOKUP($A19,'9a_males'!$F:$AQ,21,FALSE)))) -> 37.07 | AC19: =IF($C$5="All",VLOOKUP($A19,'9a_all'!$F:$AQ,22,FALSE),IF($C$5="Females",VLOOKUP($A19,'9a_females'!$F:$AQ,22,FALSE),IF($C$5="Males",VLOOKUP($A19,'9a_males'!$F:$AQ,22,FALSE)))) -> Dist+ | AE19: =IF($C$5="All",VLOOKUP($A19,'9a_all'!$F:$AS,23,FALSE),IF($C$5="Females",VLOOKUP($A19,'9a_females'!$F:$AS,23,FALSE),IF($C$5="Males",VLOOKUP($A19,'9a_males'!$F:$AS,23,FALSE)))) -> 0
A20: Newcastle upon Tyne | B20: E08000021 | C20: =IF($C$5="All",VLOOKUP($A20,'9a_all'!$F:$AQ,2,FALSE),IF($C$5="Females",VLOOKUP($A20,'9a_females'!$F:$AQ,2,FALSE),IF($C$5="Males",VLOOKUP($A20,'9a_males'!$F:$AQ,2,FALSE)))) -> 3303 | D20: =IF($C$5="All",VLOOKUP($A20,'9a_all'!$F:$AQ,3,FALSE),IF($C$5="Females",VLOOKUP($A20,'9a_females'!$F:$AQ,3,FALSE),IF($C$5="Males",VLOOKUP($A20,'9a_males'!$F:$AQ,3,FALSE)))) -> 29.45 | F20: =IF($C$5="All",VLOOKUP($A20,'9a_all'!$F:$AQ,4,FALSE),IF($C$5="Females",VLOOKUP($A20,'9a_females'!$F:$AQ,4,FALSE),IF($C$5="Males",VLOOKUP($A20,'9a_males'!$F:$AQ,4,FALSE)))) -> 1721 | G20: =IF($C$5="All",VLOOKUP($A20,'9a_all'!$F:$AQ,5,FALSE),IF($C$5="Females",VLOOKUP($A20,'9a_females'!$F:$AQ,5,FALSE),IF($C$5="Males",VLOOKUP($A20,'9a_males'!$F:$AQ,5,FALSE)))) -> 28.12 | H20: =IF($C$5="All",VLOOKUP($A20,'9a_all'!$F:$AQ,6,FALSE),IF($C$5="Females",VLOOKUP($A20,'9a_females'!$F:$AQ,6,FALSE),IF($C$5="Males",VLOOKUP($A20,'9a_males'!$F:$AQ,6,FALSE)))) -> C- | J20: =IF($C$5="All",VLOOKUP($A20,'9a_all'!$F:$AQ,7,FALSE),IF($C$5="Females",VLOOKUP($A20,'9a_females'!$F:$AQ,7,FALSE),IF($C$5="Males",VLOOKUP($A20,'9a_males'!$F:$AQ,7,FALSE)))) -> 1078 | K20: =IF($C$5="All",VLOOKUP($A20,'9a_all'!$F:$AQ,8,FALSE),IF($C$5="Females",VLOOKUP($A20,'9a_females'!$F:$AQ,8,FALSE),IF($C$5="Males",VLOOKUP($A20,'9a_males'!$F:$AQ,8,FALSE)))) -> 31.21 | L20: =IF($C$5="All",VLOOKUP($A20,'9a_all'!$F:$AQ,9,FALSE),IF($C$5="Females",VLOOKUP($A20,'9a_females'!$F:$AQ,9,FALSE),IF($C$5="Males",VLOOKUP($A20,'9a_males'!$F:$AQ,9,FALSE)))) -> C | M20: =IF($C$5="All",VLOOKUP($A20,'9a_all'!$F:$AQ,10,FALSE),IF($C$5="Females",VLOOKUP($A20,'9a_females'!$F:$AQ,10,FALSE),IF($C$5="Males",VLOOKUP($A20,'9a_males'!$F:$AQ,10,FALSE)))) -> 6.7 | N20: =IF($C$5="All",VLOOKUP($A20,'9a_all'!$F:$AQ,11,FALSE),IF($C$5="Females",VLOOKUP($A20,'9a_females'!$F:$AQ,11,FALSE),IF($C$5="Males",VLOOKUP($A20,'9a_males'!$F:$AQ,11,FALSE)))) -> 13.8 | P20: =IF($C$5="All",VLOOKUP($A20,'9a_all'!$F:$AQ,12,FALSE),IF($C$5="Females",VLOOKUP($A20,'9a_females'!$F:$AQ,12,FALSE),IF($C$5="Males",VLOOKUP($A20,'9a_males'!$F:$AQ,12,FALSE)))) -> 1069 | Q20: =IF($C$5="All",VLOOKUP($A20,'9a_all'!$F:$AQ,13,FALSE),IF($C$5="Females",VLOOKUP($A20,'9a_females'!$F:$AQ,13,FALSE),IF($C$5="Males",VLOOKUP($A20,'9a_males'!$F:$AQ,13,FALSE)))) -> 9.8 | S20: =IF($C$5="All",VLOOKUP($A20,'9a_all'!$F:$AQ,14,FALSE),IF($C$5="Females",VLOOKUP($A20,'9a_females'!$F:$AQ,14,FALSE),IF($C$5="Males",VLOOKUP($A20,'9a_males'!$F:$AQ,14,FALSE)))) -> 1756 | T20: =IF($C$5="All",VLOOKUP($A20,'9a_all'!$F:$AQ,15,FALSE),IF($C$5="Females",VLOOKUP($A20,'9a_females'!$F:$AQ,15,FALSE),IF($C$5="Males",VLOOKUP($A20,'9a_males'!$F:$AQ,15,FALSE)))) -> 28.24 | U20: =IF($C$5="All",VLOOKUP($A20,'9a_all'!$F:$AQ,16,FALSE),IF($C$5="Females",VLOOKUP($A20,'9a_females'!$F:$AQ,16,FALSE),IF($C$5="Males",VLOOKUP($A20,'9a_males'!$F:$AQ,16,FALSE)))) -> C- | W20: =IF($C$5="All",VLOOKUP($A20,'9a_all'!$F:$AQ,17,FALSE),IF($C$5="Females",VLOOKUP($A20,'9a_females'!$F:$AQ,17,FALSE),IF($C$5="Males",VLOOKUP($A20,'9a_males'!$F:$AQ,17,FALSE)))) -> 958 | X20: =IF($C$5="All",VLOOKUP($A20,'9a_all'!$F:$AQ,18,FALSE),IF($C$5="Females",VLOOKUP($A20,'9a_females'!$F:$AQ,18,FALSE),IF($C$5="Males",VLOOKUP($A20,'9a_males'!$F:$AQ,18,FALSE)))) -> 28.33 | Y20: =IF($C$5="All",VLOOKUP($A20,'9a_all'!$F:$AQ,19,FALSE),IF($C$5="Females",VLOOKUP($A20,'9a_females'!$F:$AQ,19,FALSE),IF($C$5="Males",VLOOKUP($A20,'9a_males'!$F:$AQ,19,FALSE)))) -> Merit+ | AA20: =IF($C$5="All",VLOOKUP($A20,'9a_all'!$F:$AQ,20,FALSE),IF($C$5="Females",VLOOKUP($A20,'9a_females'!$F:$AQ,20,FALSE),IF($C$5="Males",VLOOKUP($A20,'9a_males'!$F:$AQ,20,FALSE)))) -> 1088 | AB20: =IF($C$5="All",VLOOKUP($A20,'9a_all'!$F:$AQ,21,FALSE),IF($C$5="Females",VLOOKUP($A20,'9a_females'!$F:$AQ,21,FALSE),IF($C$5="Males",VLOOKUP($A20,'9a_males'!$F:$AQ,21,FALSE)))) -> 33.31 | AC20: =IF($C$5="All",VLOOKUP($A20,'9a_all'!$F:$AQ,22,FALSE),IF($C$5="Females",VLOOKUP($A20,'9a_females'!$F:$AQ,22,FALSE),IF($C$5="Males",VLOOKUP($A20,'9a_males'!$F:$AQ,22,FALSE)))) -> Dist- | AE20: =IF($C$5="All",VLOOKUP($A20,'9a_all'!$F:$AS,23,FALSE),IF($C$5="Females",VLOOKUP($A20,'9a_females'!$F:$AS,23,FALSE),IF($C$5="Males",VLOOKUP($A20,'9a_males'!$F:$AS,23,FALSE)))) -> x
A21: North Tyneside | B21: E08000022 | C21: =IF($C$5="All",VLOOKUP($A21,'9a_all'!$F:$AQ,2,FALSE),IF($C$5="Females",VLOOKUP($A21,'9a_females'!$F:$AQ,2,FALSE),IF($C$5="Males",VLOOKUP($A21,'9a_males'!$F:$AQ,2,FALSE)))) -> 1390 | D21: =IF($C$5="All",VLOOKUP($A21,'9a_all'!$F:$AQ,3,FALSE),IF($C$5="Females",VLOOKUP($A21,'9a_females'!$F:$AQ,3,FALSE),IF($C$5="Males",VLOOKUP($A21,'9a_males'!$F:$AQ,3,FALSE)))) -> 31.19 | F21: =IF($C$5="All",VLOOKUP($A21,'9a_all'!$F:$AQ,4,FALSE),IF($C$5="Females",VLOOKUP($A21,'9a_females'!$F:$AQ,4,FALSE),IF($C$5="Males",VLOOKUP($A21,'9a_males'!$F:$AQ,4,FALSE)))) -> 989 | G21: =IF($C$5="All",VLOOKUP($A21,'9a_all'!$F:$AQ,5,FALSE),IF($C$5="Females",VLOOKUP($A21,'9a_females'!$F:$AQ,5,FALSE),IF($C$5="Males",VLOOKUP($A21,'9a_males'!$F:$AQ,5,FALSE)))) -> 30.43 | H21: =IF($C$5="All",VLOOKUP($A21,'9a_all'!$F:$AQ,6,FALSE),IF($C$5="Females",VLOOKUP($A21,'9a_females'!$F:$AQ,6,FALSE),IF($C$5="Males",VLOOKUP($A21,'9a_males'!$F:$AQ,6,FALSE)))) -> C | J21: =IF($C$5="All",VLOOKUP($A21,'9a_all'!$F:$AQ,7,FALSE),IF($C$5="Females",VLOOKUP($A21,'9a_females'!$F:$AQ,7,FALSE),IF($C$5="Males",VLOOKUP($A21,'9a_males'!$F:$AQ,7,FALSE)))) -> 707 | K21: =IF($C$5="All",VLOOKUP($A21,'9a_all'!$F:$AQ,8,FALSE),IF($C$5="Females",VLOOKUP($A21,'9a_females'!$F:$AQ,8,FALSE),IF($C$5="Males",VLOOKUP($A21,'9a_males'!$F:$AQ,8,FALSE)))) -> 31.64 | L21: =IF($C$5="All",VLOOKUP($A21,'9a_all'!$F:$AQ,9,FALSE),IF($C$5="Females",VLOOKUP($A21,'9a_females'!$F:$AQ,9,FALSE),IF($C$5="Males",VLOOKUP($A21,'9a_males'!$F:$AQ,9,FALSE)))) -> C | M21: =IF($C$5="All",VLOOKUP($A21,'9a_all'!$F:$AQ,10,FALSE),IF($C$5="Females",VLOOKUP($A21,'9a_females'!$F:$AQ,10,FALSE),IF($C$5="Males",VLOOKUP($A21,'9a_males'!$F:$AQ,10,FALSE)))) -> 7.8 | N21: =IF($C$5="All",VLOOKUP($A21,'9a_all'!$F:$AQ,11,FALSE),IF($C$5="Females",VLOOKUP($A21,'9a_females'!$F:$AQ,11,FALSE),IF($C$5="Males",VLOOKUP($A21,'9a_males'!$F:$AQ,11,FALSE)))) -> 13.9 | P21: =IF($C$5="All",VLOOKUP($A21,'9a_all'!$F:$AQ,12,FALSE),IF($C$5="Females",VLOOKUP($A21,'9a_females'!$F:$AQ,12,FALSE),IF($C$5="Males",VLOOKUP($A21,'9a_males'!$F:$AQ,12,FALSE)))) -> 693 | Q21: =IF($C$5="All",VLOOKUP($A21,'9a_all'!$F:$AQ,13,FALSE),IF($C$5="Females",VLOOKUP($A21,'9a_females'!$F:$AQ,13,FALSE),IF($C$5="Males",VLOOKUP($A21,'9a_males'!$F:$AQ,13,FALSE)))) -> 12.3 | S21: =IF($C$5="All",VLOOKUP($A21,'9a_all'!$F:$AQ,14,FALSE),IF($C$5="Females",VLOOKUP($A21,'9a_females'!$F:$AQ,14,FALSE),IF($C$5="Males",VLOOKUP($A21,'9a_males'!$F:$AQ,14,FALSE)))) -> 990 | T21: =IF($C$5="All",VLOOKUP($A21,'9a_all'!$F:$AQ,15,FALSE),IF($C$5="Females",VLOOKUP($A21,'9a_females'!$F:$AQ,15,FALSE),IF($C$5="Males",VLOOKUP($A21,'9a_males'!$F:$AQ,15,FALSE)))) -> 30.51 | U21: =IF($C$5="All",VLOOKUP($A21,'9a_all'!$F:$AQ,16,FALSE),IF($C$5="Females",VLOOKUP($A21,'9a_females'!$F:$AQ,16,FALSE),IF($C$5="Males",VLOOKUP($A21,'9a_males'!$F:$AQ,16,FALSE)))) -> C | W21: =IF($C$5="All",VLOOKUP($A21,'9a_all'!$F:$AQ,17,FALSE),IF($C$5="Females",VLOOKUP($A21,'9a_females'!$F:$AQ,17,FALSE),IF($C$5="Males",VLOOKUP($A21,'9a_males'!$F:$AQ,17,FALSE)))) -> 276 | X21: =IF($C$5="All",VLOOKUP($A21,'9a_all'!$F:$AQ,18,FALSE),IF($C$5="Females",VLOOKUP($A21,'9a_females'!$F:$AQ,18,FALSE),IF($C$5="Males",VLOOKUP($A21,'9a_males'!$F:$AQ,18,FALSE)))) -> 26.96 | Y21: =IF($C$5="All",VLOOKUP($A21,'9a_all'!$F:$AQ,19,FALSE),IF($C$5="Females",VLOOKUP($A21,'9a_females'!$F:$AQ,19,FALSE),IF($C$5="Males",VLOOKUP($A21,'9a_males'!$F:$AQ,19,FALSE)))) -> Merit+ | AA21: =IF($C$5="All",VLOOKUP($A21,'9a_all'!$F:$AQ,20,FALSE),IF($C$5="Females",VLOOKUP($A21,'9a_females'!$F:$AQ,20,FALSE),IF($C$5="Males",VLOOKUP($A21,'9a_males'!$F:$AQ,20,FALSE)))) -> 317 | AB21: =IF($C$5="All",VLOOKUP($A21,'9a_all'!$F:$AQ,21,FALSE),IF($C$5="Females",VLOOKUP($A21,'9a_females'!$F:$AQ,21,FALSE),IF($C$5="Males",VLOOKUP($A21,'9a_males'!$F:$AQ,21,FALSE)))) -> 38.11 | AC21: =IF($C$5="All",VLOOKUP($A21,'9a_all'!$F:$AQ,22,FALSE),IF($C$5="Females",VLOOKUP($A21,'9a_females'!$F:$AQ,22,FALSE),IF($C$5="Males",VLOOKUP($A21,'9a_males'!$F:$AQ,22,FALSE)))) -> Dist+ | AE21: =IF($C$5="All",VLOOKUP($A21,'9a_all'!$F:$AS,23,FALSE),IF($C$5="Females",VLOOKUP($A21,'9a_females'!$F:$AS,23,FALSE),IF($C$5="Males",VLOOKUP($A21,'9a_males'!$F:$AS,23,FALSE)))) -> 0
A22: Northumberland | B22: E06000048 | C22: =IF($C$5="All",VLOOKUP($A22,'9a_all'!$F:$AQ,2,FALSE),IF($C$5="Females",VLOOKUP($A22,'9a_females'!$F:$AQ,2,FALSE),IF($C$5="Males",VLOOKUP($A22,'9a_males'!$F:$AQ,2,FALSE)))) -> 2092 | D22: =IF($C$5="All",VLOOKUP($A22,'9a_all'!$F:$AQ,3,FALSE),IF($C$5="Females",VLOOKUP($A22,'9a_females'!$F:$AQ,3,FALSE),IF($C$5="Males",VLOOKUP($A22,'9a_males'!$F:$AQ,3,FALSE)))) -> 31.91 | F22: =IF($C$5="All",VLOOKUP($A22,'9a_all'!$F:$AQ,4,FALSE),IF($C$5="Females",VLOOKUP($A22,'9a_females'!$F:$AQ,4,FALSE),IF($C$5="Males",VLOOKUP($A22,'9a_males'!$F:$AQ,4,FALSE)))) -> 1645 | G22: =IF($C$5="All",VLOOKUP($A22,'9a_all'!$F:$AQ,5,FALSE),IF($C$5="Females",VLOOKUP($A22,'9a_females'!$F:$AQ,5,FALSE),IF($C$5="Males",VLOOKUP($A22,'9a_males'!$F:$AQ,5,FALSE)))) -> 30.15 | H22: =IF($C$5="All",VLOOKUP($A22,'9a_all'!$F:$AQ,6,FALSE),IF($C$5="Females",VLOOKUP($A22,'9a_females'!$F:$AQ,6,FALSE),IF($C$5="Males",VLOOKUP($A22,'9a_males'!$F:$AQ,6,FALSE)))) -> C | J22: =IF($C$5="All",VLOOKUP($A22,'9a_all'!$F:$AQ,7,FALSE),IF($C$5="Females",VLOOKUP($A22,'9a_females'!$F:$AQ,7,FALSE),IF($C$5="Males",VLOOKUP($A22,'9a_males'!$F:$AQ,7,FALSE)))) -> 904 | K22: =IF($C$5="All",VLOOKUP($A22,'9a_all'!$F:$AQ,8,FALSE),IF($C$5="Females",VLOOKUP($A22,'9a_females'!$F:$AQ,8,FALSE),IF($C$5="Males",VLOOKUP($A22,'9a_males'!$F:$AQ,8,FALSE)))) -> 35.27 | L22: =IF($C$5="All",VLOOKUP($A22,'9a_all'!$F:$AQ,9,FALSE),IF($C$5="Females",VLOOKUP($A22,'9a_females'!$F:$AQ,9,FALSE),IF($C$5="Males",VLOOKUP($A22,'9a_males'!$F:$AQ,9,FALSE)))) -> B- | M22: =IF($C$5="All",VLOOKUP($A22,'9a_all'!$F:$AQ,10,FALSE),IF($C$5="Females",VLOOKUP($A22,'9a_females'!$F:$AQ,10,FALSE),IF($C$5="Males",VLOOKUP($A22,'9a_males'!$F:$AQ,10,FALSE)))) -> 11.4 | N22: =IF($C$5="All",VLOOKUP($A22,'9a_all'!$F:$AQ,11,FALSE),IF($C$5="Females",VLOOKUP($A22,'9a_females'!$F:$AQ,11,FALSE),IF($C$5="Males",VLOOKUP($A22,'9a_males'!$F:$AQ,11,FALSE)))) -> 19.6 | P22: =IF($C$5="All",VLOOKUP($A22,'9a_all'!$F:$AQ,12,FALSE),IF($C$5="Females",VLOOKUP($A22,'9a_females'!$F:$AQ,12,FALSE),IF($C$5="Males",VLOOKUP($A22,'9a_males'!$F:$AQ,12,FALSE)))) -> 895 | Q22: =IF($C$5="All",VLOOKUP($A22,'9a_all'!$F:$AQ,13,FALSE),IF($C$5="Females",VLOOKUP($A22,'9a_females'!$F:$AQ,13,FALSE),IF($C$5="Males",VLOOKUP($A22,'9a_males'!$F:$AQ,13,FALSE)))) -> 14.7 | S22: =IF($C$5="All",VLOOKUP($A22,'9a_all'!$F:$AQ,14,FALSE),IF($C$5="Females",VLOOKUP($A22,'9a_females'!$F:$AQ,14,FALSE),IF($C$5="Males",VLOOKUP($A22,'9a_males'!$F:$AQ,14,FALSE)))) -> 1651 | T22: =IF($C$5="All",VLOOKUP($A22,'9a_all'!$F:$AQ,15,FALSE),IF($C$5="Females",VLOOKUP($A22,'9a_females'!$F:$AQ,15,FALSE),IF($C$5="Males",VLOOKUP($A22,'9a_males'!$F:$AQ,15,FALSE)))) -> 30.16 | U22: =IF($C$5="All",VLOOKUP($A22,'9a_all'!$F:$AQ,16,FALSE),IF($C$5="Females",VLOOKUP($A22,'9a_females'!$F:$AQ,16,FALSE),IF($C$5="Males",VLOOKUP($A22,'9a_males'!$F:$AQ,16,FALSE)))) -> C | W22: =IF($C$5="All",VLOOKUP($A22,'9a_all'!$F:$AQ,17,FALSE),IF($C$5="Females",VLOOKUP($A22,'9a_females'!$F:$AQ,17,FALSE),IF($C$5="Males",VLOOKUP($A22,'9a_males'!$F:$AQ,17,FALSE)))) -> 423 | X22: =IF($C$5="All",VLOOKUP($A22,'9a_all'!$F:$AQ,18,FALSE),IF($C$5="Females",VLOOKUP($A22,'9a_females'!$F:$AQ,18,FALSE),IF($C$5="Males",VLOOKUP($A22,'9a_males'!$F:$AQ,18,FALSE)))) -> 30.98 | Y22: =IF($C$5="All",VLOOKUP($A22,'9a_all'!$F:$AQ,19,FALSE),IF($C$5="Females",VLOOKUP($A22,'9a_females'!$F:$AQ,19,FALSE),IF($C$5="Males",VLOOKUP($A22,'9a_males'!$F:$AQ,19,FALSE)))) -> Dist- | AA22: =IF($C$5="All",VLOOKUP($A22,'9a_all'!$F:$AQ,20,FALSE),IF($C$5="Females",VLOOKUP($A22,'9a_females'!$F:$AQ,20,FALSE),IF($C$5="Males",VLOOKUP($A22,'9a_males'!$F:$AQ,20,FALSE)))) -> 754 | AB22: =IF($C$5="All",VLOOKUP($A22,'9a_all'!$F:$AQ,21,FALSE),IF($C$5="Females",VLOOKUP($A22,'9a_females'!$F:$AQ,21,FALSE),IF($C$5="Males",VLOOKUP($A22,'9a_males'!$F:$AQ,21,FALSE)))) -> 39.79 | AC22: =IF($C$5="All",VLOOKUP($A22,'9a_all'!$F:$AQ,22,FALSE),IF($C$5="Females",VLOOKUP($A22,'9a_females'!$F:$AQ,22,FALSE),IF($C$5="Males",VLOOKUP($A22,'9a_males'!$F:$AQ,22,FALSE)))) -> Dist+ | AE22: =IF($C$5="All",VLOOKUP($A22,'9a_all'!$F:$AS,23,FALSE),IF($C$5="Females",VLOOKUP($A22,'9a_females'!$F:$AS,23,FALSE),IF($C$5="Males",VLOOKUP($A22,'9a_males'!$F:$AS,23,FALSE)))) -> 0
A23: Redcar and Cleveland | B23: E06000003 | C23: =IF($C$5="All",VLOOKUP($A23,'9a_all'!$F:$AQ,2,FALSE),IF($C$5="Females",VLOOKUP($A23,'9a_females'!$F:$AQ,2,FALSE),IF($C$5="Males",VLOOKUP($A23,'9a_males'!$F:$AQ,2,FALSE)))) -> 821 | D23: =IF($C$5="All",VLOOKUP($A23,'9a_all'!$F:$AQ,3,FALSE),IF($C$5="Females",VLOOKUP($A23,'9a_females'!$F:$AQ,3,FALSE),IF($C$5="Males",VLOOKUP($A23,'9a_males'!$F:$AQ,3,FALSE)))) -> 30.81 | F23: =IF($C$5="All",VLOOKUP($A23,'9a_all'!$F:$AQ,4,FALSE),IF($C$5="Females",VLOOKUP($A23,'9a_females'!$F:$AQ,4,FALSE),IF($C$5="Males",VLOOKUP($A23,'9a_males'!$F:$AQ,4,FALSE)))) -> 608 | G23: =IF($C$5="All",VLOOKUP($A23,'9a_all'!$F:$AQ,5,FALSE),IF($C$5="Females",VLOOKUP($A23,'9a_females'!$F:$AQ,5,FALSE),IF($C$5="Males",VLOOKUP($A23,'9a_males'!$F:$AQ,5,FALSE)))) -> 30.78 | H23: =IF($C$5="All",VLOOKUP($A23,'9a_all'!$F:$AQ,6,FALSE),IF($C$5="Females",VLOOKUP($A23,'9a_females'!$F:$AQ,6,FALSE),IF($C$5="Males",VLOOKUP($A23,'9a_males'!$F:$AQ,6,FALSE)))) -> C | J23: =IF($C$5="All",VLOOKUP($A23,'9a_all'!$F:$AQ,7,FALSE),IF($C$5="Females",VLOOKUP($A23,'9a_females'!$F:$AQ,7,FALSE),IF($C$5="Males",VLOOKUP($A23,'9a_males'!$F:$AQ,7,FALSE)))) -> 353 | K23: =IF($C$5="All",VLOOKUP($A23,'9a_all'!$F:$AQ,8,FALSE),IF($C$5="Females",VLOOKUP($A23,'9a_females'!$F:$AQ,8,FALSE),IF($C$5="Males",VLOOKUP($A23,'9a_males'!$F:$AQ,8,FALSE)))) -> 32.52 | L23: =IF($C$5="All",VLOOKUP($A23,'9a_all'!$F:$AQ,9,FALSE),IF($C$5="Females",VLOOKUP($A23,'9a_females'!$F:$AQ,9,FALSE),IF($C$5="Males",VLOOKUP($A23,'9a_males'!$F:$AQ,9,FALSE)))) -> C+ | M23: =IF($C$5="All",VLOOKUP($A23,'9a_all'!$F:$AQ,10,FALSE),IF($C$5="Females",VLOOKUP($A23,'9a_females'!$F:$AQ,10,FALSE),IF($C$5="Males",VLOOKUP($A23,'9a_males'!$F:$AQ,10,FALSE)))) -> 7.1 | N23: =IF($C$5="All",VLOOKUP($A23,'9a_all'!$F:$AQ,11,FALSE),IF($C$5="Females",VLOOKUP($A23,'9a_females'!$F:$AQ,11,FALSE),IF($C$5="Males",VLOOKUP($A23,'9a_males'!$F:$AQ,11,FALSE)))) -> 15.6 | P23: =IF($C$5="All",VLOOKUP($A23,'9a_all'!$F:$AQ,12,FALSE),IF($C$5="Females",VLOOKUP($A23,'9a_females'!$F:$AQ,12,FALSE),IF($C$5="Males",VLOOKUP($A23,'9a_males'!$F:$AQ,12,FALSE)))) -> 351 | Q23: =IF($C$5="All",VLOOKUP($A23,'9a_all'!$F:$AQ,13,FALSE),IF($C$5="Females",VLOOKUP($A23,'9a_females'!$F:$AQ,13,FALSE),IF($C$5="Males",VLOOKUP($A23,'9a_males'!$F:$AQ,13,FALSE)))) -> 10.5 | S23: =IF($C$5="All",VLOOKUP($A23,'9a_all'!$F:$AQ,14,FALSE),IF($C$5="Females",VLOOKUP($A23,'9a_females'!$F:$AQ,14,FALSE),IF($C$5="Males",VLOOKUP($A23,'9a_males'!$F:$AQ,14,FALSE)))) -> 608 | T23: =IF($C$5="All",VLOOKUP($A23,'9a_all'!$F:$AQ,15,FALSE),IF($C$5="Females",VLOOKUP($A23,'9a_females'!$F:$AQ,15,FALSE),IF($C$5="Males",VLOOKUP($A23,'9a_males'!$F:$AQ,15,FALSE)))) -> 30.77 | U23: =IF($C$5="All",VLOOKUP($A23,'9a_all'!$F:$AQ,16,FALSE),IF($C$5="Females",VLOOKUP($A23,'9a_females'!$F:$AQ,16,FALSE),IF($C$5="Males",VLOOKUP($A23,'9a_males'!$F:$AQ,16,FALSE)))) -> C | W23: =IF($C$5="All",VLOOKUP($A23,'9a_all'!$F:$AQ,17,FALSE),IF($C$5="Females",VLOOKUP($A23,'9a_females'!$F:$AQ,17,FALSE),IF($C$5="Males",VLOOKUP($A23,'9a_males'!$F:$AQ,17,FALSE)))) -> 192 | X23: =IF($C$5="All",VLOOKUP($A23,'9a_all'!$F:$AQ,18,FALSE),IF($C$5="Females",VLOOKUP($A23,'9a_females'!$F:$AQ,18,FALSE),IF($C$5="Males",VLOOKUP($A23,'9a_males'!$F:$AQ,18,FALSE)))) -> 26.43 | Y23: =IF($C$5="All",VLOOKUP($A23,'9a_all'!$F:$AQ,19,FALSE),IF($C$5="Females",VLOOKUP($A23,'9a_females'!$F:$AQ,19,FALSE),IF($C$5="Males",VLOOKUP($A23,'9a_males'!$F:$AQ,19,FALSE)))) -> Merit | AA23: =IF($C$5="All",VLOOKUP($A23,'9a_all'!$F:$AQ,20,FALSE),IF($C$5="Females",VLOOKUP($A23,'9a_females'!$F:$AQ,20,FALSE),IF($C$5="Males",VLOOKUP($A23,'9a_males'!$F:$AQ,20,FALSE)))) -> 225 | AB23: =IF($C$5="All",VLOOKUP($A23,'9a_all'!$F:$AQ,21,FALSE),IF($C$5="Females",VLOOKUP($A23,'9a_females'!$F:$AQ,21,FALSE),IF($C$5="Males",VLOOKUP($A23,'9a_males'!$F:$AQ,21,FALSE)))) -> 35.81 | AC23: =IF($C$5="All",VLOOKUP($A23,'9a_all'!$F:$AQ,22,FALSE),IF($C$5="Females",VLOOKUP($A23,'9a_females'!$F:$AQ,22,FALSE),IF($C$5="Males",VLOOKUP($A23,'9a_males'!$F:$AQ,22,FALSE)))) -> Dist | AE23: =IF($C$5="All",VLOOKUP($A23,'9a_all'!$F:$AS,23,FALSE),IF($C$5="Females",VLOOKUP($A23,'9a_females'!$F:$AS,23,FALSE),IF($C$5="Males",VLOOKUP($A23,'9a_males'!$F:$AS,23,FALSE)))) -> 0
A24: South Tyneside | B24: E08000023 | C24: =IF($C$5="All",VLOOKUP($A24,'9a_all'!$F:$AQ,2,FALSE),IF($C$5="Females",VLOOKUP($A24,'9a_females'!$F:$AQ,2,FALSE),IF($C$5="Males",VLOOKUP($A24,'9a_males'!$F:$AQ,2,FALSE)))) -> 616 | D24: =IF($C$5="All",VLOOKUP($A24,'9a_all'!$F:$AQ,3,FALSE),IF($C$5="Females",VLOOKUP($A24,'9a_females'!$F:$AQ,3,FALSE),IF($C$5="Males",VLOOKUP($A24,'9a_males'!$F:$AQ,3,FALSE)))) -> 29.46 | F24: =IF($C$5="All",VLOOKUP($A24,'9a_all'!$F:$AQ,4,FALSE),IF($C$5="Females",VLOOKUP($A24,'9a_females'!$F:$AQ,4,FALSE),IF($C$5="Males",VLOOKUP($A24,'9a_males'!$F:$AQ,4,FALSE)))) -> 390 | G24: =IF($C$5="All",VLOOKUP($A24,'9a_all'!$F:$AQ,5,FALSE),IF($C$5="Females",VLOOKUP($A24,'9a_females'!$F:$AQ,5,FALSE),IF($C$5="Males",VLOOKUP($A24,'9a_males'!$F:$AQ,5,FALSE)))) -> 29.15 | H24: =IF($C$5="All",VLOOKUP($A24,'9a_all'!$F:$AQ,6,FALSE),IF($C$5="Females",VLOOKUP($A24,'9a_females'!$F:$AQ,6,FALSE),IF($C$5="Males",VLOOKUP($A24,'9a_males'!$F:$AQ,6,FALSE)))) -> C | J24: =IF($C$5="All",VLOOKUP($A24,'9a_all'!$F:$AQ,7,FALSE),IF($C$5="Females",VLOOKUP($A24,'9a_females'!$F:$AQ,7,FALSE),IF($C$5="Males",VLOOKUP($A24,'9a_males'!$F:$AQ,7,FALSE)))) -> 273 | K24: =IF($C$5="All",VLOOKUP($A24,'9a_all'!$F:$AQ,8,FALSE),IF($C$5="Females",VLOOKUP($A24,'9a_females'!$F:$AQ,8,FALSE),IF($C$5="Males",VLOOKUP($A24,'9a_males'!$F:$AQ,8,FALSE)))) -> 32.44 | L24: =IF($C$5="All",VLOOKUP($A24,'9a_all'!$F:$AQ,9,FALSE),IF($C$5="Females",VLOOKUP($A24,'9a_females'!$F:$AQ,9,FALSE),IF($C$5="Males",VLOOKUP($A24,'9a_males'!$F:$AQ,9,FALSE)))) -> C+ | M24: =IF($C$5="All",VLOOKUP($A24,'9a_all'!$F:$AQ,10,FALSE),IF($C$5="Females",VLOOKUP($A24,'9a_females'!$F:$AQ,10,FALSE),IF($C$5="Males",VLOOKUP($A24,'9a_males'!$F:$AQ,10,FALSE)))) -> 8.4 | N24: =IF($C$5="All",VLOOKUP($A24,'9a_all'!$F:$AQ,11,FALSE),IF($C$5="Females",VLOOKUP($A24,'9a_females'!$F:$AQ,11,FALSE),IF($C$5="Males",VLOOKUP($A24,'9a_males'!$F:$AQ,11,FALSE)))) -> 12.8 | P24: =IF($C$5="All",VLOOKUP($A24,'9a_all'!$F:$AQ,12,FALSE),IF($C$5="Females",VLOOKUP($A24,'9a_females'!$F:$AQ,12,FALSE),IF($C$5="Males",VLOOKUP($A24,'9a_males'!$F:$AQ,12,FALSE)))) -> 270 | Q24: =IF($C$5="All",VLOOKUP($A24,'9a_all'!$F:$AQ,13,FALSE),IF($C$5="Females",VLOOKUP($A24,'9a_females'!$F:$AQ,13,FALSE),IF($C$5="Males",VLOOKUP($A24,'9a_males'!$F:$AQ,13,FALSE)))) -> 10 | S24: =IF($C$5="All",VLOOKUP($A24,'9a_all'!$F:$AQ,14,FALSE),IF($C$5="Females",VLOOKUP($A24,'9a_females'!$F:$AQ,14,FALSE),IF($C$5="Males",VLOOKUP($A24,'9a_males'!$F:$AQ,14,FALSE)))) -> 391 | T24: =IF($C$5="All",VLOOKUP($A24,'9a_all'!$F:$AQ,15,FALSE),IF($C$5="Females",VLOOKUP($A24,'9a_females'!$F:$AQ,15,FALSE),IF($C$5="Males",VLOOKUP($A24,'9a_males'!$F:$AQ,15,FALSE)))) -> 29.15 | U24: =IF($C$5="All",VLOOKUP($A24,'9a_all'!$F:$AQ,16,FALSE),IF($C$5="Females",VLOOKUP($A24,'9a_females'!$F:$AQ,16,FALSE),IF($C$5="Males",VLOOKUP($A24,'9a_males'!$F:$AQ,16,FALSE)))) -> C | W24: =IF($C$5="All",VLOOKUP($A24,'9a_all'!$F:$AQ,17,FALSE),IF($C$5="Females",VLOOKUP($A24,'9a_females'!$F:$AQ,17,FALSE),IF($C$5="Males",VLOOKUP($A24,'9a_males'!$F:$AQ,17,FALSE)))) -> 155 | X24: =IF($C$5="All",VLOOKUP($A24,'9a_all'!$F:$AQ,18,FALSE),IF($C$5="Females",VLOOKUP($A24,'9a_females'!$F:$AQ,18,FALSE),IF($C$5="Males",VLOOKUP($A24,'9a_males'!$F:$AQ,18,FALSE)))) -> 28.03 | Y24: =IF($C$5="All",VLOOKUP($A24,'9a_all'!$F:$AQ,19,FALSE),IF($C$5="Females",VLOOKUP($A24,'9a_females'!$F:$AQ,19,FALSE),IF($C$5="Males",VLOOKUP($A24,'9a_males'!$F:$AQ,19,FALSE)))) -> Merit+ | AA24: =IF($C$5="All",VLOOKUP($A24,'9a_all'!$F:$AQ,20,FALSE),IF($C$5="Females",VLOOKUP($A24,'9a_females'!$F:$AQ,20,FALSE),IF($C$5="Males",VLOOKUP($A24,'9a_males'!$F:$AQ,20,FALSE)))) -> 138 | AB24: =IF($C$5="All",VLOOKUP($A24,'9a_all'!$F:$AQ,21,FALSE),IF($C$5="Females",VLOOKUP($A24,'9a_females'!$F:$AQ,21,FALSE),IF($C$5="Males",VLOOKUP($A24,'9a_males'!$F:$AQ,21,FALSE)))) -> 32.4 | AC24: =IF($C$5="All",VLOOKUP($A24,'9a_all'!$F:$AQ,22,FALSE),IF($C$5="Females",VLOOKUP($A24,'9a_females'!$F:$AQ,22,FALSE),IF($C$5="Males",VLOOKUP($A24,'9a_males'!$F:$AQ,22,FALSE)))) -> Dist- | AE24: =IF($C$5="All",VLOOKUP($A24,'9a_all'!$F:$AS,23,FALSE),IF($C$5="Females",VLOOKUP($A24,'9a_females'!$F:$AS,23,FALSE),IF($C$5="Males",VLOOKUP($A24,'9a_males'!$F:$AS,23,FALSE)))) -> 0
A25: Stockton-on-Tees | B25: E06000004 | C25: =IF($C$5="All",VLOOKUP($A25,'9a_all'!$F:$AQ,2,FALSE),IF($C$5="Females",VLOOKUP($A25,'9a_females'!$F:$AQ,2,FALSE),IF($C$5="Males",VLOOKUP($A25,'9a_males'!$F:$AQ,2,FALSE)))) -> 1091 | D25: =IF($C$5="All",VLOOKUP($A25,'9a_all'!$F:$AQ,3,FALSE),IF($C$5="Females",VLOOKUP($A25,'9a_females'!$F:$AQ,3,FALSE),IF($C$5="Males",VLOOKUP($A25,'9a_males'!$F:$AQ,3,FALSE)))) -> 30.8 | F25: =IF($C$5="All",VLOOKUP($A25,'9a_all'!$F:$AQ,4,FALSE),IF($C$5="Females",VLOOKUP($A25,'9a_females'!$F:$AQ,4,FALSE),IF($C$5="Males",VLOOKUP($A25,'9a_males'!$F:$AQ,4,FALSE)))) -> 802 | G25: =IF($C$5="All",VLOOKUP($A25,'9a_all'!$F:$AQ,5,FALSE),IF($C$5="Females",VLOOKUP($A25,'9a_females'!$F:$AQ,5,FALSE),IF($C$5="Males",VLOOKUP($A25,'9a_males'!$F:$AQ,5,FALSE)))) -> 29.44 | H25: =IF($C$5="All",VLOOKUP($A25,'9a_all'!$F:$AQ,6,FALSE),IF($C$5="Females",VLOOKUP($A25,'9a_females'!$F:$AQ,6,FALSE),IF($C$5="Males",VLOOKUP($A25,'9a_males'!$F:$AQ,6,FALSE)))) -> C | J25: =IF($C$5="All",VLOOKUP($A25,'9a_all'!$F:$AQ,7,FALSE),IF($C$5="Females",VLOOKUP($A25,'9a_females'!$F:$AQ,7,FALSE),IF($C$5="Males",VLOOKUP($A25,'9a_males'!$F:$AQ,7,FALSE)))) -> 511 | K25: =IF($C$5="All",VLOOKUP($A25,'9a_all'!$F:$AQ,8,FALSE),IF($C$5="Females",VLOOKUP($A25,'9a_females'!$F:$AQ,8,FALSE),IF($C$5="Males",VLOOKUP($A25,'9a_males'!$F:$AQ,8,FALSE)))) -> 31.84 | L25: =IF($C$5="All",VLOOKUP($A25,'9a_all'!$F:$AQ,9,FALSE),IF($C$5="Females",VLOOKUP($A25,'9a_females'!$F:$AQ,9,FALSE),IF($C$5="Males",VLOOKUP($A25,'9a_males'!$F:$AQ,9,FALSE)))) -> C+ | M25: =IF($C$5="All",VLOOKUP($A25,'9a_all'!$F:$AQ,10,FALSE),IF($C$5="Females",VLOOKUP($A25,'9a_females'!$F:$AQ,10,FALSE),IF($C$5="Males",VLOOKUP($A25,'9a_males'!$F:$AQ,10,FALSE)))) -> 6.7 | N25: =IF($C$5="All",VLOOKUP($A25,'9a_all'!$F:$AQ,11,FALSE),IF($C$5="Females",VLOOKUP($A25,'9a_females'!$F:$AQ,11,FALSE),IF($C$5="Males",VLOOKUP($A25,'9a_males'!$F:$AQ,11,FALSE)))) -> 17 | P25: =IF($C$5="All",VLOOKUP($A25,'9a_all'!$F:$AQ,12,FALSE),IF($C$5="Females",VLOOKUP($A25,'9a_females'!$F:$AQ,12,FALSE),IF($C$5="Males",VLOOKUP($A25,'9a_males'!$F:$AQ,12,FALSE)))) -> 498 | Q25: =IF($C$5="All",VLOOKUP($A25,'9a_all'!$F:$AQ,13,FALSE),IF($C$5="Females",VLOOKUP($A25,'9a_females'!$F:$AQ,13,FALSE),IF($C$5="Males",VLOOKUP($A25,'9a_males'!$F:$AQ,13,FALSE)))) -> 12.9 | S25: =IF($C$5="All",VLOOKUP($A25,'9a_all'!$F:$AQ,14,FALSE),IF($C$5="Females",VLOOKUP($A25,'9a_females'!$F:$AQ,14,FALSE),IF($C$5="Males",VLOOKUP($A25,'9a_males'!$F:$AQ,14,FALSE)))) -> 802 | T25: =IF($C$5="All",VLOOKUP($A25,'9a_all'!$F:$AQ,15,FALSE),IF($C$5="Females",VLOOKUP($A25,'9a_females'!$F:$AQ,15,FALSE),IF($C$5="Males",VLOOKUP($A25,'9a_males'!$F:$AQ,15,FALSE)))) -> 29.52 | U25: =IF($C$5="All",VLOOKUP($A25,'9a_all'!$F:$AQ,16,FALSE),IF($C$5="Females",VLOOKUP($A25,'9a_females'!$F:$AQ,16,FALSE),IF($C$5="Males",VLOOKUP($A25,'9a_males'!$F:$AQ,16,FALSE)))) -> C | W25: =IF($C$5="All",VLOOKUP($A25,'9a_all'!$F:$AQ,17,FALSE),IF($C$5="Females",VLOOKUP($A25,'9a_females'!$F:$AQ,17,FALSE),IF($C$5="Males",VLOOKUP($A25,'9a_males'!$F:$AQ,17,FALSE)))) -> 204 | X25: =IF($C$5="All",VLOOKUP($A25,'9a_all'!$F:$AQ,18,FALSE),IF($C$5="Females",VLOOKUP($A25,'9a_females'!$F:$AQ,18,FALSE),IF($C$5="Males",VLOOKUP($A25,'9a_males'!$F:$AQ,18,FALSE)))) -> 31.07 | Y25: =IF($C$5="All",VLOOKUP($A25,'9a_all'!$F:$AQ,19,FALSE),IF($C$5="Females",VLOOKUP($A25,'9a_females'!$F:$AQ,19,FALSE),IF($C$5="Males",VLOOKUP($A25,'9a_males'!$F:$AQ,19,FALSE)))) -> Dist- | AA25: =IF($C$5="All",VLOOKUP($A25,'9a_all'!$F:$AQ,20,FALSE),IF($C$5="Females",VLOOKUP($A25,'9a_females'!$F:$AQ,20,FALSE),IF($C$5="Males",VLOOKUP($A25,'9a_males'!$F:$AQ,20,FALSE)))) -> 314 | AB25: =IF($C$5="All",VLOOKUP($A25,'9a_all'!$F:$AQ,21,FALSE),IF($C$5="Females",VLOOKUP($A25,'9a_females'!$F:$AQ,21,FALSE),IF($C$5="Males",VLOOKUP($A25,'9a_males'!$F:$AQ,21,FALSE)))) -> 36.2 | AC25: =IF($C$5="All",VLOOKUP($A25,'9a_all'!$F:$AQ,22,FALSE),IF($C$5="Females",VLOOKUP($A25,'9a_females'!$F:$AQ,22,FALSE),IF($C$5="Males",VLOOKUP($A25,'9a_males'!$F:$AQ,22,FALSE)))) -> Dist | AE25: =IF($C$5="All",VLOOKUP($A25,'9a_all'!$F:$AS,23,FALSE),IF($C$5="Females",VLOOKUP($A25,'9a_females'!$F:$AS,23,FALSE),IF($C$5="Males",VLOOKUP($A25,'9a_males'!$F:$AS,23,FALSE)))) -> 0
